Workbook

Sheet Disclaimer and Definitions
A1: Visual_Rate_Inventory June 1, 2025
A2: =NOW() -> 2025-05-30T16:18:48.150
A3: =NOW() -> 45807.67972
A4: Disclaimer and Definitions
B8: Jersey Central Power & Light
B10: ='RT per Tariff'!C3 -> Rates Effective with Service Rendered June 1, 2025
B15: Disclaimer The pricing contained in this spreadsheet is provided for general information and analysis. It is derived from the Company's Tariff for Service, but is not an approved document and Jersey Central Power & Light (JCP&L) assumes no liability for its use. The Company's Tariff for Service is filed with the New Jersey Board of Public Utilities, 2 Gateway Center, Newark, NJ 07102. An electronic version of the Company's Tariff may be viewed through our web site at URL www.firstenergycorp.com. This electronic version of the Tariff provides greater explanation of the charges contained in this spreadsheet and includes the various terms and conditions under which service is provided. However, like this spreadsheet, the electronic version of our Tariff is provided for general information only.
A20: =A1 -> Visual_Rate_Inventory June 1, 2025
A21: =NOW() -> 2025-05-30T16:18:48.150 | B21: Page 1 of 2
A22: =NOW() -> 45807.67972
A23: Disclaimer and Definitions
B25: Definitions
B27: Taxes
B28: CBT = Allowance in rates to pay Corporation Business Tax to the State of New Jersey
B30: SUT = Sales and Use Tax
B34: Franchised Utilities - To avoid passing on additional taxes to their customers, Franchised Utilities in the State of New Jersey are exempt from paying taxes in the utility bills which they must pay. This includes exemption from the CBT and SUT taxes that are billed to non-exempt customers. Refer to Riders CBT, and SUT in the Company's Tariff for a complete list of tax exemptions.
B36: Federal Government - The federal government is exempt from SUT. However, Federal Government accounts must still pay the CBT tax which are included in our rates. Refer to Rider SUT in the Company's Tariff for a complete list of SUT exemptions.
B40: Summer/Winter Bills
B41: Summer = The Billing Months of June through September are considered Summer Billing Months
B43: Winter = The Billing Months of October through May are considered Winter Billing Months
B45: Billing Month = Generally the month in which the bill is issued. For example: A bill for the period of May 1 through May 31, which is issued on June 2 is considered a Summer bill. A bill for the period of September 1 through September 30, which is issued on October 2 is considered a Winter bill. The exact calendar period which comprises the Summer period for an individual customer will vary slightly based on the cycle in which the customer is billed, but year-round customers are issued 4 Summer bills and 8 Winter bills per year.
B49: Pricing Differences by Usage Range, On-peak versus Off-Peak, OPWH and CTWH
B50: Usage Range - Where a kWh range is indicated (e.g.: 0-600, >1,000 etc.) there is a different price charged for each usage range. These usage blocks are based on an average billing month of 26 to 35 days and are prorated for bills of a shorter or longer period.
B52: On-Peak versus Off-Peak usage - Certain rate classes include special metering to record the usage based on when it occurs. The usage that occurs during the on-peak period is charged a different price than the usage that occurs during the off-peak period. Refer to the appropriate rate class in the Company tariff for a definition of on-peak versus off-peak hours.
B54: CTWH = Controlled Water Heating Service. This is a restricted rate where the customer has an electric hot water heater whose operation is controlled by a special meter, limiting the hours during which the heating elements in the hot water heater operate. The hot water heating usage is recorded by this second meter and billed at a lower overall price than the customer's other electric usage.
B56: OPWH = Off-Peak Water Heating Service. This is a restricted rate where the customer has an electric hot water heater whose operation is restricted during certain hours by a special meter. The hot water heating usage that occurs during the non-restricted hours is recorded by this second meter and billed at a lower overall price than the customers other electric usage.
B58: Day/Night Service - Under the General Service Secondary (GS) Day/Night service option the customer's demand is metered based on when it occurs. The demand that occurs during the on-peak period is used for billing and the demand that occurs during the off-peak period is ignored unless 40% of the off-peak demand is greater than the on-peak demand. Refer to the GS rate class in the Company tariff for further explanation of this optional rate provision.
B60: Restricted Rate = A rate which is restricted to the locations where it is currently in place.
B62: Definitions Page 2 of 2
B63: Customer Charges - Single Phase, Three Phase and Supplemental
B64: Customer Charge = Monthly charge to cover such fixed costs as metering, meter reading, billing and account maintenance which the Company incurs even if the customer does not use any electricity.
B66: Single Phase/Three Phase - Due to differences in the equipment required to serve three phase versus single phase General Service Secondary (GS) customers, GS customers receiving three phase service pay a higher monthly customer charge than customers receiving single phase service.
B68: Supplemental Customer Charges - Supplemental Charges (Charges billed to the customer each month in addition to the normal monthly customer charge for their service classification) are assessed to cover the added fixed costs the company incurs for the following special rate provisions: Controlled Water Heating Service Off-Peak Water Heating Service GS Day/Night Service Traffic Signal Service
B70: Solar Water Heating Credit - Customers billed on the Residential Time-of-Day (RT) Rate who use a solar hot water heating system receive a credit against the normal monthly RT customer charge.
B74: Special Rates (not already defined):
B75: Religious House of Worship (Church Rate) - a discount that applies to the first 1,000 kWh of monthly use. Applies only to the building in which worship services are conducted (not separately metered halls, schools, living quarters, etc. that are associated with the house of worship).
B76: Traffic Signal Service - traffic or warning signals that are in continuous operation, and which are not metered in conjunction with other electrical facilities are billed on the Traffic Signal rate, which includes a higher monthly customer charge but lower per kWh charge than the standard GS rate.
B78: 230 kV discount - customers receiving transmission service (GT rate) at 230 kV have a credit per kWh and per kW applied against the standard GT kWh and kW Distribution charges and are also charged a lower NGC rate to reflect the reduced line losses associated with receiving service at this voltage level.
B80: Minimum Charge Reduction - Applies only to GT rate class. If the customer's maximum on-peak demand in the current and preceding 11 months has not exceeded 3% of their maximum off-peak demand in the current and preceding 11 months, the minimum kW charge is reduced by the amount indicated for this credit.
B84: General
B85: kWh = kilowatt-hour
B87: kW = kilowatt or demand (highest usage during any 15 minute interval during the billing period)
B89: Minimum kW - billed in place of the standard kW charge based on the customer's highest demand in the current and preceding eleven months. Customer's are billed the full rate (Summer or Winter) kW charge based on their current month's kW, unless the minimum kW charge results in a higher charge. Refer to rate classes GS, GST, GP and GT in the Company's Tariff for more information.
B91: kVar = Kilovolt-Ampere Reactive Charge
B93: Standby Service = Modifies the calculation of demand charges. Available to customers with qualifying facilities who normally generate electricity to supply all or a portion of their own energy requirements. Customers pay a standby demand charge, but may avoid significant full rate and/or minimum demand charges that might otherwise result when they must rely on JCP&L to deliver their energy requirements when the customer's generating facility is shut down for maintenance or repair.

Sheet View Tariff Charges by Rate Cat
A2: ='Disclaimer and Definitions'!$A$1 -> Visual_Rate_Inventory June 1, 2025 | B2: =NOW() -> 2025-05-30T16:18:48.150 | C2: ='RT per Tariff'!$C$3 -> Rates Effective with Service Rendered June 1, 2025 | AF2: ='Disclaimer and Definitions'!B10 -> Rates Effective with Service Rendered June 1, 2025 | AN2: Delivery
A3: Select by Rate Category | B3: =NOW() -> 45807.67972 | G3: General | K3: Commercial/ | M3: Mercury | N3: Sodium | AB3: Charge or | AC3: Customer | AG3: Energy & | AH3: BGS-FP Reconciliation Charge* | AI3: ='RT per Tariff'!I11 -> Zero Emission Certificate Recovery Charge (ZEC) | AJ3: RGGI Recovery Charge (RRC) | AN3: Service | AO3: Full Service
D4: Residential | G4: Service | H4: General | I4: General | J4: Residential | K4: Industrial | L4: Incandescent | M4: Vapor | N4: Vapor | Z4: Rate Category | AA4: Description | AB4: Price Block | AC4: Charge | AD4: Transmission* | AE4: Distribution | AF4: Covid-19 Recovery | AG4: Capacity* | AK4: SBC | AL4: LRAM | AM4: NGC | AN4: Total | AO4: Total
C5: Residential | D5: Geothermal | E5: General Service Secondary | G5: Secondary | H5: Service | I5: Service | J5: Outdoor | K5: Outdoor | L5: Street | M5: Street | N5: Street | Z5: JC_RS__01D | AA5: Residential Service | AB5: Customer Charge | AC5: ='RS per Tariff'!C29 -> 4.27 | AN5: =AC5 -> 4.27 | AO5: =AC5 -> 4.27
B6: Residential | C6: Time-of-Day | D6: & Heat Pump | E6: Single Phase | F6: Three Phase | G6: Time-of-Day | H6: Primary | I6: Transmision | J6: Lighting | K6: Lighting | L6: Lighting | M6: Lighting | N6: Lighting | AA6: No Special Provisions | AB6: ='RS per Tariff'!B33 -> Summer kWh 0 - 600 | AD6: ='RS per Tariff'!D33 -> 0.019212 | AE6: ='RS per Tariff'!E33 -> 0.020182 | AF6: ='RS per Tariff'!F33 -> 0.000358 | AG6: ='RS per Tariff'!G33 -> 0.125888 | AH6: ='RS per Tariff'!H33 -> 3.9e-05 | AI6: ='RS per Tariff'!I33 -> 0 | AJ6: ='RS per Tariff'!J33 -> 0.004729 | AK6: ='RS per Tariff'!K33 -> 0.0077 | AL6: ='RS per Tariff'!L33 -> 0.000546 | AM6: ='RS per Tariff'!M33 -> -0.000234 | AN6: =SUM(AE6:AF6,AI6:AM6) -> 0.033281 | AO6: ='RS per Tariff'!N33 -> 0.17842 | AP6: =AO6-AN6-AG6-AH6-AD6 -> 0
AA7: All Taxes Applicable & Included | AB7: ='RS per Tariff'!B34 -> Summer kWh > 600 | AD7: ='RS per Tariff'!D34 -> 0.019212 | AE7: ='RS per Tariff'!E34 -> 0.07981 | AF7: ='RS per Tariff'!F34 -> 0.000358 | AG7: ='RS per Tariff'!G34 -> 0.135113 | AH7: ='RS per Tariff'!H34 -> 3.9e-05 | AI7: ='RS per Tariff'!I34 -> 0 | AJ7: ='RS per Tariff'!J34 -> 0.004729 | AK7: ='RS per Tariff'!K34 -> 0.0077 | AL7: ='RS per Tariff'!L34 -> 0.000546 | AM7: ='RS per Tariff'!M34 -> -0.000234 | AN7: =SUM(AE7:AF7,AI7:AM7) -> 0.092909 | AO7: ='RS per Tariff'!N34 -> 0.247273 | AP7: =AO7-AN7-AG7-AH7-AD7 -> 0
AB8: ='RS per Tariff'!B35 -> Winter kWh 0-1,000 | AD8: ='RS per Tariff'!D35 -> 0.019212 | AE8: ='RS per Tariff'!E35 -> 0.033061 | AF8: ='RS per Tariff'!F35 -> 0.000358 | AG8: ='RS per Tariff'!G35 -> 0.136817 | AH8: ='RS per Tariff'!H35 -> 3.9e-05 | AI8: ='RS per Tariff'!I35 -> 0 | AJ8: ='RS per Tariff'!J35 -> 0.004729 | AK8: ='RS per Tariff'!K35 -> 0.0077 | AL8: ='RS per Tariff'!L35 -> 0.000546 | AM8: ='RS per Tariff'!M35 -> -0.000234 | AN8: 0.04616 | AO8: ='RS per Tariff'!N35 -> 0.202228 | AP8: 4.510281038e-17
AB9: ='RS per Tariff'!B36 -> Winter kWh > 1,000 | AD9: ='RS per Tariff'!D36 -> 0.019212 | AE9: ='RS per Tariff'!E36 -> 0.033061 | AF9: ='RS per Tariff'!F36 -> 0.000358 | AG9: ='RS per Tariff'!G36 -> 0.136817 | AH9: ='RS per Tariff'!H36 -> 3.9e-05 | AI9: ='RS per Tariff'!I36 -> 0 | AJ9: ='RS per Tariff'!J36 -> 0.004729 | AK9: ='RS per Tariff'!K36 -> 0.0077 | AL9: ='RS per Tariff'!L36 -> 0.000546 | AM9: ='RS per Tariff'!M36 -> -0.000234 | AN9: 0.04616 | AO9: ='RS per Tariff'!N36 -> 0.202228 | AP9: 4.510281038e-17
AC10: * Charge applies only to Full Service Customers
AF12: =AF$2 -> Rates Effective with Service Rendered June 1, 2025 | AN12: Delivery
A13: Left Click Desired | G13: The GST rate | H13: The GP rate | I13: The GT rate | J13: The various lighting categories have not been completed. Refer to the tab | AB13: Charge or | AC13: Customer | AG13: Energy & | AH13: BGS-FP Reconciliation Charge* | AI13: =AI3 -> Zero Emission Certificate Recovery Charge (ZEC) | AJ13: RGGI Recovery Charge (RRC) | AN13: Service | AO13: Full Service
A14: Rate Button to GoTo | G14: categories | H14: categories | I14: categories | J14: labeled Lighting kWh Charges & the relevant Fixture and Total Charges tab | Z14: Rate Category | AA14: Description | AB14: Price Block | AC14: Charge | AD14: Transmission* | AE14: Distribution | AF14: Covid-19 Recovery | AG14: Capacity* | AK14: SBC | AL14: LRAM | AM14: NGC | AN14: Total | AO14: Total
A15: Unbundled Prices | G15: have not been | H15: have not been | I15: have not been | Z15: JC_RS__02D | AA15: Residential Service | AB15: Customer Charge | AC15: ='RS per Tariff'!C29 -> 4.27 | AN15: =AC15 -> 4.27 | AO15: =AC15 -> 4.27
A16: as they appear in | G16: completed yet. | H16: completed yet. | I16: completed yet. | J16: OL | K16: OL | L16: ISL | M16: MVL | N16: SVL | AA16: Off-Peak Water Heating | AB16: Suppl Cust Charge | AC16: ='RS per Tariff'!C30 -> 2.23 | AN16: =AC16 -> 2.23 | AO16: =AC16 -> 2.23
A17: the JCP&L Tariff | G17: Refer to | H17: Refer to | I17: Refer to | AA17: All Taxes Applicable & Included | AB17: ='RS per Tariff'!B33 -> Summer kWh 0 - 600 | AD17: ='RS per Tariff'!D33 -> 0.019212 | AE17: ='RS per Tariff'!E33 -> 0.020182 | AF17: ='RS per Tariff'!F33 -> 0.000358 | AG17: ='RS per Tariff'!G33 -> 0.125888 | AH17: ='RS per Tariff'!H33 -> 3.9e-05 | AI17: ='RS per Tariff'!I33 -> 0 | AJ17: ='RS per Tariff'!J33 -> 0.004729 | AK17: ='RS per Tariff'!K33 -> 0.0077 | AL17: ='RS per Tariff'!L33 -> 0.000546 | AM17: ='RS per Tariff'!M33 -> -0.000234 | AN17: =SUM(AE17:AF17,AI17:AM17) -> 0.033281 | AO17: ='RS per Tariff'!N33 -> 0.17842 | AP17: =AO17-AN17-AG17-AH17-AD17 -> 0
A18: For Selected Rate | G18: GST per Tariff | H18: GP per Tariff | I18: GT per Tariff | AB18: ='RS per Tariff'!B34 -> Summer kWh > 600 | AD18: ='RS per Tariff'!D34 -> 0.019212 | AE18: ='RS per Tariff'!E34 -> 0.07981 | AF18: ='RS per Tariff'!F34 -> 0.000358 | AG18: ='RS per Tariff'!G34 -> 0.135113 | AH18: ='RS per Tariff'!H34 -> 3.9e-05 | AI18: ='RS per Tariff'!I34 -> 0 | AJ18: ='RS per Tariff'!J34 -> 0.004729 | AK18: ='RS per Tariff'!K34 -> 0.0077 | AL18: ='RS per Tariff'!L34 -> 0.000546 | AM18: ='RS per Tariff'!M34 -> -0.000234 | AN18: 0.092909 | AO18: ='RS per Tariff'!N34 -> 0.247273 | AP18: 0
G19: tab | H19: tab | I19: tab | AB19: ='RS per Tariff'!B35 -> Winter kWh 0-1,000 | AD19: ='RS per Tariff'!D35 -> 0.019212 | AE19: ='RS per Tariff'!E35 -> 0.033061 | AF19: ='RS per Tariff'!F35 -> 0.000358 | AG19: ='RS per Tariff'!G35 -> 0.136817 | AH19: ='RS per Tariff'!H35 -> 3.9e-05 | AI19: ='RS per Tariff'!I35 -> 0 | AJ19: ='RS per Tariff'!J35 -> 0.004729 | AK19: ='RS per Tariff'!K35 -> 0.0077 | AL19: ='RS per Tariff'!L35 -> 0.000546 | AM19: ='RS per Tariff'!M35 -> -0.000234 | AN19: 0.04616 | AO19: ='RS per Tariff'!N35 -> 0.202228 | AP19: 4.510281038e-17
AB20: ='RS per Tariff'!B36 -> Winter kWh > 1,000 | AD20: ='RS per Tariff'!D36 -> 0.019212 | AE20: ='RS per Tariff'!E36 -> 0.033061 | AF20: ='RS per Tariff'!F36 -> 0.000358 | AG20: ='RS per Tariff'!G36 -> 0.136817 | AH20: ='RS per Tariff'!H36 -> 3.9e-05 | AI20: ='RS per Tariff'!I36 -> 0 | AJ20: ='RS per Tariff'!J36 -> 0.004729 | AK20: ='RS per Tariff'!K36 -> 0.0077 | AL20: ='RS per Tariff'!L36 -> 0.000546 | AM20: ='RS per Tariff'!M36 -> -0.000234 | AN20: 0.04616 | AO20: ='RS per Tariff'!N36 -> 0.202228 | AP20: 4.510281038e-17
AB21: ='RS per Tariff'!B37 -> Summer OPWH kWh | AD21: ='RS per Tariff'!D37 -> 0.019212 | AE21: ='RS per Tariff'!E37 -> 0.022066 | AF21: ='RS per Tariff'!F37 -> 0.000358 | AG21: ='RS per Tariff'!G37 -> 0.128414 | AH21: ='RS per Tariff'!H37 -> 3.9e-05 | AI21: ='RS per Tariff'!I37 -> 0 | AJ21: ='RS per Tariff'!J37 -> 0.004729 | AK21: ='RS per Tariff'!K37 -> 0.0077 | AL21: ='RS per Tariff'!L37 -> 0.000546 | AM21: ='RS per Tariff'!M37 -> -0.000234 | AN21: 0.035165 | AO21: ='RS per Tariff'!N37 -> 0.18283 | AP21: 0
AB22: ='RS per Tariff'!B38 -> Winter OPWH kWh | AD22: ='RS per Tariff'!D38 -> 0.019212 | AE22: ='RS per Tariff'!E38 -> 0.022066 | AF22: ='RS per Tariff'!F38 -> 0.000358 | AG22: ='RS per Tariff'!G38 -> 0.127822 | AH22: ='RS per Tariff'!H38 -> 3.9e-05 | AI22: ='RS per Tariff'!I38 -> 0 | AJ22: ='RS per Tariff'!J38 -> 0.004729 | AK22: ='RS per Tariff'!K38 -> 0.0077 | AL22: ='RS per Tariff'!L38 -> 0.000546 | AM22: ='RS per Tariff'!M38 -> -0.000234 | AN22: 0.035165 | AO22: ='RS per Tariff'!N38 -> 0.182238 | AP22: 0
AC23: * Charge applies only to Full Service Customers
AF25: =AF$2 -> Rates Effective with Service Rendered June 1, 2025 | AN25: Delivery
AB26: Charge or | AC26: Customer | AG26: Energy & | AH26: BGS-FP Reconciliation Charge* | AI26: =$AI$3 -> Zero Emission Certificate Recovery Charge (ZEC) | AJ26: RGGI Recovery Charge (RRC) | AN26: Service | AO26: Full Service
Z27: Rate Category | AA27: Description | AB27: Price Block | AC27: Charge | AD27: Transmission* | AE27: Distribution | AF27: Covid-19 Recovery | AG27: Capacity* | AK27: SBC | AL27: LRAM | AM27: NGC | AN27: Total | AO27: Total
Z28: JC_RS__03D | AA28: Residential Service | AB28: Customer Charge | AC28: ='RS per Tariff'!C29 -> 4.27 | AN28: =AC28 -> 4.27 | AO28: =AC28 -> 4.27
AA29: Controlled Water Heating | AB29: Suppl Cust Charge | AC29: ='RS per Tariff'!C31 -> 2.23 | AN29: =AC29 -> 2.23 | AO29: =AC29 -> 2.23
AA30: All Taxes Applicable & Included | AB30: ='RS per Tariff'!B33 -> Summer kWh 0 - 600 | AD30: ='RS per Tariff'!D33 -> 0.019212 | AE30: ='RS per Tariff'!E33 -> 0.020182 | AF30: ='RS per Tariff'!F33 -> 0.000358 | AG30: ='RS per Tariff'!G33 -> 0.125888 | AH30: ='RS per Tariff'!H33 -> 3.9e-05 | AI30: ='RS per Tariff'!I33 -> 0 | AJ30: ='RS per Tariff'!J33 -> 0.004729 | AK30: ='RS per Tariff'!K33 -> 0.0077 | AL30: ='RS per Tariff'!L33 -> 0.000546 | AM30: ='RS per Tariff'!M33 -> -0.000234 | AN30: =SUM(AE30:AF30,AI30:AM30) -> 0.033281 | AO30: ='RS per Tariff'!N33 -> 0.17842 | AP30: =AO30-AN30-AG30-AH30-AD30 -> 0
AB31: ='RS per Tariff'!B34 -> Summer kWh > 600 | AD31: ='RS per Tariff'!D34 -> 0.019212 | AE31: ='RS per Tariff'!E34 -> 0.07981 | AF31: ='RS per Tariff'!F34 -> 0.000358 | AG31: ='RS per Tariff'!G34 -> 0.135113 | AH31: ='RS per Tariff'!H34 -> 3.9e-05 | AI31: ='RS per Tariff'!I34 -> 0 | AJ31: ='RS per Tariff'!J34 -> 0.004729 | AK31: ='RS per Tariff'!K34 -> 0.0077 | AL31: ='RS per Tariff'!L34 -> 0.000546 | AM31: ='RS per Tariff'!M34 -> -0.000234 | AN31: 0.092909 | AO31: ='RS per Tariff'!N34 -> 0.247273 | AP31: =AO31-AN31-AG31-AH31-AD31 -> 0
AB32: ='RS per Tariff'!B35 -> Winter kWh 0-1,000 | AD32: ='RS per Tariff'!D35 -> 0.019212 | AE32: ='RS per Tariff'!E35 -> 0.033061 | AF32: ='RS per Tariff'!F35 -> 0.000358 | AG32: ='RS per Tariff'!G35 -> 0.136817 | AH32: ='RS per Tariff'!H35 -> 3.9e-05 | AI32: ='RS per Tariff'!I35 -> 0 | AJ32: ='RS per Tariff'!J35 -> 0.004729 | AK32: ='RS per Tariff'!K35 -> 0.0077 | AL32: ='RS per Tariff'!L35 -> 0.000546 | AM32: ='RS per Tariff'!M35 -> -0.000234 | AN32: 0.04616 | AO32: ='RS per Tariff'!N35 -> 0.202228 | AP32: 4.510281038e-17
AB33: ='RS per Tariff'!B36 -> Winter kWh > 1,000 | AD33: ='RS per Tariff'!D36 -> 0.019212 | AE33: ='RS per Tariff'!E36 -> 0.033061 | AF33: ='RS per Tariff'!F36 -> 0.000358 | AG33: ='RS per Tariff'!G36 -> 0.136817 | AH33: ='RS per Tariff'!H36 -> 3.9e-05 | AI33: ='RS per Tariff'!I36 -> 0 | AJ33: ='RS per Tariff'!J36 -> 0.004729 | AK33: ='RS per Tariff'!K36 -> 0.0077 | AL33: ='RS per Tariff'!L36 -> 0.000546 | AM33: ='RS per Tariff'!M36 -> -0.000234 | AN33: 0.04616 | AO33: ='RS per Tariff'!N36 -> 0.202228 | AP33: 4.510281038e-17
AB34: ='RS per Tariff'!B39 -> Summer CTWH kWh | AD34: ='RS per Tariff'!D39 -> 0.019212 | AE34: ='RS per Tariff'!E39 -> 0.029064 | AF34: ='RS per Tariff'!F39 -> 0.000358 | AG34: ='RS per Tariff'!G39 -> 0.128414 | AH34: ='RS per Tariff'!H39 -> 3.9e-05 | AI34: ='RS per Tariff'!I39 -> 0 | AJ34: ='RS per Tariff'!J39 -> 0.004729 | AK34: ='RS per Tariff'!K39 -> 0.0077 | AL34: ='RS per Tariff'!L39 -> 0.000546 | AM34: ='RS per Tariff'!M39 -> -0.000234 | AN34: 0.042163 | AO34: ='RS per Tariff'!N39 -> 0.189828 | AP34: 0
AB35: ='RS per Tariff'!B40 -> Winter CTWH kWh | AD35: ='RS per Tariff'!D40 -> 0.019212 | AE35: ='RS per Tariff'!E40 -> 0.029064 | AF35: ='RS per Tariff'!F40 -> 0.000358 | AG35: ='RS per Tariff'!G40 -> 0.127822 | AH35: ='RS per Tariff'!H40 -> 3.9e-05 | AI35: ='RS per Tariff'!I40 -> 0 | AJ35: ='RS per Tariff'!J40 -> 0.004729 | AK35: ='RS per Tariff'!K40 -> 0.0077 | AL35: ='RS per Tariff'!L40 -> 0.000546 | AM35: ='RS per Tariff'!M40 -> -0.000234 | AN35: 0.042163 | AO35: ='RS per Tariff'!N40 -> 0.189236 | AP35: 0
AC36: * Charge applies only to Full Service Customers
AF38: =AF$2 -> Rates Effective with Service Rendered June 1, 2025 | AN38: Delivery
AB39: Charge or | AC39: Customer | AG39: Energy & | AH39: BGS-FP Reconciliation Charge* | AI39: =AI3 -> Zero Emission Certificate Recovery Charge (ZEC) | AJ39: RGGI Recovery Charge (RRC) | AN39: Service | AO39: Full Service
Z40: Rate Category | AA40: Description | AB40: Price Block | AC40: Charge | AD40: Transmission* | AE40: Distribution | AF40: Covid-19 Recovery | AG40: Capacity* | AK40: SBC | AL40: LRAM | AM40: NGC | AN40: Total | AO40: Total
Z41: JC_RS__05D | AA41: Residential Service | AB41: Customer Charge | AC41: ='RS per Tariff'!C29 -> 4.27 | AN41: =AC41 -> 4.27 | AO41: =AC41 -> 4.27
AA42: All Electric | AB42: ='RS per Tariff'!B33 -> Summer kWh 0 - 600 | AD42: ='RS per Tariff'!D33 -> 0.019212 | AE42: ='RS per Tariff'!E33 -> 0.020182 | AF42: ='RS per Tariff'!F33 -> 0.000358 | AG42: ='RS per Tariff'!G33 -> 0.125888 | AH42: ='RS per Tariff'!H33 -> 3.9e-05 | AI42: ='RS per Tariff'!I33 -> 0 | AJ42: ='RS per Tariff'!J33 -> 0.004729 | AK42: ='RS per Tariff'!K33 -> 0.0077 | AL42: ='RS per Tariff'!L33 -> 0.000546 | AM42: ='RS per Tariff'!M33 -> -0.000234 | AN42: =SUM(AE42:AF42,AI42:AM42) -> 0.033281 | AO42: ='RS per Tariff'!N33 -> 0.17842 | AP42: =AO42-AN42-AG42-AH42-AD42 -> 0
AA43: All Taxes Applicable & Included | AB43: ='RS per Tariff'!B34 -> Summer kWh > 600 | AD43: ='RS per Tariff'!D34 -> 0.019212 | AE43: ='RS per Tariff'!E34 -> 0.07981 | AF43: ='RS per Tariff'!F34 -> 0.000358 | AG43: ='RS per Tariff'!G34 -> 0.135113 | AH43: ='RS per Tariff'!H34 -> 3.9e-05 | AI43: ='RS per Tariff'!I34 -> 0 | AJ43: ='RS per Tariff'!J34 -> 0.004729 | AK43: ='RS per Tariff'!K34 -> 0.0077 | AL43: ='RS per Tariff'!L34 -> 0.000546 | AM43: ='RS per Tariff'!M34 -> -0.000234 | AN43: 0.092909 | AO43: ='RS per Tariff'!N34 -> 0.247273 | AP43: 0
AB44: ='RS per Tariff'!B35 -> Winter kWh 0-1,000 | AD44: ='RS per Tariff'!D35 -> 0.019212 | AE44: ='RS per Tariff'!E35 -> 0.033061 | AF44: ='RS per Tariff'!F35 -> 0.000358 | AG44: ='RS per Tariff'!G35 -> 0.136817 | AH44: ='RS per Tariff'!H35 -> 3.9e-05 | AI44: ='RS per Tariff'!I35 -> 0 | AJ44: ='RS per Tariff'!J35 -> 0.004729 | AK44: ='RS per Tariff'!K35 -> 0.0077 | AL44: ='RS per Tariff'!L35 -> 0.000546 | AM44: ='RS per Tariff'!M35 -> -0.000234 | AN44: 0.04616 | AO44: ='RS per Tariff'!N35 -> 0.202228 | AP44: 4.510281038e-17
AB45: ='RS per Tariff'!B36 -> Winter kWh > 1,000 | AD45: ='RS per Tariff'!D36 -> 0.019212 | AE45: ='RS per Tariff'!E36 -> 0.033061 | AF45: ='RS per Tariff'!F36 -> 0.000358 | AG45: ='RS per Tariff'!G36 -> 0.136817 | AH45: ='RS per Tariff'!H36 -> 3.9e-05 | AI45: ='RS per Tariff'!I36 -> 0 | AJ45: ='RS per Tariff'!J36 -> 0.004729 | AK45: ='RS per Tariff'!K36 -> 0.0077 | AL45: ='RS per Tariff'!L36 -> 0.000546 | AM45: ='RS per Tariff'!M36 -> -0.000234 | AN45: 0.04616 | AO45: ='RS per Tariff'!N36 -> 0.202228 | AP45: 4.510281038e-17
AC47: * Charge applies only to Full Service Customers
AF49: =AF$2 -> Rates Effective with Service Rendered June 1, 2025 | AN49: Delivery
AB50: Charge or | AC50: Customer | AG50: Energy & | AH50: BGS-FP Reconciliation Charge* | AI50: =$AI$3 -> Zero Emission Certificate Recovery Charge (ZEC) | AJ50: RGGI Recovery Charge (RRC) | AN50: Service | AO50: Full Service
Z51: Rate Category | AA51: Description | AB51: Price Block | AC51: Charge | AD51: Transmission* | AE51: Distribution | AF51: Covid-19 Recovery | AG51: Capacity* | AK51: SBC | AL51: LRAM | AM51: NGC | AN51: Total | AO51: Total
Z52: JC_RS__06D | AA52: Residential Service | AB52: Customer Charge | AC52: ='RS per Tariff'!C29 -> 4.27 | AN52: =AC52 -> 4.27 | AO52: =AC52 -> 4.27
AA53: All Electric | AB53: Suppl Cust Charge | AC53: ='RS per Tariff'!C31 -> 2.23 | AN53: =AC53 -> 2.23 | AO53: =AC53 -> 2.23
AA54: Controlled Water Heating | AB54: ='RS per Tariff'!B33 -> Summer kWh 0 - 600 | AD54: ='RS per Tariff'!D33 -> 0.019212 | AE54: ='RS per Tariff'!E33 -> 0.020182 | AF54: ='RS per Tariff'!F33 -> 0.000358 | AG54: ='RS per Tariff'!G33 -> 0.125888 | AH54: ='RS per Tariff'!H33 -> 3.9e-05 | AI54: ='RS per Tariff'!I33 -> 0 | AJ54: ='RS per Tariff'!J33 -> 0.004729 | AK54: ='RS per Tariff'!K33 -> 0.0077 | AL54: ='RS per Tariff'!L33 -> 0.000546 | AM54: ='RS per Tariff'!M33 -> -0.000234 | AN54: =SUM(AE54:AF54,AI54:AM54) -> 0.033281 | AO54: ='RS per Tariff'!N33 -> 0.17842 | AP54: =AO54-AN54-AG54-AH54-AD54 -> 0
AA55: All Taxes Applicable & Included | AB55: ='RS per Tariff'!B34 -> Summer kWh > 600 | AD55: ='RS per Tariff'!D34 -> 0.019212 | AE55: ='RS per Tariff'!E34 -> 0.07981 | AF55: ='RS per Tariff'!F34 -> 0.000358 | AG55: ='RS per Tariff'!G34 -> 0.135113 | AH55: ='RS per Tariff'!H34 -> 3.9e-05 | AI55: ='RS per Tariff'!I34 -> 0 | AJ55: ='RS per Tariff'!J34 -> 0.004729 | AK55: ='RS per Tariff'!K34 -> 0.0077 | AL55: ='RS per Tariff'!L34 -> 0.000546 | AM55: ='RS per Tariff'!M34 -> -0.000234 | AN55: 0.092909 | AO55: ='RS per Tariff'!N34 -> 0.247273 | AP55: 0
AB56: ='RS per Tariff'!B35 -> Winter kWh 0-1,000 | AD56: ='RS per Tariff'!D35 -> 0.019212 | AE56: ='RS per Tariff'!E35 -> 0.033061 | AF56: ='RS per Tariff'!F35 -> 0.000358 | AG56: ='RS per Tariff'!G35 -> 0.136817 | AH56: ='RS per Tariff'!H35 -> 3.9e-05 | AI56: ='RS per Tariff'!I35 -> 0 | AJ56: ='RS per Tariff'!J35 -> 0.004729 | AK56: ='RS per Tariff'!K35 -> 0.0077 | AL56: ='RS per Tariff'!L35 -> 0.000546 | AM56: ='RS per Tariff'!M35 -> -0.000234 | AN56: 0.04616 | AO56: ='RS per Tariff'!N35 -> 0.202228 | AP56: 4.510281038e-17
AB57: ='RS per Tariff'!B36 -> Winter kWh > 1,000 | AD57: ='RS per Tariff'!D36 -> 0.019212 | AE57: ='RS per Tariff'!E36 -> 0.033061 | AF57: ='RS per Tariff'!F36 -> 0.000358 | AG57: ='RS per Tariff'!G36 -> 0.136817 | AH57: ='RS per Tariff'!H36 -> 3.9e-05 | AI57: ='RS per Tariff'!I36 -> 0 | AJ57: ='RS per Tariff'!J36 -> 0.004729 | AK57: ='RS per Tariff'!K36 -> 0.0077 | AL57: ='RS per Tariff'!L36 -> 0.000546 | AM57: ='RS per Tariff'!M36 -> -0.000234 | AN57: 0.04616 | AO57: ='RS per Tariff'!N36 -> 0.202228 | AP57: 4.510281038e-17
AB58: ='RS per Tariff'!B39 -> Summer CTWH kWh | AD58: ='RS per Tariff'!D39 -> 0.019212 | AE58: ='RS per Tariff'!E39 -> 0.029064 | AF58: ='RS per Tariff'!F39 -> 0.000358 | AG58: ='RS per Tariff'!G39 -> 0.128414 | AH58: ='RS per Tariff'!H39 -> 3.9e-05 | AI58: ='RS per Tariff'!I39 -> 0 | AJ58: ='RS per Tariff'!J39 -> 0.004729 | AK58: ='RS per Tariff'!K39 -> 0.0077 | AL58: ='RS per Tariff'!L39 -> 0.000546 | AM58: ='RS per Tariff'!M39 -> -0.000234 | AN58: 0.042163 | AO58: ='RS per Tariff'!N39 -> 0.189828 | AP58: 0
AB59: ='RS per Tariff'!B40 -> Winter CTWH kWh | AD59: ='RS per Tariff'!D40 -> 0.019212 | AE59: ='RS per Tariff'!E40 -> 0.029064 | AF59: ='RS per Tariff'!F40 -> 0.000358 | AG59: ='RS per Tariff'!G40 -> 0.127822 | AH59: ='RS per Tariff'!H40 -> 3.9e-05 | AI59: ='RS per Tariff'!I40 -> 0 | AJ59: ='RS per Tariff'!J40 -> 0.004729 | AK59: ='RS per Tariff'!K40 -> 0.0077 | AL59: ='RS per Tariff'!L40 -> 0.000546 | AM59: ='RS per Tariff'!M40 -> -0.000234 | AN59: 0.042163 | AO59: ='RS per Tariff'!N40 -> 0.189236 | AP59: 0
AC60: * Charge applies only to Full Service Customers
AF62: =AF$2 -> Rates Effective with Service Rendered June 1, 2025 | AN62: Delivery
AB63: Charge or | AC63: Customer | AG63: Energy & | AH63: BGS-FP Reconciliation Charge* | AI63: =AI3 -> Zero Emission Certificate Recovery Charge (ZEC) | AJ63: RGGI Recovery Charge (RRC) | AN63: Service | AO63: Full Service
Z64: Rate Category | AA64: Description | AB64: Price Block | AC64: Charge | AD64: Transmission* | AE64: Distribution | AF64: Covid-19 Recovery | AG64: Capacity* | AK64: SBC | AL64: LRAM | AM64: NGC | AN64: Total | AO64: Total
Z65: JC_RS__07D | AA65: Residential Service | AB65: Customer Charge | AC65: ='RS per Tariff'!C29 -> 4.27 | AN65: =AC65 -> 4.27 | AO65: =AC65 -> 4.27
AA66: All Electric | AB66: Suppl Cust Charge | AC66: ='RS per Tariff'!C30 -> 2.23 | AN66: =AC66 -> 2.23 | AO66: =AC66 -> 2.23
AA67: Off-Peak Water Heating | AB67: ='RS per Tariff'!B33 -> Summer kWh 0 - 600 | AD67: ='RS per Tariff'!D33 -> 0.019212 | AE67: ='RS per Tariff'!E33 -> 0.020182 | AF67: ='RS per Tariff'!F33 -> 0.000358 | AG67: ='RS per Tariff'!G33 -> 0.125888 | AH67: ='RS per Tariff'!H33 -> 3.9e-05 | AI67: ='RS per Tariff'!I33 -> 0 | AJ67: ='RS per Tariff'!J33 -> 0.004729 | AK67: ='RS per Tariff'!K33 -> 0.0077 | AL67: ='RS per Tariff'!L33 -> 0.000546 | AM67: ='RS per Tariff'!M33 -> -0.000234 | AN67: =SUM(AE67:AF67,AI67:AM67) -> 0.033281 | AO67: ='RS per Tariff'!N33 -> 0.17842 | AP67: =AO67-AN67-AG67-AH67-AD67 -> 0
AA68: All Taxes Applicable & Included | AB68: ='RS per Tariff'!B34 -> Summer kWh > 600 | AD68: ='RS per Tariff'!D34 -> 0.019212 | AE68: ='RS per Tariff'!E34 -> 0.07981 | AF68: ='RS per Tariff'!F34 -> 0.000358 | AG68: ='RS per Tariff'!G34 -> 0.135113 | AH68: ='RS per Tariff'!H34 -> 3.9e-05 | AI68: ='RS per Tariff'!I34 -> 0 | AJ68: ='RS per Tariff'!J34 -> 0.004729 | AK68: ='RS per Tariff'!K34 -> 0.0077 | AL68: ='RS per Tariff'!L34 -> 0.000546 | AM68: ='RS per Tariff'!M34 -> -0.000234 | AN68: 0.092909 | AO68: ='RS per Tariff'!N34 -> 0.247273 | AP68: 0
AB69: ='RS per Tariff'!B35 -> Winter kWh 0-1,000 | AD69: ='RS per Tariff'!D35 -> 0.019212 | AE69: ='RS per Tariff'!E35 -> 0.033061 | AF69: ='RS per Tariff'!F35 -> 0.000358 | AG69: ='RS per Tariff'!G35 -> 0.136817 | AH69: ='RS per Tariff'!H35 -> 3.9e-05 | AI69: ='RS per Tariff'!I35 -> 0 | AJ69: ='RS per Tariff'!J35 -> 0.004729 | AK69: ='RS per Tariff'!K35 -> 0.0077 | AL69: ='RS per Tariff'!L35 -> 0.000546 | AM69: ='RS per Tariff'!M35 -> -0.000234 | AN69: 0.04616 | AO69: ='RS per Tariff'!N35 -> 0.202228 | AP69: 4.510281038e-17
AB70: ='RS per Tariff'!B36 -> Winter kWh > 1,000 | AD70: ='RS per Tariff'!D36 -> 0.019212 | AE70: ='RS per Tariff'!E36 -> 0.033061 | AF70: ='RS per Tariff'!F36 -> 0.000358 | AG70: ='RS per Tariff'!G36 -> 0.136817 | AH70: ='RS per Tariff'!H36 -> 3.9e-05 | AI70: ='RS per Tariff'!I36 -> 0 | AJ70: ='RS per Tariff'!J36 -> 0.004729 | AK70: ='RS per Tariff'!K36 -> 0.0077 | AL70: ='RS per Tariff'!L36 -> 0.000546 | AM70: ='RS per Tariff'!M36 -> -0.000234 | AN70: 0.04616 | AO70: ='RS per Tariff'!N36 -> 0.202228 | AP70: 4.510281038e-17
AB71: ='RS per Tariff'!B37 -> Summer OPWH kWh | AD71: ='RS per Tariff'!D37 -> 0.019212 | AE71: ='RS per Tariff'!E37 -> 0.022066 | AF71: ='RS per Tariff'!F37 -> 0.000358 | AG71: ='RS per Tariff'!G37 -> 0.128414 | AH71: ='RS per Tariff'!H37 -> 3.9e-05 | AI71: ='RS per Tariff'!I37 -> 0 | AJ71: ='RS per Tariff'!J37 -> 0.004729 | AK71: ='RS per Tariff'!K37 -> 0.0077 | AL71: ='RS per Tariff'!L37 -> 0.000546 | AM71: ='RS per Tariff'!M37 -> -0.000234 | AN71: 0.035165 | AO71: ='RS per Tariff'!N37 -> 0.18283 | AP71: 0
AB72: ='RS per Tariff'!B38 -> Winter OPWH kWh | AD72: ='RS per Tariff'!D38 -> 0.019212 | AE72: ='RS per Tariff'!E38 -> 0.022066 | AF72: ='RS per Tariff'!F38 -> 0.000358 | AG72: ='RS per Tariff'!G38 -> 0.127822 | AH72: ='RS per Tariff'!H38 -> 3.9e-05 | AI72: ='RS per Tariff'!I38 -> 0 | AJ72: ='RS per Tariff'!J38 -> 0.004729 | AK72: ='RS per Tariff'!K38 -> 0.0077 | AL72: ='RS per Tariff'!L38 -> 0.000546 | AM72: ='RS per Tariff'!M38 -> -0.000234 | AN72: 0.035165 | AO72: ='RS per Tariff'!N38 -> 0.182238 | AP72: 0
AC73: * Charge applies only to Full Service Customers
AF75: =AF$2 -> Rates Effective with Service Rendered June 1, 2025 | AN75: Delivery
G76: These rate | AB76: Charge or | AC76: Customer | AG76: Energy & | AH76: BGS-FP Reconciliation Charge* | AI76: =AI13 -> Zero Emission Certificate Recovery Charge (ZEC) | AJ76: RGGI Recovery Charge (RRC) | AN76: Service | AO76: Full Service
G77: categories | Z77: Rate Category | AA77: Description | AB77: Price Block | AC77: Charge | AD77: Transmission* | AE77: Distribution | AF77: Covid-19 Recovery | AG77: Capacity* | AK77: SBC | AL77: LRAM | AM77: NGC | AN77: Total | AO77: Total
G78: have not | Z78: JC_RS_G01D | AA78: Residential Service | AB78: Customer Charge | AC78: ='RS per Tariff'!C12 -> 4 | AN78: =AC78 -> 4 | AO78: =AC78 -> 4
G79: yet been | AA79: No Special Provisions | AB79: ='RS per Tariff'!B16 -> Summer kWh 0 - 600 | AD79: ='RS per Tariff'!D16 -> 0.018019 | AE79: ='RS per Tariff'!E16 -> 0.018928 | AF79: ='RS per Tariff'!F16 -> 0.000336 | AG79: ='RS per Tariff'!G16 -> 0.118066 | AH79: ='RS per Tariff'!H16 -> 3.7e-05 | AI79: ='RS per Tariff'!I16 -> 0 | AJ79: ='RS per Tariff'!J16 -> 0.004435 | AK79: ='RS per Tariff'!K16 -> 0.007223 | AL79: ='RS per Tariff'!L16 -> 0.000512 | AM79: ='RS per Tariff'!M16 -> -0.000219 | AN79: =SUM(AE79:AF79,AI79:AM79) -> 0.031215 | AO79: ='RS per Tariff'!N16 -> 0.167337 | AP79: =AO79-AN79-AG79-AH79-AD79 -> 4.510281038e-17
G80: completed. | AA80: Sales & Use Tax (SUT) Exempt** | AB80: ='RS per Tariff'!B17 -> Summer kWh > 600 | AD80: ='RS per Tariff'!D17 -> 0.018019 | AE80: ='RS per Tariff'!E17 -> 0.074851 | AF80: ='RS per Tariff'!F17 -> 0.000336 | AG80: ='RS per Tariff'!G17 -> 0.126718 | AH80: ='RS per Tariff'!H17 -> 3.7e-05 | AI80: ='RS per Tariff'!I17 -> 0 | AJ80: ='RS per Tariff'!J17 -> 0.004435 | AK80: ='RS per Tariff'!K17 -> 0.007223 | AL80: ='RS per Tariff'!L17 -> 0.000512 | AM80: ='RS per Tariff'!M17 -> -0.000219 | AN80: 0.087138 | AO80: ='RS per Tariff'!N17 -> 0.231912 | AP80: 0
G81: Rates are | AB81: ='RS per Tariff'!B18 -> Winter kWh 0-1,000 | AD81: ='RS per Tariff'!D18 -> 0.018019 | AE81: ='RS per Tariff'!E18 -> 0.031007 | AF81: ='RS per Tariff'!F18 -> 0.000336 | AG81: ='RS per Tariff'!G18 -> 0.128316 | AH81: ='RS per Tariff'!H18 -> 3.7e-05 | AI81: ='RS per Tariff'!I18 -> 0 | AJ81: ='RS per Tariff'!J18 -> 0.004435 | AK81: ='RS per Tariff'!K18 -> 0.007223 | AL81: ='RS per Tariff'!L18 -> 0.000512 | AM81: ='RS per Tariff'!M18 -> -0.000219 | AN81: 0.043294 | AO81: ='RS per Tariff'!N18 -> 0.189666 | AP81: 0
G82: identical to | AB82: ='RS per Tariff'!B19 -> Winter kWh > 1,000 | AD82: ='RS per Tariff'!D19 -> 0.018019 | AE82: ='RS per Tariff'!E19 -> 0.031007 | AF82: ='RS per Tariff'!F19 -> 0.000336 | AG82: ='RS per Tariff'!G19 -> 0.128316 | AH82: ='RS per Tariff'!H19 -> 3.7e-05 | AI82: ='RS per Tariff'!I19 -> 0 | AJ82: ='RS per Tariff'!J19 -> 0.004435 | AK82: ='RS per Tariff'!K19 -> 0.007223 | AL82: ='RS per Tariff'!L19 -> 0.000512 | AM82: ='RS per Tariff'!M19 -> -0.000219 | AN82: 0.043294 | AO82: ='RS per Tariff'!N19 -> 0.189666 | AP82: 0
G83: the rate | AB83: * Charge applies only to Full Service Customers | AE83: ** Applies primarily to Federal Government Accounts. Refer to Tariff Part III Rider SUT for more details.
G84: categories
G85: to their left | AF85: =AF$2 -> Rates Effective with Service Rendered June 1, 2025 | AN85: Delivery
G86: except for | AB86: Charge or | AC86: Customer | AG86: Energy & | AH86: BGS-FP Reconciliation Charge* | AI86: =$AI$3 -> Zero Emission Certificate Recovery Charge (ZEC) | AJ86: RGGI Recovery Charge (RRC) | AN86: Service | AO86: Full Service
G87: the higher | Z87: Rate Category | AA87: Description | AB87: Price Block | AC87: Charge | AD87: Transmission* | AE87: Distribution | AF87: Covid-19 Recovery | AG87: Capacity* | AK87: SBC | AL87: LRAM | AM87: NGC | AN87: Total | AO87: Total
G88: 3 Phase | Z88: JC_RS_G05D | AA88: Residential Service | AB88: Customer Charge | AC88: ='RS per Tariff'!C12 -> 4 | AN88: =AC88 -> 4 | AO88: =AC88 -> 4
G89: customer | AA89: All Electric | AB89: ='RS per Tariff'!B16 -> Summer kWh 0 - 600 | AD89: ='RS per Tariff'!D16 -> 0.018019 | AE89: ='RS per Tariff'!E16 -> 0.018928 | AF89: ='RS per Tariff'!F16 -> 0.000336 | AG89: ='RS per Tariff'!G16 -> 0.118066 | AH89: ='RS per Tariff'!H16 -> 3.7e-05 | AI89: ='RS per Tariff'!I16 -> 0 | AJ89: ='RS per Tariff'!J16 -> 0.004435 | AK89: ='RS per Tariff'!K16 -> 0.007223 | AL89: ='RS per Tariff'!L16 -> 0.000512 | AM89: ='RS per Tariff'!M16 -> -0.000219 | AN89: =SUM(AE89:AF89,AI89:AM89) -> 0.031215 | AO89: ='RS per Tariff'!N16 -> 0.167337 | AP89: =AO89-AN89-AG89-AH89-AD89 -> 4.510281038e-17
G90: charges - | AA90: Sales & Use Tax (SUT) Exempt** | AB90: ='RS per Tariff'!B17 -> Summer kWh > 600 | AD90: ='RS per Tariff'!D17 -> 0.018019 | AE90: ='RS per Tariff'!E17 -> 0.074851 | AF90: ='RS per Tariff'!F17 -> 0.000336 | AG90: ='RS per Tariff'!G17 -> 0.126718 | AH90: ='RS per Tariff'!H17 -> 3.7e-05 | AI90: ='RS per Tariff'!I17 -> 0 | AJ90: ='RS per Tariff'!J17 -> 0.004435 | AK90: ='RS per Tariff'!K17 -> 0.007223 | AL90: ='RS per Tariff'!L17 -> 0.000512 | AM90: ='RS per Tariff'!M17 -> -0.000219 | AN90: 0.087138 | AO90: ='RS per Tariff'!N17 -> 0.231912 | AP90: 0
G91: ='GS FP per Tariff'!C13 -> 15.08 | AB91: ='RS per Tariff'!B18 -> Winter kWh 0-1,000 | AD91: ='RS per Tariff'!D18 -> 0.018019 | AE91: ='RS per Tariff'!E18 -> 0.031007 | AF91: ='RS per Tariff'!F18 -> 0.000336 | AG91: ='RS per Tariff'!G18 -> 0.128316 | AH91: ='RS per Tariff'!H18 -> 3.7e-05 | AI91: ='RS per Tariff'!I18 -> 0 | AJ91: ='RS per Tariff'!J18 -> 0.004435 | AK91: ='RS per Tariff'!K18 -> 0.007223 | AL91: ='RS per Tariff'!L18 -> 0.000512 | AM91: ='RS per Tariff'!M18 -> -0.000219 | AN91: 0.043294 | AO91: ='RS per Tariff'!N18 -> 0.189666 | AP91: 0
G92: for F series and | AB92: ='RS per Tariff'!B19 -> Winter kWh > 1,000 | AD92: ='RS per Tariff'!D19 -> 0.018019 | AE92: ='RS per Tariff'!E19 -> 0.031007 | AF92: ='RS per Tariff'!F19 -> 0.000336 | AG92: ='RS per Tariff'!G19 -> 0.128316 | AH92: ='RS per Tariff'!H19 -> 3.7e-05 | AI92: ='RS per Tariff'!I19 -> 0 | AJ92: ='RS per Tariff'!J19 -> 0.004435 | AK92: ='RS per Tariff'!K19 -> 0.007223 | AL92: ='RS per Tariff'!L19 -> 0.000512 | AM92: ='RS per Tariff'!M19 -> -0.000219 | AN92: 0.043294 | AO92: ='RS per Tariff'!N19 -> 0.189666 | AP92: 0
G93: ='GS FP per Tariff'!C42 -> 15.65
G94: for G series | AB94: * Charge applies only to Full Service Customers | AE94: ** Applies primarily to Federal Government Accounts. Refer to Tariff Part III Rider SUT for more details.
AF96: =AF$2 -> Rates Effective with Service Rendered June 1, 2025 | AN96: Delivery
AB97: Charge or | AC97: Customer | AG97: Energy & | AH97: BGS-FP Reconciliation Charge* | AI97: =$AI$3 -> Zero Emission Certificate Recovery Charge (ZEC) | AJ97: RGGI Recovery Charge (RRC) | AN97: Service | AO97: Full Service
Z98: Rate Category | AA98: Description | AB98: Price Block | AC98: Charge | AD98: Transmission* | AE98: Distribution | AF98: Covid-19 Recovery | AG98: Capacity* | AK98: SBC | AL98: LRAM | AM98: NGC | AN98: Total | AO98: Total
Z99: JC_RT__01D | AA99: Residential Time-of-Day Service | AB99: Customer Charge | AC99: ='RT per Tariff'!C24 -> 8.07 | AN99: =AC99 -> 8.07 | AO99: =AC99 -> 8.07
AA100: All Taxes Applicable & Included | AB100: ='RT per Tariff'!B27 -> On-Peak Summer kWh | AD100: ='RT per Tariff'!D27 -> 0.019212 | AE100: ='RT per Tariff'!E27 -> 0.060029 | AF100: ='RT per Tariff'!F27 -> 0.000358 | AG100: ='RT per Tariff'!G27 -> 0.176465 | AH100: ='RT per Tariff'!H27 -> 3.9e-05 | AI100: ='RT per Tariff'!I27 -> 0 | AJ100: ='RT per Tariff'!J27 -> 0.004729 | AK100: ='RT per Tariff'!K27 -> 0.0077 | AL100: ='RT per Tariff'!L27 -> 0.00058 | AM100: ='RT per Tariff'!M27 -> -0.000234 | AN100: =SUM(AE100:AF100,AI100:AM100) -> 0.073162 | AO100: ='RT per Tariff'!N27 -> 0.268878 | AP100: =AO100-AN100-AG100-AH100-AD100 -> 0
AB101: ='RT per Tariff'!B28 -> On-Peak Winter kWh | AD101: ='RT per Tariff'!D28 -> 0.019212 | AE101: ='RT per Tariff'!E28 -> 0.044094 | AF101: ='RT per Tariff'!F28 -> 0.000358 | AG101: ='RT per Tariff'!G28 -> 0.175992 | AH101: ='RT per Tariff'!H28 -> 3.9e-05 | AI101: ='RT per Tariff'!I28 -> 0 | AJ101: ='RT per Tariff'!J28 -> 0.004729 | AK101: ='RT per Tariff'!K28 -> 0.0077 | AL101: ='RT per Tariff'!L28 -> 0.00058 | AM101: ='RT per Tariff'!M28 -> -0.000234 | AN101: 0.057227 | AO101: ='RT per Tariff'!N28 -> 0.25247 | AP101: 0
AB102: ='RT per Tariff'!B29 -> Off-Peak Summer kWh | AD102: ='RT per Tariff'!D29 -> 0.019212 | AE102: ='RT per Tariff'!E29 -> 0.028041 | AF102: ='RT per Tariff'!F29 -> 0.000358 | AG102: ='RT per Tariff'!G29 -> 0.092434 | AH102: ='RT per Tariff'!H29 -> 3.9e-05 | AI102: ='RT per Tariff'!I29 -> 0 | AJ102: ='RT per Tariff'!J29 -> 0.004729 | AK102: ='RT per Tariff'!K29 -> 0.0077 | AL102: ='RT per Tariff'!L29 -> 0.00058 | AM102: ='RT per Tariff'!M29 -> -0.000234 | AN102: 0.041174 | AO102: ='RT per Tariff'!N29 -> 0.152859 | AP102: 3.122502257e-17
AB103: ='RT per Tariff'!B30 -> Off-Peak Winter kWh | AD103: ='RT per Tariff'!D30 -> 0.019212 | AE103: ='RT per Tariff'!E30 -> 0.028041 | AF103: ='RT per Tariff'!F30 -> 0.000358 | AG103: ='RT per Tariff'!G30 -> 0.100009 | AH103: ='RT per Tariff'!H30 -> 3.9e-05 | AI103: ='RT per Tariff'!I30 -> 0 | AJ103: ='RT per Tariff'!J30 -> 0.004729 | AK103: ='RT per Tariff'!K30 -> 0.0077 | AL103: ='RT per Tariff'!L30 -> 0.00058 | AM103: ='RT per Tariff'!M30 -> -0.000234 | AN103: 0.041174 | AO103: ='RT per Tariff'!N30 -> 0.160434 | AP103: 3.122502257e-17
AC104: * Charge applies only to Full Service Customers
AF106: =AF$2 -> Rates Effective with Service Rendered June 1, 2025 | AN106: Delivery
AB107: Charge or | AC107: Customer | AG107: Energy & | AH107: BGS-FP Reconciliation Charge* | AI107: =$AI$3 -> Zero Emission Certificate Recovery Charge (ZEC) | AJ107: RGGI Recovery Charge (RRC) | AN107: Service | AO107: Full Service
Z108: Rate Category | AA108: Description | AB108: Price Block | AC108: Charge | AD108: Transmission* | AE108: Distribution | AF108: Covid-19 Recovery | AG108: Capacity* | AK108: SBC | AL108: LRAM | AM108: NGC | AN108: Total | AO108: Total
Z109: JC_RT__02D | AA109: Residential Time-of-Day Service | AB109: Customer Charge | AC109: ='RT per Tariff'!C24 -> 8.07 | AN109: =AC109 -> 8.07 | AO109: =AC109 -> 8.07
AA110: Solar Water Heating | AB110: Customer Charge Credit | AC110: ='RT per Tariff'!C25 -> -2.03 | AN110: =AC110 -> -2.03 | AO110: =AC110 -> -2.03
AA111: All Taxes Applicable & Included | AB111: ='RT per Tariff'!B27 -> On-Peak Summer kWh | AD111: ='RT per Tariff'!D27 -> 0.019212 | AE111: ='RT per Tariff'!E27 -> 0.060029 | AF111: ='RT per Tariff'!F27 -> 0.000358 | AG111: ='RT per Tariff'!G27 -> 0.176465 | AH111: ='RT per Tariff'!H27 -> 3.9e-05 | AI111: ='RT per Tariff'!I27 -> 0 | AJ111: ='RT per Tariff'!J27 -> 0.004729 | AK111: ='RT per Tariff'!K27 -> 0.0077 | AL111: ='RT per Tariff'!L27 -> 0.00058 | AM111: ='RT per Tariff'!M27 -> -0.000234 | AN111: =SUM(AE111:AF111,AI111:AM111) -> 0.073162 | AO111: ='RT per Tariff'!N27 -> 0.268878 | AP111: =AO111-AN111-AG111-AH111-AD111 -> 0
AB112: ='RT per Tariff'!B28 -> On-Peak Winter kWh | AD112: ='RT per Tariff'!D28 -> 0.019212 | AE112: ='RT per Tariff'!E28 -> 0.044094 | AF112: ='RT per Tariff'!F28 -> 0.000358 | AG112: ='RT per Tariff'!G28 -> 0.175992 | AH112: ='RT per Tariff'!H28 -> 3.9e-05 | AI112: ='RT per Tariff'!I28 -> 0 | AJ112: ='RT per Tariff'!J28 -> 0.004729 | AK112: ='RT per Tariff'!K28 -> 0.0077 | AL112: ='RT per Tariff'!L28 -> 0.00058 | AM112: ='RT per Tariff'!M28 -> -0.000234 | AN112: 0.057227 | AO112: ='RT per Tariff'!N28 -> 0.25247 | AP112: 0
AB113: ='RT per Tariff'!B29 -> Off-Peak Summer kWh | AD113: ='RT per Tariff'!D29 -> 0.019212 | AE113: ='RT per Tariff'!E29 -> 0.028041 | AF113: ='RT per Tariff'!F29 -> 0.000358 | AG113: ='RT per Tariff'!G29 -> 0.092434 | AH113: ='RT per Tariff'!H29 -> 3.9e-05 | AI113: ='RT per Tariff'!I29 -> 0 | AJ113: ='RT per Tariff'!J29 -> 0.004729 | AK113: ='RT per Tariff'!K29 -> 0.0077 | AL113: ='RT per Tariff'!L29 -> 0.00058 | AM113: ='RT per Tariff'!M29 -> -0.000234 | AN113: 0.041174 | AO113: ='RT per Tariff'!N29 -> 0.152859 | AP113: 3.122502257e-17
AB114: ='RT per Tariff'!B30 -> Off-Peak Winter kWh | AD114: ='RT per Tariff'!D30 -> 0.019212 | AE114: ='RT per Tariff'!E30 -> 0.028041 | AF114: ='RT per Tariff'!F30 -> 0.000358 | AG114: ='RT per Tariff'!G30 -> 0.100009 | AH114: ='RT per Tariff'!H30 -> 3.9e-05 | AI114: ='RT per Tariff'!I30 -> 0 | AJ114: ='RT per Tariff'!J30 -> 0.004729 | AK114: ='RT per Tariff'!K30 -> 0.0077 | AL114: ='RT per Tariff'!L30 -> 0.00058 | AM114: ='RT per Tariff'!M30 -> -0.000234 | AN114: 0.041174 | AO114: ='RT per Tariff'!N30 -> 0.160434 | AP114: 3.122502257e-17
AC115: * Charge applies only to Full Service Customers
AF117: =AF$2 -> Rates Effective with Service Rendered June 1, 2025 | AN117: Delivery
AB118: Charge or | AC118: Customer | AG118: Energy & | AH118: BGS-FP Reconciliation Charge* | AI118: =$AI$3 -> Zero Emission Certificate Recovery Charge (ZEC) | AJ118: RGGI Recovery Charge (RRC) | AN118: Service | AO118: Full Service
Z119: Rate Category | AA119: Description | AB119: Price Block | AC119: Charge | AD119: Transmission* | AE119: Distribution | AF119: Covid-19 Recovery | AG119: Capacity* | AK119: SBC | AL119: LRAM | AM119: NGC | AN119: Total | AO119: Total
Z120: JC_RT__03D | AA120: Residential Time-of-Day Service | AB120: Customer Charge | AC120: ='RT per Tariff'!C24 -> 8.07 | AN120: =AC120 -> 8.07 | AO120: =AC120 -> 8.07
AA121: All Electric | AB121: ='RT per Tariff'!B27 -> On-Peak Summer kWh | AD121: ='RT per Tariff'!D27 -> 0.019212 | AE121: ='RT per Tariff'!E27 -> 0.060029 | AF121: ='RT per Tariff'!F27 -> 0.000358 | AG121: ='RT per Tariff'!G27 -> 0.176465 | AH121: ='RT per Tariff'!H27 -> 3.9e-05 | AI121: ='RT per Tariff'!I27 -> 0 | AJ121: ='RT per Tariff'!J27 -> 0.004729 | AK121: ='RT per Tariff'!K27 -> 0.0077 | AL121: ='RT per Tariff'!L27 -> 0.00058 | AM121: ='RT per Tariff'!M27 -> -0.000234 | AN121: =SUM(AE121:AF121,AI121:AM121) -> 0.073162 | AO121: ='RT per Tariff'!N27 -> 0.268878 | AP121: =AO121-AN121-AG121-AH121-AD121 -> 0
AA122: All Taxes Applicable & Included | AB122: ='RT per Tariff'!B28 -> On-Peak Winter kWh | AD122: ='RT per Tariff'!D28 -> 0.019212 | AE122: ='RT per Tariff'!E28 -> 0.044094 | AF122: ='RT per Tariff'!F28 -> 0.000358 | AG122: ='RT per Tariff'!G28 -> 0.175992 | AH122: ='RT per Tariff'!H28 -> 3.9e-05 | AI122: ='RT per Tariff'!I28 -> 0 | AJ122: ='RT per Tariff'!J28 -> 0.004729 | AK122: ='RT per Tariff'!K28 -> 0.0077 | AL122: ='RT per Tariff'!L28 -> 0.00058 | AM122: ='RT per Tariff'!M28 -> -0.000234 | AN122: 0.057227 | AO122: ='RT per Tariff'!N28 -> 0.25247 | AP122: 0
AB123: ='RT per Tariff'!B29 -> Off-Peak Summer kWh | AD123: ='RT per Tariff'!D29 -> 0.019212 | AE123: ='RT per Tariff'!E29 -> 0.028041 | AF123: ='RT per Tariff'!F29 -> 0.000358 | AG123: ='RT per Tariff'!G29 -> 0.092434 | AH123: ='RT per Tariff'!H29 -> 3.9e-05 | AI123: ='RT per Tariff'!I29 -> 0 | AJ123: ='RT per Tariff'!J29 -> 0.004729 | AK123: ='RT per Tariff'!K29 -> 0.0077 | AL123: ='RT per Tariff'!L29 -> 0.00058 | AM123: ='RT per Tariff'!M29 -> -0.000234 | AN123: 0.041174 | AO123: ='RT per Tariff'!N29 -> 0.152859 | AP123: 3.122502257e-17
AB124: ='RT per Tariff'!B30 -> Off-Peak Winter kWh | AD124: ='RT per Tariff'!D30 -> 0.019212 | AE124: ='RT per Tariff'!E30 -> 0.028041 | AF124: ='RT per Tariff'!F30 -> 0.000358 | AG124: ='RT per Tariff'!G30 -> 0.100009 | AH124: ='RT per Tariff'!H30 -> 3.9e-05 | AI124: ='RT per Tariff'!I30 -> 0 | AJ124: ='RT per Tariff'!J30 -> 0.004729 | AK124: ='RT per Tariff'!K30 -> 0.0077 | AL124: ='RT per Tariff'!L30 -> 0.00058 | AM124: ='RT per Tariff'!M30 -> -0.000234 | AN124: 0.041174 | AO124: ='RT per Tariff'!N30 -> 0.160434 | AP124: 3.122502257e-17
AC125: * Charge applies only to Full Service Customers
AF127: =AF$2 -> Rates Effective with Service Rendered June 1, 2025 | AN127: Delivery
AB128: Charge or | AC128: Customer | AG128: Energy & | AH128: BGS-FP Reconciliation Charge* | AI128: =$AI$3 -> Zero Emission Certificate Recovery Charge (ZEC) | AJ128: RGGI Recovery Charge (RRC) | AN128: Service | AO128: Full Service
Z129: Rate Category | AA129: Description | AB129: Price Block | AC129: Charge | AD129: Transmission* | AE129: Distribution | AF129: Covid-19 Recovery | AG129: Capacity* | AK129: SBC | AL129: LRAM | AM129: NGC | AN129: Total | AO129: Total
Z130: JC_RT__04D | AA130: Residential Time-of-Day Service | AB130: Customer Charge | AC130: ='RT per Tariff'!C24 -> 8.07 | AN130: =AC130 -> 8.07 | AO130: =AC130 -> 8.07
AA131: All Electric | AB131: Customer Charge Credit | AC131: ='RT per Tariff'!C25 -> -2.03 | AN131: =AC131 -> -2.03 | AO131: =AC131 -> -2.03
AA132: Solar Water Heating | AB132: ='RT per Tariff'!B27 -> On-Peak Summer kWh | AD132: ='RT per Tariff'!D27 -> 0.019212 | AE132: ='RT per Tariff'!E27 -> 0.060029 | AF132: ='RT per Tariff'!F27 -> 0.000358 | AG132: ='RT per Tariff'!G27 -> 0.176465 | AH132: ='RT per Tariff'!H27 -> 3.9e-05 | AI132: ='RT per Tariff'!I27 -> 0 | AJ132: ='RT per Tariff'!J27 -> 0.004729 | AK132: ='RT per Tariff'!K27 -> 0.0077 | AL132: ='RT per Tariff'!L27 -> 0.00058 | AM132: ='RT per Tariff'!M27 -> -0.000234 | AN132: =SUM(AE132:AF132,AI132:AM132) -> 0.073162 | AO132: ='RT per Tariff'!N27 -> 0.268878 | AP132: =AO132-AN132-AG132-AH132-AD132 -> 0
AA133: All Taxes Applicable & Included | AB133: ='RT per Tariff'!B28 -> On-Peak Winter kWh | AD133: ='RT per Tariff'!D28 -> 0.019212 | AE133: ='RT per Tariff'!E28 -> 0.044094 | AF133: ='RT per Tariff'!F28 -> 0.000358 | AG133: ='RT per Tariff'!G28 -> 0.175992 | AH133: ='RT per Tariff'!H28 -> 3.9e-05 | AI133: ='RT per Tariff'!I28 -> 0 | AJ133: ='RT per Tariff'!J28 -> 0.004729 | AK133: ='RT per Tariff'!K28 -> 0.0077 | AL133: ='RT per Tariff'!L28 -> 0.00058 | AM133: ='RT per Tariff'!M28 -> -0.000234 | AN133: 0.057227 | AO133: ='RT per Tariff'!N28 -> 0.25247 | AP133: 0
AB134: ='RT per Tariff'!B29 -> Off-Peak Summer kWh | AD134: ='RT per Tariff'!D29 -> 0.019212 | AE134: ='RT per Tariff'!E29 -> 0.028041 | AF134: ='RT per Tariff'!F29 -> 0.000358 | AG134: ='RT per Tariff'!G29 -> 0.092434 | AH134: ='RT per Tariff'!H29 -> 3.9e-05 | AI134: ='RT per Tariff'!I29 -> 0 | AJ134: ='RT per Tariff'!J29 -> 0.004729 | AK134: ='RT per Tariff'!K29 -> 0.0077 | AL134: ='RT per Tariff'!L29 -> 0.00058 | AM134: ='RT per Tariff'!M29 -> -0.000234 | AN134: 0.041174 | AO134: ='RT per Tariff'!N29 -> 0.152859 | AP134: 3.122502257e-17
AB135: ='RT per Tariff'!B30 -> Off-Peak Winter kWh | AD135: ='RT per Tariff'!D30 -> 0.019212 | AE135: ='RT per Tariff'!E30 -> 0.028041 | AF135: ='RT per Tariff'!F30 -> 0.000358 | AG135: ='RT per Tariff'!G30 -> 0.100009 | AH135: ='RT per Tariff'!H30 -> 3.9e-05 | AI135: ='RT per Tariff'!I30 -> 0 | AJ135: ='RT per Tariff'!J30 -> 0.004729 | AK135: ='RT per Tariff'!K30 -> 0.0077 | AL135: ='RT per Tariff'!L30 -> 0.00058 | AM135: ='RT per Tariff'!M30 -> -0.000234 | AN135: 0.041174 | AO135: ='RT per Tariff'!N30 -> 0.160434 | AP135: 3.122502257e-17
AC137: * Charge applies only to Full Service Customers
AF139: =AF$2 -> Rates Effective with Service Rendered June 1, 2025 | AN139: Delivery
AB140: Charge or | AC140: Customer | AG140: Energy & | AH140: BGS-FP Reconciliation Charge* | AI140: =$AI$3 -> Zero Emission Certificate Recovery Charge (ZEC) | AJ140: RGGI Recovery Charge (RRC) | AN140: Service | AO140: Full Service
Z141: Rate Category | AA141: Description | AB141: Price Block | AC141: Charge | AD141: Transmission* | AE141: Distribution | AF141: Covid-19 Recovery | AG141: Capacity* | AK141: SBC | AL141: LRAM | AM141: NGC | AN141: Total | AO141: Total
Z142: JC_RT__05D | AA142: Residential Time-of-Day Service | AB142: Customer Charge | AC142: ='RT per Tariff'!C24 -> 8.07 | AN142: =AC142 -> 8.07 | AO142: =AC142 -> 8.07
AA143: QF with less than 10 kW of Generation** | AB143: ='RT per Tariff'!B27 -> On-Peak Summer kWh | AD143: ='RT per Tariff'!D27 -> 0.019212 | AE143: ='RT per Tariff'!E27 -> 0.060029 | AF143: ='RT per Tariff'!F27 -> 0.000358 | AG143: ='RT per Tariff'!G27 -> 0.176465 | AH143: ='RT per Tariff'!H27 -> 3.9e-05 | AI143: ='RT per Tariff'!I27 -> 0 | AJ143: ='RT per Tariff'!J27 -> 0.004729 | AK143: ='RT per Tariff'!K27 -> 0.0077 | AL143: ='RT per Tariff'!L27 -> 0.00058 | AM143: ='RT per Tariff'!M27 -> -0.000234 | AN143: =SUM(AE143:AF143,AI143:AM143) -> 0.073162 | AO143: ='RT per Tariff'!N27 -> 0.268878 | AP143: =AO143-AN143-AG143-AH143-AD143 -> 0
AA144: All Taxes Applicable & Included | AB144: ='RT per Tariff'!B28 -> On-Peak Winter kWh | AD144: ='RT per Tariff'!D28 -> 0.019212 | AE144: ='RT per Tariff'!E28 -> 0.044094 | AF144: ='RT per Tariff'!F28 -> 0.000358 | AG144: ='RT per Tariff'!G28 -> 0.175992 | AH144: ='RT per Tariff'!H28 -> 3.9e-05 | AI144: ='RT per Tariff'!I28 -> 0 | AJ144: ='RT per Tariff'!J28 -> 0.004729 | AK144: ='RT per Tariff'!K28 -> 0.0077 | AL144: ='RT per Tariff'!L28 -> 0.00058 | AM144: ='RT per Tariff'!M28 -> -0.000234 | AN144: 0.057227 | AO144: ='RT per Tariff'!N28 -> 0.25247 | AP144: 0
AB145: ='RT per Tariff'!B29 -> Off-Peak Summer kWh | AD145: ='RT per Tariff'!D29 -> 0.019212 | AE145: ='RT per Tariff'!E29 -> 0.028041 | AF145: ='RT per Tariff'!F29 -> 0.000358 | AG145: ='RT per Tariff'!G29 -> 0.092434 | AH145: ='RT per Tariff'!H29 -> 3.9e-05 | AI145: ='RT per Tariff'!I29 -> 0 | AJ145: ='RT per Tariff'!J29 -> 0.004729 | AK145: ='RT per Tariff'!K29 -> 0.0077 | AL145: ='RT per Tariff'!L29 -> 0.00058 | AM145: ='RT per Tariff'!M29 -> -0.000234 | AN145: 0.041174 | AO145: ='RT per Tariff'!N29 -> 0.152859 | AP145: 3.122502257e-17
AB146: ='RT per Tariff'!B30 -> Off-Peak Winter kWh | AD146: ='RT per Tariff'!D30 -> 0.019212 | AE146: ='RT per Tariff'!E30 -> 0.028041 | AF146: ='RT per Tariff'!F30 -> 0.000358 | AG146: ='RT per Tariff'!G30 -> 0.100009 | AH146: ='RT per Tariff'!H30 -> 3.9e-05 | AI146: ='RT per Tariff'!I30 -> 0 | AJ146: ='RT per Tariff'!J30 -> 0.004729 | AK146: ='RT per Tariff'!K30 -> 0.0077 | AL146: ='RT per Tariff'!L30 -> 0.00058 | AM146: ='RT per Tariff'!M30 -> -0.000234 | AN146: 0.041174 | AO146: ='RT per Tariff'!N30 -> 0.160434 | AP146: 3.122502257e-17
AC147: * Charge applies only to Full Service Customers | AF147: ** Net metering account - refer to Tariff Rider QFS
AF149: =AF$2 -> Rates Effective with Service Rendered June 1, 2025 | AN149: Delivery
AB150: Charge or | AC150: Customer | AG150: Energy & | AH150: BGS-FP Reconciliation Charge* | AI150: =$AI$3 -> Zero Emission Certificate Recovery Charge (ZEC) | AJ150: RGGI Recovery Charge (RRC) | AN150: Service | AO150: Full Service
Z151: Rate Category | AA151: Description | AB151: Price Block | AC151: Charge | AD151: Transmission* | AE151: Distribution | AF151: Covid-19 Recovery | AG151: Capacity* | AK151: SBC | AL151: LRAM | AM151: NGC | AN151: Total | AO151: Total
Z152: JC_RGT_01D | AA152: Residential Geothermal & Heat Pump | AB152: Customer Charge | AC152: ='RGT per Tariff'!C23 -> 8.07 | AN152: =AC152 -> 8.07 | AO152: =AC152 -> 8.07
AA153: All Taxes Applicable & Included | AB153: ='RGT per Tariff'!B25 -> On-Peak Summer kWh | AD153: ='RGT per Tariff'!D25 -> 0.019212 | AE153: ='RGT per Tariff'!E25 -> 0.060029 | AF153: ='RGT per Tariff'!F25 -> 0.000358 | AG153: ='RGT per Tariff'!G25 -> 0.176465 | AH153: ='RGT per Tariff'!H25 -> 3.9e-05 | AI153: ='RGT per Tariff'!I25 -> 0 | AJ153: ='RGT per Tariff'!J25 -> 0.004729 | AK153: ='RGT per Tariff'!K25 -> 0.0077 | AL153: ='RGT per Tariff'!L25 -> 0.00058 | AM153: ='RGT per Tariff'!M25 -> -0.000234 | AN153: =SUM(AE153:AF153,AI153:AM153) -> 0.073162 | AO153: ='RGT per Tariff'!N25 -> 0.268878 | AP153: =AO153-AN153-AG153-AH153-AD153 -> 0
AB154: ='RGT per Tariff'!B26 -> Off-Peak Summer kWh | AD154: ='RGT per Tariff'!D26 -> 0.019212 | AE154: ='RGT per Tariff'!E26 -> 0.028041 | AF154: ='RGT per Tariff'!F26 -> 0.000358 | AG154: ='RGT per Tariff'!G26 -> 0.092434 | AH154: ='RGT per Tariff'!H26 -> 3.9e-05 | AI154: ='RGT per Tariff'!I26 -> 0 | AJ154: ='RGT per Tariff'!J26 -> 0.004729 | AK154: ='RGT per Tariff'!K26 -> 0.0077 | AL154: ='RGT per Tariff'!L26 -> 0.00058 | AM154: ='RGT per Tariff'!M26 -> -0.000234 | AN154: 0.041174 | AO154: ='RGT per Tariff'!N26 -> 0.152859 | AP154: 3.122502257e-17
AB155: ='RGT per Tariff'!B27 -> Winter kWh - 1 => 1,000 | AD155: ='RGT per Tariff'!D27 -> 0.019212 | AE155: ='RGT per Tariff'!E27 -> 0.033061 | AF155: ='RGT per Tariff'!F27 -> 0.000358 | AG155: ='RGT per Tariff'!G27 -> 0.136817 | AH155: ='RGT per Tariff'!H27 -> 3.9e-05 | AI155: ='RGT per Tariff'!I27 -> 0 | AJ155: ='RGT per Tariff'!J27 -> 0.004729 | AK155: ='RGT per Tariff'!K27 -> 0.0077 | AL155: ='RGT per Tariff'!L27 -> 0.00058 | AM155: ='RGT per Tariff'!M27 -> -0.000234 | AN155: 0.046194 | AO155: ='RGT per Tariff'!N27 -> 0.202262 | AP155: 4.510281038e-17
AB156: ='RGT per Tariff'!B28 -> Winter kWh > 1,000 | AD156: ='RGT per Tariff'!D28 -> 0.019212 | AE156: ='RGT per Tariff'!E28 -> 0.033061 | AF156: ='RGT per Tariff'!F28 -> 0.000358 | AG156: ='RGT per Tariff'!G28 -> 0.136817 | AH156: ='RGT per Tariff'!H28 -> 3.9e-05 | AI156: ='RGT per Tariff'!I28 -> 0 | AJ156: ='RGT per Tariff'!J28 -> 0.004729 | AK156: ='RGT per Tariff'!K28 -> 0.0077 | AL156: ='RGT per Tariff'!L28 -> 0.00058 | AM156: ='RGT per Tariff'!M28 -> -0.000234 | AN156: 0.046194 | AO156: ='RGT per Tariff'!N28 -> 0.202262 | AP156: 4.510281038e-17
AC157: * Charge applies only to Full Service Customers
AF159: =AF$2 -> Rates Effective with Service Rendered June 1, 2025 | AN159: Delivery
AB160: Charge or | AC160: Customer | AG160: Energy & | AH160: BGS-FP Reconciliation Charge* | AI160: =$AI$3 -> Zero Emission Certificate Recovery Charge (ZEC) | AJ160: RGGI Recovery Charge (RRC) | AN160: Service | AO160: Full Service
Z161: Rate Category | AA161: Description | AB161: Price Block | AC161: Charge | AD161: Transmission* | AE161: Distribution | AF161: Covid-19 Recovery | AG161: Capacity* | AK161: SBC | AL161: LRAM | AM161: NGC | AN161: Total | AO161: Total
Z162: JC_RGT_02D | AA162: Residential Geothermal & Heat Pump | AB162: Customer Charge | AC162: ='RGT per Tariff'!C23 -> 8.07 | AN162: =AC162 -> 8.07 | AO162: =AC162 -> 8.07
AA163: QF with less than 10 kW of Generation** | AB163: ='RGT per Tariff'!B25 -> On-Peak Summer kWh | AD163: ='RGT per Tariff'!D25 -> 0.019212 | AE163: ='RGT per Tariff'!E25 -> 0.060029 | AF163: ='RGT per Tariff'!F25 -> 0.000358 | AG163: ='RGT per Tariff'!G25 -> 0.176465 | AH163: ='RGT per Tariff'!H25 -> 3.9e-05 | AI163: ='RGT per Tariff'!I25 -> 0 | AJ163: ='RGT per Tariff'!J25 -> 0.004729 | AK163: ='RGT per Tariff'!K25 -> 0.0077 | AL163: ='RGT per Tariff'!L25 -> 0.00058 | AM163: ='RGT per Tariff'!M25 -> -0.000234 | AN163: =SUM(AE163:AF163,AI163:AM163) -> 0.073162 | AO163: ='RGT per Tariff'!N25 -> 0.268878 | AP163: =AO163-AN163-AG163-AH163-AD163 -> 0
AA164: All Taxes Applicable & Included | AB164: ='RGT per Tariff'!B26 -> Off-Peak Summer kWh | AD164: ='RGT per Tariff'!D26 -> 0.019212 | AE164: ='RGT per Tariff'!E26 -> 0.028041 | AF164: ='RGT per Tariff'!F26 -> 0.000358 | AG164: ='RGT per Tariff'!G26 -> 0.092434 | AH164: ='RGT per Tariff'!H26 -> 3.9e-05 | AI164: ='RGT per Tariff'!I26 -> 0 | AJ164: ='RGT per Tariff'!J26 -> 0.004729 | AK164: ='RGT per Tariff'!K26 -> 0.0077 | AL164: ='RGT per Tariff'!L26 -> 0.00058 | AM164: ='RGT per Tariff'!M26 -> -0.000234 | AN164: 0.041174 | AO164: ='RGT per Tariff'!N26 -> 0.152859 | AP164: 3.122502257e-17
AB165: ='RGT per Tariff'!B27 -> Winter kWh - 1 => 1,000 | AD165: ='RGT per Tariff'!D27 -> 0.019212 | AE165: ='RGT per Tariff'!E27 -> 0.033061 | AF165: ='RGT per Tariff'!F27 -> 0.000358 | AG165: ='RGT per Tariff'!G27 -> 0.136817 | AH165: ='RGT per Tariff'!H27 -> 3.9e-05 | AI165: ='RGT per Tariff'!I27 -> 0 | AJ165: ='RGT per Tariff'!J27 -> 0.004729 | AK165: ='RGT per Tariff'!K27 -> 0.0077 | AL165: ='RGT per Tariff'!L27 -> 0.00058 | AM165: ='RGT per Tariff'!M27 -> -0.000234 | AN165: 0.046194 | AO165: ='RGT per Tariff'!N27 -> 0.202262 | AP165: 4.510281038e-17
AB166: ='RGT per Tariff'!B28 -> Winter kWh > 1,000 | AD166: ='RGT per Tariff'!D28 -> 0.019212 | AE166: ='RGT per Tariff'!E28 -> 0.033061 | AF166: ='RGT per Tariff'!F28 -> 0.000358 | AG166: ='RGT per Tariff'!G28 -> 0.136817 | AH166: ='RGT per Tariff'!H28 -> 3.9e-05 | AI166: ='RGT per Tariff'!I28 -> 0 | AJ166: ='RGT per Tariff'!J28 -> 0.004729 | AK166: ='RGT per Tariff'!K28 -> 0.0077 | AL166: ='RGT per Tariff'!L28 -> 0.00058 | AM166: ='RGT per Tariff'!M28 -> -0.000234 | AN166: 0.046194 | AO166: ='RGT per Tariff'!N28 -> 0.202262 | AP166: 4.510281038e-17
AC167: * Charge applies only to Full Service Customers | AF167: ** Net metering account - refer to Tariff Rider QFS
AF169: =AF$2 -> Rates Effective with Service Rendered June 1, 2025 | AN169: Delivery
AB170: Charge or | AC170: Customer | AG170: Energy & | AH170: BGS-FP Reconciliation Charge* | AI170: =$AI$3 -> Zero Emission Certificate Recovery Charge (ZEC) | AJ170: RGGI Recovery Charge (RRC) | AN170: Service | AO170: Full Service
Z171: Rate Category | AA171: Description | AB171: Price Block | AC171: Charge | AD171: Transmission* | AE171: Distribution | AF171: Covid-19 Recovery | AG171: Capacity* | AK171: SBC | AL171: LRAM | AM171: NGC | AN171: Total | AO171: Total
Z172: JC_GS1_01D | AA172: General Service Secondary - 1 Phase | AB172: Customer Charge | AC172: ='GS FP per Tariff'!C77 -> 4.65 | AN172: =AC172 -> 4.65 | AO172: N/A
AA173: Delivery Service Only | AB173: ='GS FP per Tariff'!B84 -> Over 10 KW Summer | AE173: ='GS FP per Tariff'!E84 -> 9 | AN173: =AE173 -> 9 | AO173: N/A
AA174: No Special Provisions | AB174: ='GS FP per Tariff'!B85 -> Over 10 KW Winter | AE174: ='GS FP per Tariff'!E85 -> 8.38 | AN174: =AE174 -> 8.38 | AO174: N/A
AA175: All Taxes Applicable & Included | AB175: ='GS FP per Tariff'!B87 -> Minimum Bill-Over 10 KW | AE175: ='GS FP per Tariff'!E87 -> 4.08 | AN175: =AE175 -> 4.08 | AO175: N/A | AW175: =AF$2 -> Rates Effective with Service Rendered June 1, 2025 | BE175: Delivery
AB176: ='GS FP per Tariff'!B89 -> First 1,000 kWh Summer | AD176: N/A | AE176: ='GS FP per Tariff'!E89 -> 0.075288 | AF176: ='GS FP per Tariff'!F89 -> 0.000358 | AG176: N/A | AH176: N/A | AI176: ='GS FP per Tariff'!I89 -> 0 | AJ176: ='GS FP per Tariff'!J89 -> 0.004729 | AK176: ='GS FP per Tariff'!K89 -> 0.0077 | AL176: ='GS FP per Tariff'!L89 -> 0.000494 | AM176: ='GS FP per Tariff'!M89 -> -0.000234 | AN176: =SUM(AE176:AF176,AI176:AM176) -> 0.088335 | AO176: N/A | AS176: Charge or | AT176: Customer | AX176: Energy & | AY176: BGS-FP Reconciliation Charge* | AZ176: =$AI$3 -> Zero Emission Certificate Recovery Charge (ZEC) | BA176: RGGI Recovery Charge (RRC) | BE176: Service | BF176: Full Service
AB177: ='GS FP per Tariff'!B90 -> First 1,000 kWh Winter | AD177: N/A | AE177: ='GS FP per Tariff'!E90 -> 0.069662 | AF177: ='GS FP per Tariff'!F90 -> 0.000358 | AG177: N/A | AH177: N/A | AI177: ='GS FP per Tariff'!I90 -> 0 | AJ177: ='GS FP per Tariff'!J90 -> 0.004729 | AK177: ='GS FP per Tariff'!K90 -> 0.0077 | AL177: ='GS FP per Tariff'!L90 -> 0.000494 | AM177: ='GS FP per Tariff'!M90 -> -0.000234 | AN177: 0.082709 | AO177: N/A | AQ177: Rate Category | AR177: Description | AS177: Price Block | AT177: Charge | AU177: Transmission* | AV177: Distribution | AW177: SRC | AX177: Capacity* | BB177: SBC | BC177: TAA | BD177: MTC | BE177: Total | BF177: Total
AB178: ='GS FP per Tariff'!B91 -> Over 1,000 kWh Summer | AD178: N/A | AE178: ='GS FP per Tariff'!E91 -> 0.006021 | AF178: ='GS FP per Tariff'!F91 -> 0.000358 | AG178: N/A | AH178: N/A | AI178: ='GS FP per Tariff'!I91 -> 0 | AJ178: ='GS FP per Tariff'!J91 -> 0.004729 | AK178: ='GS FP per Tariff'!K91 -> 0.0077 | AL178: ='GS FP per Tariff'!L91 -> 0.000494 | AM178: ='GS FP per Tariff'!M91 -> -0.000234 | AN178: 0.019068 | AO178: N/A | AQ178: JC_GS3_01D | AR178: General Service Secondary - 3 Phase | AS178: Customer Charge | AT178: ='GS FP per Tariff'!C78 -> 16.69 | BE178: =AT178 -> 16.69 | BF178: N/A
AB179: ='GS FP per Tariff'!B92 -> Over 1,000 kWh Winter | AD179: N/A | AE179: ='GS FP per Tariff'!E92 -> 0.006021 | AF179: ='GS FP per Tariff'!F92 -> 0.000358 | AG179: N/A | AH179: N/A | AI179: ='GS FP per Tariff'!I92 -> 0 | AJ179: ='GS FP per Tariff'!J92 -> 0.004729 | AK179: ='GS FP per Tariff'!K92 -> 0.0077 | AL179: ='GS FP per Tariff'!L92 -> 0.000494 | AM179: ='GS FP per Tariff'!M92 -> -0.000234 | AN179: 0.019068 | AO179: N/A | AR179: Delivery Service Only | AS179: ='GS FP per Tariff'!B84 -> Over 10 KW Summer | AV179: ='GS FP per Tariff'!E84 -> 9 | BE179: =AV179 -> 9 | BF179: N/A
AC180: * Charge applies only to Full Service Customers | AR180: No Special Provisions | AS180: ='GS FP per Tariff'!B85 -> Over 10 KW Winter | AV180: ='GS FP per Tariff'!E85 -> 8.38 | BE180: =AV180 -> 8.38 | BF180: N/A
AR181: All Taxes Applicable & Included | AS181: ='GS FP per Tariff'!B87 -> Minimum Bill-Over 10 KW | AV181: ='GS FP per Tariff'!E87 -> 4.08 | BE181: =AV181 -> 4.08 | BF181: N/A
AF182: =AF$2 -> Rates Effective with Service Rendered June 1, 2025 | AN182: Delivery | AS182: ='GS FP per Tariff'!B89 -> First 1,000 kWh Summer | AU182: N/A | AV182: ='GS FP per Tariff'!E89 -> 0.075288 | AW182: ='GS FP per Tariff'!F89 -> 0.000358 | AX182: N/A | AY182: N/A | AZ182: ='GS FP per Tariff'!I89 -> 0 | BA182: ='GS FP per Tariff'!J89 -> 0.004729 | BB182: ='GS FP per Tariff'!K89 -> 0.0077 | BC182: ='GS FP per Tariff'!L89 -> 0.000494 | BD182: ='GS FP per Tariff'!M89 -> -0.000234 | BE182: =SUM(AV182:AW182,AZ182:BD182) -> 0.088335 | BF182: N/A
AB183: Charge or | AC183: Customer | AG183: Energy & | AH183: BGS-FP Reconciliation Charge* | AI183: =$AI$3 -> Zero Emission Certificate Recovery Charge (ZEC) | AJ183: RGGI Recovery Charge (RRC) | AN183: Service | AO183: Full Service | AS183: ='GS FP per Tariff'!B90 -> First 1,000 kWh Winter | AU183: N/A | AV183: ='GS FP per Tariff'!E90 -> 0.069662 | AW183: ='GS FP per Tariff'!F90 -> 0.000358 | AX183: N/A | AY183: N/A | AZ183: ='GS FP per Tariff'!I90 -> 0 | BA183: ='GS FP per Tariff'!J90 -> 0.004729 | BB183: ='GS FP per Tariff'!K90 -> 0.0077 | BC183: ='GS FP per Tariff'!L90 -> 0.000494 | BD183: ='GS FP per Tariff'!M90 -> -0.000234 | BE183: =SUM(AV183:AW183,AZ183:BD183) -> 0.082709 | BF183: N/A
Z184: Rate Category | AA184: Description | AB184: Price Block | AC184: Charge | AD184: Transmission* | AE184: Distribution | AF184: Covid-19 Recovery | AG184: Capacity* | AK184: SBC | AL184: LRAM | AM184: NGC | AN184: Charges | AO184: Total | AS184: ='GS FP per Tariff'!B91 -> Over 1,000 kWh Summer | AU184: N/A | AV184: ='GS FP per Tariff'!E91 -> 0.006021 | AW184: ='GS FP per Tariff'!F91 -> 0.000358 | AX184: N/A | AY184: N/A | AZ184: ='GS FP per Tariff'!I91 -> 0 | BA184: ='GS FP per Tariff'!J91 -> 0.004729 | BB184: ='GS FP per Tariff'!K91 -> 0.0077 | BC184: ='GS FP per Tariff'!L91 -> 0.000494 | BD184: ='GS FP per Tariff'!M91 -> -0.000234 | BE184: 0.019068 | BF184: N/A
Z185: JC_GS1_01F | AA185: General Service Secondary - 1 Phase | AB185: Customer Charge | AC185: ='GS FP per Tariff'!C77 -> 4.65 | AN185: =AC185 -> 4.65 | AO185: =AC185 -> 4.65 | AS185: ='GS FP per Tariff'!B92 -> Over 1,000 kWh Winter | AU185: N/A | AV185: ='GS FP per Tariff'!E92 -> 0.006021 | AW185: ='GS FP per Tariff'!F92 -> 0.000358 | AX185: N/A | AY185: N/A | AZ185: ='GS FP per Tariff'!I92 -> 0 | BA185: ='GS FP per Tariff'!J92 -> 0.004729 | BB185: ='GS FP per Tariff'!K92 -> 0.0077 | BC185: ='GS FP per Tariff'!L92 -> 0.000494 | BD185: ='GS FP per Tariff'!M92 -> -0.000234 | BE185: 0.019068 | BF185: N/A
AA186: Full Service | AB186: ='GS FP per Tariff'!B84 -> Over 10 KW Summer | AE186: ='GS FP per Tariff'!E84 -> 9 | AN186: =AE186 -> 9 | AO186: =AE186 -> 9 | AT186: * Charge applies only to Full Service Customers
AA187: No Special Provisions | AB187: ='GS FP per Tariff'!B85 -> Over 10 KW Winter | AE187: ='GS FP per Tariff'!E85 -> 8.38 | AN187: =AE187 -> 8.38 | AO187: =AE187 -> 8.38
AA188: All Taxes Applicable & Included | AB188: ='GS FP per Tariff'!B87 -> Minimum Bill-Over 10 KW | AE188: ='GS FP per Tariff'!E87 -> 4.08 | AN188: =AE188 -> 4.08 | AO188: =AE188 -> 4.08 | AW188: =AF$2 -> Rates Effective with Service Rendered June 1, 2025 | BE188: Delivery
AB189: ='GS FP per Tariff'!B89 -> First 1,000 kWh Summer | AD189: ='GS FP per Tariff'!D89 -> 0.019212 | AE189: ='GS FP per Tariff'!E89 -> 0.075288 | AF189: ='GS FP per Tariff'!F89 -> 0.000358 | AG189: ='GS FP per Tariff'!G89 -> 0.124982 | AH189: ='GS FP per Tariff'!H89 -> 3.9e-05 | AI189: ='GS FP per Tariff'!I89 -> 0 | AJ189: ='GS FP per Tariff'!J89 -> 0.004729 | AK189: ='GS FP per Tariff'!K89 -> 0.0077 | AL189: ='GS FP per Tariff'!L89 -> 0.000494 | AM189: ='GS FP per Tariff'!M89 -> -0.000234 | AN189: =SUM(AE189:AF189,AI189:AM189) -> 0.088335 | AO189: ='GS FP per Tariff'!N89 -> 0.232568 | AS189: Charge or | AT189: Customer | AX189: Energy & | AY189: BGS-FP Reconciliation Charge* | AZ189: =$AI$3 -> Zero Emission Certificate Recovery Charge (ZEC) | BA189: RGGI Recovery Charge (RRC) | BE189: Service | BF189: Full Service
AB190: ='GS FP per Tariff'!B90 -> First 1,000 kWh Winter | AD190: ='GS FP per Tariff'!D90 -> 0.019212 | AE190: ='GS FP per Tariff'!E90 -> 0.069662 | AF190: ='GS FP per Tariff'!F90 -> 0.000358 | AG190: ='GS FP per Tariff'!G90 -> 0.124626 | AH190: ='GS FP per Tariff'!H90 -> 3.9e-05 | AI190: ='GS FP per Tariff'!I90 -> 0 | AJ190: ='GS FP per Tariff'!J90 -> 0.004729 | AK190: ='GS FP per Tariff'!K90 -> 0.0077 | AL190: ='GS FP per Tariff'!L90 -> 0.000494 | AM190: ='GS FP per Tariff'!M90 -> -0.000234 | AN190: 0.082709 | AO190: ='GS FP per Tariff'!N90 -> 0.226586 | AQ190: Rate Category | AR190: Description | AS190: Price Block | AT190: Charge | AU190: Transmission* | AV190: Distribution | AW190: SRC | AX190: Capacity* | BB190: SBC | BC190: TAA | BD190: MTC | BE190: Charges | BF190: Total
AB191: ='GS FP per Tariff'!B91 -> Over 1,000 kWh Summer | AD191: ='GS FP per Tariff'!D91 -> 0.019212 | AE191: ='GS FP per Tariff'!E91 -> 0.006021 | AF191: ='GS FP per Tariff'!F91 -> 0.000358 | AG191: ='GS FP per Tariff'!G91 -> 0.124982 | AH191: ='GS FP per Tariff'!H91 -> 3.9e-05 | AI191: ='GS FP per Tariff'!I91 -> 0 | AJ191: ='GS FP per Tariff'!J91 -> 0.004729 | AK191: ='GS FP per Tariff'!K91 -> 0.0077 | AL191: ='GS FP per Tariff'!L91 -> 0.000494 | AM191: ='GS FP per Tariff'!M91 -> -0.000234 | AN191: 0.019068 | AO191: ='GS FP per Tariff'!N91 -> 0.163301 | AQ191: JC_GS3_01F | AR191: General Service Secondary - 3 Phase | AS191: Customer Charge | AT191: ='GS FP per Tariff'!C78 -> 16.69 | BE191: =AT191 -> 16.69 | BF191: =AT191 -> 16.69
AB192: ='GS FP per Tariff'!B92 -> Over 1,000 kWh Winter | AD192: ='GS FP per Tariff'!D92 -> 0.019212 | AE192: ='GS FP per Tariff'!E92 -> 0.006021 | AF192: ='GS FP per Tariff'!F92 -> 0.000358 | AG192: ='GS FP per Tariff'!G92 -> 0.124626 | AH192: ='GS FP per Tariff'!H92 -> 3.9e-05 | AI192: ='GS FP per Tariff'!I92 -> 0 | AJ192: ='GS FP per Tariff'!J92 -> 0.004729 | AK192: ='GS FP per Tariff'!K92 -> 0.0077 | AL192: ='GS FP per Tariff'!L92 -> 0.000494 | AM192: ='GS FP per Tariff'!M92 -> -0.000234 | AN192: 0.019068 | AO192: ='GS FP per Tariff'!N92 -> 0.162945 | AR192: Full Service | AS192: ='GS FP per Tariff'!B84 -> Over 10 KW Summer | AV192: ='GS FP per Tariff'!E84 -> 9 | BE192: =AV192 -> 9 | BF192: =AV192 -> 9
AC193: * Charge applies only to Full Service Customers | AR193: No Special Provisions | AS193: ='GS FP per Tariff'!B85 -> Over 10 KW Winter | AV193: ='GS FP per Tariff'!E85 -> 8.38 | BE193: =AV193 -> 8.38 | BF193: =AV193 -> 8.38
AR194: All Taxes Applicable & Included | AS194: ='GS FP per Tariff'!B87 -> Minimum Bill-Over 10 KW | AV194: ='GS FP per Tariff'!E87 -> 4.08 | BE194: =AV194 -> 4.08 | BF194: =AV194 -> 4.08
AF195: =AF$2 -> Rates Effective with Service Rendered June 1, 2025 | AN195: Delivery | AS195: ='GS FP per Tariff'!B89 -> First 1,000 kWh Summer | AU195: ='GS FP per Tariff'!D89 -> 0.019212 | AV195: ='GS FP per Tariff'!E89 -> 0.075288 | AW195: ='GS FP per Tariff'!F89 -> 0.000358 | AX195: ='GS FP per Tariff'!G89 -> 0.124982 | AY195: ='GS FP per Tariff'!H89 -> 3.9e-05 | AZ195: ='GS FP per Tariff'!I89 -> 0 | BA195: ='GS FP per Tariff'!J89 -> 0.004729 | BB195: ='GS FP per Tariff'!K89 -> 0.0077 | BC195: ='GS FP per Tariff'!L89 -> 0.000494 | BD195: ='GS FP per Tariff'!M89 -> -0.000234 | BE195: =SUM(AV195:AW195,AZ195:BD195) -> 0.088335 | BF195: ='GS FP per Tariff'!N89 -> 0.232568 | BG195: =BF195-BE195-AU195-AX195-AY195 -> -2.629190268e-18
AB196: Charge or | AC196: Customer | AG196: Energy & | AH196: BGS-FP Reconciliation Charge* | AI196: =$AI$3 -> Zero Emission Certificate Recovery Charge (ZEC) | AJ196: RGGI Recovery Charge (RRC) | AN196: Service | AO196: Full Service | AS196: ='GS FP per Tariff'!B90 -> First 1,000 kWh Winter | AU196: ='GS FP per Tariff'!D90 -> 0.019212 | AV196: ='GS FP per Tariff'!E90 -> 0.069662 | AW196: ='GS FP per Tariff'!F90 -> 0.000358 | AX196: ='GS FP per Tariff'!G90 -> 0.124626 | AY196: ='GS FP per Tariff'!H90 -> 3.9e-05 | AZ196: ='GS FP per Tariff'!I90 -> 0 | BA196: ='GS FP per Tariff'!J90 -> 0.004729 | BB196: ='GS FP per Tariff'!K90 -> 0.0077 | BC196: ='GS FP per Tariff'!L90 -> 0.000494 | BD196: ='GS FP per Tariff'!M90 -> -0.000234 | BE196: 0.082709 | BF196: ='GS FP per Tariff'!N90 -> 0.226586 | BG196: =BF196-BE196-AU196-AX196-AY196 -> 2.512638535e-17
Z197: Rate Category | AA197: Description | AB197: Price Block | AC197: Charge | AD197: Transmission* | AE197: Distribution | AF197: Covid-19 Recovery | AG197: Capacity* | AK197: SBC | AL197: LRAM | AM197: NGC | AN197: Total | AO197: Total | AS197: ='GS FP per Tariff'!B91 -> Over 1,000 kWh Summer | AU197: ='GS FP per Tariff'!D91 -> 0.019212 | AV197: ='GS FP per Tariff'!E91 -> 0.006021 | AW197: ='GS FP per Tariff'!F91 -> 0.000358 | AX197: ='GS FP per Tariff'!G91 -> 0.124982 | AY197: ='GS FP per Tariff'!H91 -> 3.9e-05 | AZ197: ='GS FP per Tariff'!I91 -> 0 | BA197: ='GS FP per Tariff'!J91 -> 0.004729 | BB197: ='GS FP per Tariff'!K91 -> 0.0077 | BC197: ='GS FP per Tariff'!L91 -> 0.000494 | BD197: ='GS FP per Tariff'!M91 -> -0.000234 | BE197: 0.019068 | BF197: ='GS FP per Tariff'!N91 -> 0.163301 | BG197: =BF197-BE197-AU197-AX197-AY197 -> -2.629190268e-18
Z198: JC_GS1_02D | AA198: General Service Secondary - 1 Phase | AB198: Customer Charge | AC198: ='GS FP per Tariff'!C77 -> 4.65 | AN198: =AC198 -> 4.65 | AO198: N/A | AS198: ='GS FP per Tariff'!B92 -> Over 1,000 kWh Winter | AU198: ='GS FP per Tariff'!D92 -> 0.019212 | AV198: ='GS FP per Tariff'!E92 -> 0.006021 | AW198: ='GS FP per Tariff'!F92 -> 0.000358 | AX198: ='GS FP per Tariff'!G92 -> 0.124626 | AY198: ='GS FP per Tariff'!H92 -> 3.9e-05 | AZ198: ='GS FP per Tariff'!I92 -> 0 | BA198: ='GS FP per Tariff'!J92 -> 0.004729 | BB198: ='GS FP per Tariff'!K92 -> 0.0077 | BC198: ='GS FP per Tariff'!L92 -> 0.000494 | BD198: ='GS FP per Tariff'!M92 -> -0.000234 | BE198: 0.019068 | BF198: ='GS FP per Tariff'!N92 -> 0.162945 | BG198: =BF198-BE198-AU198-AX198-AY198 -> -2.629190268e-18
AA199: Day/Night Provision ** | AB199: Suppl Cust Charge | AC199: ='GS FP per Tariff'!C81 -> 3.81 | AN199: =AC199 -> 3.81 | AO199: N/A | AT199: * Charge applies only to Full Service Customers
AA200: Delivery Service Only | AB200: ='GS FP per Tariff'!B84 -> Over 10 KW Summer | AE200: ='GS FP per Tariff'!E84 -> 9 | AN200: =AE200 -> 9 | AO200: N/A
AA201: All Taxes Applicable & Included | AB201: ='GS FP per Tariff'!B85 -> Over 10 KW Winter | AE201: ='GS FP per Tariff'!E85 -> 8.38 | AN201: =AE201 -> 8.38 | AO201: N/A | AW201: =AF$2 -> Rates Effective with Service Rendered June 1, 2025 | BE201: Delivery
AB202: ='GS FP per Tariff'!B87 -> Minimum Bill-Over 10 KW | AE202: ='GS FP per Tariff'!E87 -> 4.08 | AN202: =AE202 -> 4.08 | AO202: N/A | AS202: Charge or | AT202: Customer | AX202: Energy & | AY202: BGS-FP Reconciliation Charge* | AZ202: =$AI$3 -> Zero Emission Certificate Recovery Charge (ZEC) | BA202: RGGI Recovery Charge (RRC) | BE202: Service | BF202: Full Service
AB203: ='GS FP per Tariff'!B89 -> First 1,000 kWh Summer | AD203: N/A | AE203: ='GS FP per Tariff'!E89 -> 0.075288 | AF203: ='GS FP per Tariff'!F89 -> 0.000358 | AG203: N/A | AH203: N/A | AI203: ='GS FP per Tariff'!I89 -> 0 | AJ203: ='GS FP per Tariff'!J89 -> 0.004729 | AK203: ='GS FP per Tariff'!K89 -> 0.0077 | AL203: ='GS FP per Tariff'!L89 -> 0.000494 | AM203: ='GS FP per Tariff'!M89 -> -0.000234 | AN203: =SUM(AE203:AF203,AI203:AM203) -> 0.088335 | AO203: N/A | AQ203: Rate Category | AR203: Description | AS203: Price Block | AT203: Charge | AU203: Transmission* | AV203: Distribution | AW203: SRC | AX203: Capacity* | BB203: SBC | BC203: TAA | BD203: MTC | BE203: Total | BF203: Total
AB204: ='GS FP per Tariff'!B90 -> First 1,000 kWh Winter | AD204: N/A | AE204: ='GS FP per Tariff'!E90 -> 0.069662 | AF204: ='GS FP per Tariff'!F90 -> 0.000358 | AG204: N/A | AH204: N/A | AI204: ='GS FP per Tariff'!I90 -> 0 | AJ204: ='GS FP per Tariff'!J90 -> 0.004729 | AK204: ='GS FP per Tariff'!K90 -> 0.0077 | AL204: ='GS FP per Tariff'!L90 -> 0.000494 | AM204: ='GS FP per Tariff'!M90 -> -0.000234 | AN204: 0.082709 | AO204: N/A | AQ204: JC_GS3_02D | AR204: General Service Secondary - 3 Phase | AS204: Customer Charge | AT204: ='GS FP per Tariff'!C78 -> 16.69 | BE204: =AT204 -> 16.69 | BF204: N/A
AB205: ='GS FP per Tariff'!B91 -> Over 1,000 kWh Summer | AD205: N/A | AE205: ='GS FP per Tariff'!E91 -> 0.006021 | AF205: ='GS FP per Tariff'!F91 -> 0.000358 | AG205: N/A | AH205: N/A | AI205: ='GS FP per Tariff'!I91 -> 0 | AJ205: ='GS FP per Tariff'!J91 -> 0.004729 | AK205: ='GS FP per Tariff'!K91 -> 0.0077 | AL205: ='GS FP per Tariff'!L91 -> 0.000494 | AM205: ='GS FP per Tariff'!M91 -> -0.000234 | AN205: 0.019068 | AO205: N/A | AR205: Day/Night Provision ** | AS205: Suppl Cust Charge | AT205: ='GS FP per Tariff'!C81 -> 3.81 | BE205: =AT205 -> 3.81 | BF205: N/A
AB206: ='GS FP per Tariff'!B92 -> Over 1,000 kWh Winter | AD206: N/A | AE206: ='GS FP per Tariff'!E92 -> 0.006021 | AF206: ='GS FP per Tariff'!F92 -> 0.000358 | AG206: N/A | AH206: N/A | AI206: ='GS FP per Tariff'!I92 -> 0 | AJ206: ='GS FP per Tariff'!J92 -> 0.004729 | AK206: ='GS FP per Tariff'!K92 -> 0.0077 | AL206: ='GS FP per Tariff'!L92 -> 0.000494 | AM206: ='GS FP per Tariff'!M92 -> -0.000234 | AN206: 0.019068 | AO206: N/A | AR206: Delivery Service Only | AS206: ='GS FP per Tariff'!B84 -> Over 10 KW Summer | AV206: ='GS FP per Tariff'!E84 -> 9 | BE206: =AV206 -> 9 | BF206: N/A
AC207: * Charge applies only to Full Service Customers | AF207: ** Demand charges are based on the greater of 100% on-peak kW or 40% off-peak kW | AR207: All Taxes Applicable & Included | AS207: ='GS FP per Tariff'!B85 -> Over 10 KW Winter | AV207: ='GS FP per Tariff'!E85 -> 8.38 | BE207: =AV207 -> 8.38 | BF207: N/A
AS208: ='GS FP per Tariff'!B87 -> Minimum Bill-Over 10 KW | AV208: ='GS FP per Tariff'!E87 -> 4.08 | BE208: =AV208 -> 4.08 | BF208: N/A
AF209: =AF$2 -> Rates Effective with Service Rendered June 1, 2025 | AN209: Delivery | AS209: ='GS FP per Tariff'!B89 -> First 1,000 kWh Summer | AU209: N/A | AV209: ='GS FP per Tariff'!E89 -> 0.075288 | AW209: ='GS FP per Tariff'!F89 -> 0.000358 | AX209: N/A | AY209: N/A | AZ209: ='GS FP per Tariff'!I89 -> 0 | BA209: ='GS FP per Tariff'!J89 -> 0.004729 | BB209: ='GS FP per Tariff'!K89 -> 0.0077 | BC209: ='GS FP per Tariff'!L89 -> 0.000494 | BD209: ='GS FP per Tariff'!M89 -> -0.000234 | BE209: =SUM(AV209:AW209,AZ209:BD209) -> 0.088335 | BF209: N/A
AB210: Charge or | AC210: Customer | AG210: Energy & | AH210: BGS-FP Reconciliation Charge* | AI210: =$AI$3 -> Zero Emission Certificate Recovery Charge (ZEC) | AJ210: RGGI Recovery Charge (RRC) | AN210: Service | AO210: Full Service | AS210: ='GS FP per Tariff'!B90 -> First 1,000 kWh Winter | AU210: N/A | AV210: ='GS FP per Tariff'!E90 -> 0.069662 | AW210: ='GS FP per Tariff'!F90 -> 0.000358 | AX210: N/A | AY210: N/A | AZ210: ='GS FP per Tariff'!I90 -> 0 | BA210: ='GS FP per Tariff'!J90 -> 0.004729 | BB210: ='GS FP per Tariff'!K90 -> 0.0077 | BC210: ='GS FP per Tariff'!L90 -> 0.000494 | BD210: ='GS FP per Tariff'!M90 -> -0.000234 | BE210: 0.082709 | BF210: N/A
Z211: Rate Category | AA211: Description | AB211: Price Block | AC211: Charge | AD211: Transmission* | AE211: Distribution | AF211: Covid-19 Recovery | AG211: Capacity* | AK211: SBC | AL211: LRAM | AM211: NGC | AN211: Charges | AO211: Total | AS211: ='GS FP per Tariff'!B91 -> Over 1,000 kWh Summer | AU211: N/A | AV211: ='GS FP per Tariff'!E91 -> 0.006021 | AW211: ='GS FP per Tariff'!F91 -> 0.000358 | AX211: N/A | AY211: N/A | AZ211: ='GS FP per Tariff'!I91 -> 0 | BA211: ='GS FP per Tariff'!J91 -> 0.004729 | BB211: ='GS FP per Tariff'!K91 -> 0.0077 | BC211: ='GS FP per Tariff'!L91 -> 0.000494 | BD211: ='GS FP per Tariff'!M91 -> -0.000234 | BE211: 0.019068 | BF211: N/A
Z212: JC_GS1_02F | AA212: General Service Secondary - 1 Phase | AB212: Customer Charge | AC212: ='GS FP per Tariff'!C77 -> 4.65 | AN212: =AC212 -> 4.65 | AO212: =AC212 -> 4.65 | AS212: ='GS FP per Tariff'!B92 -> Over 1,000 kWh Winter | AU212: N/A | AV212: ='GS FP per Tariff'!E92 -> 0.006021 | AW212: ='GS FP per Tariff'!F92 -> 0.000358 | AX212: N/A | AY212: N/A | AZ212: ='GS FP per Tariff'!I92 -> 0 | BA212: ='GS FP per Tariff'!J92 -> 0.004729 | BB212: ='GS FP per Tariff'!K92 -> 0.0077 | BC212: ='GS FP per Tariff'!L92 -> 0.000494 | BD212: ='GS FP per Tariff'!M92 -> -0.000234 | BE212: 0.019068 | BF212: N/A
AA213: Day/Night Provision ** | AB213: Suppl Cust Charge | AC213: ='GS FP per Tariff'!C81 -> 3.81 | AN213: =AC213 -> 3.81 | AO213: =AC213 -> 3.81 | AT213: * Charge applies only to Full Service Customers | AW213: ** Demand charges are based on the greater of 100% on-peak kW or 40% off-peak kW
AA214: Full Service | AB214: ='GS FP per Tariff'!B84 -> Over 10 KW Summer | AE214: ='GS FP per Tariff'!E84 -> 9 | AN214: =AE214 -> 9 | AO214: =AE214 -> 9
AA215: All Taxes Applicable & Included | AB215: ='GS FP per Tariff'!B85 -> Over 10 KW Winter | AE215: ='GS FP per Tariff'!E85 -> 8.38 | AN215: =AE215 -> 8.38 | AO215: =AE215 -> 8.38 | AW215: =AF$2 -> Rates Effective with Service Rendered June 1, 2025 | BE215: Delivery
AB216: ='GS FP per Tariff'!B87 -> Minimum Bill-Over 10 KW | AE216: ='GS FP per Tariff'!E87 -> 4.08 | AN216: =AE216 -> 4.08 | AO216: =AE216 -> 4.08 | AS216: Charge or | AT216: Customer | AX216: Energy & | AY216: BGS-FP Reconciliation Charge* | AZ216: =$AI$3 -> Zero Emission Certificate Recovery Charge (ZEC) | BA216: RGGI Recovery Charge (RRC) | BE216: Service | BF216: Full Service
AB217: ='GS FP per Tariff'!B89 -> First 1,000 kWh Summer | AD217: ='GS FP per Tariff'!D89 -> 0.019212 | AE217: ='GS FP per Tariff'!E89 -> 0.075288 | AF217: ='GS FP per Tariff'!F89 -> 0.000358 | AG217: ='GS FP per Tariff'!G89 -> 0.124982 | AH217: ='GS FP per Tariff'!H89 -> 3.9e-05 | AI217: ='GS FP per Tariff'!I89 -> 0 | AJ217: ='GS FP per Tariff'!J89 -> 0.004729 | AK217: ='GS FP per Tariff'!K89 -> 0.0077 | AL217: ='GS FP per Tariff'!L89 -> 0.000494 | AM217: ='GS FP per Tariff'!M89 -> -0.000234 | AN217: =SUM(AE217:AF217,AI217:AM217) -> 0.088335 | AO217: ='GS FP per Tariff'!N89 -> 0.232568 | AQ217: Rate Category | AR217: Description | AS217: Price Block | AT217: Charge | AU217: Transmission* | AV217: Distribution | AW217: SRC | AX217: Capacity* | BB217: SBC | BC217: TAA | BD217: MTC | BE217: Charges | BF217: Total
... 688 more rows

Sheet SBC TBC and MTC Tax
A1: ='Disclaimer and Definitions'!A1 -> Visual_Rate_Inventory June 1, 2025
B2: =NOW() -> 2025-05-30T16:18:48.150
B3: =NOW() -> 45807.67972
A7: Jersey Central Power & Light
A9: ='RT per Tariff'!C3 -> Rates Effective with Service Rendered June 1, 2025
A14: Revised Oyster Creek Securitization TBC and MTC Tax Charges Effective January 1, 2018
C16: Without SUT | D16: With SUT | G16: SUT EFF 1/1/2018 | H16: 1.06625
B17: OC TBC | C17: 0 | D17: =ROUND(C17*SUT_6625,6) -> 0
B18: OC MTC Tax | C18: 0 | D18: =ROUND(C18*SUT_6625,6) -> 0
A20: Revised Defered Balance Securitization - TBC and MTC Tax Charges Effective May 11, 2021
C22: Without SUT | D22: =D16 -> With SUT
B23: DB TBC | C23: 0 | D23: =ROUND(C23*SUT_6625,6) -> 0
B24: DB MTC Tax | C24: 0 | D24: =ROUND(C24*SUT_6625,6) -> 0
A27: Revised SBC and SBC Sub-components Effective October 1, 2024
C29: Without SUT | D29: =D16 -> With SUT
B30: RAC | C30: 0.000806 | D30: =ROUND(C30*SUT_6625,6) -> 0.000859
B31: USF | C31: 0.002075 | D31: 0.002212
B32: Lifeline | C32: 0.00071 | D32: 0.000757
B33: CED | C33: 0 | D33: 0
B34: DSF | C34: 0.00328 | D34: 0.003497
B35: UNC | C35: 0.000352 | D35: 0.000375
B36: NDC | C36: 0 | D36: 0
B37: Total SBC | C37: =SUM(C30:C36) -> 0.007223 | D37: =SUM(D30:D36) -> 0.0077
G38: =C31+C32 -> 0.002785 | H38: =D31+D32 -> 0.002969
A43: Note: All Charges listed except for Total SBC are non-posting relevant charges. The customer does not
A44: see these charges on their bill. These charges are calculated only for internal use to allocate revenue.
A46: Effective Date | B46: Effective 1/1/2025
B47: RRC | C47: RRC
B48: without SUT | C48: with SUT
A49: SREC | B49: 7e-06 | C49: =ROUND(B49*SUT_6625,6) -> 7e-06
A50: TREC | B50: 0.001965 | C50: 0.002095
A51: SUSI | B51: 0.000254 | C51: 0.000271
A52: Community Solar | B52: 0 | C52: 0
A53: EEC | B53: 0.000929 | C53: 0.000991
A54: EEC2 | B54: 0.00128 | C54: 0.001365
A55: Total | B55: =SUM(B49:B54) -> 0.004435 | C55: 0.004729
B57: LRAM | C57: LRAM
A58: RS | B58: 0.000512 | C58: =ROUND(B58*SUT_6625,6) -> 0.000546
A59: RT/RGT | B59: 0.000544 | C59: 0.00058
A60: GS | B60: 0.000463 | C60: 0.000494
A61: GST | B61: 0.17 | C61: =ROUND(B61*SUT_6625,2) -> 0.18
A62: GP | B62: 0.11 | C62: =ROUND(B62*SUT_6625,2) -> 0.12
A63: GT | B63: 0.07 | C63: =ROUND(B63*SUT_6625,2) -> 0.07
A64: Lighting(OL, SVL, ISL, MVL, LED) | B64: 0.002061 | C64: =ROUND(B64*SUT_6625,6) -> 0.002198

Sheet TEC (hidden)
B2: Effective - 1/1/2017
A3: BGS by Voltage Level | B3: TrailCo4-TEC Surcharge ($/kWh) | C3: TrailCo4-TEC Surcharge w/ SUT($/kWh) | D3: PATH3-TEC Surcharge ($/kWh) | E3: PATH3-TEC Surcharge w/ SUT($/kWh) | F3: VEPCO3-TEC Surcharge ($/kWh) | G3: VEPCO3-TEC Surcharge w/ SUT($/kWh) | H3: PSEG2-TEC Surcharge ($/kWh) | I3: PSEG2-TEC Surcharge w/ SUT($/kWh) | J3: PEPCO2-TEC Surcharge ($/kWh) | K3: PEPCO2-TEC Surcharge w/ SUT($/kWh) | L3: ACE2-TEC Surcharge ($/kWh) | M3: ACE2-TEC Surcharge w/ SUT($/kWh) | N3: Delmarva2-TEC Surcharge ($/kWh) | O3: Delmarva2-TEC Surcharge w/ SUT($/kWh) | P3: AEP2-TEC Surcharge ($/kWh) | Q3: AEP2-TEC Surcharge w/ SUT($/kWh) | R3: PPL2-TEC Surcharge ($/kWh) | S3: PPL2-TEC Surcharge w/ SUT($/kWh) | T3: Total | U3: Total W/SUT
A4: Secondary (excluding lighting) | B4: 0.000437 | C4: =ROUND(B4*SUT_6625,6) -> 0.000466 | D4: 5.4e-05 | E4: =ROUND(D4*SUT_6625,6) -> 5.8e-05 | F4: 0.000302 | G4: =ROUND(F4*SUT_6625,6) -> 0.000322 | H4: 0.001888 | I4: =ROUND(H4*SUT_6625,6) -> 0.002013 | J4: 1.4e-05 | K4: =ROUND(J4*SUT_6625,6) -> 1.5e-05 | L4: 8e-05 | M4: =ROUND(L4*SUT_6625,6) -> 8.5e-05 | N4: 1e-06 | O4: =ROUND(N4*SUT_6625,6) -> 1e-06 | P4: 9.8e-05 | Q4: =ROUND(P4*SUT_6625,6) -> 0.000104 | R4: 0.000199 | S4: =ROUND(R4*SUT_6625,6) -> 0.000212 | T4: =B4+D4+F4+H4+J4+L4+N4+P4+R4 -> 0.003073 | U4: =C4+E4+G4+I4+K4+M4+O4+Q4+S4 -> 0.003276
A5: Primary | B5: 0.000291 | C5: =ROUND(B5*SUT_6625,6) -> 0.00031 | D5: 3.7e-05 | E5: =ROUND(D5*SUT_6625,6) -> 3.9e-05 | F5: 0.000209 | G5: =ROUND(F5*SUT_6625,6) -> 0.000223 | H5: 0.001306 | I5: =ROUND(H5*SUT_6625,6) -> 0.001393 | J5: 9e-06 | K5: =ROUND(J5*SUT_6625,6) -> 1e-05 | L5: 5.3e-05 | M5: =ROUND(L5*SUT_6625,6) -> 5.7e-05 | N5: 1e-06 | O5: =ROUND(N5*SUT_6625,6) -> 1e-06 | P5: 6.5e-05 | Q5: =ROUND(P5*SUT_6625,6) -> 6.9e-05 | R5: 0.000133 | S5: =ROUND(R5*SUT_6625,6) -> 0.000142 | T5: =B5+D5+F5+H5+J5+L5+N5+P5+R5 -> 0.002104 | U5: 0.002244
A6: Transmission @ 34.5 kV | B6: 0.00021 | C6: =ROUND(B6*SUT_6625,6) -> 0.000224 | D6: 3.4e-05 | E6: =ROUND(D6*SUT_6625,6) -> 3.6e-05 | F6: 0.000189 | G6: =ROUND(F6*SUT_6625,6) -> 0.000202 | H6: 0.00118 | I6: =ROUND(H6*SUT_6625,6) -> 0.001258 | J6: 7e-06 | K6: =ROUND(J6*SUT_6625,6) -> 7e-06 | L6: 3.8e-05 | M6: =ROUND(L6*SUT_6625,6) -> 4.1e-05 | N6: 1e-06 | O6: =ROUND(N6*SUT_6625,6) -> 1e-06 | P6: 4.7e-05 | Q6: =ROUND(P6*SUT_6625,6) -> 5e-05 | R6: 9.6e-05 | S6: =ROUND(R6*SUT_6625,6) -> 0.000102 | T6: 0.001802 | U6: 0.001921
A7: Transmission @ 230 kV | B7: 9.8e-05 | C7: =ROUND(B7*SUT_6625,6) -> 0.000104 | D7: 2.1e-05 | E7: =ROUND(D7*SUT_6625,6) -> 2.2e-05 | F7: 0.000117 | G7: =ROUND(F7*SUT_6625,6) -> 0.000125 | H7: 0.000732 | I7: =ROUND(H7*SUT_6625,6) -> 0.00078 | J7: 3e-06 | K7: =ROUND(J7*SUT_6625,6) -> 3e-06 | L7: 1.8e-05 | M7: =ROUND(L7*SUT_6625,6) -> 1.9e-05 | N7: 0 | O7: =ROUND(N7*SUT_6625,6) -> 0 | P7: 2.2e-05 | Q7: =ROUND(P7*SUT_6625,6) -> 2.3e-05 | R7: 4.5e-05 | S7: =ROUND(R7*SUT_6625,6) -> 4.8e-05 | T7: 0.001056 | U7: 0.001124

Sheet RT per Tariff
A1: ='Disclaimer and Definitions'!A1 -> Visual_Rate_Inventory June 1, 2025 | C1: Jersey Central Power & Light
B2: =NOW() -> 2025-05-30T16:18:48.150
B3: =NOW() -> 45807.67972 | C3: Rates Effective with Service Rendered June 1, 2025
B4: RT per Tariff
C5: RT (Residential Time-of-Day) Service Classification
C6: Unbundled Rate Components
C8: Charges Applicable to Federal Government (SUT Exempt) Accounts
C10: Unbundled Components Including CBT - 6/1/2025 Rates Applicable to SUT Exempt Accounts
C11: Customer Charge | D11: Transmission* {1} | E11: Distribution | F11: Covid Recovery Charge | G11: Energy & Capacity * | H11: BGS-RSCP Reconciliation Charge* | I11: Zero Emission Certificate Recovery Charge (ZEC) | J11: RGGI Recovery Charge (RRC) | K11: Societal Benefit Charge (SBC) | L11: LRAM | M11: Non-utility Generation Charge (NGC) | N11: Total
A12: 1. | B12: Standard Customer Charges | C12: 7.57 | D12: N/A | E12: N/A | F12: N/A | G12: N/A | H12: N/A | I12: N/A | J12: N/A | K12: N/A | L12: N/A | M12: N/A | N12: N/A
A13: 2. | B13: Solar Water Heating Credit | C13: -1.9 | D13: N/A | E13: N/A | F13: N/A | G13: N/A | H13: N/A | I13: N/A | J13: N/A | K13: N/A | L13: N/A | M13: N/A | N13: N/A
A15: 3. | B15: On-Peak Summer kWh | C15: N/A | D15: =0.013953+0+0.004066 -> 0.018019 | E15: 0.056299 | F15: 0.000336 | G15: 0.165501 | H15: 3.7e-05 | I15: 0 | J15: ='SBC TBC and MTC Tax'!B55 -> 0.004435 | K15: ='SBC TBC and MTC Tax'!C37 -> 0.007223 | L15: ='SBC TBC and MTC Tax'!B59 -> 0.000544 | M15: -0.000219 | N15: =SUM(D15:M15) -> 0.252175
A16: 4. | B16: On-Peak Winter kWh | C16: N/A | D16: =D$15 -> 0.018019 | E16: 0.041354 | F16: =F$15 -> 0.000336 | G16: 0.165057 | H16: =H15 -> 3.7e-05 | I16: =I15 -> 0 | J16: =J15 -> 0.004435 | K16: ='RT per Tariff'!$K$15 -> 0.007223 | L16: =L15 -> 0.000544 | M16: =M$15 -> -0.000219 | N16: =SUM(D16:M16) -> 0.236786
A17: 5. | B17: Off-Peak Summer kWh | C17: N/A | D17: =D$15 -> 0.018019 | E17: 0.026299 | F17: =F$15 -> 0.000336 | G17: 0.086691 | H17: =H15 -> 3.7e-05 | I17: =I16 -> 0 | J17: =J$15 -> 0.004435 | K17: ='RT per Tariff'!$K$15 -> 0.007223 | L17: =L$15 -> 0.000544 | M17: =M$15 -> -0.000219 | N17: =SUM(D17:M17) -> 0.143365
A18: 6. | B18: Off-Peak Winter kWh | C18: N/A | D18: =D$15 -> 0.018019 | E18: 0.026299 | F18: =F$15 -> 0.000336 | G18: 0.093795 | H18: =H15 -> 3.7e-05 | I18: =I17 -> 0 | J18: =J16 -> 0.004435 | K18: ='RT per Tariff'!$K$15 -> 0.007223 | L18: =L16 -> 0.000544 | M18: -0.000219 | N18: =SUM(D18:M18) -> 0.150469
C20: Charges Applicable to Non-Tax-Exempt Accounts
C22: Unbundled Components Including CBT and SUT - 6/1/2025 Rates Applicable to Non-Tax-Exempt Customers
C23: =C11 -> Customer Charge | D23: Transmission* {1} | E23: Distribution | F23: =F11 -> Covid Recovery Charge | G23: Energy & Capacity * | H23: BGS-RSCP Reconciliation Charge* | I23: Zero Emission Certificate Recovery Charge (ZEC) | J23: RGGI Recovery Charge (RRC) | K23: Societal Benefit Charge (SBC) | L23: LRAM | M23: Non-utility Generation Charge (NGC) | N23: Total
A24: 1. | B24: Standard Customer Charges | C24: =ROUND(C12*SUT_6625,2) -> 8.07 | D24: N/A | E24: N/A | F24: N/A | G24: N/A | H24: N/A | I24: N/A | J24: N/A | K24: N/A | L24: N/A | M24: N/A | N24: N/A
A25: 2. | B25: Solar Water Heating Credit | C25: =ROUND(C13*SUT_6625,2) -> -2.03 | D25: N/A | E25: N/A | F25: N/A | G25: N/A | H25: N/A | I25: N/A | J25: N/A | K25: N/A | L25: N/A | M25: N/A | N25: N/A
A27: 3. | B27: On-Peak Summer kWh | C27: N/A | D27: =ROUND(0.013953*SUT_6625,6)+0+0.004335 -> 0.019212 | E27: =ROUND(E15*SUT_6625,6) -> 0.060029 | F27: 0.000358 | G27: 0.176465 | H27: 3.9e-05 | I27: =ROUND(I15*SUT_6625,6) -> 0 | J27: 0.004729 | K27: ='SBC TBC and MTC Tax'!D37 -> 0.0077 | L27: =ROUND(L15*SUT_6625,6) -> 0.00058 | M27: =ROUND(M15*SUT_6625,6) -> -0.000234 | N27: =SUM(D27:M27) -> 0.268878
A28: 4. | B28: On-Peak Winter kWh | C28: N/A | D28: =D$27 -> 0.019212 | E28: =ROUND(E16*SUT_6625,6) -> 0.044094 | F28: =F$27 -> 0.000358 | G28: =ROUND(G16*SUT_6625,6) -> 0.175992 | H28: =H$27 -> 3.9e-05 | I28: 0 | J28: 0.004729 | K28: 0.0077 | L28: 0.00058 | M28: -0.000234 | N28: =SUM(D28:M28) -> 0.25247
A29: 5. | B29: Off-Peak Summer kWh | C29: N/A | D29: =D$27 -> 0.019212 | E29: =ROUND(E17*SUT_6625,6) -> 0.028041 | F29: =F$27 -> 0.000358 | G29: =ROUND(G17*SUT_6625,6) -> 0.092434 | H29: 3.9e-05 | I29: 0 | J29: 0.004729 | K29: 0.0077 | L29: 0.00058 | M29: -0.000234 | N29: =SUM(D29:M29) -> 0.152859
A30: 6. | B30: Off-Peak Winter kWh | C30: N/A | D30: =D$27 -> 0.019212 | E30: =ROUND(E18*SUT_6625,6) -> 0.028041 | F30: =F$27 -> 0.000358 | G30: =ROUND(G18*SUT_6625,6) -> 0.100009 | H30: 3.9e-05 | I30: 0 | J30: 0.004729 | K30: 0.0077 | L30: 0.00058 | M30: -0.000234 | N30: =SUM(D30:M30) -> 0.160434
A32: * Transmission, Energy & Capacity and BGS-RSCP Reconciliation Charges apply only to Full Service (non-shopping) Customers
A33: {1} Transmission Charge includes Reliability Must Run Surcharge (RMR) of $0.000000/$0.000000 (w/ SUT) Eff September 1, 2019 and Transmission Enhancement Charge (TEC) of $0.004066/0.004335 (w/ SUT) Eff May 1, 2025

Sheet RT Summary
A1: ='RT per Tariff'!A1:B1 -> Visual_Rate_Inventory June 1, 2025 | C1: Jersey Central Power & Light
B2: =NOW() -> 2025-05-30T16:18:48.150
B3: =NOW() -> 45807.67972 | C3: ='RT per Tariff'!C3:L3 -> Rates Effective with Service Rendered June 1, 2025
B4: RT Summary
C5: RT (Residential Time-of-Day) Service Classification
C7: Summary of Charges *
C11: Summary of Charges Applicable to Federal Government (SUT Exempt) Customers | G11: Summary Without BGS Reconciliation Charges
C12: Customer Charge | D12: Full Service Customer Total kWh Charges{1} | E12: Basic Generation Service Charge/Price to Compare{2} | F12: Delivery Service kWh Charges{3} | G12: Full Service Customer Total kWh Charges | H12: Basic Generation Service Charge/Price to Compare
A13: 1. | B13: Standard Customer Charges | C13: ='RT per Tariff'!C12 -> 7.57 | D13: N/A | E13: N/A | F13: N/A | G13: N/A | H13: N/A
A14: 2. | B14: Solar Water Heating Credit | C14: ='RT per Tariff'!C13 -> -1.9 | D14: N/A | E14: N/A | F14: N/A | G14: N/A | H14: N/A
A16: 3. | B16: On-Peak Summer kWh | C16: N/A | D16: ='RT per Tariff'!N15 -> 0.252175 | E16: ='RT per Tariff'!G15+'RT per Tariff'!D15+'RT per Tariff'!H15 -> 0.183557 | F16: ='RT per Tariff'!E15+'RT per Tariff'!F15+'RT per Tariff'!I15+'RT per Tariff'!K15+'RT per Tariff'!M15+'RT per Tariff'!J15+'RT per Tariff'!L15 -> 0.068618 | G16: ='RT per Tariff'!N15-'RT per Tariff'!H15 -> 0.252138 | H16: ='RT per Tariff'!G15+'RT per Tariff'!D15 -> 0.18352 | I16: =E16+F16-D16 -> 0 | J16: =D16-G16-'RT per Tariff'!H15 -> 9.249599784e-18 | K16: =E16-H16-'RT per Tariff'!H15 -> 9.249599784e-18
A17: 4. | B17: On-Peak Winter kWh | C17: N/A | D17: ='RT per Tariff'!N16 -> 0.236786 | E17: ='RT per Tariff'!G16+'RT per Tariff'!D16+'RT per Tariff'!H16 -> 0.183113 | F17: ='RT per Tariff'!E16+'RT per Tariff'!F16+'RT per Tariff'!I16+'RT per Tariff'!K16+'RT per Tariff'!M16+'RT per Tariff'!J16+'RT per Tariff'!L16 -> 0.053673 | G17: ='RT per Tariff'!N16-'RT per Tariff'!H16 -> 0.236749 | H17: ='RT per Tariff'!G16+'RT per Tariff'!D16 -> 0.183076 | I17: =E17+F17-D17 -> 0 | J17: =D17-G17-'RT per Tariff'!H16 -> 9.249599784e-18 | K17: =E17-H17-'RT per Tariff'!H16 -> 9.249599784e-18
A18: 5. | B18: Off-Peak Summer kWh | C18: N/A | D18: ='RT per Tariff'!N17 -> 0.143365 | E18: ='RT per Tariff'!G17+'RT per Tariff'!D17+'RT per Tariff'!H17 -> 0.104747 | F18: ='RT per Tariff'!E17+'RT per Tariff'!F17+'RT per Tariff'!I17+'RT per Tariff'!K17+'RT per Tariff'!M17+'RT per Tariff'!J17+'RT per Tariff'!L17 -> 0.038618 | G18: ='RT per Tariff'!N17-'RT per Tariff'!H17 -> 0.143328 | H18: ='RT per Tariff'!G17+'RT per Tariff'!D17 -> 0.10471 | I18: 0 | J18: =D18-G18-'RT per Tariff'!H17 -> 9.249599784e-18 | K18: =E18-H18-'RT per Tariff'!H17 -> -4.628188024e-18
A19: 6. | B19: Off-Peak Winter kWh | C19: N/A | D19: ='RT per Tariff'!N18 -> 0.150469 | E19: ='RT per Tariff'!G18+'RT per Tariff'!D18+'RT per Tariff'!H18 -> 0.111851 | F19: ='RT per Tariff'!E18+'RT per Tariff'!F18+'RT per Tariff'!I18+'RT per Tariff'!K18+'RT per Tariff'!M18+'RT per Tariff'!J18+'RT per Tariff'!L18 -> 0.038618 | G19: ='RT per Tariff'!N18-'RT per Tariff'!H18 -> 0.150432 | H19: ='RT per Tariff'!G18+'RT per Tariff'!D18 -> 0.111814 | I19: 0 | J19: =D19-G19-'RT per Tariff'!H18 -> 9.249599784e-18 | K19: =E19-H19-'RT per Tariff'!H18 -> -4.628188024e-18
C22: Summary of Charges Applicable to Normal (Non-Exempt) Customers | G22: Summary Without BGS Reconciliation Charges
C23: Customer Charge | D23: Full Service Customer Total kWh Charges{1} | E23: Basic Generation Service Charge/Price to Compare {4} | F23: Delivery Service kWh Charges{3} | G23: Full Service Customer Total kWh Charges | H23: Basic Generation Service Charge/Price to Compare
A24: 1. | B24: Standard Customer Charges | C24: ='RT per Tariff'!C24 -> 8.07 | D24: N/A | E24: N/A | F24: N/A | G24: N/A | H24: N/A
A25: 2. | B25: Solar Water Heating Credit | C25: ='RT per Tariff'!C25 -> -2.03 | D25: N/A | E25: N/A | F25: N/A | G25: N/A | H25: N/A
A27: 3. | B27: On-Peak Summer kWh | C27: N/A | D27: ='RT per Tariff'!N27 -> 0.268878 | E27: ='RT per Tariff'!D27+'RT per Tariff'!G27+'RT per Tariff'!H27 -> 0.195716 | F27: ='RT per Tariff'!E27+'RT per Tariff'!F27+'RT per Tariff'!I27+'RT per Tariff'!K27+'RT per Tariff'!M27+'RT per Tariff'!J27+'RT per Tariff'!L27 -> 0.073162 | G27: ='RT per Tariff'!N27-'RT per Tariff'!H27 -> 0.268839 | H27: ='RT per Tariff'!G27+'RT per Tariff'!D27 -> 0.195677 | I27: =E27+F27-D27 -> 0 | J27: =D27-G27-'RT per Tariff'!H27 -> 1.124859754e-17 | K27: =E27-H27-'RT per Tariff'!H27 -> 1.124859754e-17
A28: 4. | B28: On-Peak Winter kWh | C28: N/A | D28: ='RT per Tariff'!N28 -> 0.25247 | E28: ='RT per Tariff'!D28+'RT per Tariff'!G28+'RT per Tariff'!H28 -> 0.195243 | F28: ='RT per Tariff'!E28+'RT per Tariff'!F28+'RT per Tariff'!I28+'RT per Tariff'!K28+'RT per Tariff'!M28+'RT per Tariff'!J28+'RT per Tariff'!L28 -> 0.057227 | G28: ='RT per Tariff'!N28-'RT per Tariff'!H28 -> 0.252431 | H28: ='RT per Tariff'!G28+'RT per Tariff'!D28 -> 0.195204 | I28: =E28+F28-D28 -> 0 | J28: =D28-G28-'RT per Tariff'!H28 -> 1.124859754e-17 | K28: =E28-H28-'RT per Tariff'!H28 -> 1.124859754e-17
A29: 5. | B29: Off-Peak Summer kWh | C29: N/A | D29: ='RT per Tariff'!N29 -> 0.152859 | E29: ='RT per Tariff'!D29+'RT per Tariff'!G29+'RT per Tariff'!H29 -> 0.111685 | F29: ='RT per Tariff'!E29+'RT per Tariff'!F29+'RT per Tariff'!I29+'RT per Tariff'!K29+'RT per Tariff'!M29+'RT per Tariff'!J29+'RT per Tariff'!L29 -> 0.041174 | G29: ='RT per Tariff'!N29-'RT per Tariff'!H29 -> 0.15282 | H29: ='RT per Tariff'!G29+'RT per Tariff'!D29 -> 0.111646 | I29: 0 | J29: =D29-G29-'RT per Tariff'!H29 -> 1.124859754e-17 | K29: =E29-H29-'RT per Tariff'!H29 -> -2.629190268e-18
A30: 6. | B30: Off-Peak Winter kWh | C30: N/A | D30: ='RT per Tariff'!N30 -> 0.160434 | E30: ='RT per Tariff'!D30+'RT per Tariff'!G30+'RT per Tariff'!H30 -> 0.11926 | F30: ='RT per Tariff'!E30+'RT per Tariff'!F30+'RT per Tariff'!I30+'RT per Tariff'!K30+'RT per Tariff'!M30+'RT per Tariff'!J30+'RT per Tariff'!L30 -> 0.041174 | G30: ='RT per Tariff'!N30-'RT per Tariff'!H30 -> 0.160395 | H30: ='RT per Tariff'!G30+'RT per Tariff'!D30 -> 0.119221 | I30: 0 | J30: =D30-G30-'RT per Tariff'!H30 -> 1.124859754e-17 | K30: =E30-H30-'RT per Tariff'!H30 -> -2.629190268e-18
A32: * Note: Charges are billed to the customer by component as they appear in the Jersey Central Power & Light Tariff for Service.
A33: By multiplying the summarized charges in these tables times the customers kWh usage you may get an amount that is a few
A34: cents different than the actual amount of the customer's bill due to rounding differences.
A36: {1} Includes Distribution, SBC, NGC, TAA, RRC, SRC, ZEC, Energy & Capacity, Transmission (including RMR and TEC) and BGS-RSCP reconciliation charges
A37: ="{2} Includes Energy & Capacity, Transmission (including RMR and TEC) and the current BGS-RSCP reconciliation charge of $"&FIXED('RT per Tariff'!$H$15,6)&" per kWh" -> {2} Includes Energy & Capacity, Transmission (including RMR and TEC) and the current BGS-RSCP reconciliation charge of $0.000037 per kWh
A38: {3} Includes Distribution, SBC, NGC, TAA, RRC , and ZEC charges
A39: ="{4} Includes Energy & Capacity, Transmission (including RMR and TEC) and the current BGS-RSCP reconciliation charge of $"&FIXED('RT per Tariff'!$H$27,6)&" per kWh" -> {4} Includes Energy & Capacity, Transmission (including RMR and TEC) and the current BGS-RSCP reconciliation charge of $0.000039 per kWh
N40: 8

Sheet RS per Tariff
A1: ='RT per Tariff'!A1:B1 -> Visual_Rate_Inventory June 1, 2025 | C1: Jersey Central Power & Light
A2: =NOW() -> 2025-05-30T16:18:48.150
A3: =NOW() -> 45807.67972 | C3: ='RT per Tariff'!C3 -> Rates Effective with Service Rendered June 1, 2025
A4: RS per Tariff
C5: RS (Residential) Service Classification
C6: Unbundled Rate Components
C8: Charges Applicable to Federal Government (SUT Exempt) Accounts
C10: ='RT per Tariff'!C10 -> Unbundled Components Including CBT - 6/1/2025 Rates Applicable to SUT Exempt Accounts
C11: ='RT per Tariff'!C11 -> Customer Charge | D11: ='RT per Tariff'!D11 -> Transmission* {1} | E11: ='RT per Tariff'!E11 -> Distribution | F11: ='RT per Tariff'!F11 -> Covid Recovery Charge | G11: ='RT per Tariff'!G11 -> Energy & Capacity * | H11: ='RT per Tariff'!H11 -> BGS-RSCP Reconciliation Charge* | I11: ='RT per Tariff'!I11 -> Zero Emission Certificate Recovery Charge (ZEC) | J11: ='RT per Tariff'!J11 -> RGGI Recovery Charge (RRC) | K11: ='RT per Tariff'!K11 -> Societal Benefit Charge (SBC) | L11: ='RT per Tariff'!L11 -> LRAM | M11: ='RT per Tariff'!M11 -> Non-utility Generation Charge (NGC) | N11: Total
A12: 1. | B12: Standard Customer Charges | C12: 4 | D12: N/A | E12: N/A | F12: N/A | G12: N/A | H12: N/A | I12: N/A | J12: N/A | K12: N/A | L12: N/A | M12: N/A | N12: N/A
A13: 2. | B13: Supp Cust Charge-OPWH | C13: 2.09 | D13: N/A | E13: N/A | F13: N/A | G13: N/A | H13: N/A | I13: N/A | J13: N/A | K13: N/A | L13: N/A | M13: N/A | N13: N/A
A14: 3. | B14: Supp Cust Charge-CTWH | C14: 2.09 | D14: N/A | E14: N/A | F14: N/A | G14: N/A | H14: N/A | I14: N/A | J14: N/A | K14: N/A | L14: N/A | M14: N/A | N14: N/A
A16: 4. | B16: Summer kWh 0 - 600 | C16: N/A | D16: ='RT per Tariff'!D15 -> 0.018019 | E16: 0.018928 | F16: ='RT per Tariff'!F15 -> 0.000336 | G16: 0.118066 | H16: ='RT per Tariff'!H$15 -> 3.7e-05 | I16: ='RT per Tariff'!I$15 -> 0 | J16: ='RT per Tariff'!J15 -> 0.004435 | K16: ='RT per Tariff'!$K$15 -> 0.007223 | L16: ='SBC TBC and MTC Tax'!B58 -> 0.000512 | M16: ='RT per Tariff'!M15 -> -0.000219 | N16: =SUM(D16:M16) -> 0.167337
A17: 5. | B17: Summer kWh > 600 | C17: N/A | D17: =D$16 -> 0.018019 | E17: 0.074851 | F17: =F$16 -> 0.000336 | G17: 0.126718 | H17: ='RT per Tariff'!H$15 -> 3.7e-05 | I17: ='RT per Tariff'!I$15 -> 0 | J17: =J$16 -> 0.004435 | K17: ='RT per Tariff'!$K$15 -> 0.007223 | L17: =L$16 -> 0.000512 | M17: =M$16 -> -0.000219 | N17: 0.231912
A18: 6. | B18: Winter kWh 0-1,000 | C18: N/A | D18: =D$16 -> 0.018019 | E18: 0.031007 | F18: =F$16 -> 0.000336 | G18: 0.128316 | H18: ='RT per Tariff'!H$15 -> 3.7e-05 | I18: ='RT per Tariff'!I$15 -> 0 | J18: =J$16 -> 0.004435 | K18: ='RT per Tariff'!$K$15 -> 0.007223 | L18: =L$16 -> 0.000512 | M18: =M$16 -> -0.000219 | N18: 0.189666
A19: 7. | B19: Winter kWh > 1,000 | C19: N/A | D19: =D$16 -> 0.018019 | E19: =E18 -> 0.031007 | F19: =F$16 -> 0.000336 | G19: =G18 -> 0.128316 | H19: ='RT per Tariff'!H$15 -> 3.7e-05 | I19: ='RT per Tariff'!I$15 -> 0 | J19: 0.004435 | K19: ='RT per Tariff'!$K$15 -> 0.007223 | L19: 0.000512 | M19: -0.000219 | N19: 0.189666
A20: 8. | B20: Summer OPWH kWh | C20: N/A | D20: =D16 -> 0.018019 | E20: 0.020695 | F20: =F16 -> 0.000336 | G20: 0.120435 | H20: ='RT per Tariff'!H$15 -> 3.7e-05 | I20: ='RT per Tariff'!I$15 -> 0 | J20: 0.004435 | K20: ='RT per Tariff'!$K$15 -> 0.007223 | L20: 0.000512 | M20: -0.000219 | N20: 0.171473
A21: 9. | B21: Winter OPWH kWh | C21: N/A | D21: =D$20 -> 0.018019 | E21: 0.020695 | F21: =F$20 -> 0.000336 | G21: 0.11988 | H21: ='RT per Tariff'!H$15 -> 3.7e-05 | I21: ='RT per Tariff'!I$15 -> 0 | J21: 0.004435 | K21: ='RT per Tariff'!$K$15 -> 0.007223 | L21: 0.000512 | M21: -0.000219 | N21: 0.170918
A22: 10. | B22: Summer CTWH kWh | C22: N/A | D22: =D$20 -> 0.018019 | E22: 0.027258 | F22: =F$20 -> 0.000336 | G22: =G20 -> 0.120435 | H22: ='RT per Tariff'!H$15 -> 3.7e-05 | I22: ='RT per Tariff'!I$15 -> 0 | J22: 0.004435 | K22: ='RT per Tariff'!$K$15 -> 0.007223 | L22: 0.000512 | M22: -0.000219 | N22: 0.178036
A23: 11. | B23: Winter CTWH kWh | C23: N/A | D23: =D$20 -> 0.018019 | E23: 0.027258 | F23: =F$20 -> 0.000336 | G23: =G21 -> 0.11988 | H23: ='RT per Tariff'!H$15 -> 3.7e-05 | I23: ='RT per Tariff'!I$15 -> 0 | J23: 0.004435 | K23: ='RT per Tariff'!$K$15 -> 0.007223 | L23: 0.000512 | M23: -0.000219 | N23: 0.177481
C25: Charges Applicable to Non-Tax-Exempt Accounts
C27: ='RT per Tariff'!C22 -> Unbundled Components Including CBT and SUT - 6/1/2025 Rates Applicable to Non-Tax-Exempt Customers
C28: =C11 -> Customer Charge | D28: Transmission* {1} | E28: Distribution | F28: Covid Recovery Charge | G28: Energy & Capacity * | H28: BGS-RSCP Reconciliation Charge* | I28: Zero Emission Certificate Recovery Charge (ZEC) | J28: RGGI Recovery Charge (RRC) | K28: Societal Benefit Charge (SBC) | L28: LRAM | M28: Non-utility Generation Charge (NGC) | N28: Total
A29: 1. | B29: Standard Customer Charges | C29: =ROUND(C12*SUT_6625,2) -> 4.27 | D29: N/A | E29: N/A | F29: N/A | G29: N/A | H29: N/A | I29: N/A | J29: N/A | K29: N/A | L29: N/A | M29: N/A | N29: N/A
A30: 2. | B30: Supp Cust Charge-OPWH | C30: =ROUND(C13*SUT_6625,2) -> 2.23 | D30: N/A | E30: N/A | F30: N/A | G30: N/A | H30: N/A | I30: N/A | J30: N/A | K30: N/A | L30: N/A | M30: N/A | N30: N/A
A31: 3. | B31: Supp Cust Charge-CTWH | C31: =ROUND(C14*SUT_6625,2) -> 2.23 | D31: N/A | E31: N/A | F31: N/A | G31: N/A | H31: N/A | I31: N/A | J31: N/A | K31: N/A | L31: N/A | M31: N/A | N31: N/A
A33: 4. | B33: Summer kWh 0 - 600 | C33: N/A | D33: ='RT per Tariff'!D27 -> 0.019212 | E33: =ROUND(E16*SUT_6625,6) -> 0.020182 | F33: =ROUND(F16*SUT_6625,6) -> 0.000358 | G33: =ROUND(G16*SUT_6625,6) -> 0.125888 | H33: ='RT per Tariff'!H$27 -> 3.9e-05 | I33: ='RT per Tariff'!I$27 -> 0 | J33: ='RT per Tariff'!J27 -> 0.004729 | K33: ='RT per Tariff'!$K$27 -> 0.0077 | L33: =ROUND(L16*SUT_6625,6) -> 0.000546 | M33: ='RT per Tariff'!M27 -> -0.000234 | N33: =SUM(D33:M33) -> 0.17842
A34: 5. | B34: Summer kWh > 600 | C34: N/A | D34: =D$33 -> 0.019212 | E34: 0.07981 | F34: =F$33 -> 0.000358 | G34: 0.135113 | H34: ='RT per Tariff'!H$27 -> 3.9e-05 | I34: ='RT per Tariff'!I$27 -> 0 | J34: =J$33 -> 0.004729 | K34: ='RT per Tariff'!$K$27 -> 0.0077 | L34: 0.000546 | M34: =M$33 -> -0.000234 | N34: 0.247273
A35: 6. | B35: Winter kWh 0-1,000 | C35: N/A | D35: =D$33 -> 0.019212 | E35: 0.033061 | F35: =F$33 -> 0.000358 | G35: 0.136817 | H35: ='RT per Tariff'!H$27 -> 3.9e-05 | I35: ='RT per Tariff'!I$27 -> 0 | J35: ='RT per Tariff'!J28 -> 0.004729 | K35: ='RT per Tariff'!$K$27 -> 0.0077 | L35: 0.000546 | M35: =M$33 -> -0.000234 | N35: 0.202228
A36: 7. | B36: Winter kWh > 1,000 | C36: N/A | D36: =D$33 -> 0.019212 | E36: 0.033061 | F36: =F$33 -> 0.000358 | G36: 0.136817 | H36: ='RT per Tariff'!H$27 -> 3.9e-05 | I36: ='RT per Tariff'!I$27 -> 0 | J36: =J35 -> 0.004729 | K36: ='RT per Tariff'!$K$27 -> 0.0077 | L36: 0.000546 | M36: -0.000234 | N36: 0.202228
A37: 8. | B37: Summer OPWH kWh | C37: N/A | D37: =D33 -> 0.019212 | E37: 0.022066 | F37: =F33 -> 0.000358 | G37: 0.128414 | H37: ='RT per Tariff'!H$27 -> 3.9e-05 | I37: ='RT per Tariff'!I$27 -> 0 | J37: =J$33 -> 0.004729 | K37: ='RT per Tariff'!$K$27 -> 0.0077 | L37: 0.000546 | M37: -0.000234 | N37: 0.18283
A38: 9. | B38: Winter OPWH kWh | C38: N/A | D38: =D$37 -> 0.019212 | E38: 0.022066 | F38: =F$37 -> 0.000358 | G38: 0.127822 | H38: ='RT per Tariff'!H$27 -> 3.9e-05 | I38: ='RT per Tariff'!I$27 -> 0 | J38: =J35 -> 0.004729 | K38: ='RT per Tariff'!$K$27 -> 0.0077 | L38: 0.000546 | M38: -0.000234 | N38: 0.182238
A39: 10. | B39: Summer CTWH kWh | C39: N/A | D39: =D$37 -> 0.019212 | E39: 0.029064 | F39: =F$37 -> 0.000358 | G39: =ROUND(G22*SUT_6625,6) -> 0.128414 | H39: ='RT per Tariff'!H$27 -> 3.9e-05 | I39: ='RT per Tariff'!I$27 -> 0 | J39: =J$33 -> 0.004729 | K39: ='RT per Tariff'!$K$27 -> 0.0077 | L39: 0.000546 | M39: -0.000234 | N39: 0.189828
A40: 11. | B40: Winter CTWH kWh | C40: N/A | D40: =D$37 -> 0.019212 | E40: 0.029064 | F40: =F$37 -> 0.000358 | G40: 0.127822 | H40: ='RT per Tariff'!H$27 -> 3.9e-05 | I40: ='RT per Tariff'!I$27 -> 0 | J40: =J35 -> 0.004729 | K40: ='RT per Tariff'!$K$27 -> 0.0077 | L40: 0.000546 | M40: -0.000234 | N40: 0.189236
A42: ='RT per Tariff'!$A$32 -> * Transmission, Energy & Capacity and BGS-RSCP Reconciliation Charges apply only to Full Service (non-shopping) Customers
A43: ='RT per Tariff'!A33 -> {1} Transmission Charge includes Reliability Must Run Surcharge (RMR) of $0.000000/$0.000000 (w/ SUT) Eff September 1, 2019 and Transmission Enhancement Charge (TEC) of $0.004066/0.004335 (w/ SUT) Eff May 1, 2025
A44: ='RT per Tariff'!A34 -> 0
A46: ="Assumptions: Bill Credit is calculated at the pre-SUT rate. Subscriber has 5% investment from "&TEXT(D56,"mm/dd/yyyy")&" to "&TEXT(E56,"mm/dd/yyyy") -> Assumptions: Bill Credit is calculated at the pre-SUT rate. Subscriber has 5% investment from 06/01/2025 to 07/01/2025
A47: Customer billed for 1000 KWH usage on Service Classification RS Default Service
A48: Host Output: 20,000 KWH
A49: Customer (Subscriber) Allocated: 1000 KWH
A51: Normal Full Bill | C51: =H69 -> 210.24
A52: Community Solar Credit | C52: =K69 -> 159.9
A53: Charges Due | C53: =C51-C52 -> 50.34
F54: Normal Full Bill | I54: Credit Calculation
B55: Charge Type | C55: Credit | D55: Period Start | E55: Period End | F55: Consumed kWh | G55: Price | H55: Charges | I55: Allocated kWh | J55: Pre-SUT Price | K55: Credit @ Pre-SUT
B56: Customer Charge | C56: No | D56: 2025-06-01 | E56: =D56+30 -> 2025-07-01 | G56: =C29 -> 4.27 | H56: =G56 -> 4.27
B57: Non-Utility Generation Charge (MTC) | C57: No | D57: =D$56 -> 2025-06-01 | E57: =E$56 -> 2025-07-01 | F57: 1000 | G57: =M33 -> -0.000234 | H57: =ROUND(F57*G57,2) -> -0.23
B58: SBC Charge | C58: No | D58: =D$56 -> 2025-06-01 | E58: 2025-07-01 | F58: 1000 | G58: =K33 -> 0.0077 | H58: =ROUND(F58*G58,2) -> 7.7
B59: ZEC Recovery Charge | C59: No | D59: 2025-06-01 | E59: 2025-07-01 | F59: 1000 | G59: =I33 -> 0 | H59: 0
B60: BGS Energy Charges 0-600 kWh | C60: Yes | D60: 2025-06-01 | E60: 2025-07-01 | F60: 600 | G60: =IF(AND(MONTH(D60)<=9,MONTH(D60)>=6),G33,G35) -> 0.125888 | H60: 75.53 | I60: =F60 -> 600 | J60: =IF(AND(MONTH(D60)<=9,MONTH(D60)>=6),C73,G18) -> 0.090753 | K60: =ROUND(I60*J60,2) -> 54.45 | L60: *
B61: BGS Energy Charges 600+ kWh | C61: Yes | D61: 2025-06-01 | E61: 2025-07-01 | F61: 400 | G61: =IF(AND(MONTH(D61)<=9,MONTH(D61)>=6),G34,G36) -> 0.135113 | H61: 54.05 | I61: 400 | J61: =J60 -> 0.090753 | K61: 36.3 | L61: *
B62: BGS Transmission | C62: Yes | D62: 2025-06-01 | E62: 2025-07-01 | F62: 1000 | G62: =D33 -> 0.019212 | H62: 19.21 | I62: 1000 | J62: =D16 -> 0.018019 | K62: 18.02 | P62: =ROUND(J62*1.06625,6)-G62 -> 1e-06
B63: BGS Reconciliation | C63: Yes | D63: 2025-06-01 | E63: 2025-07-01 | F63: 1000 | G63: =H33 -> 3.9e-05 | H63: 0.04 | I63: 1000 | J63: =H16 -> 3.7e-05 | K63: 0.04 | P63: =ROUND(J63*1.06625,6)-G63 -> 0
B64: Distribution 0-600 kWh | C64: Yes | D64: 2025-06-01 | E64: 2025-07-01 | F64: 600 | G64: =IF(AND(MONTH(D64)<=9,MONTH(D64)>=6),E33,E35) -> 0.020182 | H64: 12.11 | I64: 600 | J64: =IF(AND(MONTH(D64)<=9,MONTH(D64)>=6),C74,E18) -> 0.045805 | K64: 27.48 | L64: *
B65: Distribution 600+ kWh | C65: Yes | D65: 2025-06-01 | E65: 2025-07-01 | F65: 400 | G65: =IF(AND(MONTH(D65)<=9,MONTH(D65)>=6),E34,E36) -> 0.07981 | H65: 31.92 | I65: 400 | J65: =J64 -> 0.045805 | K65: 18.32 | L65: *
B66: RGGI Charge | C66: Yes | D66: 2025-06-01 | E66: 2025-07-01 | F66: 1000 | G66: =J33 -> 0.004729 | H66: 4.73 | I66: 1000 | J66: =J16 -> 0.004435 | K66: 4.44 | P66: =ROUND(J66*1.06625,6)-G66 -> 0
B67: CRC | C67: Yes | D67: 2025-06-01 | E67: 2025-07-01 | F67: =F66 -> 1000 | G67: =F33 -> 0.000358 | H67: 0.36 | I67: 1000 | J67: =F16 -> 0.000336 | K67: 0.34
B68: LRAM | C68: Yes | D68: 2025-06-01 | E68: 2025-07-01 | F68: 1000 | G68: =L33 -> 0.000546 | H68: 0.55 | I68: 1000 | J68: =L16 -> 0.000512 | K68: 0.51 | P68: =ROUND(J68*1.06625,6)-G68 -> 0
G69: Normal Full Bill | H69: =SUM(H56:H68) -> 210.24 | J69: Community Solar Credit | K69: =SUM(K60:K68) -> 159.9
B72: * Class Average
B73: BGS Summer | C73: 0.090753
B74: Dist Summer | C74: 0.045805
A84: {3} Transmission Charge includes Reliability Must Run (RMR) Surcharge of $0.000000/$0.000000 (w/ SUT) Eff. Jan. 1, 2009 and Transmission Enhance Charge (TEC) of $0.001370/0.001466 (w/ SUT) Eff. October 1, 2012.

Sheet RS Summary
A1: ='RT per Tariff'!A1:B1 -> Visual_Rate_Inventory June 1, 2025 | C1: Jersey Central Power & Light
A2: =NOW() -> 2025-05-30T16:18:48.150
A3: =NOW() -> 45807.67972 | C3: ='RT per Tariff'!C3 -> Rates Effective with Service Rendered June 1, 2025
A4: RS Summary
C5: RS (Residential) Service Classification
C7: Summary of Charges *
C11: Summary of Charges Applicable to Federal Government (SUT Exempt) Customers | G11: Summary Without BGS Reconciliation Charges
C12: Customer Charge | D12: Full Service Customer Total kWh Charges{1} | E12: Basic Generation Service Charge/Price to Compare{2} | F12: Delivery Service kWh Charges{3} | G12: Full Service Customer Total kWh Charges | H12: Basic Generation Service Charge/Price to Compare
A13: 1. | B13: Standard Customer Charges | C13: ='RS per Tariff'!C12 -> 4 | D13: N/A | E13: N/A | F13: N/A | G13: N/A | H13: N/A
A14: 2. | B14: Supp Cust Charge-OPWH | C14: ='RS per Tariff'!C13 -> 2.09 | D14: N/A | E14: N/A | F14: N/A | G14: N/A | H14: N/A
A15: 3. | B15: Supp Cust Charge-CTWH | C15: ='RS per Tariff'!C14 -> 2.09 | D15: N/A | E15: N/A | F15: N/A | G15: N/A | H15: N/A
A17: 4. | B17: Summer kWh 0 - 600 | C17: ='RS per Tariff'!C16 -> N/A | D17: ='RS per Tariff'!N16 -> 0.167337 | E17: ='RS per Tariff'!D16+'RS per Tariff'!G16+'RS per Tariff'!H16 -> 0.136122 | F17: ='RS per Tariff'!E16+'RS per Tariff'!F16+'RS per Tariff'!I16+'RS per Tariff'!K16+'RS per Tariff'!M16+'RS per Tariff'!J16+'RS per Tariff'!L16 -> 0.031215 | G17: ='RS per Tariff'!N16-'RS per Tariff'!H16 -> 0.1673 | H17: ='RS per Tariff'!D16+'RS per Tariff'!G16 -> 0.136085 | J17: =E17+F17-D17 -> 0 | K17: =D17-G17-'RS per Tariff'!H16 -> 9.249599784e-18 | L17: =E17-H17-'RS per Tariff'!H16 -> 9.249599784e-18
A18: 5. | B18: Summer kWh > 600 | C18: ='RS per Tariff'!C17 -> N/A | D18: ='RS per Tariff'!N17 -> 0.231912 | E18: ='RS per Tariff'!D17+'RS per Tariff'!G17+'RS per Tariff'!H17 -> 0.144774 | F18: ='RS per Tariff'!E17+'RS per Tariff'!F17+'RS per Tariff'!I17+'RS per Tariff'!K17+'RS per Tariff'!M17+'RS per Tariff'!J17+'RS per Tariff'!L17 -> 0.087138 | G18: ='RS per Tariff'!N17-'RS per Tariff'!H17 -> 0.231875 | H18: ='RS per Tariff'!D17+'RS per Tariff'!G17 -> 0.144737 | J18: =E18+F18-D18 -> 0 | K18: =D18-G18-'RS per Tariff'!H17 -> 9.249599784e-18 | L18: =E18-H18-'RS per Tariff'!H17 -> 9.249599784e-18
A19: 6. | B19: Winter kWh 0-1,000 | C19: ='RS per Tariff'!C18 -> N/A | D19: ='RS per Tariff'!N18 -> 0.189666 | E19: ='RS per Tariff'!D18+'RS per Tariff'!G18+'RS per Tariff'!H18 -> 0.146372 | F19: ='RS per Tariff'!E18+'RS per Tariff'!F18+'RS per Tariff'!I18+'RS per Tariff'!K18+'RS per Tariff'!M18+'RS per Tariff'!J18+'RS per Tariff'!L18 -> 0.043294 | G19: ='RS per Tariff'!N18-'RS per Tariff'!H18 -> 0.189629 | H19: ='RS per Tariff'!D18+'RS per Tariff'!G18 -> 0.146335 | J19: 0 | K19: =D19-G19-'RS per Tariff'!H18 -> 9.249599784e-18 | L19: =E19-H19-'RS per Tariff'!H18 -> 9.249599784e-18
A20: 7. | B20: Winter kWh > 1,000 | C20: ='RS per Tariff'!C19 -> N/A | D20: ='RS per Tariff'!N19 -> 0.189666 | E20: ='RS per Tariff'!D19+'RS per Tariff'!G19+'RS per Tariff'!H19 -> 0.146372 | F20: ='RS per Tariff'!E19+'RS per Tariff'!F19+'RS per Tariff'!I19+'RS per Tariff'!K19+'RS per Tariff'!M19+'RS per Tariff'!J19+'RS per Tariff'!L19 -> 0.043294 | G20: ='RS per Tariff'!N19-'RS per Tariff'!H19 -> 0.189629 | H20: ='RS per Tariff'!D19+'RS per Tariff'!G19 -> 0.146335 | J20: 0 | K20: =D20-G20-'RS per Tariff'!H19 -> 9.249599784e-18 | L20: =E20-H20-'RS per Tariff'!H19 -> 9.249599784e-18
A21: 8. | B21: Summer OPWH kWh | C21: ='RS per Tariff'!C20 -> N/A | D21: ='RS per Tariff'!N20 -> 0.171473 | E21: ='RS per Tariff'!D20+'RS per Tariff'!G20+'RS per Tariff'!H20 -> 0.138491 | F21: ='RS per Tariff'!E20+'RS per Tariff'!F20+'RS per Tariff'!I20+'RS per Tariff'!K20+'RS per Tariff'!M20+'RS per Tariff'!J20+'RS per Tariff'!L20 -> 0.032982 | G21: ='RS per Tariff'!N20-'RS per Tariff'!H20 -> 0.171436 | H21: ='RS per Tariff'!D20+'RS per Tariff'!G20 -> 0.138454 | J21: 0 | K21: =D21-G21-'RS per Tariff'!H20 -> 9.249599784e-18 | L21: =E21-H21-'RS per Tariff'!H20 -> 9.249599784e-18
A22: 9. | B22: Winter OPWH kWh | C22: ='RS per Tariff'!C21 -> N/A | D22: ='RS per Tariff'!N21 -> 0.170918 | E22: ='RS per Tariff'!D21+'RS per Tariff'!G21+'RS per Tariff'!H21 -> 0.137936 | F22: ='RS per Tariff'!E21+'RS per Tariff'!F21+'RS per Tariff'!I21+'RS per Tariff'!K21+'RS per Tariff'!M21+'RS per Tariff'!J21+'RS per Tariff'!L21 -> 0.032982 | G22: ='RS per Tariff'!N21-'RS per Tariff'!H21 -> 0.170881 | H22: ='RS per Tariff'!D21+'RS per Tariff'!G21 -> 0.137899 | J22: 0 | K22: =D22-G22-'RS per Tariff'!H21 -> 9.249599784e-18 | L22: =E22-H22-'RS per Tariff'!H21 -> 9.249599784e-18
A23: 10. | B23: Summer CTWH kWh | C23: ='RS per Tariff'!C22 -> N/A | D23: ='RS per Tariff'!N22 -> 0.178036 | E23: ='RS per Tariff'!D22+'RS per Tariff'!G22+'RS per Tariff'!H22 -> 0.138491 | F23: ='RS per Tariff'!E22+'RS per Tariff'!F22+'RS per Tariff'!I22+'RS per Tariff'!K22+'RS per Tariff'!M22+'RS per Tariff'!J22+'RS per Tariff'!L22 -> 0.039545 | G23: ='RS per Tariff'!N22-'RS per Tariff'!H22 -> 0.177999 | H23: ='RS per Tariff'!D22+'RS per Tariff'!G22 -> 0.138454 | J23: 0 | K23: =D23-G23-'RS per Tariff'!H22 -> 9.249599784e-18 | L23: =E23-H23-'RS per Tariff'!H22 -> 9.249599784e-18
A24: 11. | B24: Winter CTWH kWh | C24: ='RS per Tariff'!C23 -> N/A | D24: ='RS per Tariff'!N23 -> 0.177481 | E24: ='RS per Tariff'!D23+'RS per Tariff'!G23+'RS per Tariff'!H23 -> 0.137936 | F24: ='RS per Tariff'!E23+'RS per Tariff'!F23+'RS per Tariff'!I23+'RS per Tariff'!K23+'RS per Tariff'!M23+'RS per Tariff'!J23+'RS per Tariff'!L23 -> 0.039545 | G24: ='RS per Tariff'!N23-'RS per Tariff'!H23 -> 0.177444 | H24: ='RS per Tariff'!D23+'RS per Tariff'!G23 -> 0.137899 | J24: 0 | K24: =D24-G24-'RS per Tariff'!H23 -> 9.249599784e-18 | L24: =E24-H24-'RS per Tariff'!H23 -> 9.249599784e-18
C27: Summary of Charges Applicable to Normal (Non-Exempt) Customers | G27: Summary Without BGS Reconciliation Charges
C28: Customer Charge | D28: Full Service Customer Total kWh Charges{1} | E28: Basic Generation Service Charge/Price to Compare{4} | F28: Delivery Service kWh Charges{3} | G28: Full Service Customer Total kWh Charges | H28: Basic Generation Service Charge/Price to Compare
A29: 1. | B29: Standard Customer Charges | C29: ='RS per Tariff'!C29 -> 4.27 | D29: N/A | E29: N/A | F29: N/A | G29: N/A | H29: N/A
A30: 2. | B30: Supp Cust Charge-OPWH | C30: ='RS per Tariff'!C30 -> 2.23 | D30: N/A | E30: N/A | F30: N/A | G30: N/A | H30: N/A
A31: 3. | B31: Supp Cust Charge-CTWH | C31: ='RS per Tariff'!C31 -> 2.23 | D31: N/A | E31: N/A | F31: N/A | G31: N/A | H31: N/A
A33: 4. | B33: Summer kWh 0 - 600 | C33: ='RS per Tariff'!C33 -> N/A | D33: ='RS per Tariff'!N33 -> 0.17842 | E33: ='RS per Tariff'!D33+'RS per Tariff'!G33+'RS per Tariff'!H33 -> 0.145139 | F33: ='RS per Tariff'!E33+'RS per Tariff'!F33+'RS per Tariff'!I33+'RS per Tariff'!K33+'RS per Tariff'!M33+'RS per Tariff'!J33+'RS per Tariff'!L33 -> 0.033281 | G33: ='RS per Tariff'!N33-'RS per Tariff'!H33 -> 0.178381 | H33: ='RS per Tariff'!D33+'RS per Tariff'!G33 -> 0.1451 | J33: =E33+F33-D33 -> 0 | K33: =D33-G33-'RS per Tariff'!H33 -> 1.124859754e-17 | L33: =E33-H33-'RS per Tariff'!H33 -> 1.124859754e-17
A34: 5. | B34: Summer kWh > 600 | C34: ='RS per Tariff'!C34 -> N/A | D34: ='RS per Tariff'!N34 -> 0.247273 | E34: ='RS per Tariff'!D34+'RS per Tariff'!G34+'RS per Tariff'!H34 -> 0.154364 | F34: ='RS per Tariff'!E34+'RS per Tariff'!F34+'RS per Tariff'!I34+'RS per Tariff'!K34+'RS per Tariff'!M34+'RS per Tariff'!J34+'RS per Tariff'!L34 -> 0.092909 | G34: ='RS per Tariff'!N34-'RS per Tariff'!H34 -> 0.247234 | H34: ='RS per Tariff'!D34+'RS per Tariff'!G34 -> 0.154325 | J34: 0 | K34: =D34-G34-'RS per Tariff'!H34 -> 1.124859754e-17 | L34: =E34-H34-'RS per Tariff'!H34 -> 1.124859754e-17
A35: 6. | B35: Winter kWh 0-1,000 | C35: ='RS per Tariff'!C35 -> N/A | D35: ='RS per Tariff'!N35 -> 0.202228 | E35: ='RS per Tariff'!D35+'RS per Tariff'!G35+'RS per Tariff'!H35 -> 0.156068 | F35: ='RS per Tariff'!E35+'RS per Tariff'!F35+'RS per Tariff'!I35+'RS per Tariff'!K35+'RS per Tariff'!M35+'RS per Tariff'!J35+'RS per Tariff'!L35 -> 0.04616 | G35: ='RS per Tariff'!N35-'RS per Tariff'!H35 -> 0.202189 | H35: ='RS per Tariff'!D35+'RS per Tariff'!G35 -> 0.156029 | J35: 0 | K35: =D35-G35-'RS per Tariff'!H35 -> 1.124859754e-17 | L35: =E35-H35-'RS per Tariff'!H35 -> 1.124859754e-17
A36: 7. | B36: Winter kWh > 1,000 | C36: ='RS per Tariff'!C36 -> N/A | D36: ='RS per Tariff'!N36 -> 0.202228 | E36: ='RS per Tariff'!D36+'RS per Tariff'!G36+'RS per Tariff'!H36 -> 0.156068 | F36: ='RS per Tariff'!E36+'RS per Tariff'!F36+'RS per Tariff'!I36+'RS per Tariff'!K36+'RS per Tariff'!M36+'RS per Tariff'!J36+'RS per Tariff'!L36 -> 0.04616 | G36: ='RS per Tariff'!N36-'RS per Tariff'!H36 -> 0.202189 | H36: ='RS per Tariff'!D36+'RS per Tariff'!G36 -> 0.156029 | J36: 0 | K36: =D36-G36-'RS per Tariff'!H36 -> 1.124859754e-17 | L36: =E36-H36-'RS per Tariff'!H36 -> 1.124859754e-17
A37: 8. | B37: Summer OPWH kWh | C37: ='RS per Tariff'!C37 -> N/A | D37: ='RS per Tariff'!N37 -> 0.18283 | E37: ='RS per Tariff'!D37+'RS per Tariff'!G37+'RS per Tariff'!H37 -> 0.147665 | F37: ='RS per Tariff'!E37+'RS per Tariff'!F37+'RS per Tariff'!I37+'RS per Tariff'!K37+'RS per Tariff'!M37+'RS per Tariff'!J37+'RS per Tariff'!L37 -> 0.035165 | G37: ='RS per Tariff'!N37-'RS per Tariff'!H37 -> 0.182791 | H37: ='RS per Tariff'!D37+'RS per Tariff'!G37 -> 0.147626 | J37: 0 | K37: =D37-G37-'RS per Tariff'!H37 -> 1.124859754e-17 | L37: =E37-H37-'RS per Tariff'!H37 -> 1.124859754e-17
A38: 9. | B38: Winter OPWH kWh | C38: ='RS per Tariff'!C38 -> N/A | D38: ='RS per Tariff'!N38 -> 0.182238 | E38: ='RS per Tariff'!D38+'RS per Tariff'!G38+'RS per Tariff'!H38 -> 0.147073 | F38: ='RS per Tariff'!E38+'RS per Tariff'!F38+'RS per Tariff'!I38+'RS per Tariff'!K38+'RS per Tariff'!M38+'RS per Tariff'!J38+'RS per Tariff'!L38 -> 0.035165 | G38: ='RS per Tariff'!N38-'RS per Tariff'!H38 -> 0.182199 | H38: ='RS per Tariff'!D38+'RS per Tariff'!G38 -> 0.147034 | J38: 0 | K38: =D38-G38-'RS per Tariff'!H38 -> 1.124859754e-17 | L38: =E38-H38-'RS per Tariff'!H38 -> 1.124859754e-17
A39: 10. | B39: Summer CTWH kWh | C39: ='RS per Tariff'!C39 -> N/A | D39: ='RS per Tariff'!N39 -> 0.189828 | E39: ='RS per Tariff'!D39+'RS per Tariff'!G39+'RS per Tariff'!H39 -> 0.147665 | F39: ='RS per Tariff'!E39+'RS per Tariff'!F39+'RS per Tariff'!I39+'RS per Tariff'!K39+'RS per Tariff'!M39+'RS per Tariff'!J39+'RS per Tariff'!L39 -> 0.042163 | G39: ='RS per Tariff'!N39-'RS per Tariff'!H39 -> 0.189789 | H39: ='RS per Tariff'!D39+'RS per Tariff'!G39 -> 0.147626 | J39: 0 | K39: =D39-G39-'RS per Tariff'!H39 -> 1.124859754e-17 | L39: =E39-H39-'RS per Tariff'!H39 -> 1.124859754e-17
A40: 11. | B40: Winter CTWH kWh | C40: ='RS per Tariff'!C40 -> N/A | D40: ='RS per Tariff'!N40 -> 0.189236 | E40: ='RS per Tariff'!D40+'RS per Tariff'!G40+'RS per Tariff'!H40 -> 0.147073 | F40: ='RS per Tariff'!E40+'RS per Tariff'!F40+'RS per Tariff'!I40+'RS per Tariff'!K40+'RS per Tariff'!M40+'RS per Tariff'!J40+'RS per Tariff'!L40 -> 0.042163 | G40: ='RS per Tariff'!N40-'RS per Tariff'!H40 -> 0.189197 | H40: ='RS per Tariff'!D40+'RS per Tariff'!G40 -> 0.147034 | J40: 0 | K40: =D40-G40-'RS per Tariff'!H40 -> 1.124859754e-17 | L40: =E40-H40-'RS per Tariff'!H40 -> 1.124859754e-17
A43: * Note: Charges are billed to the customer by component as they appear in the Jersey Central Power & Light Tariff for Service.
A44: By multiplying the summarized charges in these tables times the customers kWh usage you may get an amount that is a few
A45: cents different than the actual amount of the customer's bill due to rounding differences.
A47: ='RT Summary'!A36 -> {1} Includes Distribution, SBC, NGC, TAA, RRC, SRC, ZEC, Energy & Capacity, Transmission (including RMR and TEC) and BGS-RSCP reconciliation charges
A48: ='RT Summary'!A37 -> {2} Includes Energy & Capacity, Transmission (including RMR and TEC) and the current BGS-RSCP reconciliation charge of $0.000037 per kWh
A49: ='RT Summary'!A38 -> {3} Includes Distribution, SBC, NGC, TAA, RRC , and ZEC charges
A50: ='RT Summary'!A39 -> {4} Includes Energy & Capacity, Transmission (including RMR and TEC) and the current BGS-RSCP reconciliation charge of $0.000039 per kWh

Sheet RGT per Tariff
A1: ='RT per Tariff'!A1:B1 -> Visual_Rate_Inventory June 1, 2025 | C1: Jersey Central Power & Light
A2: =NOW() -> 2025-05-30T16:18:48.150
A3: =NOW() -> 45807.67972 | C3: ='RT per Tariff'!C3 -> Rates Effective with Service Rendered June 1, 2025
A4: RGT per Tariff
C5: RGT(Residential Geothermal & Heat Pump)Service Classification
C6: Unbundled Rate Components
C8: Charges Applicable to Federal Government (SUT Exempt) Accounts
C10: ='RT per Tariff'!C10 -> Unbundled Components Including CBT - 6/1/2025 Rates Applicable to SUT Exempt Accounts
C11: ='RT per Tariff'!C23 -> Customer Charge | D11: ='RT per Tariff'!D23 -> Transmission* {1} | E11: ='RT per Tariff'!E23 -> Distribution | F11: ='RT per Tariff'!F23 -> Covid Recovery Charge | G11: ='RT per Tariff'!G23 -> Energy & Capacity * | H11: ='RT per Tariff'!H23 -> BGS-RSCP Reconciliation Charge* | I11: ='RT per Tariff'!I23 -> Zero Emission Certificate Recovery Charge (ZEC) | J11: ='RT per Tariff'!J23 -> RGGI Recovery Charge (RRC) | K11: ='RT per Tariff'!K23 -> Societal Benefit Charge (SBC) | L11: ='RT per Tariff'!L23 -> LRAM | M11: ='RT per Tariff'!M23 -> Non-utility Generation Charge (NGC) | N11: Total
A12: 1. | B12: Customer Charge | C12: ='RT per Tariff'!C12 -> 7.57 | D12: N/A | E12: N/A | F12: N/A | G12: N/A | H12: N/A | I12: N/A | J12: N/A | K12: N/A | L12: N/A | M12: N/A | N12: N/A
A14: 2. | B14: On-Peak Summer kWh | C14: N/A | D14: ='RT per Tariff'!D15 -> 0.018019 | E14: ='RT per Tariff'!E15 -> 0.056299 | F14: ='RT per Tariff'!F15 -> 0.000336 | G14: ='RT per Tariff'!G15 -> 0.165501 | H14: ='RT per Tariff'!H$15 -> 3.7e-05 | I14: ='RT per Tariff'!I$15 -> 0 | J14: ='RT per Tariff'!J15 -> 0.004435 | K14: ='RT per Tariff'!$K$15 -> 0.007223 | L14: ='RT per Tariff'!L15 -> 0.000544 | M14: ='RT per Tariff'!M15 -> -0.000219 | N14: =SUM(D14:M14) -> 0.252175
A15: 3. | B15: Off-Peak Summer kWh | C15: N/A | D15: ='RT per Tariff'!D17 -> 0.018019 | E15: ='RT per Tariff'!E17 -> 0.026299 | F15: =F14 -> 0.000336 | G15: ='RT per Tariff'!G17 -> 0.086691 | H15: ='RT per Tariff'!H$15 -> 3.7e-05 | I15: ='RT per Tariff'!I$15 -> 0 | J15: =J$14 -> 0.004435 | K15: ='RT per Tariff'!$K$15 -> 0.007223 | L15: =L14 -> 0.000544 | M15: =M$14 -> -0.000219 | N15: =SUM(D15:M15) -> 0.143365
A16: 4. | B16: Winter kWh - 1 => 1,000 | C16: N/A | D16: ='RS per Tariff'!D18 -> 0.018019 | E16: ='RS per Tariff'!E18 -> 0.031007 | F16: =F14 -> 0.000336 | G16: ='RS per Tariff'!G18 -> 0.128316 | H16: ='RT per Tariff'!H$15 -> 3.7e-05 | I16: ='RT per Tariff'!I$15 -> 0 | J16: ='RT per Tariff'!J16 -> 0.004435 | K16: ='RT per Tariff'!$K$15 -> 0.007223 | L16: =L14 -> 0.000544 | M16: =M$14 -> -0.000219 | N16: =SUM(D16:M16) -> 0.189698
A17: 5. | B17: Winter kWh > 1,000 | C17: N/A | D17: ='RS per Tariff'!D19 -> 0.018019 | E17: ='RS per Tariff'!E19 -> 0.031007 | F17: =F16 -> 0.000336 | G17: ='RS per Tariff'!G19 -> 0.128316 | H17: ='RT per Tariff'!H$15 -> 3.7e-05 | I17: ='RT per Tariff'!I$15 -> 0 | J17: =J$16 -> 0.004435 | K17: ='RT per Tariff'!$K$15 -> 0.007223 | L17: =L14 -> 0.000544 | M17: =M$14 -> -0.000219 | N17: =SUM(D17:M17) -> 0.189698
C19: Charges Applicable to Non-Tax-Exempt Accounts
C21: ='RT per Tariff'!C22 -> Unbundled Components Including CBT and SUT - 6/1/2025 Rates Applicable to Non-Tax-Exempt Customers
C22: =C11 -> Customer Charge | D22: Transmission* {1} | E22: Distribution | F22: Covid Recovery Charge | G22: Energy & Capacity * | H22: BGS-RSCP Reconciliation Charge* | I22: Zero Emission Certificate Recovery Charge (ZEC) | J22: RGGI Recovery Charge (RRC) | K22: Societal Benefit Charge (SBC) | L22: =L11 -> LRAM | M22: =M11 -> Non-utility Generation Charge (NGC) | N22: Total
A23: 1. | B23: Customer Charge | C23: ='RT per Tariff'!C24 -> 8.07 | D23: N/A | E23: N/A | F23: N/A | G23: N/A | H23: N/A | I23: N/A | J23: N/A | K23: N/A | L23: N/A | M23: N/A | N23: N/A
A25: 2. | B25: On-Peak Summer kWh | C25: N/A | D25: ='RT per Tariff'!D27 -> 0.019212 | E25: =ROUND(E14*SUT_6625,6) -> 0.060029 | F25: ='RT per Tariff'!F27 -> 0.000358 | G25: ='RT per Tariff'!G27 -> 0.176465 | H25: ='RT per Tariff'!H$27 -> 3.9e-05 | I25: ='RT per Tariff'!I$27 -> 0 | J25: ='RT per Tariff'!J27 -> 0.004729 | K25: ='RT per Tariff'!$K$27 -> 0.0077 | L25: =ROUND(L14*SUT_6625,6) -> 0.00058 | M25: ='RT per Tariff'!M27 -> -0.000234 | N25: =SUM(D25:M25) -> 0.268878
A26: 3. | B26: Off-Peak Summer kWh | C26: N/A | D26: ='RT per Tariff'!D29 -> 0.019212 | E26: =ROUND(E15*SUT_6625,6) -> 0.028041 | F26: =F25 -> 0.000358 | G26: ='RT per Tariff'!G29 -> 0.092434 | H26: ='RT per Tariff'!H$27 -> 3.9e-05 | I26: ='RT per Tariff'!I$27 -> 0 | J26: =J$25 -> 0.004729 | K26: ='RT per Tariff'!$K$27 -> 0.0077 | L26: =ROUND(L15*SUT_6625,6) -> 0.00058 | M26: =M$25 -> -0.000234 | N26: =SUM(D26:M26) -> 0.152859
A27: 4. | B27: Winter kWh - 1 => 1,000 | C27: N/A | D27: ='RS per Tariff'!D35 -> 0.019212 | E27: =ROUND(E16*SUT_6625,6) -> 0.033061 | F27: =F25 -> 0.000358 | G27: ='RS per Tariff'!G35 -> 0.136817 | H27: ='RT per Tariff'!H$27 -> 3.9e-05 | I27: ='RT per Tariff'!I$27 -> 0 | J27: ='RT per Tariff'!J28 -> 0.004729 | K27: ='RT per Tariff'!$K$27 -> 0.0077 | L27: =ROUND(L16*SUT_6625,6) -> 0.00058 | M27: =M$25 -> -0.000234 | N27: =SUM(D27:M27) -> 0.202262
A28: 5. | B28: Winter kWh > 1,000 | C28: N/A | D28: ='RS per Tariff'!D36 -> 0.019212 | E28: =ROUND(E17*SUT_6625,6) -> 0.033061 | F28: =F27 -> 0.000358 | G28: ='RS per Tariff'!G36 -> 0.136817 | H28: ='RT per Tariff'!H$27 -> 3.9e-05 | I28: ='RT per Tariff'!I$27 -> 0 | J28: =J27 -> 0.004729 | K28: ='RT per Tariff'!$K$27 -> 0.0077 | L28: =ROUND(L17*SUT_6625,6) -> 0.00058 | M28: =M$25 -> -0.000234 | N28: =SUM(D28:M28) -> 0.202262
A30: ='RT per Tariff'!$A$32 -> * Transmission, Energy & Capacity and BGS-RSCP Reconciliation Charges apply only to Full Service (non-shopping) Customers
A31: ='RT per Tariff'!A33 -> {1} Transmission Charge includes Reliability Must Run Surcharge (RMR) of $0.000000/$0.000000 (w/ SUT) Eff September 1, 2019 and Transmission Enhancement Charge (TEC) of $0.004066/0.004335 (w/ SUT) Eff May 1, 2025
A32: ='RT per Tariff'!A34 -> 0

Sheet RGT Summary
A1: ='RT per Tariff'!A1:B1 -> Visual_Rate_Inventory June 1, 2025 | C1: Jersey Central Power & Light
A2: =NOW() -> 2025-05-30T16:18:48.150
A3: =NOW() -> 45807.67972 | C3: ='RT per Tariff'!C3 -> Rates Effective with Service Rendered June 1, 2025
A4: RGT Summary
C5: RGT(Residential Geothermal & Heat Pump)Service Classification
C7: Summary of Charges *
C13: Summary of Charges Applicable to Federal Government (SUT Exempt) Customers | G13: Summary Without BGS Reconciliation Charges
C14: Customer Charge | D14: Full Service Customer Total kWh Charges{1} | E14: Basic Generation Service Charge/Price to Compare{2} | F14: Delivery Service kWh Charges{3} | G14: Full Service Customer Total kWh Charges | H14: Basic Generation Service Charge/Price to Compare
A15: 1. | B15: Customer Charge | C15: ='RGT per Tariff'!C12 -> 7.57 | D15: N/A | E15: N/A | F15: N/A | G15: N/A | H15: N/A
A17: 2. | B17: On-Peak Summer kWh | C17: ='RGT per Tariff'!C14 -> N/A | D17: ='RGT per Tariff'!N14 -> 0.252175 | E17: ='RGT per Tariff'!D14+'RGT per Tariff'!G14+'RGT per Tariff'!H14 -> 0.183557 | F17: ='RGT per Tariff'!E14+'RGT per Tariff'!F14+'RGT per Tariff'!I14+'RGT per Tariff'!K14+'RGT per Tariff'!M14+'RGT per Tariff'!J14+'RGT per Tariff'!L14 -> 0.068618 | G17: ='RGT per Tariff'!N14-'RGT per Tariff'!H14 -> 0.252138 | H17: ='RGT per Tariff'!D14+'RGT per Tariff'!G14 -> 0.18352 | I17: =E17+F17-D17 -> 0 | J17: =D17-G17-'RGT per Tariff'!H14 -> 9.249599784e-18 | K17: =E17-H17-'RGT per Tariff'!H14 -> 9.249599784e-18
A18: 3. | B18: Off-Peak Summer kWh | C18: ='RGT per Tariff'!C15 -> N/A | D18: ='RGT per Tariff'!N15 -> 0.143365 | E18: ='RGT per Tariff'!D15+'RGT per Tariff'!G15+'RGT per Tariff'!H15 -> 0.104747 | F18: ='RGT per Tariff'!E15+'RGT per Tariff'!F15+'RGT per Tariff'!I15+'RGT per Tariff'!K15+'RGT per Tariff'!M15+'RGT per Tariff'!J15+'RGT per Tariff'!L15 -> 0.038618 | G18: ='RGT per Tariff'!N15-'RGT per Tariff'!H15 -> 0.143328 | H18: ='RGT per Tariff'!D15+'RGT per Tariff'!G15 -> 0.10471 | I18: =E18+F18-D18 -> 0 | J18: =D18-G18-'RGT per Tariff'!H15 -> 9.249599784e-18 | K18: =E18-H18-'RGT per Tariff'!H15 -> -4.628188024e-18
A19: 4. | B19: Winter kWh - 1 => 1,000 | C19: ='RGT per Tariff'!C16 -> N/A | D19: ='RGT per Tariff'!N16 -> 0.189698 | E19: ='RGT per Tariff'!D16+'RGT per Tariff'!G16+'RGT per Tariff'!H16 -> 0.146372 | F19: ='RGT per Tariff'!E16+'RGT per Tariff'!F16+'RGT per Tariff'!I16+'RGT per Tariff'!K16+'RGT per Tariff'!M16+'RGT per Tariff'!J16+'RGT per Tariff'!L16 -> 0.043326 | G19: ='RGT per Tariff'!N16-'RGT per Tariff'!H16 -> 0.189661 | H19: ='RGT per Tariff'!D16+'RGT per Tariff'!G16 -> 0.146335 | I19: 0 | J19: =D19-G19-'RGT per Tariff'!H16 -> 9.249599784e-18 | K19: =E19-H19-'RGT per Tariff'!H16 -> 9.249599784e-18
A20: 5. | B20: Winter kWh > 1,000 | C20: ='RGT per Tariff'!C17 -> N/A | D20: ='RGT per Tariff'!N17 -> 0.189698 | E20: ='RGT per Tariff'!D17+'RGT per Tariff'!G17+'RGT per Tariff'!H17 -> 0.146372 | F20: ='RGT per Tariff'!E17+'RGT per Tariff'!F17+'RGT per Tariff'!I17+'RGT per Tariff'!K17+'RGT per Tariff'!M17+'RGT per Tariff'!J17+'RGT per Tariff'!L17 -> 0.043326 | G20: ='RGT per Tariff'!N17-'RGT per Tariff'!H17 -> 0.189661 | H20: ='RGT per Tariff'!D17+'RGT per Tariff'!G17 -> 0.146335 | I20: 0 | J20: =D20-G20-'RGT per Tariff'!H17 -> 9.249599784e-18 | K20: =E20-H20-'RGT per Tariff'!H17 -> 9.249599784e-18
C23: Summary of Charges Applicable to Normal (Non-Exempt) Customers | G23: Summary Without BGS Reconciliation Charges
C24: Customer Charge | D24: Full Service Customer Total kWh Charges {1} | E24: Basic Generation Service Charge/Price to Compare{4} | F24: Delivery Service kWh Charges{3} | G24: Full Service Customer Total kWh Charges | H24: Basic Generation Service Charge/Price to Compare
A25: 1. | B25: Customer Charge | C25: ='RGT per Tariff'!C23 -> 8.07 | D25: N/A | E25: N/A | F25: N/A | G25: N/A | H25: N/A
A27: 2. | B27: On-Peak Summer kWh | C27: ='RGT per Tariff'!C25 -> N/A | D27: ='RGT per Tariff'!N25 -> 0.268878 | E27: ='RGT per Tariff'!D25+'RGT per Tariff'!G25+'RGT per Tariff'!H25 -> 0.195716 | F27: ='RGT per Tariff'!E25+'RGT per Tariff'!F25+'RGT per Tariff'!I25+'RGT per Tariff'!K25+'RGT per Tariff'!M25+'RGT per Tariff'!J25+'RGT per Tariff'!L25 -> 0.073162 | G27: ='RGT per Tariff'!N25-'RGT per Tariff'!H25 -> 0.268839 | H27: ='RGT per Tariff'!D25+'RGT per Tariff'!G25 -> 0.195677 | I27: =E27+F27-D27 -> 0 | J27: =D27-G27-'RGT per Tariff'!H25 -> 1.124859754e-17 | K27: =E27-H27-'RGT per Tariff'!H25 -> 1.124859754e-17
A28: 3. | B28: Off-Peak Summer kWh | C28: ='RGT per Tariff'!C26 -> N/A | D28: ='RGT per Tariff'!N26 -> 0.152859 | E28: ='RGT per Tariff'!D26+'RGT per Tariff'!G26+'RGT per Tariff'!H26 -> 0.111685 | F28: ='RGT per Tariff'!E26+'RGT per Tariff'!F26+'RGT per Tariff'!I26+'RGT per Tariff'!K26+'RGT per Tariff'!M26+'RGT per Tariff'!J26+'RGT per Tariff'!L26 -> 0.041174 | G28: ='RGT per Tariff'!N26-'RGT per Tariff'!H26 -> 0.15282 | H28: ='RGT per Tariff'!D26+'RGT per Tariff'!G26 -> 0.111646 | I28: =E28+F28-D28 -> 0 | J28: =D28-G28-'RGT per Tariff'!H26 -> 1.124859754e-17 | K28: =E28-H28-'RGT per Tariff'!H26 -> -2.629190268e-18
A29: 4. | B29: Winter kWh - 1 => 1,000 | C29: ='RGT per Tariff'!C27 -> N/A | D29: ='RGT per Tariff'!N27 -> 0.202262 | E29: ='RGT per Tariff'!D27+'RGT per Tariff'!G27+'RGT per Tariff'!H27 -> 0.156068 | F29: ='RGT per Tariff'!E27+'RGT per Tariff'!F27+'RGT per Tariff'!I27+'RGT per Tariff'!K27+'RGT per Tariff'!M27+'RGT per Tariff'!J27+'RGT per Tariff'!L27 -> 0.046194 | G29: ='RGT per Tariff'!N27-'RGT per Tariff'!H27 -> 0.202223 | H29: ='RGT per Tariff'!D27+'RGT per Tariff'!G27 -> 0.156029 | I29: 0 | J29: =D29-G29-'RGT per Tariff'!H27 -> 1.124859754e-17 | K29: =E29-H29-'RGT per Tariff'!H27 -> 1.124859754e-17
A30: 5. | B30: Winter kWh > 1,000 | C30: ='RGT per Tariff'!C28 -> N/A | D30: ='RGT per Tariff'!N28 -> 0.202262 | E30: ='RGT per Tariff'!D28+'RGT per Tariff'!G28+'RGT per Tariff'!H28 -> 0.156068 | F30: ='RGT per Tariff'!E28+'RGT per Tariff'!F28+'RGT per Tariff'!I28+'RGT per Tariff'!K28+'RGT per Tariff'!M28+'RGT per Tariff'!J28+'RGT per Tariff'!L28 -> 0.046194 | G30: ='RGT per Tariff'!N28-'RGT per Tariff'!H28 -> 0.202223 | H30: ='RGT per Tariff'!D28+'RGT per Tariff'!G28 -> 0.156029 | I30: 0 | J30: =D30-G30-'RGT per Tariff'!H28 -> 1.124859754e-17 | K30: =E30-H30-'RGT per Tariff'!H28 -> 1.124859754e-17
A32: * Note: Charges are billed to the customer by component as they appear in the Jersey Central Power & Light Tariff for Service.
A33: By multiplying the summarized charges in these tables times the customers kWh usage you may get an amount that is a few
A34: cents different than the actual amount of the customer's bill due to rounding differences.
A36: ='RT Summary'!A36 -> {1} Includes Distribution, SBC, NGC, TAA, RRC, SRC, ZEC, Energy & Capacity, Transmission (including RMR and TEC) and BGS-RSCP reconciliation charges
A37: ='RT Summary'!A37 -> {2} Includes Energy & Capacity, Transmission (including RMR and TEC) and the current BGS-RSCP reconciliation charge of $0.000037 per kWh
A38: ='RT Summary'!A38 -> {3} Includes Distribution, SBC, NGC, TAA, RRC , and ZEC charges
A39: ='RT Summary'!A39 -> {4} Includes Energy & Capacity, Transmission (including RMR and TEC) and the current BGS-RSCP reconciliation charge of $0.000039 per kWh | N39: 8

Sheet GS FP per Tariff
A1: ='RT per Tariff'!A1:B1 -> Visual_Rate_Inventory June 1, 2025 | C1: Jersey Central Power & Light
A2: =NOW() -> 2025-05-30T16:18:48.150
A3: =NOW() -> 45807.67972 | C3: ='RT per Tariff'!C3 -> Rates Effective with Service Rendered June 1, 2025
A4: GS FP per Tariff
C5: GS (General Service Secondary) Service Classification - Fixed Price BGS Rates
C6: Unbundled Rate Components
C8: Charges Applicable to Franchised Utility (Tax Exempt) Customers
C10: Unbundled Components Excluding CBT & SUT - 6/1/2025 Rates Applicable to Franchised Utility Customers
C11: ='RT per Tariff'!C11 -> Customer Charge | D11: ='RT per Tariff'!D11 -> Transmission* {1} | E11: ='RT per Tariff'!E11 -> Distribution | F11: ='RT per Tariff'!F11 -> Covid Recovery Charge | G11: ="BGS-RSCP "&'RT per Tariff'!G11 -> BGS-RSCP Energy & Capacity * | H11: ='RT per Tariff'!H11 -> BGS-RSCP Reconciliation Charge* | I11: ='RT per Tariff'!I11 -> Zero Emission Certificate Recovery Charge (ZEC) | J11: ='RT per Tariff'!J11 -> RGGI Recovery Charge (RRC) | K11: ='RT per Tariff'!K11 -> Societal Benefit Charge (SBC) | L11: ='RT per Tariff'!L11 -> LRAM | M11: ='RT per Tariff'!M11 -> Non-utility Generation Charge (NGC) | N11: Total
A12: 1. | B12: Customer Charge-Single Phase | C12: 4.2 | D12: N/A | E12: N/A | F12: N/A | G12: N/A | H12: N/A | I12: N/A | J12: N/A | K12: N/A | L12: N/A | M12: N/A | N12: N/A
A13: 2. | B13: Customer Charge-Three Phase | C13: 15.08 | D13: N/A | E13: N/A | F13: N/A | G13: N/A | H13: N/A | I13: N/A | J13: N/A | K13: N/A | L13: N/A | M13: N/A | N13: N/A
A14: 3. | B14: Supp Cust Charge-OPWH | C14: 2.01 | D14: N/A | E14: N/A | F14: N/A | G14: N/A | H14: N/A | I14: N/A | J14: N/A | K14: N/A | L14: N/A | M14: N/A | N14: N/A
A15: 4. | B15: Supp Cust Charge-CTWH | C15: 2.01 | D15: N/A | E15: N/A | F15: N/A | G15: N/A | H15: N/A | I15: N/A | J15: N/A | K15: N/A | L15: N/A | M15: N/A | N15: N/A
A16: 5. | B16: Supp Cust Charge-Day/Night | C16: 3.44 | D16: N/A | E16: N/A | F16: N/A | G16: N/A | H16: N/A | I16: N/A | J16: N/A | K16: N/A | L16: N/A | M16: N/A | N16: N/A
A17: 6. | B17: Traffic Signal-Supp Cust Charges | C17: 15.67 | D17: N/A | E17: N/A | F17: N/A | G17: N/A | H17: N/A | I17: N/A | J17: N/A | K17: N/A | L17: N/A | M17: N/A | N17: N/A
A19: 7. | B19: Over 10 KW Summer | C19: N/A | D19: N/A | E19: 8.13 | F19: N/A | G19: N/A | H19: N/A | I19: N/A | J19: N/A | K19: N/A | L19: N/A | M19: N/A | N19: N/A
A20: 8. | B20: Over 10 KW Winter | C20: N/A | D20: N/A | E20: 7.58 | F20: N/A | G20: N/A | H20: N/A | I20: N/A | J20: N/A | K20: N/A | L20: N/A | M20: N/A | N20: N/A
A21: 9. | B21: Standby KW Charge | C21: N/A | D21: N/A | E21: N/A | F21: N/A | G21: N/A | H21: N/A | I21: N/A | J21: N/A | K21: N/A | L21: N/A | M21: N/A | N21: N/A
A22: 10. | B22: Minimum Bill-Over 10 KW | C22: N/A | D22: N/A | E22: 3.69 | F22: N/A | G22: N/A | H22: N/A | I22: N/A | J22: N/A | K22: N/A | L22: N/A | M22: N/A | N22: N/A
A24: 11. | B24: First 1,000 kWh Summer | C24: N/A | D24: ='RT per Tariff'!D15 -> 0.018019 | E24: 0.068053 | F24: ='RS per Tariff'!F16 -> 0.000336 | G24: 0.117216 | H24: ='RT per Tariff'!H$15 -> 3.7e-05 | I24: ='RT per Tariff'!I$15 -> 0 | J24: ='RT per Tariff'!J15 -> 0.004435 | K24: ='RT per Tariff'!$K$15 -> 0.007223 | L24: ='SBC TBC and MTC Tax'!B60 -> 0.000463 | M24: ='RT per Tariff'!M15 -> -0.000219 | N24: =SUM(D24:M24) -> 0.215563
A25: 12. | B25: First 1,000 kWh Winter | C25: N/A | D25: =D$24 -> 0.018019 | E25: 0.062968 | F25: =F$24 -> 0.000336 | G25: 0.116883 | H25: ='RT per Tariff'!H$15 -> 3.7e-05 | I25: ='RT per Tariff'!I$15 -> 0 | J25: ='RT per Tariff'!J16 -> 0.004435 | K25: ='RT per Tariff'!$K$15 -> 0.007223 | L25: =$L$24 -> 0.000463 | M25: =M$24 -> -0.000219 | N25: 0.210145
A26: 13. | B26: Over 1,000 kWh Summer | C26: N/A | D26: =D$24 -> 0.018019 | E26: 0.005443 | F26: =F$24 -> 0.000336 | G26: =G24 -> 0.117216 | H26: ='RT per Tariff'!H$15 -> 3.7e-05 | I26: ='RT per Tariff'!I$15 -> 0 | J26: =J$24 -> 0.004435 | K26: ='RT per Tariff'!$K$15 -> 0.007223 | L26: =$L$24 -> 0.000463 | M26: =M$24 -> -0.000219 | N26: 0.152953
A27: 14. | B27: Over 1,000 kWh Winter | C27: N/A | D27: =D$24 -> 0.018019 | E27: 0.005443 | F27: 0.000336 | G27: =G25 -> 0.116883 | H27: ='RT per Tariff'!H$15 -> 3.7e-05 | I27: ='RT per Tariff'!I$15 -> 0 | J27: =J$25 -> 0.004435 | K27: ='RT per Tariff'!$K$15 -> 0.007223 | L27: 0.000463 | M27: -0.000219 | N27: 0.15262
A28: 15. | B28: OPWH-kWh Summer | C28: N/A | D28: =D24 -> 0.018019 | E28: 0.019946 | F28: 0.000336 | G28: ='RS per Tariff'!G20 -> 0.120435 | H28: ='RT per Tariff'!H$15 -> 3.7e-05 | I28: ='RT per Tariff'!I$15 -> 0 | J28: =J$24 -> 0.004435 | K28: ='RT per Tariff'!$K$15 -> 0.007223 | L28: 0.000463 | M28: -0.000219 | N28: 0.170675
A29: 16. | B29: OPWH-kWh Winter | C29: N/A | D29: =D$28 -> 0.018019 | E29: 0.019946 | F29: 0.000336 | G29: ='RS per Tariff'!G21 -> 0.11988 | H29: ='RT per Tariff'!H$15 -> 3.7e-05 | I29: ='RT per Tariff'!I$15 -> 0 | J29: =J$25 -> 0.004435 | K29: ='RT per Tariff'!$K$15 -> 0.007223 | L29: 0.000463 | M29: -0.000219 | N29: 0.17012
A30: 17. | B30: CTWH-kWh Summer | C30: N/A | D30: =D$28 -> 0.018019 | E30: 0.026271 | F30: 0.000336 | G30: ='RS per Tariff'!G22 -> 0.120435 | H30: ='RT per Tariff'!H$15 -> 3.7e-05 | I30: ='RT per Tariff'!I$15 -> 0 | J30: =J$24 -> 0.004435 | K30: ='RT per Tariff'!$K$15 -> 0.007223 | L30: 0.000463 | M30: -0.000219 | N30: 0.177
A31: 18. | B31: CTWH-kWh Winter | C31: N/A | D31: =D$28 -> 0.018019 | E31: 0.026271 | F31: 0.000336 | G31: ='RS per Tariff'!G23 -> 0.11988 | H31: ='RT per Tariff'!H$15 -> 3.7e-05 | I31: ='RT per Tariff'!I$15 -> 0 | J31: =J$25 -> 0.004435 | K31: ='RT per Tariff'!$K$15 -> 0.007223 | L31: 0.000463 | M31: -0.000219 | N31: 0.176445
A32: 19. | B32: Traffic Signal kWh Summer | C32: N/A | D32: =D$24 -> 0.018019 | E32: 0.014261 | F32: 0.000336 | G32: =G24 -> 0.117216 | H32: ='RT per Tariff'!H$15 -> 3.7e-05 | I32: ='RT per Tariff'!I$15 -> 0 | J32: =J$24 -> 0.004435 | K32: ='RT per Tariff'!$K$15 -> 0.007223 | L32: 0.000463 | M32: -0.000219 | N32: 0.161771
A33: 20. | B33: Traffic Signal kWh Winter | C33: N/A | D33: =D$24 -> 0.018019 | E33: 0.014261 | F33: 0.000336 | G33: =G25 -> 0.116883 | H33: ='RT per Tariff'!H$15 -> 3.7e-05 | I33: ='RT per Tariff'!I$15 -> 0 | J33: =J$25 -> 0.004435 | K33: ='RT per Tariff'!$K$15 -> 0.007223 | L33: 0.000463 | M33: -0.000219 | N33: 0.161438
B34: ='RT per Tariff'!$A$32 -> * Transmission, Energy & Capacity and BGS-RSCP Reconciliation Charges apply only to Full Service (non-shopping) Customers
B35: =B65 -> {1} Transmission Charge includes Reliability Must Run Surcharge (RMR) of $0.000000/$0.000000 (w/ SUT) Eff September 1, 2019 and Transmission Enhancement Charge (TEC) of $0.004066/0.004335 (w/ SUT) Eff May 1, 2025
C37: Charges Applicable to Federal Government (SUT Exempt) Accounts - Fixed Price BGS Rates
C39: ='RT per Tariff'!C10 -> Unbundled Components Including CBT - 6/1/2025 Rates Applicable to SUT Exempt Accounts
C40: Customer Charge | D40: =D11 -> Transmission* {1} | E40: Distribution | F40: Covid Recovery Charge | G40: BGS-RSCP Energy & Capacity * | H40: BGS-RSCP Reconciliation Charge* | I40: Zero Emission Certificate Recovery Charge (ZEC) | J40: RGGI Recovery Charge (RRC) | K40: Societal Benefit Charge (SBC) | L40: LRAM | M40: Non-utility Generation Charge (NGC) | N40: Total
A41: 1. | B41: Customer Charge-Single Phase | C41: 4.36 | D41: N/A | E41: N/A | F41: N/A | G41: N/A | H41: N/A | I41: N/A | J41: N/A | K41: N/A | L41: N/A | M41: N/A | N41: N/A
A42: 2. | B42: Customer Charge-Three Phase | C42: 15.65 | D42: N/A | E42: N/A | F42: N/A | G42: N/A | H42: N/A | I42: N/A | J42: N/A | K42: N/A | L42: N/A | M42: N/A | N42: N/A
A43: 3. | B43: Supp Cust Charge-OPWH | C43: 2.09 | D43: N/A | E43: N/A | F43: N/A | G43: N/A | H43: N/A | I43: N/A | J43: N/A | K43: N/A | L43: N/A | M43: N/A | N43: N/A | O43: 8
A44: 4. | B44: Supp Cust Charge-CTWH | C44: 2.09 | D44: N/A | E44: N/A | F44: N/A | G44: N/A | H44: N/A | I44: N/A | J44: N/A | K44: N/A | L44: N/A | M44: N/A | N44: N/A
A45: 5. | B45: Supp Cust Charge-Day/Night | C45: 3.57 | D45: N/A | E45: N/A | F45: N/A | G45: N/A | H45: N/A | I45: N/A | J45: N/A | K45: N/A | L45: N/A | M45: N/A | N45: N/A
A46: 6. | B46: Traffic Signal-Supp Cust Charges | C46: 16.26 | D46: N/A | E46: N/A | F46: N/A | G46: N/A | H46: N/A | I46: N/A | J46: N/A | K46: N/A | L46: N/A | M46: N/A | N46: N/A
A48: 7. | B48: Over 10 KW Summer | C48: N/A | D48: N/A | E48: 8.44 | F48: N/A | G48: N/A | H48: N/A | I48: N/A | J48: N/A | K48: N/A | L48: N/A | M48: N/A | N48: N/A
A49: 8. | B49: Over 10 KW Winter | C49: N/A | D49: N/A | E49: 7.86 | F49: N/A | G49: N/A | H49: N/A | I49: N/A | J49: N/A | K49: N/A | L49: N/A | M49: N/A | N49: N/A
A50: 9. | B50: Standby KW Charge | C50: N/A | D50: N/A | E50: 3.88 | F50: N/A | G50: N/A | H50: N/A | I50: N/A | J50: N/A | K50: N/A | L50: N/A | M50: N/A | N50: N/A
A51: 10. | B51: Minimum Bill-Over 10 KW | C51: N/A | D51: N/A | E51: 3.83 | F51: N/A | G51: N/A | H51: N/A | I51: N/A | J51: N/A | K51: N/A | L51: N/A | M51: N/A | N51: N/A
A53: 11. | B53: First 1,000 kWh Summer | C53: N/A | D53: =D24 -> 0.018019 | E53: 0.07061 | F53: =F$24 -> 0.000336 | G53: =G24 -> 0.117216 | H53: ='RT per Tariff'!H$15 -> 3.7e-05 | I53: ='RT per Tariff'!I$15 -> 0 | J53: ='RT per Tariff'!J15 -> 0.004435 | K53: ='RT per Tariff'!$K$15 -> 0.007223 | L53: =$L$24 -> 0.000463 | M53: =M$24 -> -0.000219 | N53: =SUM(D53:M53) -> 0.21812
A54: 12. | B54: First 1,000 kWh Winter | C54: N/A | D54: 0.018019 | E54: 0.065334 | F54: 0.000336 | G54: 0.116883 | H54: ='RT per Tariff'!H$15 -> 3.7e-05 | I54: ='RT per Tariff'!I$15 -> 0 | J54: ='RT per Tariff'!J16 -> 0.004435 | K54: ='RT per Tariff'!$K$15 -> 0.007223 | L54: 0.000463 | M54: -0.000219 | N54: 0.212511
A55: 13. | B55: Over 1,000 kWh Summer | C55: N/A | D55: 0.018019 | E55: 0.005647 | F55: 0.000336 | G55: 0.117216 | H55: ='RT per Tariff'!H$15 -> 3.7e-05 | I55: ='RT per Tariff'!I$15 -> 0 | J55: =J$53 -> 0.004435 | K55: ='RT per Tariff'!$K$15 -> 0.007223 | L55: 0.000463 | M55: -0.000219 | N55: 0.153157
A56: 14. | B56: Over 1,000 kWh Winter | C56: N/A | D56: 0.018019 | E56: 0.005647 | F56: 0.000336 | G56: 0.116883 | H56: ='RT per Tariff'!H$15 -> 3.7e-05 | I56: ='RT per Tariff'!I$15 -> 0 | J56: =J$54 -> 0.004435 | K56: ='RT per Tariff'!$K$15 -> 0.007223 | L56: 0.000463 | M56: -0.000219 | N56: 0.152824
A57: 15. | B57: OPWH-kWh Summer | C57: N/A | D57: 0.018019 | E57: 0.020695 | F57: 0.000336 | G57: 0.120435 | H57: ='RT per Tariff'!H$15 -> 3.7e-05 | I57: ='RT per Tariff'!I$15 -> 0 | J57: 0.004435 | K57: ='RT per Tariff'!$K$15 -> 0.007223 | L57: 0.000463 | M57: -0.000219 | N57: 0.171424
A58: 16. | B58: OPWH-kWh Winter | C58: N/A | D58: 0.018019 | E58: 0.020695 | F58: 0.000336 | G58: 0.11988 | H58: ='RT per Tariff'!H$15 -> 3.7e-05 | I58: ='RT per Tariff'!I$15 -> 0 | J58: =J$54 -> 0.004435 | K58: ='RT per Tariff'!$K$15 -> 0.007223 | L58: 0.000463 | M58: -0.000219 | N58: 0.170869
A59: 17. | B59: CTWH-kWh Summer | C59: N/A | D59: 0.018019 | E59: 0.027258 | F59: 0.000336 | G59: 0.120435 | H59: ='RT per Tariff'!H$15 -> 3.7e-05 | I59: ='RT per Tariff'!I$15 -> 0 | J59: 0.004435 | K59: ='RT per Tariff'!$K$15 -> 0.007223 | L59: 0.000463 | M59: -0.000219 | N59: 0.177987
A60: 18. | B60: CTWH-kWh Winter | C60: N/A | D60: 0.018019 | E60: 0.027258 | F60: 0.000336 | G60: 0.11988 | H60: ='RT per Tariff'!H$15 -> 3.7e-05 | I60: ='RT per Tariff'!I$15 -> 0 | J60: =J$54 -> 0.004435 | K60: ='RT per Tariff'!$K$15 -> 0.007223 | L60: 0.000463 | M60: -0.000219 | N60: 0.177432
A61: 19. | B61: Traffic Signal kWh Summer | C61: N/A | D61: 0.018019 | E61: 0.014797 | F61: 0.000336 | G61: 0.117216 | H61: ='RT per Tariff'!H$15 -> 3.7e-05 | I61: ='RT per Tariff'!I$15 -> 0 | J61: 0.004435 | K61: ='RT per Tariff'!$K$15 -> 0.007223 | L61: 0.000463 | M61: -0.000219 | N61: 0.162307
A62: 20. | B62: Traffic Signal kWh Winter | C62: N/A | D62: 0.018019 | E62: 0.014797 | F62: 0.000336 | G62: 0.116883 | H62: ='RT per Tariff'!H$15 -> 3.7e-05 | I62: ='RT per Tariff'!I$15 -> 0 | J62: =J$54 -> 0.004435 | K62: ='RT per Tariff'!$K$15 -> 0.007223 | L62: 0.000463 | M62: -0.000219 | N62: 0.161974
B64: ='RT per Tariff'!$A$32 -> * Transmission, Energy & Capacity and BGS-RSCP Reconciliation Charges apply only to Full Service (non-shopping) Customers
B65: ='RT per Tariff'!A33 -> {1} Transmission Charge includes Reliability Must Run Surcharge (RMR) of $0.000000/$0.000000 (w/ SUT) Eff September 1, 2019 and Transmission Enhancement Charge (TEC) of $0.004066/0.004335 (w/ SUT) Eff May 1, 2025
A66: ='Disclaimer and Definitions'!$A$1 -> Visual_Rate_Inventory June 1, 2025 | C66: Jersey Central Power & Light
A67: =NOW() -> 2025-05-30T16:18:48.150
A68: =NOW() -> 45807.67972
A69: GS FP per Tariff
C70: GS (General Service Secondary) Service Classification
C71: Unbundled Rate Components
C73: Charges Applicable to Non-Tax-Exempt Accounts - Fixed Price BGS Rates
C75: ='RT per Tariff'!C22 -> Unbundled Components Including CBT and SUT - 6/1/2025 Rates Applicable to Non-Tax-Exempt Customers
C76: Customer Charge | D76: =D11 -> Transmission* {1} | E76: Distribution | F76: Covid Recovery Charge | G76: BGS-RSCP Energy & Capacity * | H76: BGS-RSCP Reconciliation Charge* | I76: Zero Emission Certificate Recovery Charge (ZEC) | J76: RGGI Recovery Charge (RRC) | K76: Societal Benefit Charge (SBC) | L76: LRAM | M76: Non-utility Generation Charge (NGC) | N76: Total
A77: 1. | B77: Customer Charge-Single Phase | C77: =ROUND(C41*SUT_6625,2) -> 4.65 | D77: N/A | E77: N/A | F77: N/A | G77: N/A | H77: N/A | I77: N/A | J77: N/A | K77: N/A | L77: N/A | M77: N/A | N77: N/A
A78: 2. | B78: Customer Charge-Three Phase | C78: 16.69 | D78: N/A | E78: N/A | F78: N/A | G78: N/A | H78: N/A | I78: N/A | J78: N/A | K78: N/A | L78: N/A | M78: N/A | N78: N/A
A79: 3. | B79: Supp Cust Charge-OPWH | C79: 2.23 | D79: N/A | E79: N/A | F79: N/A | G79: N/A | H79: N/A | I79: N/A | J79: N/A | K79: N/A | L79: N/A | M79: N/A | N79: N/A
A80: 4. | B80: Supp Cust Charge-CTWH | C80: 2.23 | D80: N/A | E80: N/A | F80: N/A | G80: N/A | H80: N/A | I80: N/A | J80: N/A | K80: N/A | L80: N/A | M80: N/A | N80: N/A
A81: 5. | B81: Supp Cust Charge-Day/Night | C81: 3.81 | D81: N/A | E81: N/A | F81: N/A | G81: N/A | H81: N/A | I81: N/A | J81: N/A | K81: N/A | L81: N/A | M81: N/A | N81: N/A
A82: 6. | B82: Traffic Signal-Supp Cust Charges | C82: 17.34 | D82: N/A | E82: N/A | F82: N/A | G82: N/A | H82: N/A | I82: N/A | J82: N/A | K82: N/A | L82: N/A | M82: N/A | N82: N/A
A84: 7. | B84: Over 10 KW Summer | C84: N/A | D84: N/A | E84: =ROUND(E48*SUT_6625,2) -> 9 | F84: N/A | G84: N/A | H84: N/A | I84: N/A | J84: N/A | K84: N/A | L84: N/A | M84: N/A | N84: N/A
A85: 8. | B85: Over 10 KW Winter | C85: N/A | D85: N/A | E85: =ROUND(E49*SUT_6625,2) -> 8.38 | F85: N/A | G85: N/A | H85: N/A | I85: N/A | J85: N/A | K85: N/A | L85: N/A | M85: N/A | N85: N/A
A86: 9. | B86: Standby KW Charge | C86: N/A | D86: N/A | E86: =ROUND(E50*SUT_6625,2) -> 4.14 | F86: N/A | G86: N/A | H86: N/A | I86: N/A | J86: N/A | K86: N/A | L86: N/A | M86: N/A | N86: N/A
A87: 10. | B87: Minimum Bill-Over 10 KW | C87: N/A | D87: N/A | E87: =ROUND(E51*SUT_6625,2) -> 4.08 | F87: N/A | G87: N/A | H87: N/A | I87: N/A | J87: N/A | K87: N/A | L87: N/A | M87: N/A | N87: N/A
A89: 11. | B89: First 1,000 kWh Summer | C89: N/A | D89: ='RT per Tariff'!D27 -> 0.019212 | E89: =ROUND(E53*SUT_6625,6) -> 0.075288 | F89: =ROUND(F24*SUT_6625,6) -> 0.000358 | G89: =ROUND(G24*SUT_6625,6) -> 0.124982 | H89: ='RT per Tariff'!H$27 -> 3.9e-05 | I89: ='RT per Tariff'!I$27 -> 0 | J89: ='RT per Tariff'!J27 -> 0.004729 | K89: ='RT per Tariff'!$K$27 -> 0.0077 | L89: =ROUND(L53*SUT_6625,6) -> 0.000494 | M89: =ROUND(M24*SUT_6625,6) -> -0.000234 | N89: =SUM(D89:M89) -> 0.232568
A90: 12. | B90: First 1,000 kWh Winter | C90: N/A | D90: =D$89 -> 0.019212 | E90: 0.069662 | F90: =F$89 -> 0.000358 | G90: =ROUND(G25*SUT_6625,6) -> 0.124626 | H90: ='RT per Tariff'!H$27 -> 3.9e-05 | I90: ='RT per Tariff'!I$27 -> 0 | J90: ='RT per Tariff'!J28 -> 0.004729 | K90: ='RT per Tariff'!$K$27 -> 0.0077 | L90: 0.000494 | M90: =M$89 -> -0.000234 | N90: 0.226586
A91: 13. | B91: Over 1,000 kWh Summer | C91: N/A | D91: =D$89 -> 0.019212 | E91: 0.006021 | F91: 0.000358 | G91: =G89 -> 0.124982 | H91: ='RT per Tariff'!H$27 -> 3.9e-05 | I91: ='RT per Tariff'!I$27 -> 0 | J91: =J$89 -> 0.004729 | K91: ='RT per Tariff'!$K$27 -> 0.0077 | L91: 0.000494 | M91: =M$89 -> -0.000234 | N91: 0.163301
A92: 14. | B92: Over 1,000 kWh Winter | C92: N/A | D92: =D$89 -> 0.019212 | E92: 0.006021 | F92: 0.000358 | G92: =G90 -> 0.124626 | H92: ='RT per Tariff'!H$27 -> 3.9e-05 | I92: ='RT per Tariff'!I$27 -> 0 | J92: =J$90 -> 0.004729 | K92: ='RT per Tariff'!$K$27 -> 0.0077 | L92: 0.000494 | M92: -0.000234 | N92: 0.162945
A93: 15. | B93: OPWH-kWh Summer | C93: N/A | D93: =D89 -> 0.019212 | E93: 0.022066 | F93: 0.000358 | G93: ='RS per Tariff'!G37 -> 0.128414 | H93: ='RT per Tariff'!H$27 -> 3.9e-05 | I93: ='RT per Tariff'!I$27 -> 0 | J93: 0.004729 | K93: ='RT per Tariff'!$K$27 -> 0.0077 | L93: 0.000494 | M93: -0.000234 | N93: 0.182778
A94: 16. | B94: OPWH-kWh Winter | C94: N/A | D94: =D$93 -> 0.019212 | E94: 0.022066 | F94: 0.000358 | G94: ='RS per Tariff'!G38 -> 0.127822 | H94: ='RT per Tariff'!H$27 -> 3.9e-05 | I94: ='RT per Tariff'!I$27 -> 0 | J94: =J$90 -> 0.004729 | K94: ='RT per Tariff'!$K$27 -> 0.0077 | L94: 0.000494 | M94: -0.000234 | N94: 0.182186
A95: 17. | B95: CTWH-kWh Summer | C95: N/A | D95: =D$93 -> 0.019212 | E95: 0.029064 | F95: 0.000358 | G95: ='RS per Tariff'!G39 -> 0.128414 | H95: ='RT per Tariff'!H$27 -> 3.9e-05 | I95: ='RT per Tariff'!I$27 -> 0 | J95: 0.004729 | K95: ='RT per Tariff'!$K$27 -> 0.0077 | L95: 0.000494 | M95: -0.000234 | N95: 0.189776
A96: 18. | B96: CTWH-kWh Winter | C96: N/A | D96: =D$93 -> 0.019212 | E96: 0.029064 | F96: 0.000358 | G96: ='RS per Tariff'!G40 -> 0.127822 | H96: ='RT per Tariff'!H$27 -> 3.9e-05 | I96: ='RT per Tariff'!I$27 -> 0 | J96: =J$90 -> 0.004729 | K96: ='RT per Tariff'!$K$27 -> 0.0077 | L96: 0.000494 | M96: -0.000234 | N96: 0.189184
A97: 19. | B97: Traffic Signal kWh Summer | C97: N/A | D97: =D$89 -> 0.019212 | E97: 0.015777 | F97: 0.000358 | G97: =G89 -> 0.124982 | H97: ='RT per Tariff'!H$27 -> 3.9e-05 | I97: ='RT per Tariff'!I$27 -> 0 | J97: 0.004729 | K97: ='RT per Tariff'!$K$27 -> 0.0077 | L97: 0.000494 | M97: -0.000234 | N97: 0.173057
A98: 20. | B98: Traffic Signal kWh Winter | C98: N/A | D98: =D$89 -> 0.019212 | E98: 0.015777 | F98: 0.000358 | G98: =G90 -> 0.124626 | H98: ='RT per Tariff'!H$27 -> 3.9e-05 | I98: ='RT per Tariff'!I$27 -> 0 | J98: =J$90 -> 0.004729 | K98: ='RT per Tariff'!$K$27 -> 0.0077 | L98: 0.000494 | M98: -0.000234 | N98: 0.172701
A99: 21. | B99: Church Credit-1st 1,000 kWh | C99: N/A | D99: N/A | E99: =ROUND(-0.035998*SUT_6625,6) -> -0.038383 | F99: N/A | G99: 0 | H99: N/A | I99: N/A | J99: N/A | K99: N/A | M99: N/A | N99: -0.038383
A100: 22. | B100: Church-1st 1,000 kWh-Summer(Incl.Credit) | C100: N/A | D100: =D$89 -> 0.019212 | E100: =E89+E99 -> 0.036905 | F100: =F$89 -> 0.000358 | G100: =G89 -> 0.124982 | H100: ='RT per Tariff'!H$27 -> 3.9e-05 | I100: ='RT per Tariff'!I$27 -> 0 | J100: =J$89 -> 0.004729 | K100: ='RT per Tariff'!$K$27 -> 0.0077 | L100: =L89+L99 -> 0.000494 | M100: =M$89 -> -0.000234 | N100: 0.194185
A101: 23. | B101: Church-1st 1,000 kWh-Winter(Incl.Credit) | C101: N/A | D101: =D$89 -> 0.019212 | E101: =E90+E99 -> 0.031279 | F101: =F$89 -> 0.000358 | G101: =G90 -> 0.124626 | H101: ='RT per Tariff'!H$27 -> 3.9e-05 | I101: ='RT per Tariff'!I$27 -> 0 | J101: =J$90 -> 0.004729 | K101: ='RT per Tariff'!$K$27 -> 0.0077 | L101: =L90+L99 -> 0.000494 | M101: =M$89 -> -0.000234 | N101: 0.188203
B103: ='RT per Tariff'!$A$32 -> * Transmission, Energy & Capacity and BGS-RSCP Reconciliation Charges apply only to Full Service (non-shopping) Customers
B104: ='RT per Tariff'!A33 -> {1} Transmission Charge includes Reliability Must Run Surcharge (RMR) of $0.000000/$0.000000 (w/ SUT) Eff September 1, 2019 and Transmission Enhancement Charge (TEC) of $0.004066/0.004335 (w/ SUT) Eff May 1, 2025
A110: ="Assumptions: Bill Credit is calculated at the pre-SUT rate. Subscriber has 5% investment from "&TEXT(D120,"mm/dd/yyyy")&" to "&TEXT(E120,"mm/dd/yyyy") -> Assumptions: Bill Credit is calculated at the pre-SUT rate. Subscriber has 5% investment from 06/01/2025 to 07/01/2025
A111: Customer billed for 1000 KWH usage on Service Classification GS Default Service
A112: Host Output: 20,000 KWH
A113: Customer (Subscriber) Allocated: 1000 KWH
A115: Normal Full Bill | C115: =H132 -> 237.22
A116: Community Solar Credit | C116: =K132 -> 155.48
A117: Charges Due | C117: =C115-C116 -> 81.74
F118: Normal Full Bill | I118: Credit Calculation
B119: Charge Type | C119: Credit | D119: Period Start | E119: Period End | F119: Consumed kWh | G119: Price | H119: Charges | I119: Allocated kWh | J119: Pre-SUT Price | K119: Credit @ Pre-SUT
B120: Customer Charge | C120: No | D120: 2025-06-01 | E120: =D120+30 -> 2025-07-01 | G120: =C77 -> 4.65 | H120: =G120 -> 4.65
B121: Non-Utility Generation Charge (MTC) | C121: No | D121: =$D$120 -> 2025-06-01 | E121: =E$120 -> 2025-07-01 | F121: 1000 | G121: =M89 -> -0.000234 | H121: =ROUND(F121*G121,2) -> -0.23
B122: SBC Charge | C122: No | D122: =$D$120 -> 2025-06-01 | E122: =E$120 -> 2025-07-01 | F122: 1000 | G122: =K89 -> 0.0077 | H122: =ROUND(F122*G122,2) -> 7.7
B123: ZEC Recovery Charge | C123: No | D123: 2025-06-01 | E123: 2025-07-01 | F123: 1000 | G123: =I89 -> 0 | H123: 0
B124: BGS Energy Charges | C124: Yes | D124: 2025-06-01 | E124: 2025-07-01 | F124: 1000 | G124: =IF(AND(MONTH(D124)<=9,MONTH(D124)>=6),G89,G90) -> 0.124982 | H124: 124.98 | I124: =F124 -> 1000 | J124: =IF(AND(MONTH(D124)<=9,MONTH(D124)>=6),G53,G54) -> 0.117216 | K124: =ROUND(I124*J124,2) -> 117.22 | P124: =ROUND(J124*1.06625,6)-G124 -> 0
B125: BGS Transmission | C125: Yes | D125: 2025-06-01 | E125: 2025-07-01 | F125: 1000 | G125: =D89 -> 0.019212 | H125: 19.21 | I125: 1000 | J125: =D53 -> 0.018019 | K125: 18.02 | P125: =ROUND(J125*1.06625,6)-G125 -> 1e-06
B126: BGS Reconciliation | C126: Yes | D126: 2025-06-01 | E126: 2025-07-01 | F126: 1000 | G126: =H89 -> 3.9e-05 | H126: 0.04 | I126: 1000 | J126: =H53 -> 3.7e-05 | K126: 0.04 | P126: =ROUND(J126*1.06625,6)-G126 -> 0
B127: Distribution 0-1000 kWh | C127: Yes | D127: 2025-06-01 | E127: 2025-07-01 | F127: 1000 | G127: =IF(AND(MONTH(D127)<=9,MONTH(D127)>=6),E89,E90) -> 0.075288 | H127: 75.29 | I127: 1000 | J127: =IF(AND(MONTH(D127)<=9,MONTH(D127)>=6),B160,B161) -> 0.014963 | K127: 14.96 | L127: *
B128: Distribution 1000+ kWh | C128: Yes | D128: 2025-06-01 | E128: 2025-07-01 | F128: 0 | G128: =IF(AND(MONTH(D128)<=9,MONTH(D128)>=6),E91,E92) -> 0.006021 | H128: 0 | I128: 0 | J128: =J127 -> 0.014963 | K128: 0 | L128: *
B129: RGGI Charge | C129: Yes | D129: 2025-06-01 | E129: 2025-07-01 | F129: 1000 | G129: =J97 -> 0.004729 | H129: 4.73 | I129: 1000 | J129: =J53 -> 0.004435 | K129: 4.44 | P129: =ROUND(J129*1.06625,6)-G129 -> 0
B130: Covid Recovery Charge | C130: Yes | D130: 2025-06-01 | E130: 2025-07-01 | F130: 1000 | G130: =F89 -> 0.000358 | H130: =ROUND(F130*G130,2) -> 0.36 | I130: =F130 -> 1000 | J130: =F24 -> 0.000336 | K130: =ROUND(I130*J130,2) -> 0.34
B131: LRAM | C131: Yes | D131: 2025-06-01 | E131: 2025-07-01 | F131: 1000 | G131: =L97 -> 0.000494 | H131: 0.49 | I131: 1000 | J131: =L24 -> 0.000463 | K131: 0.46 | P131: =ROUND(J131*1.06625,6)-G131 -> 0
G132: Normal Full Bill | H132: =SUM(H120:H131) -> 237.22 | J132: Community Solar Credit | K132: =SUM(K124:K131) -> 155.48
A135: ="Assumptions: Bill Credit is calculated at the pre-SUT rate. Subscriber has 50% investment from "&TEXT(D145,"mm/dd/yyyy")&" to "&TEXT(E145,"mm/dd/yyyy") -> Assumptions: Bill Credit is calculated at the pre-SUT rate. Subscriber has 50% investment from 06/01/2025 to 07/01/2025
A136: Certified mastered billed affordable housing customer billed for 20,000 KWH/50 kW usage on Service Classification GS Default Service
A137: Host Output: 20,000 KWH
A138: Customer (Subscriber) Allocated: 10000 KWH
A140: Normal Full Bill | C140: =H159 -> 3693.14 | E140: Note: Individual program participant's distribution demand credit per kWh will be based on its distribution demand cost and distribution energy usage averaged over prior 12 months.
A141: Community Solar Credit | C141: =K159 -> 1849.08
A142: Charges Due | C142: =C140-C141 -> 1844.06
F143: Normal Full Bill | I143: Credit Calculation
B144: Charge Type | C144: Credit | D144: Period Start | E144: Period End | F144: Consumed kWh | G144: Price | H144: Charges | I144: Allocated kWh | J144: Pre-SUT Price | K144: Credit @ Pre-SUT
B145: Customer Charge | C145: No | D145: =D120 -> 2025-06-01 | E145: =D145+30 -> 2025-07-01 | G145: =C77 -> 4.65 | H145: =G145 -> 4.65
B146: Non-Utility Generation Charge (MTC) | C146: No | D146: =$D$120 -> 2025-06-01 | E146: =E$120 -> 2025-07-01 | F146: 20000 | G146: =M89 -> -0.000234 | H146: =ROUND(F146*G146,2) -> -4.68
B147: SBC Charge | C147: No | D147: =$D$120 -> 2025-06-01 | E147: =E$120 -> 2025-07-01 | F147: =F$146 -> 20000 | G147: =K89 -> 0.0077 | H147: =ROUND(F147*G147,2) -> 154
B148: ZEC Recovery Charge | C148: No | D148: 2025-06-01 | E148: 2025-07-01 | F148: =F$146 -> 20000 | G148: =I89 -> 0 | H148: 0
B149: BGS Energy Charges | C149: Yes | D149: 2025-06-01 | E149: 2025-07-01 | F149: =F$146 -> 20000 | G149: =IF(AND(MONTH(D149)<=9,MONTH(D149)>=6),G89,G90) -> 0.124982 | H149: 2499.64 | I149: 10000 | J149: =IF(AND(MONTH(D149)<=9,MONTH(D149)>=6),G53,G54) -> 0.117216 | K149: =ROUND(I149*J149,2) -> 1172.16 | P149: =ROUND(J149*1.06625,6)-G149 -> 0
B150: BGS Transmission | C150: Yes | D150: 2025-06-01 | E150: 2025-07-01 | F150: =F$146 -> 20000 | G150: =D89 -> 0.019212 | H150: 384.24 | I150: =I$149 -> 10000 | J150: =D53 -> 0.018019 | K150: 180.19 | P150: =ROUND(J150*1.06625,6)-G150 -> 1e-06
B151: BGS Reconciliation | C151: Yes | D151: 2025-06-01 | E151: 2025-07-01 | F151: =F$146 -> 20000 | G151: =H89 -> 3.9e-05 | H151: 0.78 | I151: =I$149 -> 10000 | J151: =H53 -> 3.7e-05 | K151: 0.37 | P151: =ROUND(J151*1.06625,6)-G151 -> 0
B152: Distribution kW | C152: Yes | D152: 2025-06-01 | E152: 2025-07-01 | F152: 10 | G152: 0 | H152: 0 | I152: 1000 | J152: 0 | K152: 0 | P152: =ROUND(J152*1.06625,6)-G152 -> 0
B153: Distribution kW | C153: Yes | D153: 2025-06-01 | E153: 2025-07-01 | F153: 40 | G153: =IF(AND(MONTH(D153)<=9,MONTH(D153)>=6),E84,E85) -> 9 | H153: 360 | I153: =I149-I152 -> 9000 | J153: =IF(AND(MONTH(D153)<=9,MONTH(D153)>=6),B163,B164) -> 0.033045 | K153: 297.41 | L153: *
B154: Distribution 0-1000 kWh | C154: Yes | D154: 2025-06-01 | E154: 2025-07-01 | F154: 1000 | G154: =IF(AND(MONTH(D154)<=9,MONTH(D154)>=6),E89,E90) -> 0.075288 | H154: 75.29 | I154: =F154 -> 1000 | J154: =IF(AND(MONTH(D154)<=9,MONTH(D154)>=6),B160,B161) -> 0.014963 | K154: 14.96 | L154: *
B155: Distribution 1000+ kWh | C155: Yes | D155: 2025-06-01 | E155: 2025-07-01 | F155: =F146-F154 -> 19000 | G155: =IF(AND(MONTH(D155)<=9,MONTH(D155)>=6),E91,E92) -> 0.006021 | H155: 114.4 | I155: =I149-I154 -> 9000 | J155: =J154 -> 0.014963 | K155: 134.67 | L155: *
B156: RGGI Charge | C156: Yes | D156: 2025-06-01 | E156: 2025-07-01 | F156: =F$146 -> 20000 | G156: =J89 -> 0.004729 | H156: 94.58 | I156: =I$149 -> 10000 | J156: =J53 -> 0.004435 | K156: 44.35 | P156: =ROUND(J156*1.06625,6)-G156 -> 0
B157: =B130 -> Covid Recovery Charge | C157: =C130 -> Yes | D157: 2025-06-01 | E157: 2025-07-01 | F157: 1000 | G157: 0.000358 | H157: 0.36 | I157: 1000 | J157: 0.000336 | K157: 0.34
B158: LRAM | C158: Yes | D158: 2025-06-01 | E158: 2025-07-01 | F158: =F$146 -> 20000 | G158: =L89 -> 0.000494 | H158: 9.88 | I158: =I$149 -> 10000 | J158: =L53 -> 0.000463 | K158: 4.63 | P158: =ROUND(J158*1.06625,6)-G158 -> 0
G159: Normal Full Bill | H159: =SUM(H145:H158) -> 3693.14 | J159: Community Solar Credit | K159: =SUM(K149:K158) -> 1849.08
B160: 0.014963 | C160: Dist Summer kWh
B161: 0.015198 | C161: Dist Winter kWh
B163: 0.033045 | C163: Dist Summer Demand per kWh, for 1000 kWh+
B164: 0.019884 | C164: Dist Winter Demand per kWh, for 1000kWh+

Sheet GS FP Summary
A1: ='GS FP per Tariff'!A1:B1 -> Visual_Rate_Inventory June 1, 2025 | C1: Jersey Central Power & Light
A2: =NOW() -> 2025-05-30T16:18:48.150
A3: =NOW() -> 45807.67972 | C3: ='RT per Tariff'!C3 -> Rates Effective with Service Rendered June 1, 2025
A4: GS FP Summary
C5: GS (General Service Secondary) Service Classification - Fixed Price BGS Rates
C7: Summary of Charges *
C10: Summary of Charges Applicable to Franchised Utility (Tax Exempt) Customers | G10: Summary Without BGS Reconciliation Charges
C11: Customer Charge | D11: Full Service Customer Total kWh Charges{1} | E11: Basic Generation Service Charge/Price to Compare{2} | F11: Delivery Service kWh Charges{3} | G11: Full Service Customer Total kWh Charges | H11: Basic Generation Service Charge/Price to Compare
A12: 1. | B12: Customer Charge-Single Phase | C12: ='GS FP per Tariff'!C12 -> 4.2 | D12: N/A | E12: N/A | F12: N/A | G12: N/A | H12: N/A
A13: 2. | B13: Customer Charge-Three Phase | C13: ='GS FP per Tariff'!C13 -> 15.08 | D13: N/A | E13: N/A | F13: N/A | G13: N/A | H13: N/A
A14: 3. | B14: Supp Cust Charge-OPWH | C14: ='GS FP per Tariff'!C14 -> 2.01 | D14: N/A | E14: N/A | F14: N/A | G14: N/A | H14: N/A
A15: 4. | B15: Supp Cust Charge-CTWH | C15: ='GS FP per Tariff'!C15 -> 2.01 | D15: N/A | E15: N/A | F15: N/A | G15: N/A | H15: N/A
A16: 5. | B16: Supp Cust Charge-Day/Night | C16: ='GS FP per Tariff'!C16 -> 3.44 | D16: N/A | E16: N/A | F16: N/A | G16: N/A | H16: N/A
A17: 6. | B17: Traffic Signal-Supp Cust Charges | C17: ='GS FP per Tariff'!C17 -> 15.67 | D17: N/A | E17: N/A | F17: N/A | G17: N/A | H17: N/A
A19: 7. | B19: Over 10 KW Summer | C19: ='GS FP per Tariff'!C19 -> N/A | D19: N/A | E19: N/A | F19: N/A | G19: N/A | H19: N/A
A20: 8. | B20: Over 10 KW Winter | C20: ='GS FP per Tariff'!C20 -> N/A | D20: N/A | E20: N/A | F20: N/A | G20: N/A | H20: N/A
A21: 9. | B21: Standby KW Charge | C21: ='GS FP per Tariff'!C21 -> N/A | D21: N/A | E21: N/A | F21: N/A | G21: N/A | H21: N/A
A22: 10. | B22: Minimum Bill-Over 10 KW | C22: ='GS FP per Tariff'!C22 -> N/A | D22: N/A | E22: N/A | F22: N/A | G22: N/A | H22: N/A
A24: 11. | B24: First 1,000 kWh Summer | C24: ='GS FP per Tariff'!C24 -> N/A | D24: ='GS FP per Tariff'!N24 -> 0.215563 | E24: =SUM('GS FP per Tariff'!D24,'GS FP per Tariff'!G24:H24) -> 0.135272 | F24: =SUM('GS FP per Tariff'!E24:F24,'GS FP per Tariff'!I24:M24) -> 0.080291 | G24: ='GS FP per Tariff'!N24-'GS FP per Tariff'!H24 -> 0.215526 | H24: ='GS FP per Tariff'!D24+'GS FP per Tariff'!G24 -> 0.135235 | I24: =E24+F24-D24 -> 0 | J24: =D24-G24-'GS FP per Tariff'!H24 -> 9.249599784e-18 | K24: =E24-H24-'GS FP per Tariff'!H24 -> 9.249599784e-18
A25: 12. | B25: First 1,000 kWh Winter | C25: ='GS FP per Tariff'!C25 -> N/A | D25: ='GS FP per Tariff'!N25 -> 0.210145 | E25: =SUM('GS FP per Tariff'!D25,'GS FP per Tariff'!G25:H25) -> 0.134939 | F25: =SUM('GS FP per Tariff'!E25:F25,'GS FP per Tariff'!I25:M25) -> 0.075206 | G25: ='GS FP per Tariff'!N25-'GS FP per Tariff'!H25 -> 0.210108 | H25: ='GS FP per Tariff'!D25+'GS FP per Tariff'!G25 -> 0.134902 | I25: =E25+F25-D25 -> 0 | J25: =D25-G25-'GS FP per Tariff'!H25 -> 9.249599784e-18 | K25: =E25-H25-'GS FP per Tariff'!H25 -> 9.249599784e-18
A26: 13. | B26: Over 1,000 kWh Summer | C26: ='GS FP per Tariff'!C26 -> N/A | D26: ='GS FP per Tariff'!N26 -> 0.152953 | E26: =SUM('GS FP per Tariff'!D26,'GS FP per Tariff'!G26:H26) -> 0.135272 | F26: =SUM('GS FP per Tariff'!E26:F26,'GS FP per Tariff'!I26:M26) -> 0.017681 | G26: ='GS FP per Tariff'!N26-'GS FP per Tariff'!H26 -> 0.152916 | H26: ='GS FP per Tariff'!D26+'GS FP per Tariff'!G26 -> 0.135235 | I26: 0 | J26: =D26-G26-'GS FP per Tariff'!H26 -> 9.249599784e-18 | K26: =E26-H26-'GS FP per Tariff'!H26 -> 9.249599784e-18
A27: 14. | B27: Over 1,000 kWh Winter | C27: ='GS FP per Tariff'!C27 -> N/A | D27: ='GS FP per Tariff'!N27 -> 0.15262 | E27: =SUM('GS FP per Tariff'!D27,'GS FP per Tariff'!G27:H27) -> 0.134939 | F27: =SUM('GS FP per Tariff'!E27:F27,'GS FP per Tariff'!I27:M27) -> 0.017681 | G27: ='GS FP per Tariff'!N27-'GS FP per Tariff'!H27 -> 0.152583 | H27: ='GS FP per Tariff'!D27+'GS FP per Tariff'!G27 -> 0.134902 | I27: 0 | J27: =D27-G27-'GS FP per Tariff'!H27 -> 9.249599784e-18 | K27: =E27-H27-'GS FP per Tariff'!H27 -> 9.249599784e-18
A28: 15. | B28: OPWH-kWh Summer | C28: ='GS FP per Tariff'!C28 -> N/A | D28: ='GS FP per Tariff'!N28 -> 0.170675 | E28: =SUM('GS FP per Tariff'!D28,'GS FP per Tariff'!G28:H28) -> 0.138491 | F28: =SUM('GS FP per Tariff'!E28:F28,'GS FP per Tariff'!I28:M28) -> 0.032184 | G28: ='GS FP per Tariff'!N28-'GS FP per Tariff'!H28 -> 0.170638 | H28: ='GS FP per Tariff'!D28+'GS FP per Tariff'!G28 -> 0.138454 | I28: 0 | J28: =D28-G28-'GS FP per Tariff'!H28 -> 9.249599784e-18 | K28: =E28-H28-'GS FP per Tariff'!H28 -> 9.249599784e-18
A29: 16. | B29: OPWH-kWh Winter | C29: ='GS FP per Tariff'!C29 -> N/A | D29: ='GS FP per Tariff'!N29 -> 0.17012 | E29: =SUM('GS FP per Tariff'!D29,'GS FP per Tariff'!G29:H29) -> 0.137936 | F29: =SUM('GS FP per Tariff'!E29:F29,'GS FP per Tariff'!I29:M29) -> 0.032184 | G29: ='GS FP per Tariff'!N29-'GS FP per Tariff'!H29 -> 0.170083 | H29: ='GS FP per Tariff'!D29+'GS FP per Tariff'!G29 -> 0.137899 | I29: 0 | J29: =D29-G29-'GS FP per Tariff'!H29 -> 9.249599784e-18 | K29: =E29-H29-'GS FP per Tariff'!H29 -> 9.249599784e-18
A30: 17. | B30: CTWH-kWh Summer | C30: ='GS FP per Tariff'!C30 -> N/A | D30: ='GS FP per Tariff'!N30 -> 0.177 | E30: =SUM('GS FP per Tariff'!D30,'GS FP per Tariff'!G30:H30) -> 0.138491 | F30: =SUM('GS FP per Tariff'!E30:F30,'GS FP per Tariff'!I30:M30) -> 0.038509 | G30: ='GS FP per Tariff'!N30-'GS FP per Tariff'!H30 -> 0.176963 | H30: ='GS FP per Tariff'!D30+'GS FP per Tariff'!G30 -> 0.138454 | I30: 0 | J30: =D30-G30-'GS FP per Tariff'!H30 -> 9.249599784e-18 | K30: =E30-H30-'GS FP per Tariff'!H30 -> 9.249599784e-18
A31: 18. | B31: CTWH-kWh Winter | C31: ='GS FP per Tariff'!C31 -> N/A | D31: ='GS FP per Tariff'!N31 -> 0.176445 | E31: =SUM('GS FP per Tariff'!D31,'GS FP per Tariff'!G31:H31) -> 0.137936 | F31: =SUM('GS FP per Tariff'!E31:F31,'GS FP per Tariff'!I31:M31) -> 0.038509 | G31: ='GS FP per Tariff'!N31-'GS FP per Tariff'!H31 -> 0.176408 | H31: ='GS FP per Tariff'!D31+'GS FP per Tariff'!G31 -> 0.137899 | I31: 0 | J31: =D31-G31-'GS FP per Tariff'!H31 -> 9.249599784e-18 | K31: =E31-H31-'GS FP per Tariff'!H31 -> 9.249599784e-18
A32: 19. | B32: Traffic Signal kWh Summer | C32: ='GS FP per Tariff'!C32 -> N/A | D32: ='GS FP per Tariff'!N32 -> 0.161771 | E32: =SUM('GS FP per Tariff'!D32,'GS FP per Tariff'!G32:H32) -> 0.135272 | F32: =SUM('GS FP per Tariff'!E32:F32,'GS FP per Tariff'!I32:M32) -> 0.026499 | G32: ='GS FP per Tariff'!N32-'GS FP per Tariff'!H32 -> 0.161734 | H32: ='GS FP per Tariff'!D32+'GS FP per Tariff'!G32 -> 0.135235 | I32: 0 | J32: =D32-G32-'GS FP per Tariff'!H32 -> 9.249599784e-18 | K32: =E32-H32-'GS FP per Tariff'!H32 -> 9.249599784e-18
A33: 20. | B33: Traffic Signal kWh Winter | C33: ='GS FP per Tariff'!C33 -> N/A | D33: ='GS FP per Tariff'!N33 -> 0.161438 | E33: =SUM('GS FP per Tariff'!D33,'GS FP per Tariff'!G33:H33) -> 0.134939 | F33: =SUM('GS FP per Tariff'!E33:F33,'GS FP per Tariff'!I33:M33) -> 0.026499 | G33: ='GS FP per Tariff'!N33-'GS FP per Tariff'!H33 -> 0.161401 | H33: ='GS FP per Tariff'!D33+'GS FP per Tariff'!G33 -> 0.134902 | I33: 0 | J33: =D33-G33-'GS FP per Tariff'!H33 -> 9.249599784e-18 | K33: =E33-H33-'GS FP per Tariff'!H33 -> 9.249599784e-18
C39: Summary of Charges Applicable to Federal Government (SUT Exempt) Customers | G39: Summary Without BGS Reconciliation Charges
C40: Customer Charge | D40: Full Service Customer Total kWh Charges{1} | E40: Basic Generation Service Charge/Price to Compare{2} | F40: Delivery Service kWh Charges{3} | G40: Full Service Customer Total kWh Charges | H40: Basic Generation Service Charge/Price to Compare
A41: 1. | B41: Customer Charge-Single Phase | C41: ='GS FP per Tariff'!C41 -> 4.36 | D41: N/A | E41: N/A | F41: N/A | G41: N/A | H41: N/A
A42: 2. | B42: Customer Charge-Three Phase | C42: ='GS FP per Tariff'!C42 -> 15.65 | D42: N/A | E42: N/A | F42: N/A | G42: N/A | H42: N/A
A43: 3. | B43: Supp Cust Charge-OPWH | C43: ='GS FP per Tariff'!C43 -> 2.09 | D43: N/A | E43: N/A | F43: N/A | G43: N/A | H43: N/A | N43: 8
A44: 4. | B44: Supp Cust Charge-CTWH | C44: ='GS FP per Tariff'!C44 -> 2.09 | D44: N/A | E44: N/A | F44: N/A | G44: N/A | H44: N/A
A45: 5. | B45: Supp Cust Charge-Day/Night | C45: ='GS FP per Tariff'!C45 -> 3.57 | D45: N/A | E45: N/A | F45: N/A | G45: N/A | H45: N/A
A46: 6. | B46: Traffic Signal-Supp Cust Charges | C46: ='GS FP per Tariff'!C46 -> 16.26 | D46: N/A | E46: N/A | F46: N/A | G46: N/A | H46: N/A
A48: 7. | B48: Over 10 KW Summer | C48: ='GS FP per Tariff'!C48 -> N/A | D48: N/A | E48: N/A | F48: N/A | G48: N/A | H48: N/A
A49: 8. | B49: Over 10 KW Winter | C49: ='GS FP per Tariff'!C49 -> N/A | D49: N/A | E49: N/A | F49: N/A | G49: N/A | H49: N/A
A50: 9. | B50: Standby KW Charge | C50: ='GS FP per Tariff'!C50 -> N/A | D50: N/A | E50: N/A | F50: N/A | G50: N/A | H50: N/A
A51: 10. | B51: Minimum Bill-Over 10 KW | C51: ='GS FP per Tariff'!C51 -> N/A | D51: N/A | E51: N/A | F51: N/A | G51: N/A | H51: N/A
A53: 11. | B53: First 1,000 kWh Summer | C53: ='GS FP per Tariff'!C53 -> N/A | D53: ='GS FP per Tariff'!N53 -> 0.21812 | E53: ='GS FP per Tariff'!D53+'GS FP per Tariff'!G53+'GS FP per Tariff'!H53 -> 0.135272 | F53: =SUM('GS FP per Tariff'!E53:F53,'GS FP per Tariff'!I53:M53) -> 0.082848 | G53: ='GS FP per Tariff'!N53-'GS FP per Tariff'!H53 -> 0.218083 | H53: ='GS FP per Tariff'!D53+'GS FP per Tariff'!G53 -> 0.135235 | I53: =E53+F53-D53 -> 0 | J53: =D53-G53-'GS FP per Tariff'!H53 -> 9.249599784e-18 | K53: =E53-H53-'GS FP per Tariff'!H53 -> 9.249599784e-18
A54: 12. | B54: First 1,000 kWh Winter | C54: ='GS FP per Tariff'!C54 -> N/A | D54: ='GS FP per Tariff'!N54 -> 0.212511 | E54: ='GS FP per Tariff'!D54+'GS FP per Tariff'!G54+'GS FP per Tariff'!H54 -> 0.134939 | F54: =SUM('GS FP per Tariff'!E54:F54,'GS FP per Tariff'!I54:M54) -> 0.077572 | G54: ='GS FP per Tariff'!N54-'GS FP per Tariff'!H54 -> 0.212474 | H54: ='GS FP per Tariff'!D54+'GS FP per Tariff'!G54 -> 0.134902 | I54: =E54+F54-D54 -> 0 | J54: =D54-G54-'GS FP per Tariff'!H54 -> 9.249599784e-18 | K54: =E54-H54-'GS FP per Tariff'!H54 -> 9.249599784e-18
A55: 13. | B55: Over 1,000 kWh Summer | C55: ='GS FP per Tariff'!C55 -> N/A | D55: ='GS FP per Tariff'!N55 -> 0.153157 | E55: ='GS FP per Tariff'!D55+'GS FP per Tariff'!G55+'GS FP per Tariff'!H55 -> 0.135272 | F55: =SUM('GS FP per Tariff'!E55:F55,'GS FP per Tariff'!I55:M55) -> 0.017885 | G55: ='GS FP per Tariff'!N55-'GS FP per Tariff'!H55 -> 0.15312 | H55: ='GS FP per Tariff'!D55+'GS FP per Tariff'!G55 -> 0.135235 | I55: 0 | J55: =D55-G55-'GS FP per Tariff'!H55 -> 9.249599784e-18 | K55: =E55-H55-'GS FP per Tariff'!H55 -> 9.249599784e-18
A56: 14. | B56: Over 1,000 kWh Winter | C56: ='GS FP per Tariff'!C56 -> N/A | D56: ='GS FP per Tariff'!N56 -> 0.152824 | E56: ='GS FP per Tariff'!D56+'GS FP per Tariff'!G56+'GS FP per Tariff'!H56 -> 0.134939 | F56: =SUM('GS FP per Tariff'!E56:F56,'GS FP per Tariff'!I56:M56) -> 0.017885 | G56: ='GS FP per Tariff'!N56-'GS FP per Tariff'!H56 -> 0.152787 | H56: ='GS FP per Tariff'!D56+'GS FP per Tariff'!G56 -> 0.134902 | I56: 0 | J56: =D56-G56-'GS FP per Tariff'!H56 -> 9.249599784e-18 | K56: =E56-H56-'GS FP per Tariff'!H56 -> 9.249599784e-18
A57: 15. | B57: OPWH-kWh Summer | C57: ='GS FP per Tariff'!C57 -> N/A | D57: ='GS FP per Tariff'!N57 -> 0.171424 | E57: ='GS FP per Tariff'!D57+'GS FP per Tariff'!G57+'GS FP per Tariff'!H57 -> 0.138491 | F57: =SUM('GS FP per Tariff'!E57:F57,'GS FP per Tariff'!I57:M57) -> 0.032933 | G57: ='GS FP per Tariff'!N57-'GS FP per Tariff'!H57 -> 0.171387 | H57: ='GS FP per Tariff'!D57+'GS FP per Tariff'!G57 -> 0.138454 | I57: 0 | J57: =D57-G57-'GS FP per Tariff'!H57 -> 9.249599784e-18 | K57: =E57-H57-'GS FP per Tariff'!H57 -> 9.249599784e-18
A58: 16. | B58: OPWH-kWh Winter | C58: ='GS FP per Tariff'!C58 -> N/A | D58: ='GS FP per Tariff'!N58 -> 0.170869 | E58: ='GS FP per Tariff'!D58+'GS FP per Tariff'!G58+'GS FP per Tariff'!H58 -> 0.137936 | F58: =SUM('GS FP per Tariff'!E58:F58,'GS FP per Tariff'!I58:M58) -> 0.032933 | G58: ='GS FP per Tariff'!N58-'GS FP per Tariff'!H58 -> 0.170832 | H58: ='GS FP per Tariff'!D58+'GS FP per Tariff'!G58 -> 0.137899 | I58: 0 | J58: =D58-G58-'GS FP per Tariff'!H58 -> 9.249599784e-18 | K58: =E58-H58-'GS FP per Tariff'!H58 -> 9.249599784e-18
A59: 17. | B59: CTWH-kWh Summer | C59: ='GS FP per Tariff'!C59 -> N/A | D59: ='GS FP per Tariff'!N59 -> 0.177987 | E59: ='GS FP per Tariff'!D59+'GS FP per Tariff'!G59+'GS FP per Tariff'!H59 -> 0.138491 | F59: =SUM('GS FP per Tariff'!E59:F59,'GS FP per Tariff'!I59:M59) -> 0.039496 | G59: ='GS FP per Tariff'!N59-'GS FP per Tariff'!H59 -> 0.17795 | H59: ='GS FP per Tariff'!D59+'GS FP per Tariff'!G59 -> 0.138454 | I59: 0 | J59: =D59-G59-'GS FP per Tariff'!H59 -> 9.249599784e-18 | K59: =E59-H59-'GS FP per Tariff'!H59 -> 9.249599784e-18
A60: 18. | B60: CTWH-kWh Winter | C60: ='GS FP per Tariff'!C60 -> N/A | D60: ='GS FP per Tariff'!N60 -> 0.177432 | E60: ='GS FP per Tariff'!D60+'GS FP per Tariff'!G60+'GS FP per Tariff'!H60 -> 0.137936 | F60: =SUM('GS FP per Tariff'!E60:F60,'GS FP per Tariff'!I60:M60) -> 0.039496 | G60: ='GS FP per Tariff'!N60-'GS FP per Tariff'!H60 -> 0.177395 | H60: ='GS FP per Tariff'!D60+'GS FP per Tariff'!G60 -> 0.137899 | I60: 0 | J60: =D60-G60-'GS FP per Tariff'!H60 -> 9.249599784e-18 | K60: =E60-H60-'GS FP per Tariff'!H60 -> 9.249599784e-18
A61: 19. | B61: Traffic Signal kWh Summer | C61: ='GS FP per Tariff'!C61 -> N/A | D61: ='GS FP per Tariff'!N61 -> 0.162307 | E61: ='GS FP per Tariff'!D61+'GS FP per Tariff'!G61+'GS FP per Tariff'!H61 -> 0.135272 | F61: =SUM('GS FP per Tariff'!E61:F61,'GS FP per Tariff'!I61:M61) -> 0.027035 | G61: ='GS FP per Tariff'!N61-'GS FP per Tariff'!H61 -> 0.16227 | H61: ='GS FP per Tariff'!D61+'GS FP per Tariff'!G61 -> 0.135235 | I61: 0 | J61: =D61-G61-'GS FP per Tariff'!H61 -> 9.249599784e-18 | K61: =E61-H61-'GS FP per Tariff'!H61 -> 9.249599784e-18
A62: 20. | B62: Traffic Signal kWh Winter | C62: ='GS FP per Tariff'!C62 -> N/A | D62: ='GS FP per Tariff'!N62 -> 0.161974 | E62: ='GS FP per Tariff'!D62+'GS FP per Tariff'!G62+'GS FP per Tariff'!H62 -> 0.134939 | F62: =SUM('GS FP per Tariff'!E62:F62,'GS FP per Tariff'!I62:M62) -> 0.027035 | G62: ='GS FP per Tariff'!N62-'GS FP per Tariff'!H62 -> 0.161937 | H62: ='GS FP per Tariff'!D62+'GS FP per Tariff'!G62 -> 0.134902 | I62: 0 | J62: =D62-G62-'GS FP per Tariff'!H62 -> 9.249599784e-18 | K62: =E62-H62-'GS FP per Tariff'!H62 -> 9.249599784e-18
A66: ='Disclaimer and Definitions'!$A$1 -> Visual_Rate_Inventory June 1, 2025 | C66: Jersey Central Power & Light
A67: =NOW() -> 2025-05-30T16:18:48.150
A68: =NOW() -> 45807.67972
A69: GS FP Summary
C70: GS (General Service Secondary) Service Classification - Fixed Price BGS Rates
C72: Summary of Charges *
C75: Summary of Charges Applicable to Normal (Non-Exempt) Customers | G75: Summary Without BGS Reconciliation Charges
C76: Customer Charge | D76: Full Service Customer Total kWh Charges{1} | E76: Basic Generation Service Charge/Price to Compare{4} | F76: Delivery Service kWh Charges{3} | G76: Full Service Customer Total kWh Charges | H76: Basic Generation Service Charge/Price to Compare
A77: 1. | B77: Customer Charge-Single Phase | C77: ='GS FP per Tariff'!C77 -> 4.65 | D77: N/A | E77: N/A | F77: N/A | G77: N/A | H77: N/A
A78: 2. | B78: Customer Charge-Three Phase | C78: ='GS FP per Tariff'!C78 -> 16.69 | D78: N/A | E78: N/A | F78: N/A | G78: N/A | H78: N/A
A79: 3. | B79: Supp Cust Charge-OPWH | C79: ='GS FP per Tariff'!C79 -> 2.23 | D79: N/A | E79: N/A | F79: N/A | G79: N/A | H79: N/A
A80: 4. | B80: Supp Cust Charge-CTWH | C80: ='GS FP per Tariff'!C80 -> 2.23 | D80: N/A | E80: N/A | F80: N/A | G80: N/A | H80: N/A
A81: 5. | B81: Supp Cust Charge-Day/Night | C81: ='GS FP per Tariff'!C81 -> 3.81 | D81: N/A | E81: N/A | F81: N/A | G81: N/A | H81: N/A
A82: 6. | B82: Traffic Signal-Supp Cust Charges | C82: ='GS FP per Tariff'!C82 -> 17.34 | D82: N/A | E82: N/A | F82: N/A | G82: N/A | H82: N/A
A84: 7. | B84: Over 10 KW Summer | C84: N/A | D84: N/A | E84: N/A | F84: N/A | G84: N/A | H84: N/A
A85: 8. | B85: Over 10 KW Winter | C85: N/A | D85: N/A | E85: N/A | F85: N/A | G85: N/A | H85: N/A
A86: 9. | B86: Standby KW Charge | C86: N/A | D86: N/A | E86: N/A | F86: N/A | G86: N/A | H86: N/A
A87: 10. | B87: Minimum Bill-Over 10 KW | C87: N/A | D87: N/A | E87: N/A | F87: N/A | G87: N/A | H87: N/A
A89: 11. | B89: First 1,000 kWh Summer | C89: N/A | D89: ='GS FP per Tariff'!N89 -> 0.232568 | E89: ='GS FP per Tariff'!D89+'GS FP per Tariff'!G89+'GS FP per Tariff'!H89 -> 0.144233 | F89: =SUM('GS FP per Tariff'!E89:F89,'GS FP per Tariff'!I89:M89) -> 0.088335 | G89: ='GS FP per Tariff'!N89-'GS FP per Tariff'!H89 -> 0.232529 | H89: ='GS FP per Tariff'!D89+'GS FP per Tariff'!G89 -> 0.144194 | I89: =E89+F89-D89 -> 0 | J89: =D89-G89-'GS FP per Tariff'!H89 -> 1.124859754e-17 | K89: =E89-H89-'GS FP per Tariff'!H89 -> 1.124859754e-17
A90: 12. | B90: First 1,000 kWh Winter | C90: N/A | D90: ='GS FP per Tariff'!N90 -> 0.226586 | E90: ='GS FP per Tariff'!D90+'GS FP per Tariff'!G90+'GS FP per Tariff'!H90 -> 0.143877 | F90: =SUM('GS FP per Tariff'!E90:F90,'GS FP per Tariff'!I90:M90) -> 0.082709 | G90: ='GS FP per Tariff'!N90-'GS FP per Tariff'!H90 -> 0.226547 | H90: ='GS FP per Tariff'!D90+'GS FP per Tariff'!G90 -> 0.143838 | I90: =E90+F90-D90 -> 0 | J90: =D90-G90-'GS FP per Tariff'!H90 -> 1.124859754e-17 | K90: =E90-H90-'GS FP per Tariff'!H90 -> 1.124859754e-17
A91: 13. | B91: Over 1,000 kWh Summer | C91: N/A | D91: ='GS FP per Tariff'!N91 -> 0.163301 | E91: ='GS FP per Tariff'!D91+'GS FP per Tariff'!G91+'GS FP per Tariff'!H91 -> 0.144233 | F91: =SUM('GS FP per Tariff'!E91:F91,'GS FP per Tariff'!I91:M91) -> 0.019068 | G91: ='GS FP per Tariff'!N91-'GS FP per Tariff'!H91 -> 0.163262 | H91: ='GS FP per Tariff'!D91+'GS FP per Tariff'!G91 -> 0.144194 | I91: 0 | J91: =D91-G91-'GS FP per Tariff'!H91 -> 1.124859754e-17 | K91: =E91-H91-'GS FP per Tariff'!H91 -> 1.124859754e-17
A92: 14. | B92: Over 1,000 kWh Winter | C92: N/A | D92: ='GS FP per Tariff'!N92 -> 0.162945 | E92: ='GS FP per Tariff'!D92+'GS FP per Tariff'!G92+'GS FP per Tariff'!H92 -> 0.143877 | F92: =SUM('GS FP per Tariff'!E92:F92,'GS FP per Tariff'!I92:M92) -> 0.019068 | G92: ='GS FP per Tariff'!N92-'GS FP per Tariff'!H92 -> 0.162906 | H92: ='GS FP per Tariff'!D92+'GS FP per Tariff'!G92 -> 0.143838 | I92: 0 | J92: =D92-G92-'GS FP per Tariff'!H92 -> 1.124859754e-17 | K92: =E92-H92-'GS FP per Tariff'!H92 -> 1.124859754e-17
A93: 15. | B93: OPWH-kWh Summer | C93: N/A | D93: ='GS FP per Tariff'!N93 -> 0.182778 | E93: ='GS FP per Tariff'!D93+'GS FP per Tariff'!G93+'GS FP per Tariff'!H93 -> 0.147665 | F93: =SUM('GS FP per Tariff'!E93:F93,'GS FP per Tariff'!I93:M93) -> 0.035113 | G93: ='GS FP per Tariff'!N93-'GS FP per Tariff'!H93 -> 0.182739 | H93: ='GS FP per Tariff'!D93+'GS FP per Tariff'!G93 -> 0.147626 | I93: 0 | J93: =D93-G93-'GS FP per Tariff'!H93 -> 1.124859754e-17 | K93: =E93-H93-'GS FP per Tariff'!H93 -> 1.124859754e-17
A94: 16. | B94: OPWH-kWh Winter | C94: N/A | D94: ='GS FP per Tariff'!N94 -> 0.182186 | E94: ='GS FP per Tariff'!D94+'GS FP per Tariff'!G94+'GS FP per Tariff'!H94 -> 0.147073 | F94: =SUM('GS FP per Tariff'!E94:F94,'GS FP per Tariff'!I94:M94) -> 0.035113 | G94: ='GS FP per Tariff'!N94-'GS FP per Tariff'!H94 -> 0.182147 | H94: ='GS FP per Tariff'!D94+'GS FP per Tariff'!G94 -> 0.147034 | I94: 0 | J94: =D94-G94-'GS FP per Tariff'!H94 -> 1.124859754e-17 | K94: =E94-H94-'GS FP per Tariff'!H94 -> 1.124859754e-17
A95: 17. | B95: CTWH-kWh Summer | C95: N/A | D95: ='GS FP per Tariff'!N95 -> 0.189776 | E95: ='GS FP per Tariff'!D95+'GS FP per Tariff'!G95+'GS FP per Tariff'!H95 -> 0.147665 | F95: =SUM('GS FP per Tariff'!E95:F95,'GS FP per Tariff'!I95:M95) -> 0.042111 | G95: ='GS FP per Tariff'!N95-'GS FP per Tariff'!H95 -> 0.189737 | H95: ='GS FP per Tariff'!D95+'GS FP per Tariff'!G95 -> 0.147626 | I95: 0 | J95: =D95-G95-'GS FP per Tariff'!H95 -> 1.124859754e-17 | K95: =E95-H95-'GS FP per Tariff'!H95 -> 1.124859754e-17
A96: 18. | B96: CTWH-kWh Winter | C96: N/A | D96: ='GS FP per Tariff'!N96 -> 0.189184 | E96: ='GS FP per Tariff'!D96+'GS FP per Tariff'!G96+'GS FP per Tariff'!H96 -> 0.147073 | F96: =SUM('GS FP per Tariff'!E96:F96,'GS FP per Tariff'!I96:M96) -> 0.042111 | G96: ='GS FP per Tariff'!N96-'GS FP per Tariff'!H96 -> 0.189145 | H96: ='GS FP per Tariff'!D96+'GS FP per Tariff'!G96 -> 0.147034 | I96: 0 | J96: =D96-G96-'GS FP per Tariff'!H96 -> 1.124859754e-17 | K96: =E96-H96-'GS FP per Tariff'!H96 -> 1.124859754e-17
A97: 19. | B97: Traffic Signal kWh Summer | C97: N/A | D97: ='GS FP per Tariff'!N97 -> 0.173057 | E97: ='GS FP per Tariff'!D97+'GS FP per Tariff'!G97+'GS FP per Tariff'!H97 -> 0.144233 | F97: =SUM('GS FP per Tariff'!E97:F97,'GS FP per Tariff'!I97:M97) -> 0.028824 | G97: ='GS FP per Tariff'!N97-'GS FP per Tariff'!H97 -> 0.173018 | H97: ='GS FP per Tariff'!D97+'GS FP per Tariff'!G97 -> 0.144194 | I97: 0 | J97: =D97-G97-'GS FP per Tariff'!H97 -> 1.124859754e-17 | K97: =E97-H97-'GS FP per Tariff'!H97 -> 1.124859754e-17
A98: 20. | B98: Traffic Signal kWh Winter | C98: N/A | D98: ='GS FP per Tariff'!N98 -> 0.172701 | E98: ='GS FP per Tariff'!D98+'GS FP per Tariff'!G98+'GS FP per Tariff'!H98 -> 0.143877 | F98: =SUM('GS FP per Tariff'!E98:F98,'GS FP per Tariff'!I98:M98) -> 0.028824 | G98: ='GS FP per Tariff'!N98-'GS FP per Tariff'!H98 -> 0.172662 | H98: ='GS FP per Tariff'!D98+'GS FP per Tariff'!G98 -> 0.143838 | I98: 0 | J98: =D98-G98-'GS FP per Tariff'!H98 -> 1.124859754e-17 | K98: =E98-H98-'GS FP per Tariff'!H98 -> 1.124859754e-17
A99: 21. | B99: Church Credit-1st 1,000 kWh | C99: N/A | D99: ='GS FP per Tariff'!N99 -> -0.038383 | E99: N/A | F99: =SUM('GS FP per Tariff'!E99:F99,'GS FP per Tariff'!I99:M99) -> -0.038383 | G99: N/A | H99: N/A
A100: 22. | B100: Church-1st 1,000 kWh-Summer(Incl.Credit) | C100: N/A | D100: ='GS FP per Tariff'!N100 -> 0.194185 | E100: ='GS FP per Tariff'!D100+'GS FP per Tariff'!G100+'GS FP per Tariff'!H100 -> 0.144233 | F100: =SUM('GS FP per Tariff'!E100:F100,'GS FP per Tariff'!I100:M100) -> 0.049952 | G100: ='GS FP per Tariff'!N100-'GS FP per Tariff'!H100 -> 0.194146 | H100: ='GS FP per Tariff'!D100+'GS FP per Tariff'!G100 -> 0.144194 | I100: =E100+F100-D100 -> 0 | J100: =D100-G100-'GS FP per Tariff'!H100 -> 1.124859754e-17 | K100: =E100-H100-'GS FP per Tariff'!H100 -> 1.124859754e-17
A101: 23. | B101: Church-1st 1,000 kWh-Winter(Incl.Credit) | C101: N/A | D101: ='GS FP per Tariff'!N101 -> 0.188203 | E101: ='GS FP per Tariff'!D101+'GS FP per Tariff'!G101+'GS FP per Tariff'!H101 -> 0.143877 | F101: =SUM('GS FP per Tariff'!E101:F101,'GS FP per Tariff'!I101:M101) -> 0.044326 | G101: ='GS FP per Tariff'!N101-'GS FP per Tariff'!H101 -> 0.188164 | H101: ='GS FP per Tariff'!D101+'GS FP per Tariff'!G101 -> 0.143838 | I101: =E101+F101-D101 -> 0 | J101: =D101-G101-'GS FP per Tariff'!H101 -> 1.124859754e-17 | K101: =E101-H101-'GS FP per Tariff'!H101 -> 1.124859754e-17
A103: * Note: Charges are billed to the customer by component as they appear in the Jersey Central Power & Light Tariff for Service.
A104: By multiplying the summarized charges in these tables times the customers kWh usage you may get an amount that is a few
A105: cents different than the actual amount of the customer's bill due to rounding differences.
A107: ='RT Summary'!A36 -> {1} Includes Distribution, SBC, NGC, TAA, RRC, SRC, ZEC, Energy & Capacity, Transmission (including RMR and TEC) and BGS-RSCP reconciliation charges
A108: ='RT Summary'!A37 -> {2} Includes Energy & Capacity, Transmission (including RMR and TEC) and the current BGS-RSCP reconciliation charge of $0.000037 per kWh
A109: ='RT Summary'!A38 -> {3} Includes Distribution, SBC, NGC, TAA, RRC , and ZEC charges
A110: ='RT Summary'!A39 -> {4} Includes Energy & Capacity, Transmission (including RMR and TEC) and the current BGS-RSCP reconciliation charge of $0.000039 per kWh

Sheet GS CIEP per Tariff
A1: ='GS FP per Tariff'!A1:B1 -> Visual_Rate_Inventory June 1, 2025 | C1: Jersey Central Power & Light
A2: =NOW() -> 2025-05-30T16:18:48.150
A3: =NOW() -> 45807.67972 | C3: ='RT per Tariff'!C3 -> Rates Effective with Service Rendered June 1, 2025
A4: GS CIEP per Tariff
C5: GS (General Service Secondary) Service Classification - CIEP BGS Rates
C6: Unbundled Rate Components
C8: Charges Applicable to Franchised Utility (Tax Exempt) Customers
C10: ='GS FP per Tariff'!C10:M10 -> Unbundled Components Excluding CBT & SUT - 6/1/2025 Rates Applicable to Franchised Utility Customers
C11: ='GS FP per Tariff'!C11 -> Customer Charge | D11: ='GS FP per Tariff'!D11 -> Transmission* {1} | E11: ='GS FP per Tariff'!E11 -> Distribution | F11: ='GS FP per Tariff'!F11 -> Covid Recovery Charge | G11: Retail Margin* | H11: BGS-CIEP Generation Capacity Charge* | I11: BGS-CIEP Reconciliation Charge* | J11: BGS-CIEP Hourly Energy Charges* | K11: ='GS FP per Tariff'!I11 -> Zero Emission Certificate Recovery Charge (ZEC) | L11: ='GS FP per Tariff'!J11 -> RGGI Recovery Charge (RRC) | M11: ='GS FP per Tariff'!K11 -> Societal Benefit Charge (SBC) | N11: ='GS FP per Tariff'!L11 -> LRAM | O11: ='GS FP per Tariff'!M11 -> Non-utility Generation Charge (NGC) | P11: Standby Fee
A12: 1. | B12: Customer Charge-Single Phase | C12: ='GS FP per Tariff'!C12 -> 4.2 | D12: N/A | E12: N/A | F12: N/A | G12: N/A | H12: N/A | I12: N/A | J12: N/A | K12: N/A | L12: N/A | M12: N/A | N12: N/A | O12: N/A | P12: N/A
A13: 2. | B13: Customer Charge-Three Phase | C13: ='GS FP per Tariff'!C13 -> 15.08 | D13: N/A | E13: N/A | F13: N/A | G13: N/A | H13: N/A | I13: N/A | J13: N/A | K13: N/A | L13: N/A | M13: N/A | N13: N/A | O13: N/A | P13: N/A
A14: 3. | B14: Supp Cust Charge-OPWH | C14: ='GS FP per Tariff'!C14 -> 2.01 | D14: N/A | E14: N/A | F14: N/A | G14: N/A | H14: N/A | I14: N/A | J14: N/A | K14: N/A | L14: N/A | M14: N/A | N14: N/A | O14: N/A | P14: N/A
A15: 4. | B15: Supp Cust Charge-CTWH | C15: ='GS FP per Tariff'!C15 -> 2.01 | D15: N/A | E15: N/A | F15: N/A | G15: N/A | H15: N/A | I15: N/A | J15: N/A | K15: N/A | L15: N/A | M15: N/A | N15: N/A | O15: N/A | P15: N/A
A16: 5. | B16: Supp Cust Charge-Day/Night | C16: ='GS FP per Tariff'!C16 -> 3.44 | D16: N/A | E16: N/A | F16: N/A | G16: N/A | H16: N/A | I16: N/A | J16: N/A | K16: N/A | L16: N/A | M16: N/A | N16: N/A | O16: N/A | P16: N/A
A17: 6. | B17: Traffic Signal-Supp Cust Charges | C17: ='GS FP per Tariff'!C17 -> 15.67 | D17: N/A | E17: N/A | F17: N/A | G17: N/A | H17: N/A | I17: N/A | J17: N/A | K17: N/A | L17: N/A | M17: N/A | N17: N/A | O17: N/A | P17: N/A
A19: 7. | B19: Over 10 KW Summer | C19: N/A | D19: N/A | E19: ='GS FP per Tariff'!E19 -> 8.13 | F19: N/A | G19: N/A | H19: N/A | I19: N/A | J19: N/A | K19: N/A | L19: N/A | M19: N/A | N19: N/A | O19: N/A | P19: N/A
A20: 8. | B20: Over 10 KW Winter | C20: N/A | D20: N/A | E20: ='GS FP per Tariff'!E20 -> 7.58 | F20: N/A | G20: N/A | H20: N/A | I20: N/A | J20: N/A | K20: N/A | L20: N/A | M20: N/A | N20: N/A | O20: N/A | P20: N/A
A21: 9. | B21: Standby KW Charge | C21: N/A | D21: N/A | E21: ='GS FP per Tariff'!E21 -> N/A | F21: N/A | G21: N/A | H21: N/A | I21: N/A | J21: N/A | K21: N/A | L21: N/A | M21: N/A | N21: N/A | O21: N/A | P21: N/A
A22: 10. | B22: Minimum Bill-Over 10 KW | C22: N/A | D22: N/A | E22: ='GS FP per Tariff'!E22 -> 3.69 | F22: N/A | G22: N/A | H22: N/A | I22: N/A | J22: N/A | K22: N/A | L22: N/A | M22: N/A | N22: N/A | O22: N/A | P22: N/A
A23: 11. | B23: Capacity Peak Load Share{2} - Summer | C23: N/A | D23: N/A | E23: N/A | F23: N/A | G23: N/A | H23: ='GST CIEP per Tariff'!H19 -> 0.62521 | I23: N/A | J23: N/A | K23: N/A | L23: N/A | M23: N/A | N23: N/A | O23: N/A | P23: N/A
A24: 12. | B24: Capacity Peak Load Share{2} - Winter | H24: ='GST CIEP per Tariff'!H20 -> 0.62521
A26: 13. | B26: First 1,000 kWh Summer | C26: N/A | D26: ='GS FP per Tariff'!D24 -> 0.018019 | E26: ='GS FP per Tariff'!E24 -> 0.068053 | F26: ='GS FP per Tariff'!F24 -> 0.000336 | G26: ='GST CIEP per Tariff'!G22 -> 0 | H26: N/A | I26: -0.002782 | J26: ='GST CIEP per Tariff'!J22 -> {3} | K26: ='RT per Tariff'!I$15 -> 0 | L26: ='RT per Tariff'!J15 -> 0.004435 | M26: ='RT per Tariff'!$K$15 -> 0.007223 | N26: ='GS FP per Tariff'!L24 -> 0.000463 | O26: ='GS FP per Tariff'!M24 -> -0.000219 | P26: ='GST CIEP per Tariff'!P22 -> 0.00015
A27: 14. | B27: First 1,000 kWh Winter | C27: N/A | D27: ='GS FP per Tariff'!D25 -> 0.018019 | E27: ='GS FP per Tariff'!E25 -> 0.062968 | F27: =F$26 -> 0.000336 | G27: =G26 -> 0 | H27: N/A | I27: =I26 -> -0.002782 | J27: =J26 -> {3} | K27: ='RT per Tariff'!I$15 -> 0 | L27: ='RT per Tariff'!J16 -> 0.004435 | M27: ='RT per Tariff'!$K$15 -> 0.007223 | N27: =$N$26 -> 0.000463 | O27: =O$26 -> -0.000219 | P27: =P26 -> 0.00015
A28: 15. | B28: Over 1,000 kWh Summer | C28: N/A | D28: ='GS FP per Tariff'!D26 -> 0.018019 | E28: ='GS FP per Tariff'!E26 -> 0.005443 | F28: 0.000336 | G28: =G27 -> 0 | H28: N/A | I28: =I27 -> -0.002782 | J28: {3} | K28: ='RT per Tariff'!I$15 -> 0 | L28: =L$26 -> 0.004435 | M28: ='RT per Tariff'!$K$15 -> 0.007223 | N28: =$N$26 -> 0.000463 | O28: =O$26 -> -0.000219 | P28: =P27 -> 0.00015
A29: 16. | B29: Over 1,000 kWh Winter | C29: N/A | D29: ='GS FP per Tariff'!D27 -> 0.018019 | E29: ='GS FP per Tariff'!E27 -> 0.005443 | F29: 0.000336 | G29: 0 | H29: N/A | I29: -0.002782 | J29: {3} | K29: ='RT per Tariff'!I$15 -> 0 | L29: =L$27 -> 0.004435 | M29: ='RT per Tariff'!$K$15 -> 0.007223 | N29: 0.000463 | O29: -0.000219 | P29: 0.00015
A30: 17. | B30: OPWH-kWh Summer | C30: N/A | D30: ='GS FP per Tariff'!D28 -> 0.018019 | E30: ='GS FP per Tariff'!E28 -> 0.019946 | F30: 0.000336 | G30: 0 | H30: N/A | I30: -0.002782 | J30: {3} | K30: ='RT per Tariff'!I$15 -> 0 | L30: 0.004435 | M30: ='RT per Tariff'!$K$15 -> 0.007223 | N30: 0.000463 | O30: -0.000219 | P30: 0.00015
A31: 18. | B31: OPWH-kWh Winter | C31: N/A | D31: ='GS FP per Tariff'!D29 -> 0.018019 | E31: ='GS FP per Tariff'!E29 -> 0.019946 | F31: 0.000336 | G31: 0 | H31: N/A | I31: -0.002782 | J31: {3} | K31: ='RT per Tariff'!I$15 -> 0 | L31: =L$27 -> 0.004435 | M31: ='RT per Tariff'!$K$15 -> 0.007223 | N31: 0.000463 | O31: -0.000219 | P31: 0.00015
A32: 19. | B32: CTWH-kWh Summer | C32: N/A | D32: ='GS FP per Tariff'!D30 -> 0.018019 | E32: ='GS FP per Tariff'!E30 -> 0.026271 | F32: 0.000336 | G32: 0 | H32: N/A | I32: -0.002782 | J32: {3} | K32: ='RT per Tariff'!I$15 -> 0 | L32: 0.004435 | M32: ='RT per Tariff'!$K$15 -> 0.007223 | N32: 0.000463 | O32: -0.000219 | P32: 0.00015
A33: 20. | B33: CTWH-kWh Winter | C33: N/A | D33: ='GS FP per Tariff'!D31 -> 0.018019 | E33: ='GS FP per Tariff'!E31 -> 0.026271 | F33: 0.000336 | G33: 0 | H33: N/A | I33: -0.002782 | J33: {3} | K33: ='RT per Tariff'!I$15 -> 0 | L33: =L$27 -> 0.004435 | M33: ='RT per Tariff'!$K$15 -> 0.007223 | N33: 0.000463 | O33: -0.000219 | P33: 0.00015
A34: 21. | B34: Traffic Signal kWh Summer | C34: N/A | D34: ='GS FP per Tariff'!D32 -> 0.018019 | E34: ='GS FP per Tariff'!E32 -> 0.014261 | F34: 0.000336 | G34: 0 | H34: N/A | I34: -0.002782 | J34: {3} | K34: ='RT per Tariff'!I$15 -> 0 | L34: 0.004435 | M34: ='RT per Tariff'!$K$15 -> 0.007223 | N34: 0.000463 | O34: -0.000219 | P34: 0.00015
A35: 22. | B35: Traffic Signal kWh Winter | C35: N/A | D35: ='GS FP per Tariff'!D33 -> 0.018019 | E35: ='GS FP per Tariff'!E33 -> 0.014261 | F35: 0.000336 | G35: 0 | H35: N/A | I35: -0.002782 | J35: {3} | K35: ='RT per Tariff'!I$15 -> 0 | L35: =L$27 -> 0.004435 | M35: ='RT per Tariff'!$K$15 -> 0.007223 | N35: 0.000463 | O35: -0.000219 | P35: 0.00015
C39: Charges Applicable to Federal Government (SUT Exempt) Accounts - CIEP BGS Rates
C41: ='RT per Tariff'!C10 -> Unbundled Components Including CBT - 6/1/2025 Rates Applicable to SUT Exempt Accounts
C42: Customer Charge | D42: =D11 -> Transmission* {1} | E42: Distribution | F42: Covid Recovery Charge | G42: Retail Margin* | H42: BGS-CIEP Generation Capacity Charge* | I42: BGS-CIEP Reconciliation Charge* | J42: BGS-CIEP Hourly Energy Charges* | K42: Zero Emission Certificate Recovery Charge (ZEC) | L42: RGGI Recovery Charge (RRC) | M42: =M11 -> Societal Benefit Charge (SBC) | N42: =N11 -> LRAM | O42: =O11 -> Non-utility Generation Charge (NGC) | P42: =P11 -> Standby Fee
A43: 1. | B43: Customer Charge-Single Phase | C43: ='GS FP per Tariff'!C41 -> 4.36 | D43: N/A | E43: N/A | F43: N/A | G43: N/A | H43: N/A | I43: N/A | J43: N/A | K43: N/A | L43: N/A | M43: N/A | N43: N/A | O43: N/A | P43: N/A
A44: 2. | B44: Customer Charge-Three Phase | C44: ='GS FP per Tariff'!C42 -> 15.65 | D44: N/A | E44: N/A | F44: N/A | G44: N/A | H44: N/A | I44: N/A | J44: N/A | K44: N/A | L44: N/A | M44: N/A | N44: N/A | O44: N/A | P44: N/A
A45: 3. | B45: Supp Cust Charge-OPWH | C45: ='GS FP per Tariff'!C43 -> 2.09 | D45: N/A | E45: N/A | F45: N/A | G45: N/A | H45: N/A | I45: N/A | J45: N/A | K45: N/A | L45: N/A | M45: N/A | N45: N/A | O45: N/A | P45: N/A
A46: 4. | B46: Supp Cust Charge-CTWH | C46: ='GS FP per Tariff'!C44 -> 2.09 | D46: N/A | E46: N/A | F46: N/A | G46: N/A | H46: N/A | I46: N/A | J46: N/A | K46: N/A | L46: N/A | M46: N/A | N46: N/A | O46: N/A | P46: N/A
A47: 5. | B47: Supp Cust Charge-Day/Night | C47: ='GS FP per Tariff'!C45 -> 3.57 | D47: N/A | E47: N/A | F47: N/A | G47: N/A | H47: N/A | I47: N/A | J47: N/A | K47: N/A | L47: N/A | M47: N/A | N47: N/A | O47: N/A | P47: N/A
A48: 6. | B48: Traffic Signal-Supp Cust Charges | C48: ='GS FP per Tariff'!C46 -> 16.26 | D48: N/A | E48: N/A | F48: N/A | G48: N/A | H48: N/A | I48: N/A | J48: N/A | K48: N/A | L48: N/A | M48: N/A | N48: N/A | O48: N/A | P48: N/A
A50: 7. | B50: Over 10 KW Summer | C50: N/A | D50: N/A | E50: ='GS FP per Tariff'!E48 -> 8.44 | F50: N/A | G50: N/A | H50: N/A | I50: N/A | J50: N/A | K50: N/A | L50: N/A | M50: N/A | N50: N/A | O50: N/A | P50: N/A
A51: 8. | B51: Over 10 KW Winter | C51: N/A | D51: N/A | E51: ='GS FP per Tariff'!E49 -> 7.86 | F51: N/A | G51: N/A | H51: N/A | I51: N/A | J51: N/A | K51: N/A | L51: N/A | M51: N/A | N51: N/A | O51: N/A | P51: N/A
A52: 9. | B52: Standby KW Charge | C52: N/A | D52: N/A | E52: ='GS FP per Tariff'!E50 -> 3.88 | F52: N/A | G52: N/A | H52: N/A | I52: N/A | J52: N/A | K52: N/A | L52: N/A | M52: N/A | N52: N/A | O52: N/A | P52: N/A
A53: 10. | B53: Minimum Bill-Over 10 KW | C53: N/A | D53: N/A | E53: ='GS FP per Tariff'!E51 -> 3.83 | F53: N/A | G53: N/A | H53: N/A | I53: N/A | J53: N/A | K53: N/A | L53: N/A | M53: N/A | N53: N/A | O53: N/A | P53: N/A
A54: 11. | B54: Capacity Peak Load Share{2} - Summer | C54: N/A | D54: N/A | E54: N/A | F54: N/A | G54: N/A | H54: =H23 -> 0.62521 | I54: N/A | J54: N/A | K54: N/A | L54: N/A | M54: N/A | N54: N/A | O54: N/A | P54: N/A
A55: 12. | B55: Capacity Peak Load Share{2} - Winter | H55: =H24 -> 0.62521
A57: 13. | B57: First 1,000 kWh Summer | C57: N/A | D57: ='GS FP per Tariff'!D53 -> 0.018019 | E57: ='GS FP per Tariff'!E53 -> 0.07061 | F57: =F$26 -> 0.000336 | G57: =G26 -> 0 | H57: N/A | I57: =I26 -> -0.002782 | J57: =J26 -> {3} | K57: ='RT per Tariff'!I$15 -> 0 | L57: =L$26 -> 0.004435 | M57: ='RT per Tariff'!$K$15 -> 0.007223 | N57: =$N$26 -> 0.000463 | O57: =O$26 -> -0.000219 | P57: =P26 -> 0.00015
A58: 14. | B58: First 1,000 kWh Winter | C58: N/A | D58: ='GS FP per Tariff'!D54 -> 0.018019 | E58: ='GS FP per Tariff'!E54 -> 0.065334 | F58: 0.000336 | G58: 0 | H58: N/A | I58: =I27 -> -0.002782 | J58: =J57 -> {3} | K58: ='RT per Tariff'!I$15 -> 0 | L58: =L$27 -> 0.004435 | M58: ='RT per Tariff'!$K$15 -> 0.007223 | N58: 0.000463 | O58: -0.000219 | P58: 0.00015
A59: 15. | B59: Over 1,000 kWh Summer | C59: N/A | D59: ='GS FP per Tariff'!D55 -> 0.018019 | E59: ='GS FP per Tariff'!E55 -> 0.005647 | F59: 0.000336 | G59: 0 | H59: N/A | I59: -0.002782 | J59: =J58 -> {3} | K59: ='RT per Tariff'!I$15 -> 0 | L59: =L$26 -> 0.004435 | M59: ='RT per Tariff'!$K$15 -> 0.007223 | N59: 0.000463 | O59: -0.000219 | P59: 0.00015
A60: 16. | B60: Over 1,000 kWh Winter | C60: N/A | D60: ='GS FP per Tariff'!D56 -> 0.018019 | E60: ='GS FP per Tariff'!E56 -> 0.005647 | F60: 0.000336 | G60: 0 | H60: N/A | I60: -0.002782 | J60: {3} | K60: ='RT per Tariff'!I$15 -> 0 | L60: =L$27 -> 0.004435 | M60: ='RT per Tariff'!$K$15 -> 0.007223 | N60: 0.000463 | O60: -0.000219 | P60: 0.00015
A61: 17. | B61: OPWH-kWh Summer | C61: N/A | D61: ='GS FP per Tariff'!D57 -> 0.018019 | E61: ='GS FP per Tariff'!E57 -> 0.020695 | F61: 0.000336 | G61: 0 | H61: N/A | I61: -0.002782 | J61: {3} | K61: ='RT per Tariff'!I$15 -> 0 | L61: 0.004435 | M61: ='RT per Tariff'!$K$15 -> 0.007223 | N61: 0.000463 | O61: -0.000219 | P61: 0.00015
A62: 18. | B62: OPWH-kWh Winter | C62: N/A | D62: ='GS FP per Tariff'!D58 -> 0.018019 | E62: ='GS FP per Tariff'!E58 -> 0.020695 | F62: 0.000336 | G62: 0 | H62: N/A | I62: -0.002782 | J62: {3} | K62: ='RT per Tariff'!I$15 -> 0 | L62: =L$27 -> 0.004435 | M62: ='RT per Tariff'!$K$15 -> 0.007223 | N62: 0.000463 | O62: -0.000219 | P62: 0.00015
A63: 19. | B63: CTWH-kWh Summer | C63: N/A | D63: ='GS FP per Tariff'!D59 -> 0.018019 | E63: ='GS FP per Tariff'!E59 -> 0.027258 | F63: 0.000336 | G63: 0 | H63: N/A | I63: -0.002782 | J63: {3} | K63: ='RT per Tariff'!I$15 -> 0 | L63: 0.004435 | M63: ='RT per Tariff'!$K$15 -> 0.007223 | N63: 0.000463 | O63: -0.000219 | P63: 0.00015
A64: 20. | B64: CTWH-kWh Winter | C64: N/A | D64: ='GS FP per Tariff'!D60 -> 0.018019 | E64: ='GS FP per Tariff'!E60 -> 0.027258 | F64: 0.000336 | G64: 0 | H64: N/A | I64: -0.002782 | J64: {3} | K64: ='RT per Tariff'!I$15 -> 0 | L64: =L$27 -> 0.004435 | M64: ='RT per Tariff'!$K$15 -> 0.007223 | N64: 0.000463 | O64: -0.000219 | P64: 0.00015
A65: 21. | B65: Traffic Signal kWh Summer | C65: N/A | D65: ='GS FP per Tariff'!D61 -> 0.018019 | E65: ='GS FP per Tariff'!E61 -> 0.014797 | F65: 0.000336 | G65: 0 | H65: N/A | I65: -0.002782 | J65: {3} | K65: ='RT per Tariff'!I$15 -> 0 | L65: 0.004435 | M65: ='RT per Tariff'!$K$15 -> 0.007223 | N65: 0.000463 | O65: -0.000219 | P65: 0.00015
A66: 22. | B66: Traffic Signal kWh Winter | C66: N/A | D66: ='GS FP per Tariff'!D62 -> 0.018019 | E66: ='GS FP per Tariff'!E62 -> 0.014797 | F66: 0.000336 | G66: 0 | H66: N/A | I66: -0.002782 | J66: {3} | K66: ='RT per Tariff'!I$15 -> 0 | L66: =L$27 -> 0.004435 | M66: ='RT per Tariff'!$K$15 -> 0.007223 | N66: 0.000463 | O66: -0.000219 | P66: 0.00015
B68: ='GST CIEP per Tariff'!B69 -> * Transmission, Retail Margin, BGS-CIEP Generation Capacity, BGS-CIEP Reconciliation and BGS-CIEP Hourly Energy Charges apply only to Full Service (non-shopping) Customers
B70: ='GS FP per Tariff'!B65 -> {1} Transmission Charge includes Reliability Must Run Surcharge (RMR) of $0.000000/$0.000000 (w/ SUT) Eff September 1, 2019 and Transmission Enhancement Charge (TEC) of $0.004066/0.004335 (w/ SUT) Eff May 1, 2025
B71: ='GST CIEP per Tariff'!B72 -> {2} The BGS-CIEP Generation Capacity Charge is billed based on Peak Load Share (PLS) on a per kW-day basis. The customer's PLS is adjusted by PJM
B72: ='GST CIEP per Tariff'!B73 -> assigned capacity related factors and then multiplied by the price per kW-day which is then multiplied by the number of days in the billing period.
B73: ='GST CIEP per Tariff'!B74 -> {3} Hourly Energy prices are based on the sum of actual real-time PJM load weighted average Locational Marginal Price for the JCP&L Transmission Zone and
B74: ='GST CIEP per Tariff'!B75 -> ancillary services of $0.00600 per KWH, times a Losses Multiplier times 6.625 % for Sales and Use Tax where applicable (See Tariff Rider BGS-CIEP)
A75: ='Disclaimer and Definitions'!$A$1 -> Visual_Rate_Inventory June 1, 2025 | C75: Jersey Central Power & Light
A77: =NOW() -> 45807.67972 | C77: ='RT per Tariff'!C3 -> Rates Effective with Service Rendered June 1, 2025
A78: GS CIEP per Tariff
C79: GS (General Service Secondary) Service Classification
C80: Unbundled Rate Components
C82: Charges Applicable to Non-Tax-Exempt Accounts - CIEP BGS Rates
C84: ='RT per Tariff'!C22 -> Unbundled Components Including CBT and SUT - 6/1/2025 Rates Applicable to Non-Tax-Exempt Customers
C85: Customer Charge | D85: =D11 -> Transmission* {1} | E85: =E11 -> Distribution | F85: Covid Recovery Charge | G85: Retail Margin* | H85: BGS-CIEP Generation Capacity Charge* | I85: BGS-CIEP Reconciliation Charge* | J85: BGS-CIEP Hourly Energy Charges* | K85: Zero Emission Certificate Recovery Charge (ZEC) | L85: RGGI Recovery Charge (RRC) | M85: Societal Benefit Charge (SBC) | N85: =N11 -> LRAM | O85: =O11 -> Non-utility Generation Charge (NGC) | P85: Standby Fee
A86: 1. | B86: Customer Charge-Single Phase | C86: ='GS FP per Tariff'!C77 -> 4.65 | D86: N/A | E86: N/A | F86: N/A | G86: N/A | H86: N/A | I86: N/A | J86: N/A | K86: N/A | L86: N/A | M86: N/A | N86: N/A | O86: N/A | P86: N/A
A87: 2. | B87: Customer Charge-Three Phase | C87: ='GS FP per Tariff'!C78 -> 16.69 | D87: N/A | E87: N/A | F87: N/A | G87: N/A | H87: N/A | I87: N/A | J87: N/A | K87: N/A | L87: N/A | M87: N/A | N87: N/A | O87: N/A | P87: N/A
A88: 3. | B88: Supp Cust Charge-OPWH | C88: ='GS FP per Tariff'!C79 -> 2.23 | D88: N/A | E88: N/A | F88: N/A | G88: N/A | H88: N/A | I88: N/A | J88: N/A | K88: N/A | L88: N/A | M88: N/A | N88: N/A | O88: N/A | P88: N/A
A89: 4. | B89: Supp Cust Charge-CTWH | C89: ='GS FP per Tariff'!C80 -> 2.23 | D89: N/A | E89: N/A | F89: N/A | G89: N/A | H89: N/A | I89: N/A | J89: N/A | K89: N/A | L89: N/A | M89: N/A | N89: N/A | O89: N/A | P89: N/A
A90: 5. | B90: Supp Cust Charge-Day/Night | C90: ='GS FP per Tariff'!C81 -> 3.81 | D90: N/A | E90: N/A | F90: N/A | G90: N/A | H90: N/A | I90: N/A | J90: N/A | K90: N/A | L90: N/A | M90: N/A | N90: N/A | O90: N/A | P90: N/A
A91: 6. | B91: Traffic Signal-Supp Cust Charges | C91: ='GS FP per Tariff'!C82 -> 17.34 | D91: N/A | E91: N/A | F91: N/A | G91: N/A | H91: N/A | I91: N/A | J91: N/A | K91: N/A | L91: N/A | M91: N/A | N91: N/A | O91: N/A | P91: N/A
A93: 7. | B93: Over 10 KW Summer | C93: N/A | D93: N/A | E93: ='GS FP per Tariff'!E84 -> 9 | F93: N/A | G93: N/A | H93: N/A | I93: N/A | J93: N/A | K93: N/A | L93: N/A | M93: N/A | N93: N/A | O93: N/A | P93: N/A
A94: 8. | B94: Over 10 KW Winter | C94: N/A | D94: N/A | E94: ='GS FP per Tariff'!E85 -> 8.38 | F94: N/A | G94: N/A | H94: N/A | I94: N/A | J94: N/A | K94: N/A | L94: N/A | M94: N/A | N94: N/A | O94: N/A | P94: N/A
A95: 9. | B95: Standby KW Charge | C95: N/A | D95: N/A | E95: ='GS FP per Tariff'!E86 -> 4.14 | F95: N/A | G95: N/A | H95: N/A | I95: N/A | J95: N/A | K95: N/A | L95: N/A | M95: N/A | N95: N/A | O95: N/A | P95: N/A
A96: 10. | B96: Minimum Bill-Over 10 KW | C96: N/A | D96: N/A | E96: ='GS FP per Tariff'!E87 -> 4.08 | F96: N/A | G96: N/A | H96: N/A | I96: N/A | J96: N/A | K96: N/A | L96: N/A | M96: N/A | N96: N/A | O96: N/A | P96: N/A
A97: 11. | B97: Capacity Peak Load Share {2} - Summer | C97: N/A | D97: N/A | E97: N/A | F97: N/A | G97: N/A | H97: ='GST CIEP per Tariff'!H61 -> 0.66663 | I97: N/A | J97: N/A | K97: N/A | L97: N/A | M97: N/A | N97: N/A | O97: N/A | P97: N/A
A98: 12. | B98: Capacity Peak Load Share {2} - Winter | H98: ='GST CIEP per Tariff'!H62 -> 0.66663
A100: 13. | B100: First 1,000 kWh Summer | C100: N/A | D100: ='GS FP per Tariff'!D89 -> 0.019212 | E100: ='GS FP per Tariff'!E89 -> 0.075288 | F100: ='GS FP per Tariff'!F89 -> 0.000358 | G100: ='GST CIEP per Tariff'!G64 -> 0 | H100: N/A | I100: =ROUND(I26*SUT_6625,6) -> -0.002966 | J100: =J26 -> {3} | K100: ='RT per Tariff'!I$27 -> 0 | L100: ='RT per Tariff'!J27 -> 0.004729 | M100: ='RT per Tariff'!$K$27 -> 0.0077 | N100: ='GS FP per Tariff'!L89 -> 0.000494 | O100: ='GS FP per Tariff'!M89 -> -0.000234 | P100: ='GST CIEP per Tariff'!P64 -> 0.00016
A101: 14. | B101: First 1,000 kWh Winter | C101: N/A | D101: ='GS FP per Tariff'!D90 -> 0.019212 | E101: ='GS FP per Tariff'!E90 -> 0.069662 | F101: =F$100 -> 0.000358 | G101: =G100 -> 0 | H101: N/A | I101: -0.002966 | J101: =J100 -> {3} | K101: ='RT per Tariff'!I$27 -> 0 | L101: ='RT per Tariff'!J28 -> 0.004729 | M101: ='RT per Tariff'!$K$27 -> 0.0077 | N101: =$N$100 -> 0.000494 | O101: =O$100 -> -0.000234 | P101: =P100 -> 0.00016
A102: 15. | B102: Over 1,000 kWh Summer | C102: N/A | D102: ='GS FP per Tariff'!D91 -> 0.019212 | E102: ='GS FP per Tariff'!E91 -> 0.006021 | F102: =F$100 -> 0.000358 | G102: =G101 -> 0 | H102: N/A | I102: -0.002966 | J102: =J101 -> {3} | K102: ='RT per Tariff'!I$27 -> 0 | L102: =L$100 -> 0.004729 | M102: ='RT per Tariff'!$K$27 -> 0.0077 | N102: =$N$100 -> 0.000494 | O102: =O$100 -> -0.000234 | P102: =P101 -> 0.00016
A103: 16. | B103: Over 1,000 kWh Winter | C103: N/A | D103: ='GS FP per Tariff'!D92 -> 0.019212 | E103: ='GS FP per Tariff'!E92 -> 0.006021 | F103: 0.000358 | G103: 0 | H103: N/A | I103: -0.002966 | J103: {3} | K103: ='RT per Tariff'!I$27 -> 0 | L103: =L$101 -> 0.004729 | M103: ='RT per Tariff'!$K$27 -> 0.0077 | N103: 0.000494 | O103: -0.000234 | P103: 0.00016
A104: 17. | B104: OPWH-kWh Summer | C104: N/A | D104: ='GS FP per Tariff'!D93 -> 0.019212 | E104: ='GS FP per Tariff'!E93 -> 0.022066 | F104: 0.000358 | G104: 0 | H104: N/A | I104: -0.002966 | J104: {3} | K104: ='RT per Tariff'!I$27 -> 0 | L104: 0.004729 | M104: ='RT per Tariff'!$K$27 -> 0.0077 | N104: 0.000494 | O104: -0.000234 | P104: 0.00016
A105: 18. | B105: OPWH-kWh Winter | C105: N/A | D105: ='GS FP per Tariff'!D94 -> 0.019212 | E105: ='GS FP per Tariff'!E94 -> 0.022066 | F105: 0.000358 | G105: 0 | H105: N/A | I105: -0.002966 | J105: {3} | K105: ='RT per Tariff'!I$27 -> 0 | L105: =L$101 -> 0.004729 | M105: ='RT per Tariff'!$K$27 -> 0.0077 | N105: 0.000494 | O105: -0.000234 | P105: 0.00016
A106: 19. | B106: CTWH-kWh Summer | C106: N/A | D106: ='GS FP per Tariff'!D95 -> 0.019212 | E106: ='GS FP per Tariff'!E95 -> 0.029064 | F106: 0.000358 | G106: 0 | H106: N/A | I106: -0.002966 | J106: {3} | K106: ='RT per Tariff'!I$27 -> 0 | L106: 0.004729 | M106: ='RT per Tariff'!$K$27 -> 0.0077 | N106: 0.000494 | O106: -0.000234 | P106: 0.00016
A107: 20. | B107: CTWH-kWh Winter | C107: N/A | D107: ='GS FP per Tariff'!D96 -> 0.019212 | E107: ='GS FP per Tariff'!E96 -> 0.029064 | F107: 0.000358 | G107: 0 | H107: N/A | I107: -0.002966 | J107: {3} | K107: ='RT per Tariff'!I$27 -> 0 | L107: =L$101 -> 0.004729 | M107: ='RT per Tariff'!$K$27 -> 0.0077 | N107: 0.000494 | O107: -0.000234 | P107: 0.00016
A108: 21. | B108: Traffic Signal kWh Summer | C108: N/A | D108: ='GS FP per Tariff'!D97 -> 0.019212 | E108: ='GS FP per Tariff'!E97 -> 0.015777 | F108: 0.000358 | G108: 0 | H108: N/A | I108: -0.002966 | J108: {3} | K108: ='RT per Tariff'!I$27 -> 0 | L108: 0.004729 | M108: ='RT per Tariff'!$K$27 -> 0.0077 | N108: 0.000494 | O108: -0.000234 | P108: 0.00016
A109: 22. | B109: Traffic Signal kWh Winter | C109: N/A | D109: ='GS FP per Tariff'!D98 -> 0.019212 | E109: ='GS FP per Tariff'!E98 -> 0.015777 | F109: 0.000358 | G109: 0 | H109: N/A | I109: -0.002966 | J109: {3} | K109: ='RT per Tariff'!I$27 -> 0 | L109: =L$101 -> 0.004729 | M109: ='RT per Tariff'!$K$27 -> 0.0077 | N109: 0.000494 | O109: -0.000234 | P109: 0.00016
A110: 23. | B110: Church Credit-1st 1,000 kWh | C110: N/A | D110: ='GS FP per Tariff'!D99 -> N/A | E110: ='GS FP per Tariff'!E99 -> -0.038383 | F110: N/A | G110: N/A | H110: N/A | I110: N/A | J110: N/A | K110: N/A | L110: N/A | M110: N/A | N110: N/A | O110: N/A | P110: N/A
A111: 24. | B111: Church-1st 1,000 kWh-Summer(Incl.Credit) | C111: N/A | D111: ='GS FP per Tariff'!D100 -> 0.019212 | E111: ='GS FP per Tariff'!E100 -> 0.036905 | F111: =F$100 -> 0.000358 | G111: =G100 -> 0 | H111: N/A | I111: =I100 -> -0.002966 | J111: =J100 -> {3} | K111: ='RT per Tariff'!I$27 -> 0 | L111: 0.004729 | M111: ='RT per Tariff'!$K$27 -> 0.0077 | N111: =$N$100 -> 0.000494 | O111: =O$100 -> -0.000234 | P111: =P100 -> 0.00016
A112: 25. | B112: Church-1st 1,000 kWh-Winter(Incl.Credit) | C112: N/A | D112: ='GS FP per Tariff'!D101 -> 0.019212 | E112: ='GS FP per Tariff'!E101 -> 0.031279 | F112: =F$100 -> 0.000358 | G112: =G100 -> 0 | H112: N/A | I112: =I100 -> -0.002966 | J112: =J100 -> {3} | K112: ='RT per Tariff'!I$27 -> 0 | L112: =L$101 -> 0.004729 | M112: ='RT per Tariff'!$K$27 -> 0.0077 | N112: =$N$100 -> 0.000494 | O112: =O$100 -> -0.000234 | P112: =P100 -> 0.00016
B114: ='GST CIEP per Tariff'!B69 -> * Transmission, Retail Margin, BGS-CIEP Generation Capacity, BGS-CIEP Reconciliation and BGS-CIEP Hourly Energy Charges apply only to Full Service (non-shopping) Customers
B116: =B70 -> {1} Transmission Charge includes Reliability Must Run Surcharge (RMR) of $0.000000/$0.000000 (w/ SUT) Eff September 1, 2019 and Transmission Enhancement Charge (TEC) of $0.004066/0.004335 (w/ SUT) Eff May 1, 2025
B117: ='GST CIEP per Tariff'!B72 -> {2} The BGS-CIEP Generation Capacity Charge is billed based on Peak Load Share (PLS) on a per kW-day basis. The customer's PLS is adjusted by PJM
B118: ='GST CIEP per Tariff'!B73 -> assigned capacity related factors and then multiplied by the price per kW-day which is then multiplied by the number of days in the billing period.
B119: ='GST CIEP per Tariff'!B74 -> {3} Hourly Energy prices are based on the sum of actual real-time PJM load weighted average Locational Marginal Price for the JCP&L Transmission Zone and
B120: ='GST CIEP per Tariff'!B75 -> ancillary services of $0.00600 per KWH, times a Losses Multiplier times 6.625 % for Sales and Use Tax where applicable (See Tariff Rider BGS-CIEP)

Sheet GST FP per Tariff
A1: ='GS FP per Tariff'!A1:B1 -> Visual_Rate_Inventory June 1, 2025 | C1: Jersey Central Power & Light
A2: =NOW() -> 2025-05-30T16:18:48.150
A3: =NOW() -> 45807.67972 | C3: ='RT per Tariff'!C3 -> Rates Effective with Service Rendered June 1, 2025
A4: GST FP per Tariff
C5: GST (General Service Secondary - Time-of-Day) Service Classification - Fixed Price BGS Rates
C6: Unbundled Rate Components
C8: Charges Applicable to Franchised Utility (Tax Exempt) Customers
C10: ='GS FP per Tariff'!C10 -> Unbundled Components Excluding CBT & SUT - 6/1/2025 Rates Applicable to Franchised Utility Customers
C11: ='RT per Tariff'!C11 -> Customer Charge | D11: ='RT per Tariff'!D11 -> Transmission* {1} | E11: ='RT per Tariff'!E11 -> Distribution | F11: ='RT per Tariff'!F11 -> Covid Recovery Charge | G11: ='GS FP per Tariff'!G11 -> BGS-RSCP Energy & Capacity * | H11: ='RT per Tariff'!H11 -> BGS-RSCP Reconciliation Charge* | I11: ='RT per Tariff'!I11 -> Zero Emission Certificate Recovery Charge (ZEC) | J11: ='RT per Tariff'!J11 -> RGGI Recovery Charge (RRC) | K11: ='RT per Tariff'!K11 -> Societal Benefit Charge (SBC) | L11: ='RT per Tariff'!L11 -> LRAM | M11: ='RT per Tariff'!M11 -> Non-utility Generation Charge (NGC) | N11: Total
A12: 1. | B12: Customer Charge-Single Phase | C12: 36.51 | D12: N/A | E12: N/A | F12: N/A | G12: N/A | H12: N/A | I12: N/A | J12: N/A | K12: N/A | L12: N/A | M12: N/A | N12: N/A
A13: 2. | B13: Customer Charge-Three Phase | C13: 52.09 | D13: N/A | E13: N/A | F13: N/A | G13: N/A | H13: N/A | I13: N/A | J13: N/A | K13: N/A | L13: N/A | M13: N/A | N13: N/A
A15: 3. | B15: All Summer On-Peak KW | C15: N/A | D15: N/A | E15: 8.81 | F15: N/A | G15: N/A | H15: N/A | I15: N/A | J15: N/A | K15: N/A | L15: ='SBC TBC and MTC Tax'!B61 -> 0.17 | M15: N/A | N15: N/A
A16: 4. | B16: All Winter On-Peak KW | C16: N/A | D16: N/A | E16: 8.23 | F16: N/A | G16: N/A | H16: N/A | I16: N/A | J16: N/A | K16: N/A | L16: =L15 -> 0.17 | M16: N/A | N16: N/A
A17: 5. | B17: Standby Service KW | C17: N/A | D17: N/A | E17: N/A | F17: N/A | G17: N/A | H17: N/A | I17: N/A | J17: N/A | K17: N/A | L17: N/A | M17: N/A | N17: N/A
A18: 6. | B18: Minimum Bill KW | C18: N/A | D18: N/A | E18: 3.85 | F18: N/A | G18: N/A | H18: N/A | I18: N/A | J18: N/A | K18: N/A | L18: N/A | M18: N/A | N18: N/A
A20: 7. | B20: Summer On-Peak kWh | C20: N/A | D20: ='RT per Tariff'!D15 -> 0.018019 | E20: 0.004714 | F20: ='RT per Tariff'!F15 -> 0.000336 | G20: 0.155289 | H20: ='RT per Tariff'!H$15 -> 3.7e-05 | I20: ='RT per Tariff'!I$15 -> 0 | J20: ='RT per Tariff'!J15 -> 0.004435 | K20: ='RT per Tariff'!$K$15 -> 0.007223 | L20: ='SBC TBC and MTC Tax'!B52 -> 0 | M20: ='GS FP per Tariff'!M24 -> -0.000219 | N20: =SUM(D20:M20) -> 0.189834
A21: 8. | B21: Winter On-Peak kWh | C21: N/A | D21: =D$20 -> 0.018019 | E21: 0.004714 | F21: 0.000336 | G21: 0.149295 | H21: ='RT per Tariff'!H$15 -> 3.7e-05 | I21: ='RT per Tariff'!I$15 -> 0 | J21: ='RT per Tariff'!J16 -> 0.004435 | K21: ='RT per Tariff'!$K$15 -> 0.007223 | L21: =L$20 -> 0 | M21: =M$20 -> -0.000219 | N21: =SUM(D21:M21) -> 0.18384
A22: 9. | B22: Summer Off-Peak kWh | C22: N/A | D22: 0.018019 | E22: 0.004714 | F22: 0.000336 | G22: 0.087024 | H22: ='RT per Tariff'!H$15 -> 3.7e-05 | I22: ='RT per Tariff'!I$15 -> 0 | J22: =J$20 -> 0.004435 | K22: ='RT per Tariff'!$K$15 -> 0.007223 | L22: 0 | M22: =M$20 -> -0.000219 | N22: =SUM(D22:M22) -> 0.121569
A23: 10. | B23: Winter Off-Peak kWh | C23: N/A | D23: 0.018019 | E23: 0.004714 | F23: 0.000336 | G23: 0.095571 | H23: ='RT per Tariff'!H$15 -> 3.7e-05 | I23: ='RT per Tariff'!I$15 -> 0 | J23: =J$21 -> 0.004435 | K23: ='RT per Tariff'!$K$15 -> 0.007223 | L23: 0 | M23: =M$20 -> -0.000219 | N23: =SUM(D23:M23) -> 0.130116
C25: Charges Applicable to Federal Government (SUT Exempt) Accounts - Fixed Price BGS Rates
C27: ='RT per Tariff'!C10 -> Unbundled Components Including CBT - 6/1/2025 Rates Applicable to SUT Exempt Accounts
C28: =C11 -> Customer Charge | D28: Transmission* {1} | E28: Distribution | F28: Covid Recovery Charge | G28: BGS-RSCP Energy & Capacity * | H28: BGS-RSCP Reconciliation Charge* | I28: Zero Emission Certificate Recovery Charge (ZEC) | J28: RGGI Recovery Charge (RRC) | K28: Societal Benefit Charge (SBC) | L28: LRAM | M28: Non-utility Generation Charge (NGC) | N28: Total
A29: 1. | B29: Customer Charge-Single Phase | C29: 37.88 | D29: N/A | E29: N/A | F29: N/A | G29: N/A | H29: N/A | I29: N/A | J29: N/A | K29: N/A | L29: N/A | M29: N/A | N29: N/A
A30: 2. | B30: Customer Charge-Three Phase | C30: 54.05 | D30: N/A | E30: N/A | F30: N/A | G30: N/A | H30: N/A | I30: N/A | J30: N/A | K30: N/A | L30: N/A | M30: N/A | N30: N/A
A32: 3. | B32: All Summer On-Peak KW | C32: N/A | D32: N/A | E32: 9.14 | F32: =F15 -> N/A | G32: N/A | H32: N/A | I32: N/A | J32: N/A | K32: N/A | L32: =L15 -> 0.17 | M32: N/A | N32: N/A
A33: 4. | B33: All Winter On-Peak KW | C33: N/A | D33: N/A | E33: 8.54 | F33: =F16 -> N/A | G33: N/A | H33: N/A | I33: N/A | J33: N/A | K33: N/A | L33: =L16 -> 0.17 | M33: N/A | N33: N/A
A34: 5. | B34: Standby Service KW | C34: N/A | D34: N/A | E34: 3.88 | F34: =F32 -> N/A | G34: N/A | H34: N/A | I34: N/A | J34: N/A | K34: N/A | L34: N/A | M34: N/A | N34: N/A
A35: 6. | B35: Minimum Bill KW | C35: N/A | D35: N/A | E35: 3.99 | F35: =F18 -> N/A | G35: N/A | H35: N/A | I35: N/A | J35: N/A | K35: N/A | L35: N/A | M35: N/A | N35: N/A
A37: 7. | B37: Summer On-Peak kWh | C37: N/A | D37: =D20 -> 0.018019 | E37: 0.004891 | F37: =F$20 -> 0.000336 | G37: =G20 -> 0.155289 | H37: ='RT per Tariff'!H$15 -> 3.7e-05 | I37: ='RT per Tariff'!I$15 -> 0 | J37: =J$20 -> 0.004435 | K37: ='RT per Tariff'!$K$15 -> 0.007223 | L37: =L$20 -> 0 | M37: =M$20 -> -0.000219 | N37: =SUM(D37:M37) -> 0.190011
A38: 8. | B38: Winter On-Peak kWh | C38: N/A | D38: =D21 -> 0.018019 | E38: =E$37 -> 0.004891 | F38: 0.000336 | G38: =G21 -> 0.149295 | H38: ='RT per Tariff'!H$15 -> 3.7e-05 | I38: ='RT per Tariff'!I$15 -> 0 | J38: =J$21 -> 0.004435 | K38: ='RT per Tariff'!$K$15 -> 0.007223 | L38: =L$37 -> 0 | M38: =M$20 -> -0.000219 | N38: =SUM(D38:M38) -> 0.184017
A39: 9. | B39: Summer Off-Peak kWh | C39: N/A | D39: =D22 -> 0.018019 | E39: =E$37 -> 0.004891 | F39: 0.000336 | G39: =G22 -> 0.087024 | H39: ='RT per Tariff'!H$15 -> 3.7e-05 | I39: ='RT per Tariff'!I$15 -> 0 | J39: =J$20 -> 0.004435 | K39: ='RT per Tariff'!$K$15 -> 0.007223 | L39: =L$37 -> 0 | M39: =M$20 -> -0.000219 | N39: =SUM(D39:M39) -> 0.121746
A40: 10. | B40: Winter Off-Peak kWh | C40: N/A | D40: =D23 -> 0.018019 | E40: =E$37 -> 0.004891 | F40: 0.000336 | G40: =G23 -> 0.095571 | H40: ='RT per Tariff'!H$15 -> 3.7e-05 | I40: ='RT per Tariff'!I$15 -> 0 | J40: =J$21 -> 0.004435 | K40: ='RT per Tariff'!$K$15 -> 0.007223 | L40: =L$37 -> 0 | M40: =M$20 -> -0.000219 | N40: =SUM(D40:M40) -> 0.130293
C44: Charges Applicable to Non-Tax-Exempt Accounts - Fixed Price BGS Rates
C46: ='RT per Tariff'!C22 -> Unbundled Components Including CBT and SUT - 6/1/2025 Rates Applicable to Non-Tax-Exempt Customers
C47: =C28 -> Customer Charge | D47: =D28 -> Transmission* {1} | E47: Distribution | F47: Covid Recovery Charge | G47: BGS-RSCP Energy & Capacity * | H47: BGS-RSCP Reconciliation Charge* | I47: Zero Emission Certificate Recovery Charge (ZEC) | J47: RGGI Recovery Charge (RRC) | K47: Societal Benefit Charge (SBC) | L47: =L28 -> LRAM | M47: =M28 -> Non-utility Generation Charge (NGC) | N47: Total
A48: 1. | B48: Customer Charge-Single Phase | C48: =ROUND(C29*SUT_6625,2) -> 40.39 | D48: N/A | E48: N/A | F48: N/A | G48: N/A | H48: N/A | I48: N/A | J48: N/A | K48: N/A | L48: N/A | M48: N/A | N48: N/A
A49: 2. | B49: Customer Charge-Three Phase | C49: =ROUND(C30*SUT_6625,2) -> 57.63 | D49: N/A | E49: N/A | F49: N/A | G49: N/A | H49: N/A | I49: N/A | J49: N/A | K49: N/A | L49: N/A | M49: N/A | N49: N/A
A51: 3. | B51: All Summer On-Peak KW | C51: N/A | D51: N/A | E51: =ROUND(E32*SUT_6625,2) -> 9.75 | F51: N/A | G51: N/A | H51: N/A | I51: N/A | J51: N/A | K51: N/A | L51: =ROUND(L32*SUT_6625,2) -> 0.18 | M51: N/A | N51: N/A
A52: 4. | B52: All Winter On-Peak KW | C52: N/A | D52: N/A | E52: =ROUND(E33*SUT_6625,2) -> 9.11 | F52: N/A | G52: N/A | H52: N/A | I52: N/A | J52: N/A | K52: N/A | L52: =ROUND(L33*SUT_6625,2) -> 0.18 | M52: N/A | N52: N/A
A53: 5. | B53: Standby Service KW | C53: N/A | D53: N/A | E53: =ROUND(E34*SUT_6625,2) -> 4.14 | F53: N/A | G53: N/A | H53: N/A | I53: N/A | J53: N/A | K53: N/A | L53: N/A | M53: N/A | N53: N/A
A54: 6. | B54: Minimum Bill KW | C54: N/A | D54: N/A | E54: =ROUND(E35*SUT_6625,2) -> 4.25 | F54: N/A | G54: N/A | H54: N/A | I54: N/A | J54: N/A | K54: N/A | L54: N/A | M54: N/A | N54: N/A
A56: 7. | B56: Summer On-Peak kWh | C56: N/A | D56: ='RT per Tariff'!D27 -> 0.019212 | E56: =ROUND(E37*SUT_6625,6) -> 0.005215 | F56: =ROUND(F37*SUT_6625,6) -> 0.000358 | G56: =ROUND(G20*SUT_6625,6) -> 0.165577 | H56: ='RT per Tariff'!H$27 -> 3.9e-05 | I56: ='RT per Tariff'!I$27 -> 0 | J56: ='RT per Tariff'!J27 -> 0.004729 | K56: ='RT per Tariff'!$K$27 -> 0.0077 | L56: =ROUND(L37*SUT_6625,6) -> 0 | M56: ='GS FP per Tariff'!M89 -> -0.000234 | N56: =SUM(D56:M56) -> 0.202596
A57: 8. | B57: Winter On-Peak kWh | C57: N/A | D57: =D$56 -> 0.019212 | E57: 0.005215 | F57: 0.000358 | G57: =ROUND(G21*SUT_6625,6) -> 0.159186 | H57: ='RT per Tariff'!H$27 -> 3.9e-05 | I57: ='RT per Tariff'!I$27 -> 0 | J57: ='RT per Tariff'!J28 -> 0.004729 | K57: ='RT per Tariff'!$K$27 -> 0.0077 | L57: =L$56 -> 0 | M57: =M$56 -> -0.000234 | N57: =SUM(D57:M57) -> 0.196205
A58: 9. | B58: Summer Off-Peak kWh | C58: N/A | D58: 0.019212 | E58: 0.005215 | F58: 0.000358 | G58: =ROUND(G22*SUT_6625,6) -> 0.092789 | H58: ='RT per Tariff'!H$27 -> 3.9e-05 | I58: ='RT per Tariff'!I$27 -> 0 | J58: =J$56 -> 0.004729 | K58: ='RT per Tariff'!$K$27 -> 0.0077 | L58: 0 | M58: =M$56 -> -0.000234 | N58: =SUM(D58:M58) -> 0.129808
A59: 10. | B59: Winter Off-Peak kWh | C59: N/A | D59: 0.019212 | E59: 0.005215 | F59: 0.000358 | G59: =ROUND(G23*SUT_6625,6) -> 0.101903 | H59: ='RT per Tariff'!H$27 -> 3.9e-05 | I59: ='RT per Tariff'!I$27 -> 0 | J59: =J$57 -> 0.004729 | K59: ='RT per Tariff'!$K$27 -> 0.0077 | L59: 0 | M59: =M$56 -> -0.000234 | N59: =SUM(D59:M59) -> 0.138922
B61: ='RT per Tariff'!$A$32 -> * Transmission, Energy & Capacity and BGS-RSCP Reconciliation Charges apply only to Full Service (non-shopping) Customers
B62: ='RT per Tariff'!A33 -> {1} Transmission Charge includes Reliability Must Run Surcharge (RMR) of $0.000000/$0.000000 (w/ SUT) Eff September 1, 2019 and Transmission Enhancement Charge (TEC) of $0.004066/0.004335 (w/ SUT) Eff May 1, 2025

Sheet GST FP Summary
A1: ='GST FP per Tariff'!A1:B1 -> Visual_Rate_Inventory June 1, 2025 | C1: Jersey Central Power & Light
A2: =NOW() -> 2025-05-30T16:18:48.150
A3: =NOW() -> 45807.67972 | C3: ='RT per Tariff'!C3 -> Rates Effective with Service Rendered June 1, 2025
A4: GST FP Summary
C5: GST (General Service Secondary - Time-of-Day) Service Classification - Fixed Price BGS Rates
C7: Summary of Charges *
C10: Summary of Charges Applicable to Franchised Utility (Tax Exempt) Customers | G10: Summary Without BGS Reconciliation Charges
C11: Customer Charge | D11: Full Service Customer Total kWh Charges{1} | E11: Basic Generation Service Charge/Price to Compare{2} | F11: Delivery Service kWh Charges{3} | G11: Full Service Customer Total kWh Charges | H11: Basic Generation Service Charge/Price to Compare
A12: 1. | B12: Customer Charge-Single Phase | C12: ='GST FP per Tariff'!C12 -> 36.51 | D12: N/A | E12: N/A | F12: N/A | G12: N/A | H12: N/A
A13: 2. | B13: Customer Charge-Three Phase | C13: ='GST FP per Tariff'!C13 -> 52.09 | D13: N/A | E13: N/A | F13: N/A | G13: N/A | H13: N/A
A15: 3. | B15: All Summer On-Peak KW | C15: N/A | D15: N/A | E15: N/A | F15: N/A | G15: N/A | H15: N/A
A16: 4. | B16: All Winter On-Peak KW | C16: N/A | D16: N/A | E16: N/A | F16: N/A | G16: N/A | H16: N/A
A17: 5. | B17: Standby Service KW | C17: N/A | D17: N/A | E17: N/A | F17: N/A | G17: N/A | H17: N/A
A18: 6. | B18: Minimum Bill KW | C18: N/A | D18: N/A | E18: N/A | F18: N/A | G18: N/A | H18: N/A
A20: 7. | B20: Summer On-Peak kWh | C20: N/A | D20: ='GST FP per Tariff'!N20 -> 0.189834 | E20: ='GST FP per Tariff'!D20+'GST FP per Tariff'!G20+'GST FP per Tariff'!H20 -> 0.173345 | F20: =SUM('GST FP per Tariff'!E20:F20,'GST FP per Tariff'!I20:K20,'GST FP per Tariff'!M20) -> 0.016489 | G20: ='GST FP per Tariff'!N20-'GST FP per Tariff'!H20 -> 0.189797 | H20: ='GST FP per Tariff'!D20+'GST FP per Tariff'!G20 -> 0.173308 | I20: =E20+F20-D20 -> 0 | J20: =D20-G20-'GST FP per Tariff'!H20 -> 9.249599784e-18 | K20: =E20-H20-'GST FP per Tariff'!H20 -> 9.249599784e-18
A21: 8. | B21: Winter On-Peak kWh | C21: N/A | D21: ='GST FP per Tariff'!N21 -> 0.18384 | E21: ='GST FP per Tariff'!D21+'GST FP per Tariff'!G21+'GST FP per Tariff'!H21 -> 0.167351 | F21: =SUM('GST FP per Tariff'!E21:F21,'GST FP per Tariff'!I21:K21,'GST FP per Tariff'!M21) -> 0.016489 | G21: ='GST FP per Tariff'!N21-'GST FP per Tariff'!H21 -> 0.183803 | H21: ='GST FP per Tariff'!D21+'GST FP per Tariff'!G21 -> 0.167314 | I21: =E21+F21-D21 -> 0 | J21: =D21-G21-'GST FP per Tariff'!H21 -> 9.249599784e-18 | K21: =E21-H21-'GST FP per Tariff'!H21 -> 9.249599784e-18
A22: 9. | B22: Summer Off-Peak kWh | C22: N/A | D22: ='GST FP per Tariff'!N22 -> 0.121569 | E22: ='GST FP per Tariff'!D22+'GST FP per Tariff'!G22+'GST FP per Tariff'!H22 -> 0.10508 | F22: =SUM('GST FP per Tariff'!E22:F22,'GST FP per Tariff'!I22:K22,'GST FP per Tariff'!M22) -> 0.016489 | G22: ='GST FP per Tariff'!N22-'GST FP per Tariff'!H22 -> 0.121532 | H22: ='GST FP per Tariff'!D22+'GST FP per Tariff'!G22 -> 0.105043 | I22: 0 | J22: =D22-G22-'GST FP per Tariff'!H22 -> -4.628188024e-18 | K22: =E22-H22-'GST FP per Tariff'!H22 -> -4.628188024e-18
A23: 10. | B23: Winter Off-Peak kWh | C23: N/A | D23: ='GST FP per Tariff'!N23 -> 0.130116 | E23: ='GST FP per Tariff'!D23+'GST FP per Tariff'!G23+'GST FP per Tariff'!H23 -> 0.113627 | F23: =SUM('GST FP per Tariff'!E23:F23,'GST FP per Tariff'!I23:K23,'GST FP per Tariff'!M23) -> 0.016489 | G23: ='GST FP per Tariff'!N23-'GST FP per Tariff'!H23 -> 0.130079 | H23: ='GST FP per Tariff'!D23+'GST FP per Tariff'!G23 -> 0.11359 | I23: 0 | J23: =D23-G23-'GST FP per Tariff'!H23 -> 9.249599784e-18 | K23: =E23-H23-'GST FP per Tariff'!H23 -> -4.628188024e-18
C25: Summary of Charges Applicable to Federal Government (SUT Exempt) Customers | G25: Summary Without BGS Reconciliation Charges
C26: Customer Charge | D26: Full Service Customer Total kWh Charges{1} | E26: Basic Generation Service Charge/Price to Compare{2} | F26: Delivery Service kWh Charges{3} | G26: Full Service Customer Total kWh Charges | H26: Basic Generation Service Charge/Price to Compare
A27: 1. | B27: Customer Charge-Single Phase | C27: ='GST FP per Tariff'!C29 -> 37.88 | D27: N/A | E27: N/A | F27: N/A | G27: N/A | H27: N/A
A28: 2. | B28: Customer Charge-Three Phase | C28: ='GST FP per Tariff'!C30 -> 54.05 | D28: N/A | E28: N/A | F28: N/A | G28: N/A | H28: N/A
A30: 3. | B30: All Summer On-Peak KW | C30: N/A | D30: N/A | E30: N/A | F30: N/A | G30: N/A | H30: N/A
A31: 4. | B31: All Winter On-Peak KW | C31: N/A | D31: N/A | E31: N/A | F31: N/A | G31: N/A | H31: N/A
A32: 5. | B32: Standby Service KW | C32: N/A | D32: N/A | E32: N/A | F32: N/A | G32: N/A | H32: N/A
A33: 6. | B33: Minimum Bill KW | C33: N/A | D33: N/A | E33: N/A | F33: N/A | G33: N/A | H33: N/A
A35: 7. | B35: Summer On-Peak kWh | C35: N/A | D35: ='GST FP per Tariff'!N37 -> 0.190011 | E35: ='GST FP per Tariff'!D37+'GST FP per Tariff'!G37+'GST FP per Tariff'!H37 -> 0.173345 | F35: =SUM('GST FP per Tariff'!E37,'GST FP per Tariff'!F37,'GST FP per Tariff'!I37,'GST FP per Tariff'!K37,'GST FP per Tariff'!M37,'GST FP per Tariff'!J37,'GST FP per Tariff'!L37) -> 0.016666 | G35: ='GST FP per Tariff'!N37-'GST FP per Tariff'!H37 -> 0.189974 | H35: ='GST FP per Tariff'!D37+'GST FP per Tariff'!G37 -> 0.173308 | I35: =E35+F35-D35 -> 0 | J35: =D35-G35-'GST FP per Tariff'!H37 -> 9.249599784e-18 | K35: =E35-H35-'GST FP per Tariff'!H37 -> 9.249599784e-18
A36: 8. | B36: Winter On-Peak kWh | C36: N/A | D36: ='GST FP per Tariff'!N38 -> 0.184017 | E36: ='GST FP per Tariff'!D38+'GST FP per Tariff'!G38+'GST FP per Tariff'!H38 -> 0.167351 | F36: =SUM('GST FP per Tariff'!E38,'GST FP per Tariff'!F38,'GST FP per Tariff'!I38,'GST FP per Tariff'!K38,'GST FP per Tariff'!M38,'GST FP per Tariff'!J38,'GST FP per Tariff'!L38) -> 0.016666 | G36: ='GST FP per Tariff'!N38-'GST FP per Tariff'!H38 -> 0.18398 | H36: ='GST FP per Tariff'!D38+'GST FP per Tariff'!G38 -> 0.167314 | I36: =E36+F36-D36 -> 0 | J36: =D36-G36-'GST FP per Tariff'!H38 -> 9.249599784e-18 | K36: =E36-H36-'GST FP per Tariff'!H38 -> 9.249599784e-18
A37: 9. | B37: Summer Off-Peak kWh | C37: N/A | D37: ='GST FP per Tariff'!N39 -> 0.121746 | E37: ='GST FP per Tariff'!D39+'GST FP per Tariff'!G39+'GST FP per Tariff'!H39 -> 0.10508 | F37: =SUM('GST FP per Tariff'!E39,'GST FP per Tariff'!F39,'GST FP per Tariff'!I39,'GST FP per Tariff'!K39,'GST FP per Tariff'!M39,'GST FP per Tariff'!J39,'GST FP per Tariff'!L39) -> 0.016666 | G37: ='GST FP per Tariff'!N39-'GST FP per Tariff'!H39 -> 0.121709 | H37: ='GST FP per Tariff'!D39+'GST FP per Tariff'!G39 -> 0.105043 | I37: 0 | J37: =D37-G37-'GST FP per Tariff'!H39 -> -4.628188024e-18 | K37: =E37-H37-'GST FP per Tariff'!H39 -> -4.628188024e-18
A38: 10. | B38: Winter Off-Peak kWh | C38: N/A | D38: ='GST FP per Tariff'!N40 -> 0.130293 | E38: ='GST FP per Tariff'!D40+'GST FP per Tariff'!G40+'GST FP per Tariff'!H40 -> 0.113627 | F38: =SUM('GST FP per Tariff'!E40,'GST FP per Tariff'!F40,'GST FP per Tariff'!I40,'GST FP per Tariff'!K40,'GST FP per Tariff'!M40,'GST FP per Tariff'!J40,'GST FP per Tariff'!L40) -> 0.016666 | G38: ='GST FP per Tariff'!N40-'GST FP per Tariff'!H40 -> 0.130256 | H38: ='GST FP per Tariff'!D40+'GST FP per Tariff'!G40 -> 0.11359 | I38: 0 | J38: =D38-G38-'GST FP per Tariff'!H40 -> 9.249599784e-18 | K38: =E38-H38-'GST FP per Tariff'!H40 -> -4.628188024e-18
N39: 8
A40: * Note: Charges are billed to the customer by component as they appear in the Jersey Central Power & Light Tariff for Service.
A41: By multiplying the summarized charges in these tables times the customers kWh usage you may get an amount that is a few
A42: cents different than the actual amount of the customer's bill due to rounding differences.
A44: ='RT Summary'!A36 -> {1} Includes Distribution, SBC, NGC, TAA, RRC, SRC, ZEC, Energy & Capacity, Transmission (including RMR and TEC) and BGS-RSCP reconciliation charges
A45: ='RT Summary'!A37 -> {2} Includes Energy & Capacity, Transmission (including RMR and TEC) and the current BGS-RSCP reconciliation charge of $0.000037 per kWh
A46: ='RT Summary'!A38 -> {3} Includes Distribution, SBC, NGC, TAA, RRC , and ZEC charges
A47: ='RT Summary'!A39 -> {4} Includes Energy & Capacity, Transmission (including RMR and TEC) and the current BGS-RSCP reconciliation charge of $0.000039 per kWh
A51: ='Disclaimer and Definitions'!$A$1 -> Visual_Rate_Inventory June 1, 2025 | C51: Jersey Central Power & Light
A52: =NOW() -> 2025-05-30T16:18:48.150
A53: =NOW() -> 45807.67972 | C53: =C3 -> Rates Effective with Service Rendered June 1, 2025
A54: GST FP Summary
C55: GST (General Service Secondary - Time-of-Day) Service Classification - Fixed Price BGS Rates
C57: Summary of Charges *
C59: Summary of Charges Applicable to Normal (Non-Exempt) Customers | G59: Summary Without BGS Reconciliation Charges
C60: Customer Charge | D60: Full Service Customer Total kWh Charges{1} | E60: Basic Generation Service Charge/Price to Compare{4} | F60: Delivery Service kWh Charges{3} | G60: Full Service Customer Total kWh Charges | H60: Basic Generation Service Charge/Price to Compare
A61: 1. | B61: Customer Charge-Single Phase | C61: ='GST FP per Tariff'!C48 -> 40.39 | D61: N/A | E61: N/A | F61: N/A | G61: N/A | H61: N/A
A62: 2. | B62: Customer Charge-Three Phase | C62: ='GST FP per Tariff'!C49 -> 57.63 | D62: N/A | E62: N/A | F62: N/A | G62: N/A | H62: N/A
A64: 3. | B64: All Summer On-Peak KW | C64: N/A | D64: N/A | E64: N/A | F64: N/A | G64: N/A | H64: N/A
A65: 4. | B65: All Winter On-Peak KW | C65: N/A | D65: N/A | E65: N/A | F65: N/A | G65: N/A | H65: N/A
A66: 5. | B66: Standby Service KW | C66: N/A | D66: N/A | E66: N/A | F66: N/A | G66: N/A | H66: N/A
A67: 6. | B67: Minimum Bill KW | C67: N/A | D67: N/A | E67: N/A | F67: N/A | G67: N/A | H67: N/A
A69: 7. | B69: Summer On-Peak kWh | C69: N/A | D69: ='GST FP per Tariff'!N56 -> 0.202596 | E69: ='GST FP per Tariff'!D56+'GST FP per Tariff'!G56+'GST FP per Tariff'!H56 -> 0.184828 | F69: =SUM('GST FP per Tariff'!E56,'GST FP per Tariff'!F56,'GST FP per Tariff'!I56,'GST FP per Tariff'!K56,'GST FP per Tariff'!M56,'GST FP per Tariff'!J56,'GST FP per Tariff'!L56) -> 0.017768 | G69: ='GST FP per Tariff'!N56-'GST FP per Tariff'!H56 -> 0.202557 | H69: ='GST FP per Tariff'!D56+'GST FP per Tariff'!G56 -> 0.184789 | I69: =E69+F69-D69 -> 0 | J69: =D69-G69-'GST FP per Tariff'!H56 -> 1.124859754e-17 | K69: =E69-H69-'GST FP per Tariff'!H56 -> 1.124859754e-17
A70: 8. | B70: Winter On-Peak kWh | C70: N/A | D70: ='GST FP per Tariff'!N57 -> 0.196205 | E70: ='GST FP per Tariff'!D57+'GST FP per Tariff'!G57+'GST FP per Tariff'!H57 -> 0.178437 | F70: =SUM('GST FP per Tariff'!E57,'GST FP per Tariff'!F57,'GST FP per Tariff'!I57,'GST FP per Tariff'!K57,'GST FP per Tariff'!M57,'GST FP per Tariff'!J57,'GST FP per Tariff'!L57) -> 0.017768 | G70: ='GST FP per Tariff'!N57-'GST FP per Tariff'!H57 -> 0.196166 | H70: ='GST FP per Tariff'!D57+'GST FP per Tariff'!G57 -> 0.178398 | I70: =E70+F70-D70 -> 0 | J70: =D70-G70-'GST FP per Tariff'!H57 -> 1.124859754e-17 | K70: =E70-H70-'GST FP per Tariff'!H57 -> 1.124859754e-17
A71: 9. | B71: Summer Off-Peak kWh | C71: N/A | D71: ='GST FP per Tariff'!N58 -> 0.129808 | E71: ='GST FP per Tariff'!D58+'GST FP per Tariff'!G58+'GST FP per Tariff'!H58 -> 0.11204 | F71: =SUM('GST FP per Tariff'!E58,'GST FP per Tariff'!F58,'GST FP per Tariff'!I58,'GST FP per Tariff'!K58,'GST FP per Tariff'!M58,'GST FP per Tariff'!J58,'GST FP per Tariff'!L58) -> 0.017768 | G71: ='GST FP per Tariff'!N58-'GST FP per Tariff'!H58 -> 0.129769 | H71: ='GST FP per Tariff'!D58+'GST FP per Tariff'!G58 -> 0.112001 | I71: 0 | J71: =D71-G71-'GST FP per Tariff'!H58 -> 1.124859754e-17 | K71: =E71-H71-'GST FP per Tariff'!H58 -> -2.629190268e-18
A72: 10. | B72: Winter Off-Peak kWh | C72: N/A | D72: ='GST FP per Tariff'!N59 -> 0.138922 | E72: ='GST FP per Tariff'!D59+'GST FP per Tariff'!G59+'GST FP per Tariff'!H59 -> 0.121154 | F72: =SUM('GST FP per Tariff'!E59,'GST FP per Tariff'!F59,'GST FP per Tariff'!I59,'GST FP per Tariff'!K59,'GST FP per Tariff'!M59,'GST FP per Tariff'!J59,'GST FP per Tariff'!L59) -> 0.017768 | G72: ='GST FP per Tariff'!N59-'GST FP per Tariff'!H59 -> 0.138883 | H72: ='GST FP per Tariff'!D59+'GST FP per Tariff'!G59 -> 0.121115 | I72: 0 | J72: =D72-G72-'GST FP per Tariff'!H59 -> 1.124859754e-17 | K72: =E72-H72-'GST FP per Tariff'!H59 -> -2.629190268e-18
A74: * Note: Charges are billed to the customer by component as they appear in the Jersey Central Power & Light Tariff for Service.
A75: By multiplying the summarized charges in these tables times the customers kWh usage you may get an amount that is a few
A76: cents different than the actual amount of the customer's bill due to rounding differences.
A79: ='RT Summary'!A36 -> {1} Includes Distribution, SBC, NGC, TAA, RRC, SRC, ZEC, Energy & Capacity, Transmission (including RMR and TEC) and BGS-RSCP reconciliation charges
A80: ='RT Summary'!A37 -> {2} Includes Energy & Capacity, Transmission (including RMR and TEC) and the current BGS-RSCP reconciliation charge of $0.000037 per kWh
A81: ='RT Summary'!A38 -> {3} Includes Distribution, SBC, NGC, TAA, RRC , and ZEC charges
A82: ='RT Summary'!A39 -> {4} Includes Energy & Capacity, Transmission (including RMR and TEC) and the current BGS-RSCP reconciliation charge of $0.000039 per kWh

Sheet GST CIEP per Tariff
A1: ='GST FP Summary'!A1:B1 -> Visual_Rate_Inventory June 1, 2025 | C1: Jersey Central Power & Light
A2: =NOW() -> 2025-05-30T16:18:48.150
A3: =NOW() -> 45807.67972 | C3: ='RT per Tariff'!C3 -> Rates Effective with Service Rendered June 1, 2025
A4: GST CIEP per Tariff
C5: GST (General Service Secondary - Time-of-Day) Service Classification - CIEP BGS Rates
C6: Unbundled Rate Components
C8: Charges Applicable to Franchised Utility (Tax Exempt) Customers
C10: ='GS FP per Tariff'!C10 -> Unbundled Components Excluding CBT & SUT - 6/1/2025 Rates Applicable to Franchised Utility Customers
C11: ='GS CIEP per Tariff'!C11 -> Customer Charge | D11: ='GS CIEP per Tariff'!D11 -> Transmission* {1} | E11: ='GS CIEP per Tariff'!E11 -> Distribution | F11: ='GS CIEP per Tariff'!F11 -> Covid Recovery Charge | G11: ='GS CIEP per Tariff'!G11 -> Retail Margin* | H11: ='GS CIEP per Tariff'!H11 -> BGS-CIEP Generation Capacity Charge* | I11: ='GS CIEP per Tariff'!I11 -> BGS-CIEP Reconciliation Charge* | J11: ='GS CIEP per Tariff'!J11 -> BGS-CIEP Hourly Energy Charges* | K11: ='GS CIEP per Tariff'!K11 -> Zero Emission Certificate Recovery Charge (ZEC) | L11: ='GS CIEP per Tariff'!L11 -> RGGI Recovery Charge (RRC) | M11: ='GS CIEP per Tariff'!M11 -> Societal Benefit Charge (SBC) | N11: ='GS CIEP per Tariff'!N11 -> LRAM | O11: ='GS CIEP per Tariff'!O11 -> Non-utility Generation Charge (NGC) | P11: Standby Fee
A12: 1. | B12: Customer Charge-Single Phase | C12: ='GST FP per Tariff'!C12 -> 36.51 | D12: N/A | E12: N/A | F12: N/A | G12: N/A | H12: N/A | I12: N/A | J12: N/A | K12: N/A | L12: N/A | M12: N/A | N12: N/A | O12: N/A | P12: N/A
A13: 2. | B13: Customer Charge-Three Phase | C13: ='GST FP per Tariff'!C13 -> 52.09 | D13: N/A | E13: N/A | F13: N/A | G13: N/A | H13: N/A | I13: N/A | J13: N/A | K13: N/A | L13: N/A | M13: N/A | N13: N/A | O13: N/A | P13: N/A
A15: 3. | B15: All Summer On-Peak KW | C15: N/A | D15: N/A | E15: ='GST FP per Tariff'!E15 -> 8.81 | F15: ='GST FP per Tariff'!F15 -> N/A | G15: N/A | H15: N/A | I15: N/A | J15: N/A | K15: N/A | L15: N/A | M15: N/A | N15: ='GST FP per Tariff'!L32 -> 0.17 | O15: N/A | P15: N/A
A16: 4. | B16: All Winter On-Peak KW | C16: N/A | D16: N/A | E16: ='GST FP per Tariff'!E16 -> 8.23 | F16: ='GST FP per Tariff'!F16 -> N/A | G16: N/A | H16: N/A | I16: N/A | J16: N/A | K16: N/A | L16: N/A | M16: N/A | N16: ='GST FP per Tariff'!L33 -> 0.17 | O16: N/A | P16: N/A
A17: 5. | B17: Standby Service KW | C17: N/A | D17: N/A | E17: ='GST FP per Tariff'!E17 -> N/A | F17: ='GST FP per Tariff'!F17 -> N/A | G17: N/A | H17: N/A | I17: N/A | J17: N/A | K17: N/A | L17: N/A | M17: N/A | N17: N/A | O17: N/A | P17: N/A
A18: 6. | B18: Minimum Bill KW | C18: N/A | D18: N/A | E18: ='GST FP per Tariff'!E18 -> 3.85 | F18: ='GST FP per Tariff'!F18 -> N/A | G18: N/A | H18: N/A | I18: N/A | J18: N/A | K18: N/A | L18: N/A | M18: N/A | N18: N/A | O18: N/A | P18: N/A
A19: 7. | B19: Capacity Peak Load Share{3} Summer | H19: 0.62521
A20: 8. | B20: Capacity Peak Load Share{3} Winter | H20: =H19 -> 0.62521
A22: 9. | B22: Summer On-Peak kWh | C22: N/A | D22: ='GST FP per Tariff'!D20 -> 0.018019 | E22: ='GST FP per Tariff'!E20 -> 0.004714 | F22: ='GST FP per Tariff'!F20 -> 0.000336 | G22: 0 | H22: N/A | I22: ='GS CIEP per Tariff'!I26 -> -0.002782 | J22: {3} | K22: ='RT per Tariff'!I$15 -> 0 | L22: ='RT per Tariff'!J15 -> 0.004435 | M22: ='RT per Tariff'!$K$15 -> 0.007223 | N22: ='GST FP per Tariff'!L20 -> 0 | O22: ='GST FP per Tariff'!M20 -> -0.000219 | P22: 0.00015
A23: 10. | B23: Winter On-Peak kWh | C23: N/A | D23: ='GST FP per Tariff'!D21 -> 0.018019 | E23: ='GST FP per Tariff'!E21 -> 0.004714 | F23: =F$22 -> 0.000336 | G23: =G22 -> 0 | H23: N/A | I23: =I22 -> -0.002782 | J23: {3} | K23: ='RT per Tariff'!I$15 -> 0 | L23: ='RT per Tariff'!J16 -> 0.004435 | M23: ='RT per Tariff'!$K$15 -> 0.007223 | N23: =$N$22 -> 0 | O23: =O$22 -> -0.000219 | P23: =P22 -> 0.00015
A24: 11. | B24: Summer Off-Peak kWh | C24: N/A | D24: ='GST FP per Tariff'!D22 -> 0.018019 | E24: ='GST FP per Tariff'!E22 -> 0.004714 | F24: =F$22 -> 0.000336 | G24: =G22 -> 0 | H24: N/A | I24: =I22 -> -0.002782 | J24: {3} | K24: ='RT per Tariff'!I$15 -> 0 | L24: =L$22 -> 0.004435 | M24: ='RT per Tariff'!$K$15 -> 0.007223 | N24: =$N$22 -> 0 | O24: =O$22 -> -0.000219 | P24: =P22 -> 0.00015
A25: 12. | B25: Winter Off-Peak kWh | C25: N/A | D25: ='GST FP per Tariff'!D23 -> 0.018019 | E25: ='GST FP per Tariff'!E23 -> 0.004714 | F25: =F$22 -> 0.000336 | G25: =G22 -> 0 | H25: N/A | I25: =I22 -> -0.002782 | J25: {3} | K25: ='RT per Tariff'!I$15 -> 0 | L25: =L$23 -> 0.004435 | M25: ='RT per Tariff'!$K$15 -> 0.007223 | N25: =$N$22 -> 0 | O25: =O$22 -> -0.000219 | P25: =P22 -> 0.00015
C29: Charges Applicable to Federal Government (SUT Exempt) Accounts - CIEP BGS Rates
C31: ='RT per Tariff'!C10 -> Unbundled Components Including CBT - 6/1/2025 Rates Applicable to SUT Exempt Accounts
C32: =C11 -> Customer Charge | D32: =D11 -> Transmission* {1} | E32: Distribution | F32: Covid Recovery Charge | G32: Retail Margin* | H32: BGS-CIEP Generation Capacity Charge* | I32: BGS-CIEP Reconciliation Charge* | J32: BGS-CIEP Hourly Energy Charges* | K32: Zero Emission Certificate Recovery Charge (ZEC) | L32: RGGI Recovery Charge (RRC) | M32: Societal Benefit Charge (SBC) | N32: =N11 -> LRAM | O32: =O11 -> Non-utility Generation Charge (NGC) | P32: Standby Fee
A33: 1. | B33: Customer Charge-Single Phase | C33: ='GST FP per Tariff'!C29 -> 37.88 | D33: N/A | E33: N/A | F33: N/A | G33: N/A | H33: N/A | I33: N/A | J33: N/A | K33: N/A | L33: N/A | M33: N/A | N33: N/A | O33: N/A | P33: N/A
A34: 2. | B34: Customer Charge-Three Phase | C34: ='GST FP per Tariff'!C30 -> 54.05 | D34: N/A | E34: N/A | F34: N/A | G34: N/A | H34: N/A | I34: N/A | J34: N/A | K34: N/A | L34: N/A | M34: N/A | N34: N/A | O34: N/A | P34: N/A
A36: 3. | B36: All Summer On-Peak KW | C36: N/A | D36: N/A | E36: ='GST FP per Tariff'!E32 -> 9.14 | F36: ='GST FP per Tariff'!F32 -> N/A | G36: N/A | H36: N/A | I36: N/A | J36: N/A | K36: N/A | L36: N/A | M36: N/A | N36: =N15 -> 0.17 | O36: N/A | P36: N/A
A37: 4. | B37: All Winter On-Peak KW | C37: N/A | D37: N/A | E37: ='GST FP per Tariff'!E33 -> 8.54 | F37: ='GST FP per Tariff'!F33 -> N/A | G37: N/A | H37: N/A | I37: N/A | J37: N/A | K37: N/A | L37: N/A | M37: N/A | N37: =N16 -> 0.17 | O37: N/A | P37: N/A
A38: 5. | B38: Standby Service KW | C38: N/A | D38: N/A | E38: ='GST FP per Tariff'!E34 -> 3.88 | F38: ='GST FP per Tariff'!F34 -> N/A | G38: N/A | H38: N/A | I38: N/A | J38: N/A | K38: N/A | L38: N/A | M38: N/A | N38: N/A | O38: N/A | P38: N/A
A39: 6. | B39: Minimum Bill KW | C39: N/A | D39: N/A | E39: ='GST FP per Tariff'!E35 -> 3.99 | F39: ='GST FP per Tariff'!F35 -> N/A | G39: N/A | H39: N/A | I39: N/A | J39: N/A | K39: N/A | L39: N/A | M39: N/A | N39: N/A | O39: N/A | P39: N/A
A40: 7. | B40: Capacity Peak Load Share{2} Summer | H40: =H19 -> 0.62521
A41: 8. | B41: Capacity Peak Load Share{2} Winter | H41: =H20 -> 0.62521
A43: 9. | B43: Summer On-Peak kWh | C43: N/A | D43: ='GST FP per Tariff'!D37 -> 0.018019 | E43: ='GST FP per Tariff'!E37 -> 0.004891 | F43: =F$22 -> 0.000336 | G43: =G22 -> 0 | H43: N/A | I43: =I22 -> -0.002782 | J43: {3} | K43: ='RT per Tariff'!I$15 -> 0 | L43: =L$22 -> 0.004435 | M43: ='RT per Tariff'!$K$15 -> 0.007223 | N43: =$N$22 -> 0 | O43: =O$22 -> -0.000219 | P43: =P22 -> 0.00015
A44: 10. | B44: Winter On-Peak kWh | C44: N/A | D44: ='GST FP per Tariff'!D38 -> 0.018019 | E44: ='GST FP per Tariff'!E38 -> 0.004891 | F44: =F$22 -> 0.000336 | G44: =G22 -> 0 | H44: N/A | I44: =I43 -> -0.002782 | J44: {3} | K44: ='RT per Tariff'!I$15 -> 0 | L44: =L$23 -> 0.004435 | M44: ='RT per Tariff'!$K$15 -> 0.007223 | N44: 0 | O44: =O$22 -> -0.000219 | P44: =P22 -> 0.00015
A45: 11. | B45: Summer Off-Peak kWh | C45: N/A | D45: ='GST FP per Tariff'!D39 -> 0.018019 | E45: ='GST FP per Tariff'!E39 -> 0.004891 | F45: =F$22 -> 0.000336 | G45: =G22 -> 0 | H45: N/A | I45: =I43 -> -0.002782 | J45: {3} | K45: ='RT per Tariff'!I$15 -> 0 | L45: =L$22 -> 0.004435 | M45: ='RT per Tariff'!$K$15 -> 0.007223 | N45: 0 | O45: =O$22 -> -0.000219 | P45: =P22 -> 0.00015
A46: 12. | B46: Winter Off-Peak kWh | C46: N/A | D46: ='GST FP per Tariff'!D40 -> 0.018019 | E46: ='GST FP per Tariff'!E40 -> 0.004891 | F46: =F$22 -> 0.000336 | G46: =G22 -> 0 | H46: N/A | I46: =I43 -> -0.002782 | J46: {3} | K46: ='RT per Tariff'!I$15 -> 0 | L46: =L$23 -> 0.004435 | M46: ='RT per Tariff'!$K$15 -> 0.007223 | N46: 0 | O46: =O$22 -> -0.000219 | P46: =P22 -> 0.00015
C50: Charges Applicable to Non-Tax-Exempt Accounts - CIEP BGS Rates
C52: ='RT per Tariff'!C22 -> Unbundled Components Including CBT and SUT - 6/1/2025 Rates Applicable to Non-Tax-Exempt Customers
C53: =C11 -> Customer Charge | D53: =D11 -> Transmission* {1} | E53: Distribution | F53: Covid Recovery Charge | G53: Retail Margin* | H53: BGS-CIEP Generation Capacity Charge* | I53: BGS-CIEP Reconciliation Charge* | J53: BGS-CIEP Hourly Energy Charges* | K53: Zero Emission Certificate Recovery Charge (ZEC) | L53: RGGI Recovery Charge (RRC) | M53: Societal Benefit Charge (SBC) | N53: =N11 -> LRAM | O53: =O11 -> Non-utility Generation Charge (NGC) | P53: Standby Fee
A54: 1. | B54: Customer Charge-Single Phase | C54: ='GST FP per Tariff'!C48 -> 40.39 | D54: N/A | E54: N/A | F54: N/A | G54: N/A | H54: N/A | I54: N/A | J54: N/A | K54: N/A | L54: N/A | M54: N/A | N54: N/A | O54: N/A | P54: N/A
A55: 2. | B55: Customer Charge-Three Phase | C55: ='GST FP per Tariff'!C49 -> 57.63 | D55: N/A | E55: N/A | F55: N/A | G55: N/A | H55: N/A | I55: N/A | J55: N/A | K55: N/A | L55: N/A | M55: N/A | N55: N/A | O55: N/A | P55: N/A
A57: 3. | B57: All Summer On-Peak KW | C57: N/A | D57: N/A | E57: ='GST FP per Tariff'!E51 -> 9.75 | F57: ='GST FP per Tariff'!F32 -> N/A | G57: N/A | H57: N/A | I57: N/A | J57: N/A | K57: N/A | L57: N/A | M57: N/A | N57: ='GST FP per Tariff'!L51 -> 0.18 | O57: N/A | P57: N/A
A58: 4. | B58: All Winter On-Peak KW | C58: N/A | D58: N/A | E58: ='GST FP per Tariff'!E52 -> 9.11 | F58: ='GST FP per Tariff'!F33 -> N/A | G58: N/A | H58: N/A | I58: N/A | J58: N/A | K58: N/A | L58: N/A | M58: N/A | N58: ='GST FP per Tariff'!L52 -> 0.18 | O58: N/A | P58: N/A
A59: 5. | B59: Standby Service KW | C59: N/A | D59: N/A | E59: ='GST FP per Tariff'!E53 -> 4.14 | F59: ='GST FP per Tariff'!F34 -> N/A | G59: N/A | H59: N/A | I59: N/A | J59: N/A | K59: N/A | L59: N/A | M59: N/A | N59: N/A | O59: N/A | P59: N/A
A60: 6. | B60: Minimum Bill KW | C60: N/A | D60: N/A | E60: ='GST FP per Tariff'!E54 -> 4.25 | F60: ='GST FP per Tariff'!F35 -> N/A | G60: N/A | H60: N/A | I60: N/A | J60: N/A | K60: N/A | L60: N/A | M60: N/A | N60: N/A | O60: N/A | P60: N/A
A61: 7. | B61: Capacity Peak Load Share{2} Summer | H61: =ROUND(H40*SUT_6625,6) -> 0.66663
A62: 8. | B62: Capacity Peak Load Share{2} Winter | H62: =ROUND(H41*SUT_6625,6) -> 0.66663
A64: 9. | B64: Summer On-Peak kWh | C64: N/A | D64: ='GST FP per Tariff'!D56 -> 0.019212 | E64: ='GST FP per Tariff'!E56 -> 0.005215 | F64: ='GST FP per Tariff'!F56 -> 0.000358 | G64: 0 | H64: N/A | I64: ='GS CIEP per Tariff'!I100 -> -0.002966 | J64: {3} | K64: ='RT per Tariff'!I$27 -> 0 | L64: ='RT per Tariff'!J27 -> 0.004729 | M64: ='RT per Tariff'!$K$27 -> 0.0077 | N64: ='GST FP per Tariff'!L56 -> 0 | O64: ='GST FP per Tariff'!M56 -> -0.000234 | P64: =ROUND(P43*SUT_6625,6) -> 0.00016
A65: 10. | B65: Winter On-Peak kWh | C65: N/A | D65: ='GST FP per Tariff'!D57 -> 0.019212 | E65: ='GST FP per Tariff'!E57 -> 0.005215 | F65: =F$64 -> 0.000358 | G65: =G64 -> 0 | H65: N/A | I65: =I64 -> -0.002966 | J65: {3} | K65: ='RT per Tariff'!I$27 -> 0 | L65: ='RT per Tariff'!J28 -> 0.004729 | M65: ='RT per Tariff'!$K$27 -> 0.0077 | N65: =$N$64 -> 0 | O65: =O$64 -> -0.000234 | P65: =P64 -> 0.00016
A66: 11. | B66: Summer Off-Peak kWh | C66: N/A | D66: ='GST FP per Tariff'!D58 -> 0.019212 | E66: ='GST FP per Tariff'!E58 -> 0.005215 | F66: =F$64 -> 0.000358 | G66: =G64 -> 0 | H66: N/A | I66: =I64 -> -0.002966 | J66: {3} | K66: ='RT per Tariff'!I$27 -> 0 | L66: =L$64 -> 0.004729 | M66: ='RT per Tariff'!$K$27 -> 0.0077 | N66: =$N$64 -> 0 | O66: =O$64 -> -0.000234 | P66: =P64 -> 0.00016
A67: 12. | B67: Winter Off-Peak kWh | C67: N/A | D67: ='GST FP per Tariff'!D59 -> 0.019212 | E67: ='GST FP per Tariff'!E59 -> 0.005215 | F67: =F$64 -> 0.000358 | G67: =G64 -> 0 | H67: N/A | I67: =I64 -> -0.002966 | J67: {3} | K67: ='RT per Tariff'!I$27 -> 0 | L67: =L$65 -> 0.004729 | M67: ='RT per Tariff'!$K$27 -> 0.0077 | N67: =$N$64 -> 0 | O67: =O$64 -> -0.000234 | P67: =P64 -> 0.00016
B69: * Transmission, Retail Margin, BGS-CIEP Generation Capacity, BGS-CIEP Reconciliation and BGS-CIEP Hourly Energy Charges apply only to Full Service (non-shopping) Customers
B71: ='GS CIEP per Tariff'!B116 -> {1} Transmission Charge includes Reliability Must Run Surcharge (RMR) of $0.000000/$0.000000 (w/ SUT) Eff September 1, 2019 and Transmission Enhancement Charge (TEC) of $0.004066/0.004335 (w/ SUT) Eff May 1, 2025
B72: {2} The BGS-CIEP Generation Capacity Charge is billed based on Peak Load Share (PLS) on a per kW-day basis. The customer's PLS is adjusted by PJM
B73: assigned capacity related factors and then multiplied by the price per kW-day which is then multiplied by the number of days in the billing period.
B74: {3} Hourly Energy prices are based on the sum of actual real-time PJM load weighted average Locational Marginal Price for the JCP&L Transmission Zone and
B75: =" ancillary services of $0.00600 per KWH, times a Losses Multiplier times "&FIXED((SUT_6625-1)*100,3)&" % for Sales and Use Tax where applicable (See Tariff Rider BGS-CIEP) " -> ancillary services of $0.00600 per KWH, times a Losses Multiplier times 6.625 % for Sales and Use Tax where applicable (See Tariff Rider BGS-CIEP)

Sheet GP per Tariff
A1: ='RT per Tariff'!A1:B1 -> Visual_Rate_Inventory June 1, 2025 | C1: Jersey Central Power & Light
A2: =NOW() -> 2025-05-30T16:18:48.150
A3: =NOW() -> 45807.67972 | C3: ='RT per Tariff'!C3 -> Rates Effective with Service Rendered June 1, 2025
A4: GP per Tariff
C5: GP (General Service Primary) Service Classification
C6: Unbundled Rate Components
C8: Charges Applicable to Franchised Utility (Tax Exempt) Customers
C9: ='GS FP per Tariff'!C10 -> Unbundled Components Excluding CBT & SUT - 6/1/2025 Rates Applicable to Franchised Utility Customers
C10: ='GS CIEP per Tariff'!C11 -> Customer Charge | D10: ='GS CIEP per Tariff'!D11 -> Transmission* {1} | E10: ='GS CIEP per Tariff'!E11 -> Distribution | F10: ='GS CIEP per Tariff'!F11 -> Covid Recovery Charge | G10: ='GS CIEP per Tariff'!G11 -> Retail Margin* | H10: ='GS CIEP per Tariff'!H11 -> BGS-CIEP Generation Capacity Charge* | I10: ='GS CIEP per Tariff'!I11 -> BGS-CIEP Reconciliation Charge* | J10: ='GS CIEP per Tariff'!J11 -> BGS-CIEP Hourly Energy Charges* | K10: ='GS CIEP per Tariff'!K11 -> Zero Emission Certificate Recovery Charge (ZEC) | L10: ='GS CIEP per Tariff'!L11 -> RGGI Recovery Charge (RRC) | M10: ='GS CIEP per Tariff'!M11 -> Societal Benefit Charge (SBC) | N10: ='GS CIEP per Tariff'!N11 -> LRAM | O10: ='GS CIEP per Tariff'!O11 -> Non-utility Generation Charge (NGC) | P10: ='GS CIEP per Tariff'!P11 -> Standby Fee
A11: 1. | B11: Customer Charge | C11: 58.56 | D11: N/A | E11: N/A | F11: N/A | G11: N/A | H11: N/A | I11: N/A | J11: N/A | K11: N/A | L11: N/A | M11: N/A | N11: N/A | O11: N/A | P11: N/A
A13: 2. | B13: KVAR | C13: N/A | D13: N/A | E13: 0.4 | F13: N/A | G13: N/A | H13: N/A | I13: N/A | J13: N/A | K13: N/A | L13: N/A | M13: N/A | N13: N/A | O13: N/A | P13: N/A
A15: 3. | B15: All Summer On-Peak KW | C15: N/A | D15: N/A | E15: 6.16 | F15: 0 | G15: N/A | H15: N/A | I15: N/A | J15: N/A | K15: N/A | L15: N/A | M15: N/A | N15: ='SBC TBC and MTC Tax'!B62 -> 0.11 | O15: N/A | P15: N/A
A16: 4. | B16: All Winter On-Peak KW | C16: N/A | D16: N/A | E16: 5.72 | F16: =F15 -> 0 | G16: N/A | H16: N/A | I16: N/A | J16: N/A | K16: N/A | L16: N/A | M16: N/A | N16: =N15 -> 0.11 | O16: N/A | P16: N/A
A17: 5. | B17: Standby Service KW | C17: N/A | D17: N/A | E17: N/A | F17: N/A | G17: N/A | H17: N/A | I17: N/A | J17: N/A | K17: N/A | L17: N/A | M17: N/A | N17: N/A | O17: N/A | P17: N/A
A18: 6. | B18: Minimum Bill KW | C18: N/A | D18: N/A | E18: 2.08 | F18: =F15 -> 0 | G18: N/A | H18: N/A | I18: N/A | J18: N/A | K18: N/A | L18: N/A | M18: N/A | N18: N/A | O18: N/A | P18: N/A
A19: 7. | B19: Capacity Peak Load Share{1} Summer | H19: ='GST CIEP per Tariff'!H19 -> 0.62521
A20: 8. | B20: Capacity Peak Load Share{1} Winter | H20: ='GST CIEP per Tariff'!H20 -> 0.62521
A22: 9. | B22: Summer On-Peak kWh | C22: N/A | D22: =0.008068+0+0.002363 -> 0.010431 | E22: 0.003356 | F22: ='RT per Tariff'!F15 -> 0.000336 | G22: ='GST CIEP per Tariff'!$G$22 -> 0 | H22: N/A | I22: ='GST CIEP per Tariff'!$I$22 -> -0.002782 | J22: {2} | K22: ='RT per Tariff'!I$15 -> 0 | L22: ='RT per Tariff'!J15 -> 0.004435 | M22: ='RT per Tariff'!$K$15 -> 0.007223 | N22: 0 | O22: -0.000208 | P22: ='GST CIEP per Tariff'!$P$22 -> 0.00015
A23: 10. | B23: Winter On-Peak kWh | C23: N/A | D23: =D$22 -> 0.010431 | E23: 0.003356 | F23: 0.000336 | G23: ='GST CIEP per Tariff'!$G$22 -> 0 | H23: N/A | I23: ='GST CIEP per Tariff'!$I$22 -> -0.002782 | J23: {2} | K23: ='RT per Tariff'!I$15 -> 0 | L23: ='RT per Tariff'!J16 -> 0.004435 | M23: ='RT per Tariff'!$K$15 -> 0.007223 | N23: 0 | O23: =O$22 -> -0.000208 | P23: ='GST CIEP per Tariff'!$P$22 -> 0.00015
A24: 11. | B24: Summer Off-Peak kWh | C24: N/A | D24: 0.010431 | E24: 0.003356 | F24: 0.000336 | G24: ='GST CIEP per Tariff'!$G$22 -> 0 | H24: N/A | I24: ='GST CIEP per Tariff'!$I$22 -> -0.002782 | J24: {2} | K24: ='RT per Tariff'!I$15 -> 0 | L24: =L$22 -> 0.004435 | M24: ='RT per Tariff'!$K$15 -> 0.007223 | N24: 0 | O24: =O$22 -> -0.000208 | P24: ='GST CIEP per Tariff'!$P$22 -> 0.00015
A25: 12. | B25: Winter Off-Peak kWh | C25: N/A | D25: 0.010431 | E25: 0.003356 | F25: 0.000336 | G25: ='GST CIEP per Tariff'!$G$22 -> 0 | H25: N/A | I25: ='GST CIEP per Tariff'!$I$22 -> -0.002782 | J25: {2} | K25: ='RT per Tariff'!I$15 -> 0 | L25: =L$23 -> 0.004435 | M25: ='RT per Tariff'!$K$15 -> 0.007223 | N25: 0 | O25: =O$22 -> -0.000208 | P25: ='GST CIEP per Tariff'!$P$22 -> 0.00015
C27: Charges Applicable to Federal Government (SUT Exempt) Accounts
C28: ='RT per Tariff'!C10 -> Unbundled Components Including CBT - 6/1/2025 Rates Applicable to SUT Exempt Accounts
C29: =C10 -> Customer Charge | D29: =D10 -> Transmission* {1} | E29: Distribution | F29: Covid Recovery Charge | G29: Retail Margin* | H29: BGS-CIEP Generation Capacity Charge* | I29: BGS-CIEP Reconciliation Charge* | J29: BGS-CIEP Hourly Energy Charges* | K29: Zero Emission Certificate Recovery Charge (ZEC) | L29: RGGI Recovery Charge (RRC) | M29: Societal Benefit Charge (SBC) | N29: =N10 -> LRAM | O29: =O10 -> Non-utility Generation Charge (NGC) | P29: =P10 -> Standby Fee
A30: 1. | B30: Customer Charge | C30: 60.76 | D30: N/A | E30: N/A | F30: N/A | G30: N/A | H30: N/A | I30: N/A | J30: N/A | K30: N/A | L30: N/A | M30: N/A | N30: N/A | O30: N/A | P30: N/A
A32: 2. | B32: KVAR | C32: N/A | D32: N/A | E32: 0.41 | F32: N/A | G32: N/A | H32: N/A | I32: N/A | J32: N/A | K32: N/A | L32: N/A | M32: N/A | N32: N/A | O32: N/A | P32: N/A
A34: 3. | B34: All Summer On-Peak KW | C34: N/A | D34: N/A | E34: 6.39 | F34: =F15 -> 0 | G34: N/A | H34: N/A | I34: N/A | J34: N/A | K34: N/A | L34: N/A | M34: N/A | N34: =N15 -> 0.11 | O34: N/A | P34: N/A
A35: 4. | B35: All Winter On-Peak KW | C35: N/A | D35: N/A | E35: 5.94 | F35: =F34 -> 0 | G35: N/A | H35: N/A | I35: N/A | J35: N/A | K35: N/A | L35: N/A | M35: N/A | N35: =N16 -> 0.11 | O35: N/A | P35: N/A
A36: 5. | B36: Standby Service KW | C36: N/A | D36: N/A | E36: 2.22 | F36: =F35 -> 0 | G36: N/A | H36: N/A | I36: N/A | J36: N/A | K36: N/A | L36: N/A | M36: N/A | N36: N/A | O36: N/A | P36: N/A
A37: 6. | B37: Minimum Bill KW | C37: N/A | D37: N/A | E37: 2.16 | F37: =F36 -> 0 | G37: N/A | H37: N/A | I37: N/A | J37: N/A | K37: N/A | L37: N/A | M37: N/A | N37: N/A | O37: N/A | P37: N/A
A38: 7. | B38: Capacity Peak Load Share{1} Summer | H38: ='GST CIEP per Tariff'!H40 -> 0.62521
A39: 8. | B39: Capacity Peak Load Share{1} Winter | H39: ='GST CIEP per Tariff'!H41 -> 0.62521
A41: 9. | B41: Summer On-Peak kWh | C41: N/A | D41: =D22 -> 0.010431 | E41: 0.003482 | F41: =F$22 -> 0.000336 | G41: ='GST CIEP per Tariff'!$G$22 -> 0 | H41: N/A | I41: ='GST CIEP per Tariff'!$I$22 -> -0.002782 | J41: {2} | K41: ='RT per Tariff'!I$15 -> 0 | L41: =L$22 -> 0.004435 | M41: ='RT per Tariff'!$K$15 -> 0.007223 | N41: =N22 -> 0 | O41: =O$22 -> -0.000208 | P41: ='GST CIEP per Tariff'!$P$22 -> 0.00015
A42: 10. | B42: Winter On-Peak kWh | C42: N/A | D42: =D23 -> 0.010431 | E42: =E$41 -> 0.003482 | F42: 0.000336 | G42: ='GST CIEP per Tariff'!$G$22 -> 0 | H42: N/A | I42: ='GST CIEP per Tariff'!$I$22 -> -0.002782 | J42: {2} | K42: ='RT per Tariff'!I$15 -> 0 | L42: =L$23 -> 0.004435 | M42: ='RT per Tariff'!$K$15 -> 0.007223 | N42: =N$41 -> 0 | O42: =O$22 -> -0.000208 | P42: ='GST CIEP per Tariff'!$P$22 -> 0.00015
A43: 11. | B43: Summer Off-Peak kWh | C43: N/A | D43: =D24 -> 0.010431 | E43: =E$41 -> 0.003482 | F43: 0.000336 | G43: ='GST CIEP per Tariff'!$G$22 -> 0 | H43: N/A | I43: ='GST CIEP per Tariff'!$I$22 -> -0.002782 | J43: {2} | K43: ='RT per Tariff'!I$15 -> 0 | L43: =L$22 -> 0.004435 | M43: ='RT per Tariff'!$K$15 -> 0.007223 | N43: =N$41 -> 0 | O43: =O$22 -> -0.000208 | P43: ='GST CIEP per Tariff'!$P$22 -> 0.00015
A44: 12. | B44: Winter Off-Peak kWh | C44: N/A | D44: =D25 -> 0.010431 | E44: =E$41 -> 0.003482 | F44: 0.000336 | G44: ='GST CIEP per Tariff'!$G$22 -> 0 | H44: N/A | I44: ='GST CIEP per Tariff'!$I$22 -> -0.002782 | J44: {2} | K44: ='RT per Tariff'!I$15 -> 0 | L44: =L$23 -> 0.004435 | M44: ='RT per Tariff'!$K$15 -> 0.007223 | N44: =N$41 -> 0 | O44: =O$22 -> -0.000208 | P44: ='GST CIEP per Tariff'!$P$22 -> 0.00015
C47: Charges Applicable to Non-Tax-Exempt Accounts
C49: ='RT per Tariff'!C22 -> Unbundled Components Including CBT and SUT - 6/1/2025 Rates Applicable to Non-Tax-Exempt Customers
C50: =C10 -> Customer Charge | D50: =D10 -> Transmission* {1} | E50: Distribution | F50: Covid Recovery Charge | G50: Retail Margin* | H50: BGS-CIEP Generation Capacity Charge* | I50: BGS-CIEP Reconciliation Charge* | J50: BGS-CIEP Hourly Energy Charges* | K50: Zero Emission Certificate Recovery Charge (ZEC) | L50: RGGI Recovery Charge (RRC) | M50: Societal Benefit Charge (SBC) | N50: =N10 -> LRAM | O50: =O10 -> Non-utility Generation Charge (NGC) | P50: =P10 -> Standby Fee
A51: 1. | B51: Customer Charge | C51: =ROUND(C30*SUT_6625,2) -> 64.79 | D51: N/A | E51: N/A | F51: N/A | G51: N/A | H51: N/A | I51: N/A | J51: N/A | K51: N/A | L51: N/A | M51: N/A | N51: N/A | O51: N/A | P51: N/A
A53: 2. | B53: KVAR | C53: N/A | D53: N/A | E53: =ROUND(E32*SUT_6625,2) -> 0.44 | F53: N/A | G53: N/A | H53: N/A | I53: N/A | J53: N/A | K53: N/A | L53: N/A | M53: N/A | N53: N/A | O53: N/A | P53: N/A
A55: 3. | B55: All Summer On-Peak KW | C55: N/A | D55: N/A | E55: =ROUND(E34*SUT_6625,2) -> 6.81 | F55: =ROUND(F34*SUT_6625,2) -> 0 | G55: N/A | H55: N/A | I55: N/A | J55: N/A | K55: N/A | L55: N/A | M55: N/A | N55: =ROUND(N34*SUT_6625,2) -> 0.12 | O55: N/A | P55: N/A
A56: 4. | B56: All Winter On-Peak KW | C56: N/A | D56: N/A | E56: =ROUND(E35*SUT_6625,2) -> 6.33 | F56: =F55 -> 0 | G56: N/A | H56: N/A | I56: N/A | J56: N/A | K56: N/A | L56: N/A | M56: N/A | N56: =ROUND(N35*SUT_6625,2) -> 0.12 | O56: N/A | P56: N/A
A57: 5. | B57: Standby Service KW | C57: N/A | D57: N/A | E57: =ROUND(E36*SUT_6625,2) -> 2.37 | F57: =F56 -> 0 | G57: N/A | H57: N/A | I57: N/A | J57: N/A | K57: N/A | L57: N/A | M57: N/A | N57: N/A | O57: N/A | P57: N/A
A58: 6. | B58: Minimum Bill KW | C58: N/A | D58: N/A | E58: =ROUND(E37*SUT_6625,2) -> 2.3 | F58: =F57 -> 0 | G58: N/A | H58: N/A | I58: N/A | J58: N/A | K58: N/A | L58: N/A | M58: N/A | N58: N/A | O58: N/A | P58: N/A
A59: 7. | B59: Capacity Peak Load Share{1} Summer | H59: ='GST CIEP per Tariff'!H61 -> 0.66663
A60: 8. | B60: Capacity Peak Load Share{1} Winter | H60: ='GST CIEP per Tariff'!H62 -> 0.66663
A62: 9. | B62: Summer On-Peak kWh | C62: N/A | D62: =ROUND(0.008068*SUT_6625,6)+0+0.002519 -> 0.011122 | E62: =ROUND(E41*SUT_6625,6) -> 0.003713 | F62: =ROUND(F41*SUT_6625,6) -> 0.000358 | G62: ='GST CIEP per Tariff'!$G$64 -> 0 | H62: N/A | I62: ='GST CIEP per Tariff'!$I$64 -> -0.002966 | J62: {2} | K62: ='RT per Tariff'!I$27 -> 0 | L62: ='RT per Tariff'!J27 -> 0.004729 | M62: ='RT per Tariff'!$K$27 -> 0.0077 | N62: =ROUND(N41*SUT_6625,6) -> 0 | O62: =ROUND(O22*SUT_6625,6) -> -0.000222 | P62: ='GST CIEP per Tariff'!$P$64 -> 0.00016
A63: 10. | B63: Winter On-Peak kWh | C63: N/A | D63: =D$62 -> 0.011122 | E63: =ROUND(E42*SUT_6625,6) -> 0.003713 | F63: =F$62 -> 0.000358 | G63: ='GST CIEP per Tariff'!$G$64 -> 0 | H63: N/A | I63: ='GST CIEP per Tariff'!$I$64 -> -0.002966 | J63: {2} | K63: ='RT per Tariff'!I$27 -> 0 | L63: ='RT per Tariff'!J28 -> 0.004729 | M63: ='RT per Tariff'!$K$27 -> 0.0077 | N63: =ROUND(N42*SUT_6625,6) -> 0 | O63: =O$62 -> -0.000222 | P63: ='GST CIEP per Tariff'!$P$64 -> 0.00016
A64: 11. | B64: Summer Off-Peak kWh | C64: N/A | D64: =D$62 -> 0.011122 | E64: =ROUND(E43*SUT_6625,6) -> 0.003713 | F64: =F$62 -> 0.000358 | G64: ='GST CIEP per Tariff'!$G$64 -> 0 | H64: N/A | I64: ='GST CIEP per Tariff'!$I$64 -> -0.002966 | J64: {2} | K64: ='RT per Tariff'!I$27 -> 0 | L64: =L$62 -> 0.004729 | M64: ='RT per Tariff'!$K$27 -> 0.0077 | N64: =ROUND(N43*SUT_6625,6) -> 0 | O64: =O$62 -> -0.000222 | P64: ='GST CIEP per Tariff'!$P$64 -> 0.00016
A65: 12. | B65: Winter Off-Peak kWh | C65: N/A | D65: =D$62 -> 0.011122 | E65: =ROUND(E44*SUT_6625,6) -> 0.003713 | F65: =F$62 -> 0.000358 | G65: ='GST CIEP per Tariff'!$G$64 -> 0 | H65: N/A | I65: ='GST CIEP per Tariff'!$I$64 -> -0.002966 | J65: {2} | K65: ='RT per Tariff'!I$27 -> 0 | L65: =L$63 -> 0.004729 | M65: ='RT per Tariff'!$K$27 -> 0.0077 | N65: =ROUND(N44*SUT_6625,6) -> 0 | O65: =O$62 -> -0.000222 | P65: ='GST CIEP per Tariff'!$P$64 -> 0.00016
A67: * Transmission, Retail Margin, BGS-CIEP Generation Capacity, BGS-CIEP Reconciliation and BGS-CIEP Hourly Energy Charges apply only to Full Service (non-shopping) Customers
A69: {1} The BGS-CIEP Generation Capacity Charge is billed based on Peak Load Share (PLS) on a per kW-day basis. The customer's PLS is adjusted by PJM | B69: The BGS-CIEP Generation Capacity Charge is billed based on Peak Load Share (PLS) on a per kW-day basis. The customer's PLS is adjusted by PJM
A70: ='GST CIEP per Tariff'!$B$73 -> assigned capacity related factors and then multiplied by the price per kW-day which is then multiplied by the number of days in the billing period.
A71: {2} Hourly Energy prices are based on the sum of actual real-time PJM load weighted average Locational Marginal Price for the JCP&L Transmission Zone and
A72: ='GST CIEP per Tariff'!$B$75 -> ancillary services of $0.00600 per KWH, times a Losses Multiplier times 6.625 % for Sales and Use Tax where applicable (See Tariff Rider BGS-CIEP)
A73: {3} Transmission Charge includes Reliability Must Run (RMR) Surcharge of $0.000000/$0.000000 (w/ SUT) Eff. September 1, 2019 and Transmission Enhance Charge (TEC) of $0.002363/$0.002519 (w/ SUT) Eff. May 1, 2025
A76: ="Assumptions: Bill Credit is calculated at the pre-SUT rate. Subscriber has 10% investment from "&TEXT(D86,"mm/dd/yyyy")&" to "&TEXT(E86,"mm/dd/yyyy") -> Assumptions: Bill Credit is calculated at the pre-SUT rate. Subscriber has 10% investment from 06/01/2025 to 07/01/2025
A77: Customer billed for 300,000 kWH/750 kW usage on Service Classification GP Default Service
A78: Host Output: 600,000 KWH
A79: Customer (Subscriber) Allocated: 60,000 KWH
A81: Normal Full Bill | C81: =H101 -> 41053.44
A82: Community Solar Credit | C82: =K101 -> 3360.66
A83: Charges Due | C83: =C81-C82 -> 37692.78
F84: Normal Full Bill | I84: Credit Calculation
B85: Charge Type | C85: Credit | D85: Period Start | E85: Period End | F85: Consumed kWh/kWh | G85: Price | H85: Charges | I85: Allocated kWh | J85: Pre-SUT Price | K85: Credit @ Pre-SUT
B86: Customer Charge | C86: No | D86: 2025-06-01 | E86: =D86+30 -> 2025-07-01 | G86: =C51 -> 64.79 | H86: =G86 -> 64.79
B87: BGS Capacity | C87: No | D87: =$D$86 -> 2025-06-01 | E87: =E$86 -> 2025-07-01 | F87: =F89&" x "&(E87-D87+1) -> 750 x 31 | G87: =H59 -> 0.66663 | H87: =ROUND(F89*(E87-D87+1)*G87,2) -> 15499.15
B88: Distribution kVar | C88: No | D88: 2025-06-01 | E88: 2025-07-01 | F88: 300 | G88: =E53 -> 0.44 | H88: =ROUND(F88*G88,2) -> 132
B89: Distribution kW | C89: No | D89: 2025-06-01 | E89: 2025-07-01 | F89: 750 | G89: =IF(AND(MONTH(D89)<=9,MONTH(D89)>=6),E55,E56) -> 6.81 | H89: =ROUND(F89*G89,2) -> 5107.5
B90: Non-Utility Generation Charge (MTC) | C90: No | D90: =$D$86 -> 2025-06-01 | E90: =E$86 -> 2025-07-01 | F90: 300000 | G90: =O62 -> -0.000222 | H90: =ROUND(F90*G90,2) -> -66.6
B91: SBC Charge | C91: No | D91: =$D$86 -> 2025-06-01 | E91: =E$86 -> 2025-07-01 | F91: =F$90 -> 300000 | G91: =M62 -> 0.0077 | H91: =ROUND(F91*G91,2) -> 2310
B92: ZEC Recovery Charge | C92: No | D92: 2025-06-01 | E92: 2025-07-01 | F92: =F$90 -> 300000 | G92: =K62 -> 0 | H92: 0
B93: BGS Energy Charges - Hourly Pricing | C93: Yes | D93: 2025-06-01 | E93: 2025-07-01 | F93: 300000 | G93: =ROUND(J93*1.06625,6) -> 0.042606 | H93: 12781.8 | I93: 60000 | J93: =B130 -> 0.039959 | K93: =ROUND(I93*J93,2) -> 2397.54 | L93: * | P93: =J93*1.06625-G93 -> 2.8375e-07
B94: BGS Transmission | C94: Yes | D94: 2025-06-01 | E94: 2025-07-01 | F94: 300000 | G94: =D62 -> 0.011122 | H94: 3336.6 | I94: =I$93 -> 60000 | J94: =D41 -> 0.010431 | K94: 625.86 | P94: 5.375e-08
B95: BGS Reconciliation | C95: Yes | D95: 2025-06-01 | E95: 2025-07-01 | F95: 300000 | G95: =I62 -> -0.002966 | H95: -889.8 | I95: =I$93 -> 60000 | J95: =I41 -> -0.002782 | K95: -166.92 | P95: -3.075e-07
B96: CIEP - Standby Fee | C96: Yes | D96: 2025-06-01 | E96: 2025-07-01 | F96: 300000 | G96: =P62 -> 0.00016 | H96: 48 | I96: 60000 | J96: =P41 -> 0.00015 | K96: 9 | P96: -6.25e-08
B97: Distribution kWh | C97: Yes | D97: 2025-06-01 | E97: 2025-07-01 | F97: 300000 | G97: =E62 -> 0.003713 | H97: 1113.9 | I97: 60000 | J97: =E41 -> 0.003482 | K97: 208.92 | P97: -3.175e-07
B98: RGGI Charge | C98: Yes | D98: 2025-06-01 | E98: 2025-07-01 | F98: 300000 | G98: =L62 -> 0.004729 | H98: 1418.7 | I98: 60000 | J98: =L41 -> 0.004435 | K98: 266.1 | P98: -1.8125e-07
B99: Covid Recovery Charge | C99: Yes | D99: 2025-06-01 | E99: 2025-07-01 | F99: 300000 | G99: =F62 -> 0.000358 | H99: =ROUND(F99*G99,2) -> 107.4 | I99: 60000 | J99: =F41 -> 0.000336 | K99: =ROUND(I99*J99,2) -> 20.16
B100: LRAM | C100: No | D100: 2025-06-01 | E100: 2025-07-01 | F100: =F89 -> 750 | G100: =N55 -> 0.12 | H100: 90 | P100: -0.12
G101: Normal Full Bill | H101: =SUM(H86:H100) -> 41053.44 | J101: Community Solar Credit | K101: =SUM(K93:K100) -> 3360.66
A103: =A76 -> Assumptions: Bill Credit is calculated at the pre-SUT rate. Subscriber has 10% investment from 06/01/2025 to 07/01/2025
A104: Certified mastered billed affordable hoursing customer billed for 300,000 kWH/750 kW usage on Service Classification GP Default Service
A105: Host Output: 600,000 KWH
A106: Customer (Subscriber) Allocated: 60,000 KWH
A108: Normal Full Bill | C108: =H128 -> 41053.44
A109: Community Solar Credit | C109: =K128 -> 4292.7
A110: Charges Due | C110: =C108-C109 -> 36760.74
F111: Normal Full Bill | I111: Credit Calculation
B112: Charge Type | C112: Credit | D112: Period Start | E112: Period End | F112: Consumed kWh/kWh | G112: Price | H112: Charges | I112: Allocated kWh | J112: Pre-SUT Price | K112: Credit @ Pre-SUT
B113: Customer Charge | C113: No | D113: =D86 -> 2025-06-01 | E113: =D113+30 -> 2025-07-01 | G113: =G86 -> 64.79 | H113: =G113 -> 64.79
B114: BGS Capacity | C114: No | D114: =$D$86 -> 2025-06-01 | E114: =E$86 -> 2025-07-01 | F114: =F124&" x "&(E114-D114+1) -> 750 x 31 | G114: =G87 -> 0.66663 | H114: =ROUND(F124*(E114-D114+1)*G114,2) -> 15499.15
B115: Distribution kVar | C115: No | D115: 2025-06-01 | E115: 2025-07-01 | F115: 300 | G115: =G88 -> 0.44 | H115: =ROUND(F115*G115,2) -> 132
B116: Non-Utility Generation Charge (MTC) | C116: No | D116: =$D$86 -> 2025-06-01 | E116: =E$86 -> 2025-07-01 | F116: 300000 | G116: =G90 -> -0.000222 | H116: =ROUND(F116*G116,2) -> -66.6
B117: SBC Charge | C117: No | D117: =$D$86 -> 2025-06-01 | E117: =E$86 -> 2025-07-01 | F117: =F$90 -> 300000 | G117: 0.0077 | H117: =ROUND(F117*G117,2) -> 2310
B118: ZEC Recovery Charge | C118: No | D118: 2025-06-01 | E118: 2025-07-01 | F118: =F$90 -> 300000 | G118: 0 | H118: 0
B119: BGS Energy Charges - Hourly Pricing | C119: Yes | D119: 2025-06-01 | E119: 2025-07-01 | F119: 300000 | G119: 0.042606 | H119: 12781.8 | I119: 60000 | J119: =J93 -> 0.039959 | K119: =ROUND(I119*J119,2) -> 2397.54
B120: BGS Transmission | C120: Yes | D120: 2025-06-01 | E120: 2025-07-01 | F120: 300000 | G120: 0.011122 | H120: 3336.6 | I120: =I$93 -> 60000 | J120: =J94 -> 0.010431 | K120: 625.86
B121: BGS Reconciliation | C121: Yes | D121: 2025-06-01 | E121: 2025-07-01 | F121: 300000 | G121: -0.002966 | H121: -889.8 | I121: =I$93 -> 60000 | J121: =J95 -> -0.002782 | K121: -166.92
B122: CIEP - Standby Fee | C122: Yes | D122: 2025-06-01 | E122: 2025-07-01 | F122: 300000 | G122: 0.00016 | H122: 48 | I122: 60000 | J122: =J96 -> 0.00015 | K122: 9
B123: Distribution kWh | C123: Yes | D123: 2025-06-01 | E123: 2025-07-01 | F123: 300000 | G123: 0.003713 | H123: 1113.9 | I123: 60000 | J123: =J97 -> 0.003482 | K123: 208.92
B124: Distribution kW | C124: No | D124: 2025-06-01 | E124: 2025-07-01 | F124: 750 | G124: =G89 -> 6.81 | H124: =ROUND(F124*G124,2) -> 5107.5 | I124: =I$93 -> 60000 | J124: =IF(AND(MONTH(D124)<=9,MONTH(D124)>=6),B131,B132) -> 0.015279 | K124: 916.74 | L124: *
B125: RGGI Charge | C125: Yes | D125: 2025-06-01 | E125: 2025-07-01 | F125: 300000 | G125: =G98 -> 0.004729 | H125: 1418.7 | I125: 60000 | J125: =J98 -> 0.004435 | K125: 266.1
B126: Covid Recovery Charge | C126: Yes | D126: 2025-06-01 | E126: 2025-07-01 | F126: 300000 | G126: =G99 -> 0.000358 | H126: =ROUND(F126*G126,2) -> 107.4 | I126: 60000 | J126: =J99 -> 0.000336 | K126: =ROUND(I126*J126,2) -> 20.16
B127: LRAM | C127: Yes | D127: 2025-06-01 | E127: 2025-07-01 | F127: =F124 -> 750 | G127: =G100 -> 0.12 | H127: 90 | I127: 60000 | J127: =B133 -> 0.000255 | K127: 15.3 | L127: *
G128: Normal Full Bill | H128: =SUM(H113:H127) -> 41053.44 | J128: Community Solar Credit | K128: =SUM(K119:K127) -> 4292.7
B129: Class Average *
B130: 0.039959 | C130: Avg 012023 to 122023, w/o SUT
B131: 0.015279 | C131: Summer Demand per kWh
B132: 0.013997 | C132: Winter Demand per kWh
B133: 0.000255 | C133: LRAM Demand per kWh

Sheet GT per Tariff
A1: ='GP per Tariff'!A1:B1 -> Visual_Rate_Inventory June 1, 2025 | C1: Jersey Central Power & Light
A2: =NOW() -> 2025-05-30T16:18:48.150
A3: =NOW() -> 45807.67972 | C3: ='RT per Tariff'!C3:L3 -> Rates Effective with Service Rendered June 1, 2025
A4: GT per Tariff
C5: GT (General Service Transmission) Service Classification
C6: Unbundled Rate Components
C8: Charges Applicable to Franchised Utility (Tax Exempt) Customers
C10: ='GS FP per Tariff'!C10 -> Unbundled Components Excluding CBT & SUT - 6/1/2025 Rates Applicable to Franchised Utility Customers
C11: ='GS CIEP per Tariff'!C11 -> Customer Charge | D11: ='GS CIEP per Tariff'!D11 -> Transmission* {1} | E11: ='GS CIEP per Tariff'!E11 -> Distribution | F11: ='GS CIEP per Tariff'!F11 -> Covid Recovery Charge | G11: ='GS CIEP per Tariff'!G11 -> Retail Margin* | H11: ='GS CIEP per Tariff'!H11 -> BGS-CIEP Generation Capacity Charge* | I11: ='GS CIEP per Tariff'!I11 -> BGS-CIEP Reconciliation Charge* | J11: ='GS CIEP per Tariff'!J11 -> BGS-CIEP Hourly Energy Charges* | K11: ='GS CIEP per Tariff'!K11 -> Zero Emission Certificate Recovery Charge (ZEC) | L11: ='GS CIEP per Tariff'!L11 -> RGGI Recovery Charge (RRC) | M11: ='GS CIEP per Tariff'!M11 -> Societal Benefit Charge (SBC) | N11: ='GS CIEP per Tariff'!N11 -> LRAM | O11: ='GS CIEP per Tariff'!O11 -> Non-utility Generation Charge (NGC) | P11: ='GS CIEP per Tariff'!P11 -> Standby Fee
A12: 1. | B12: Customer Charge | C12: 245.51 | D12: N/A | E12: N/A | F12: N/A | G12: N/A | H12: N/A | I12: N/A | J12: N/A | K12: N/A | L12: N/A | M12: N/A | N12: N/A | O12: N/A | P12: N/A
A14: 2. | B14: KVAR | C14: N/A | D14: N/A | E14: 0.38 | F14: N/A | G14: N/A | H14: N/A | I14: N/A | J14: N/A | K14: N/A | L14: N/A | M14: N/A | N14: N/A | O14: N/A | P14: N/A
A16: 3. | B16: All Summer On-Peak KW | C16: N/A | D16: N/A | E16: 3.85 | F16: 0 | G16: N/A | H16: N/A | I16: N/A | J16: N/A | K16: N/A | L16: N/A | M16: N/A | N16: ='SBC TBC and MTC Tax'!C63 -> 0.07 | O16: N/A | P16: N/A
A17: 4. | B17: All Winter On-Peak KW | C17: N/A | D17: N/A | E17: 3.85 | F17: =F16 -> 0 | G17: N/A | H17: N/A | I17: N/A | J17: N/A | K17: N/A | L17: N/A | M17: N/A | N17: =N16 -> 0.07 | O17: N/A | P17: N/A
A18: 5. | B18: Standby Service KW | C18: N/A | D18: N/A | E18: N/A | F18: N/A | G18: N/A | H18: N/A | I18: N/A | J18: N/A | K18: N/A | L18: N/A | M18: N/A | N18: N/A | O18: N/A | P18: N/A
A19: 6. | B19: Minimum Bill KW | C19: N/A | D19: N/A | E19: 1.17 | F19: =F16 -> 0 | G19: N/A | H19: N/A | I19: N/A | J19: N/A | K19: N/A | L19: N/A | M19: N/A | N19: N/A | O19: N/A | P19: N/A
A20: 7. | B20: KW Discount - 230kV Service | C20: N/A | D20: N/A | E20: N/A | F20: N/A | G20: N/A | H20: N/A | I20: N/A | J20: N/A | K20: N/A | L20: N/A | M20: N/A | N20: N/A | O20: N/A | P20: N/A
A21: 8. | B21: Minimum Charge Reduction | C21: N/A | D21: N/A | E21: N/A | F21: N/A | G21: N/A | H21: N/A | I21: N/A | J21: N/A | K21: N/A | L21: N/A | M21: N/A | N21: N/A | O21: N/A | P21: N/A
A22: 9. | B22: Capacity Peak Load Share{1} Summer | H22: ='GST CIEP per Tariff'!H19 -> 0.62521
A23: 10. | B23: Capacity Peak Load Share{1} Winter | H23: ='GST CIEP per Tariff'!H20 -> 0.62521
A25: 11. | B25: Summer On-Peak kWh | C25: N/A | D25: =0.007326+0+0.002151 -> 0.009477 | E25: 0.002561 | F25: ='RT per Tariff'!F15 -> 0.000336 | G25: ='GST CIEP per Tariff'!$G$22 -> 0 | H25: N/A | I25: ='GST CIEP per Tariff'!$I$22 -> -0.002782 | J25: {2} | K25: ='RT per Tariff'!I$15 -> 0 | L25: ='RT per Tariff'!J15 -> 0.004435 | M25: ='RT per Tariff'!$K$15 -> 0.007223 | N25: 0 | O25: -0.000204 | P25: ='GST CIEP per Tariff'!$P$22 -> 0.00015
A26: 12. | B26: Winter On-Peak kWh | C26: N/A | D26: =D$25 -> 0.009477 | E26: 0.002561 | F26: 0.000336 | G26: ='GST CIEP per Tariff'!$G$22 -> 0 | H26: N/A | I26: ='GST CIEP per Tariff'!$I$22 -> -0.002782 | J26: {2} | K26: ='RT per Tariff'!I$15 -> 0 | L26: ='RT per Tariff'!J16 -> 0.004435 | M26: ='RT per Tariff'!$K$15 -> 0.007223 | N26: 0 | O26: =O$25 -> -0.000204 | P26: ='GST CIEP per Tariff'!$P$22 -> 0.00015
A27: 13. | B27: Summer Off-Peak kWh | C27: N/A | D27: 0.009477 | E27: 0.002561 | F27: 0.000336 | G27: ='GST CIEP per Tariff'!$G$22 -> 0 | H27: N/A | I27: ='GST CIEP per Tariff'!$I$22 -> -0.002782 | J27: {2} | K27: ='RT per Tariff'!I$15 -> 0 | L27: =L$25 -> 0.004435 | M27: ='RT per Tariff'!$K$15 -> 0.007223 | N27: 0 | O27: =O$25 -> -0.000204 | P27: ='GST CIEP per Tariff'!$P$22 -> 0.00015
A28: 14. | B28: Winter Off-Peak kWh | C28: N/A | D28: 0.009477 | E28: 0.002561 | F28: 0.000336 | G28: ='GST CIEP per Tariff'!$G$22 -> 0 | H28: N/A | I28: ='GST CIEP per Tariff'!$I$22 -> -0.002782 | J28: {2} | K28: ='RT per Tariff'!I$15 -> 0 | L28: =L$26 -> 0.004435 | M28: ='RT per Tariff'!$K$15 -> 0.007223 | N28: 0 | O28: =O$25 -> -0.000204 | P28: ='GST CIEP per Tariff'!$P$22 -> 0.00015
B31: Charges Applicable to Federal Government [SUT Exempt, not applicable to Special Provision (c) ] Accounts
C33: Unbundled Components Including CBT 6/1/2025 Rates Applicable to Federal Government SUT Exempt Accounts (Except Special Provision (c) )
C34: =C11 -> Customer Charge | D34: Transmission* {1} | E34: Distribution | F34: Covid Recovery Charge | G34: Retail Margin* | H34: BGS-CIEP Generation Capacity Charge* | I34: BGS-CIEP Reconciliation Charge* | J34: BGS-CIEP Hourly Energy Charges* | K34: Zero Emission Certificate Recovery Charge (ZEC) | L34: RGGI Recovery Charge (RRC) | M34: Societal Benefit Charge (SBC) | N34: LRAM | O34: Non-utility Generation Charge (NGC) | P34: Standby Fee
A35: 1. | B35: Customer Charge | C35: 254.73 | D35: N/A | E35: N/A | F35: N/A | G35: N/A | H35: N/A | I35: N/A | J35: N/A | K35: N/A | L35: N/A | M35: N/A | N35: N/A | O35: N/A | P35: N/A
A37: 2. | B37: KVAR | C37: N/A | D37: N/A | E37: 0.39 | F37: N/A | G37: N/A | H37: N/A | I37: N/A | J37: N/A | K37: N/A | L37: N/A | M37: N/A | N37: N/A | O37: N/A | P37: N/A
A39: 3. | B39: All Summer On-Peak KW | C39: N/A | D39: N/A | E39: 3.99 | F39: =F16 -> 0 | G39: N/A | H39: N/A | I39: N/A | J39: N/A | K39: N/A | L39: N/A | M39: N/A | N39: =N16 -> 0.07 | O39: N/A | P39: N/A
A40: 4. | B40: All Winter On-Peak KW | C40: N/A | D40: N/A | E40: 3.99 | F40: =F17 -> 0 | G40: N/A | H40: N/A | I40: N/A | J40: N/A | K40: N/A | L40: N/A | M40: N/A | N40: =N17 -> 0.07 | O40: N/A | P40: N/A
A41: 5. | B41: Standby Service KW | C41: N/A | D41: N/A | E41: 1.03 | F41: =F16 -> 0 | G41: N/A | H41: N/A | I41: N/A | J41: N/A | K41: N/A | L41: N/A | M41: N/A | N41: N/A | O41: N/A | P41: N/A
A42: 6. | B42: Minimum Bill KW | C42: N/A | D42: N/A | E42: 1.21 | F42: =F16 -> 0 | G42: N/A | H42: N/A | I42: N/A | J42: N/A | K42: N/A | L42: N/A | M42: N/A | N42: N/A | O42: N/A | P42: N/A
A43: 7. | B43: KW Discount - 230kV Service | C43: N/A | D43: N/A | E43: -1.06 | F43: N/A | G43: N/A | H43: N/A | I43: N/A | J43: N/A | K43: N/A | L43: N/A | M43: N/A | N43: N/A | O43: N/A | P43: N/A
A44: 8. | B44: Minimum Charge Reduction | C44: N/A | D44: N/A | E44: -0.5 | F44: N/A | G44: N/A | H44: N/A | I44: N/A | J44: N/A | K44: N/A | L44: N/A | M44: N/A | N44: N/A | O44: N/A | P44: N/A
A45: 7. | B45: Capacity Peak Load Share{1} Summer | H45: ='GST CIEP per Tariff'!H19 -> 0.62521
A46: 8. | B46: Capacity Peak Load Share{1} Winter | H46: ='GST CIEP per Tariff'!H20 -> 0.62521
A48: 9. | B48: Summer On-Peak kWh | C48: N/A | D48: =D25 -> 0.009477 | E48: 0.002657 | F48: =F$25 -> 0.000336 | G48: ='GST CIEP per Tariff'!$G$22 -> 0 | H48: N/A | I48: ='GST CIEP per Tariff'!$I$22 -> -0.002782 | J48: {2} | K48: ='RT per Tariff'!I$15 -> 0 | L48: =L$25 -> 0.004435 | M48: ='RT per Tariff'!$K$15 -> 0.007223 | N48: =N$25 -> 0 | O48: =O$25 -> -0.000204 | P48: ='GST CIEP per Tariff'!$P$22 -> 0.00015
A49: 10. | B49: Winter On-Peak kWh | C49: N/A | D49: =D26 -> 0.009477 | E49: =E$48 -> 0.002657 | F49: 0.000336 | G49: ='GST CIEP per Tariff'!$G$22 -> 0 | H49: N/A | I49: ='GST CIEP per Tariff'!$I$22 -> -0.002782 | J49: {2} | K49: ='RT per Tariff'!I$15 -> 0 | L49: =L$26 -> 0.004435 | M49: ='RT per Tariff'!$K$15 -> 0.007223 | N49: =N$48 -> 0 | O49: =O$25 -> -0.000204 | P49: ='GST CIEP per Tariff'!$P$22 -> 0.00015
A50: 11. | B50: Summer Off-Peak kWh | C50: N/A | D50: =D27 -> 0.009477 | E50: 0.002657 | F50: 0.000336 | G50: ='GST CIEP per Tariff'!$G$22 -> 0 | H50: N/A | I50: ='GST CIEP per Tariff'!$I$22 -> -0.002782 | J50: {2} | K50: ='RT per Tariff'!I$15 -> 0 | L50: =L$25 -> 0.004435 | M50: ='RT per Tariff'!$K$15 -> 0.007223 | N50: 0 | O50: =O$25 -> -0.000204 | P50: ='GST CIEP per Tariff'!$P$22 -> 0.00015
A51: 12. | B51: Winter Off-Peak kWh | C51: N/A | D51: =D28 -> 0.009477 | E51: 0.002657 | F51: 0.000336 | G51: ='GST CIEP per Tariff'!$G$22 -> 0 | H51: N/A | I51: ='GST CIEP per Tariff'!$I$22 -> -0.002782 | J51: {2} | K51: ='RT per Tariff'!I$15 -> 0 | L51: =L$26 -> 0.004435 | M51: ='RT per Tariff'!$K$15 -> 0.007223 | N51: 0 | O51: =O$25 -> -0.000204 | P51: ='GST CIEP per Tariff'!$P$22 -> 0.00015
A52: 15. | B52: kWh Discount - 230kV Service | E52: -0.000943
A53: 16. | B53: MTC/NGC Charge for All kWh-230kV Service** | O53: -0.0002
A54: 17. | B54: 230kV Service - All kWh after Discount | C54: N/A | D54: =0.002594+0+0.000796 -> 0.00339 | E54: =E48+E52 -> 0.001714 | F54: =F$48 -> 0.000336 | G54: ='GST CIEP per Tariff'!$G$22 -> 0 | H54: N/A | I54: ='GST CIEP per Tariff'!$I$22 -> -0.002782 | J54: {2} | K54: ='RT per Tariff'!I$15 -> 0 | L54: =L$25 -> 0.004435 | M54: ='RT per Tariff'!$K$15 -> 0.007223 | N54: =N$25 -> 0 | O54: =O53 -> -0.0002 | P54: ='GST CIEP per Tariff'!$P$22 -> 0.00015
C56: Jersey Central Power & Light
C58: =C3 -> Rates Effective with Service Rendered June 1, 2025
C60: GT (General Service Transmission) Service Classification
C61: Unbundled Rate Components
B63: Charges Applicable to Federal Government Department of Defense [SUT Exempt, Special Provision (c) ] Accounts
C65: Unbundled Components Including CBT 6/1/2025 Rates Applicable to Federal Government DOD Accounts
C66: =C34 -> Customer Charge | D66: =D34 -> Transmission* {1} | E66: Distribution | F66: Covid Recovery Charge | G66: Retail Margin* | H66: BGS-CIEP Generation Capacity Charge* | I66: BGS-CIEP Reconciliation Charge* | J66: BGS-CIEP Hourly Energy Charges* | K66: Zero Emission Certificate Recovery Charge (ZEC) | L66: RGGI Recovery Charge (RRC) | M66: Societal Benefit Charge (SBC) | N66: =N34 -> LRAM | O66: =O34 -> Non-utility Generation Charge (NGC) | P66: =P34 -> Standby Fee
A67: 1. | B67: Customer Charge | C67: =C35 -> 254.73 | D67: N/A | E67: N/A | F67: N/A | G67: N/A | H67: N/A | I67: N/A | J67: N/A | K67: N/A | L67: N/A | M67: N/A | N67: N/A | O67: N/A | P67: N/A
A69: 2. | B69: KVAR | C69: N/A | D69: N/A | E69: =E37 -> 0.39 | F69: N/A | G69: N/A | H69: N/A | I69: N/A | J69: N/A | K69: N/A | L69: N/A | M69: N/A | N69: =N37 -> N/A | O69: N/A | P69: N/A
A71: 3. | B71: All Summer On-Peak KW | C71: N/A | D71: N/A | E71: 1.34 | F71: =ROUND(F39*SUT_6625,2) -> 0 | G71: N/A | H71: N/A | I71: N/A | J71: N/A | K71: N/A | L71: N/A | M71: N/A | N71: =N39 -> 0.07 | O71: N/A | P71: N/A
A72: 4. | B72: All Winter On-Peak KW | C72: N/A | D72: N/A | E72: 1.34 | F72: =F71 -> 0 | G72: N/A | H72: N/A | I72: N/A | J72: N/A | K72: N/A | L72: N/A | M72: N/A | N72: =N40 -> 0.07 | O72: N/A | P72: N/A
A73: 5 | B73: Standby Service KW | C73: N/A | D73: N/A | E73: =E41 -> 1.03 | F73: =F71 -> 0 | G73: N/A | H73: N/A | I73: N/A | J73: N/A | K73: N/A | L73: N/A | M73: N/A | N73: N/A | O73: N/A | P73: N/A
A74: 6. | B74: Minimum Bill KW | C74: N/A | D74: N/A | E74: 0.42 | F74: =F71 -> 0 | G74: N/A | H74: N/A | I74: N/A | J74: N/A | K74: N/A | L74: N/A | M74: N/A | N74: N/A | O74: N/A | P74: N/A
A75: 7. | B75: Capacity Peak Load Share{1} Summer | H75: ='GST CIEP per Tariff'!H40 -> 0.62521
A76: 8. | B76: Capacity Peak Load Share{1} Winter | H76: ='GST CIEP per Tariff'!H41 -> 0.62521
A78: 9. | B78: Summer On-Peak kWh | C78: N/A | D78: =D25 -> 0.009477 | E78: =E48-0.001727 -> 0.00093 | F78: =F$48 -> 0.000336 | G78: ='GST CIEP per Tariff'!$G$22 -> 0 | H78: N/A | I78: ='GST CIEP per Tariff'!$I$22 -> -0.002782 | J78: {2} | K78: ='RT per Tariff'!I$15 -> 0 | L78: =L$25 -> 0.004435 | M78: ='RT per Tariff'!$K$15 -> 0.007223 | N78: =N$25 -> 0 | O78: =O$25 -> -0.000204 | P78: ='GST CIEP per Tariff'!$P$22 -> 0.00015
A79: 10. | B79: Winter On-Peak kWh | C79: N/A | D79: =D26 -> 0.009477 | E79: =E$78 -> 0.00093 | F79: =F$48 -> 0.000336 | G79: ='GST CIEP per Tariff'!$G$22 -> 0 | H79: N/A | I79: ='GST CIEP per Tariff'!$I$22 -> -0.002782 | J79: {2} | K79: ='RT per Tariff'!I$15 -> 0 | L79: =L$26 -> 0.004435 | M79: ='RT per Tariff'!$K$15 -> 0.007223 | N79: 0 | O79: =O$25 -> -0.000204 | P79: ='GST CIEP per Tariff'!$P$22 -> 0.00015
A80: 11. | B80: Summer Off-Peak kWh | C80: N/A | D80: =D27 -> 0.009477 | E80: =E$78 -> 0.00093 | F80: =F$48 -> 0.000336 | G80: ='GST CIEP per Tariff'!$G$22 -> 0 | H80: N/A | I80: ='GST CIEP per Tariff'!$I$22 -> -0.002782 | J80: {2} | K80: ='RT per Tariff'!I$15 -> 0 | L80: =L$25 -> 0.004435 | M80: ='RT per Tariff'!$K$15 -> 0.007223 | N80: 0 | O80: =O$25 -> -0.000204 | P80: ='GST CIEP per Tariff'!$P$22 -> 0.00015
A81: 12. | B81: Winter Off-Peak kWh | C81: N/A | D81: =D28 -> 0.009477 | E81: =E$78 -> 0.00093 | F81: =F$48 -> 0.000336 | G81: ='GST CIEP per Tariff'!$G$22 -> 0 | H81: N/A | I81: ='GST CIEP per Tariff'!$I$22 -> -0.002782 | J81: {2} | K81: ='RT per Tariff'!I$15 -> 0 | L81: =L$26 -> 0.004435 | M81: ='RT per Tariff'!$K$15 -> 0.007223 | N81: 0 | O81: =O$25 -> -0.000204 | P81: ='GST CIEP per Tariff'!$P$22 -> 0.00015
C83: Charges Applicable to Non-Tax-Exempt Accounts
C84: ='RT per Tariff'!C22 -> Unbundled Components Including CBT and SUT - 6/1/2025 Rates Applicable to Non-Tax-Exempt Customers
C85: =C11 -> Customer Charge | D85: Transmission* {1} | E85: Distribution | F85: Covid Recovery Charge | G85: Retail Margin* | H85: BGS-CIEP Generation Capacity Charge* | I85: BGS-CIEP Reconciliation Charge* | J85: BGS-CIEP Hourly Energy Charges* | K85: Zero Emission Certificate Recovery Charge (ZEC) | L85: RGGI Recovery Charge (RRC) | M85: Societal Benefit Charge (SBC) | N85: LRAM | O85: Non-utility Generation Charge (NGC) | P85: Standby Fee
A86: 1. | B86: Customer Charge | C86: =ROUND(C35*SUT_6625,2) -> 271.61 | D86: N/A | E86: N/A | F86: N/A | G86: N/A | H86: N/A | I86: N/A | J86: N/A | K86: N/A | L86: N/A | M86: N/A | N86: N/A | O86: N/A | P86: N/A
A88: 2. | B88: KVAR | C88: N/A | D88: N/A | E88: =ROUND(E37*SUT_6625,2) -> 0.42 | F88: N/A | G88: N/A | H88: N/A | I88: N/A | J88: N/A | K88: N/A | L88: N/A | M88: N/A | N88: N/A | O88: N/A | P88: N/A
A90: 3. | B90: All Summer On-Peak KW | C90: N/A | D90: N/A | E90: =ROUND(E39*SUT_6625,2) -> 4.25 | F90: =ROUND(F39*SUT_6625,2) -> 0 | G90: N/A | H90: N/A | I90: N/A | J90: N/A | K90: N/A | L90: N/A | M90: N/A | N90: =ROUND(N39*SUT_6625,2) -> 0.07 | O90: N/A | P90: N/A
A91: 4. | B91: All Winter On-Peak KW | C91: N/A | D91: N/A | E91: 4.25 | F91: =F89 -> 0 | G91: N/A | H91: N/A | I91: N/A | J91: N/A | K91: N/A | L91: N/A | M91: N/A | N91: 0.07 | O91: N/A | P91: N/A
A92: 5. | B92: Standby Service KW | C92: N/A | D92: N/A | E92: 1.1 | F92: =F90 -> 0 | G92: N/A | H92: N/A | I92: N/A | J92: N/A | K92: N/A | L92: N/A | M92: N/A | N92: N/A | O92: N/A | P92: N/A
A93: 6. | B93: Minimum Bill KW | C93: N/A | D93: N/A | E93: 1.29 | F93: =F90 -> 0 | G93: N/A | H93: N/A | I93: N/A | J93: N/A | K93: N/A | L93: N/A | M93: N/A | N93: N/A | O93: N/A | P93: N/A
A94: 7. | B94: KW Discount - 230kV Service | C94: N/A | D94: N/A | E94: -1.13 | F94: N/A | G94: N/A | H94: N/A | I94: N/A | J94: N/A | K94: N/A | L94: N/A | M94: N/A | N94: N/A | O94: N/A | P94: N/A
A95: 8. | B95: Minimum Charge Reduction | C95: N/A | D95: N/A | E95: -0.53 | F95: N/A | G95: N/A | H95: N/A | I95: N/A | J95: N/A | K95: N/A | L95: N/A | M95: N/A | N95: N/A | O95: N/A | P95: N/A
A96: 9. | B96: Special Provision {d} | C96: N/A | D96: N/A | E96: 0.45 | F96: N/A | G96: N/A | H96: N/A | I96: N/A | J96: N/A | K96: N/A | L96: N/A | M96: N/A | N96: N/A | O96: N/A | P96: N/A
A97: 10. | B97: Capacity Peak Load Share{1} Summer | H97: ='GST CIEP per Tariff'!H61 -> 0.66663
A98: 11. | B98: Capacity Peak Load Share{1} Winter | H98: ='GST CIEP per Tariff'!H62 -> 0.66663
A100: 12. | B100: Summer On-Peak kWh | C100: N/A | D100: =ROUND(0.007326*SUT_6625,6)+0+0.002292 -> 0.010103 | E100: =ROUND(E48*SUT_6625,6) -> 0.002833 | F100: =ROUND(F48*SUT_6625,6) -> 0.000358 | G100: ='GST CIEP per Tariff'!$G$64 -> 0 | H100: N/A | I100: ='GST CIEP per Tariff'!$I$64 -> -0.002966 | J100: {2} | K100: ='RT per Tariff'!I$27 -> 0 | L100: ='RT per Tariff'!J27 -> 0.004729 | M100: ='RT per Tariff'!$K$27 -> 0.0077 | N100: =ROUND(N48*SUT_6625,6) -> 0 | O100: =ROUND(O25*SUT_6625,6) -> -0.000218 | P100: ='GST CIEP per Tariff'!$P$64 -> 0.00016
A101: 13. | B101: Winter On-Peak kWh | C101: N/A | D101: =D$100 -> 0.010103 | E101: 0.002833 | F101: =F100 -> 0.000358 | G101: ='GST CIEP per Tariff'!$G$64 -> 0 | H101: N/A | I101: ='GST CIEP per Tariff'!$I$64 -> -0.002966 | J101: {2} | K101: ='RT per Tariff'!I$27 -> 0 | L101: ='RT per Tariff'!J28 -> 0.004729 | M101: ='RT per Tariff'!$K$27 -> 0.0077 | N101: =N$100 -> 0 | O101: -0.000218 | P101: ='GST CIEP per Tariff'!$P$64 -> 0.00016
A102: 14. | B102: Summer Off-Peak kWh | C102: N/A | D102: =D$100 -> 0.010103 | E102: 0.002833 | F102: =F100 -> 0.000358 | G102: ='GST CIEP per Tariff'!$G$64 -> 0 | H102: N/A | I102: ='GST CIEP per Tariff'!$I$64 -> -0.002966 | J102: {2} | K102: ='RT per Tariff'!I$27 -> 0 | L102: =L$100 -> 0.004729 | M102: ='RT per Tariff'!$K$27 -> 0.0077 | N102: 0 | O102: -0.000218 | P102: ='GST CIEP per Tariff'!$P$64 -> 0.00016
A103: 15. | B103: Winter Off-Peak kWh | C103: N/A | D103: 0.010103 | E103: 0.002833 | F103: =F100 -> 0.000358 | G103: ='GST CIEP per Tariff'!$G$64 -> 0 | H103: N/A | I103: ='GST CIEP per Tariff'!$I$64 -> -0.002966 | J103: {2} | K103: ='RT per Tariff'!I$27 -> 0 | L103: =L101 -> 0.004729 | M103: ='RT per Tariff'!$K$27 -> 0.0077 | N103: 0 | O103: -0.000218 | P103: ='GST CIEP per Tariff'!$P$64 -> 0.00016
A104: 16. | B104: kWh Discount - 230kV Service | E104: =ROUND(E52*SUT_6625,6) -> -0.001005
A105: 17. | B105: MTC/NGC Charge for All kWh-230kV Service** | O105: =ROUND(O53*SUT_6625,6) -> -0.000213
A106: 18. | B106: 230kV Service - All kWh after Discount | C106: N/A | D106: =ROUND(0.002594*SUT_6625,6)+0+0.000847 -> 0.003613 | E106: =E100+E104 -> 0.001828 | F106: =F$100 -> 0.000358 | G106: ='GST CIEP per Tariff'!$G$64 -> 0 | H106: N/A | I106: ='GST CIEP per Tariff'!$I$64 -> -0.002966 | J106: {2} | K106: ='RT per Tariff'!I$27 -> 0 | L106: =L$100 -> 0.004729 | M106: ='RT per Tariff'!$K$27 -> 0.0077 | N106: =N$100 -> 0 | O106: =O105 -> -0.000213 | P106: ='GST CIEP per Tariff'!$P$64 -> 0.00016
A108: ='GP per Tariff'!A67 -> * Transmission, Retail Margin, BGS-CIEP Generation Capacity, BGS-CIEP Reconciliation and BGS-CIEP Hourly Energy Charges apply only to Full Service (non-shopping) Customers
A109: ** Customers served at 230 kV are billed the lower MTC charge specified on line 15 in place of the MTC charges specified on lines 11 through 14.
A111: ='GP per Tariff'!A69 & "assigned capacity related factors and then multiplied by the price per kW-day which is then multiplied by the number of days in the billing period." -> {1} The BGS-CIEP Generation Capacity Charge is billed based on Peak Load Share (PLS) on a per kW-day basis. The customer's PLS is adjusted by PJM assigned capacity related factors and then multiplied by the price per kW-day which is then multiplied by the number of days in the billing period.
A112: ='GP per Tariff'!A71 -> {2} Hourly Energy prices are based on the sum of actual real-time PJM load weighted average Locational Marginal Price for the JCP&L Transmission Zone and
A113: ='GST CIEP per Tariff'!$B$75 -> ancillary services of $0.00600 per KWH, times a Losses Multiplier times 6.625 % for Sales and Use Tax where applicable (See Tariff Rider BGS-CIEP)
A114: {3} Transmission Charge includes Reliability Must Run (RMR) Surcharge of $0.000000/$0.000000 (w/ SUT) Eff. September 1, 2019 and Transmission Enhancement Charge (TEC) of $0.002151/$0.002292(w/SUT) Eff. May 1, 2025
A115: For High Tension Service, RMR is $0.000000/$0.000000 (w/SUT) and TEC is $0.000796/$0.000847(w/ SUT) per kWh
A120: ="Assumptions: Bill Credit is calculated at the pre-SUT rate. Subscriber has 10% investment from "&TEXT(D130,"mm/dd/yyyy")&" to "&TEXT(E130,"mm/dd/yyyy") -> Assumptions: Bill Credit is calculated at the pre-SUT rate. Subscriber has 10% investment from 06/01/2025 to 07/01/2025
A121: Customer billed for 700,000 kWH/2000 kW usage on Service Classification GT Default Service
A122: Host Output: 1,000,000 KWH
A123: Customer (Subscriber) Allocated: 100,000 KWH
A125: Normal Full Bill | C125: =H144 -> 96698.87
A126: Community Solar Credit | C126: =K144 -> 5496.4
A127: Charges Due | C127: =C125-C126 -> 91202.47
F128: Normal Full Bill | I128: Credit Calculation
B129: Charge Type | C129: Credit | D129: Period Start | E129: Period End | F129: Consumed kWh/kWh | G129: Price | H129: Charges | I129: Allocated kWh | J129: Pre-SUT Price | K129: Credit @ Pre-SUT
B130: Customer Charge | C130: No | D130: 2025-06-01 | E130: =D130+30 -> 2025-07-01 | G130: =C86 -> 271.61 | H130: =G130 -> 271.61
B131: BGS Capacity | C131: No | D131: =$D$130 -> 2025-06-01 | E131: =E$130 -> 2025-07-01 | F131: =F133&" x "&(E131-D131+1) -> 2000 x 31 | G131: =H97 -> 0.66663 | H131: =ROUND(F133*(E131-D131+1)*G131,2) -> 41331.06
B132: Distribution kVar | C132: No | D132: =$D$130 -> 2025-06-01 | E132: =E$130 -> 2025-07-01 | F132: 800 | G132: =E88 -> 0.42 | H132: =ROUND(F132*G132,2) -> 336
B133: Distribution kW | C133: No | D133: 2025-06-01 | E133: 2025-07-01 | F133: 2000 | G133: =E90 -> 4.25 | H133: =ROUND(F133*G133,2) -> 8500
B134: Non-Utility Generation Charge (MTC) | C134: No | D134: 2025-06-01 | E134: 2025-07-01 | F134: 700000 | G134: =O100 -> -0.000218 | H134: =ROUND(F134*G134,2) -> -152.6
B135: SBC Charge | C135: No | D135: 2025-06-01 | E135: 2025-07-01 | F135: =F$134 -> 700000 | G135: =M100 -> 0.0077 | H135: =ROUND(F135*G135,2) -> 5390
B136: ZEC Recovery Charge | C136: No | D136: 2025-06-01 | E136: 2025-07-01 | F136: =F$134 -> 700000 | G136: =K100 -> 0 | H136: 0
B137: BGS Energy Charges - Hourly Pricing | C137: Yes | D137: 2025-06-01 | E137: 2025-07-01 | F137: 700000 | G137: =ROUND(J137*1.06625,6) -> 0.043387 | H137: 30370.9 | I137: 100000 | J137: =B147 -> 0.040691 | K137: =ROUND(I137*J137,2) -> 4069.1 | L137: * | P137: =J137*1.06625-G137 -> -2.2125e-07
B138: BGS Transmission | C138: Yes | D138: 2025-06-01 | E138: 2025-07-01 | F138: 700000 | G138: =D100 -> 0.010103 | H138: 7072.1 | I138: =I$137 -> 100000 | J138: =D48 -> 0.009477 | K138: 947.7 | P138: =ROUND(J138*1.06625,6)-G138 -> 2e-06
B139: BGS Reconciliation | C139: Yes | D139: 2025-06-01 | E139: 2025-07-01 | F139: 700000 | G139: =I100 -> -0.002966 | H139: -2076.2 | I139: =I$137 -> 100000 | J139: =I48 -> -0.002782 | K139: -278.2 | P139: -3.075e-07
B140: CIEP - Standby Fee | C140: Yes | D140: 2025-06-01 | E140: 2025-07-01 | F140: 700000 | G140: =P100 -> 0.00016 | H140: 112 | I140: 100000 | J140: =P48 -> 0.00015 | K140: 15 | P140: -6.25e-08
B141: Distribution kWh | C141: Yes | D141: 2025-06-01 | E141: 2025-07-01 | F141: 700000 | G141: =E100 -> 0.002833 | H141: 1983.1 | I141: 100000 | J141: =E48 -> 0.002657 | K141: 265.7 | P141: 2.625e-08
B142: RGGI Charge | C142: Yes | D142: 2025-06-01 | E142: 2025-07-01 | F142: 700000 | G142: =L100 -> 0.004729 | H142: 3310.3 | I142: 100000 | J142: =L48 -> 0.004435 | K142: 443.5 | P142: -1.8125e-07
B143: Covid Recovery Charge | C143: Yes | D143: 2025-06-01 | E143: 2025-07-01 | F143: 700000 | G143: =F100 -> 0.000358 | H143: 250.6 | I143: 100000 | J143: =F48 -> 0.000336 | K143: 33.6 | P143: 2.6e-07
G144: Normal Full Bill | H144: =SUM(H130:H143) -> 96698.87 | J144: Community Solar Credit | K144: =SUM(K137:K143) -> 5496.4
B146: Class Average
B147: 0.040691 | C147: Avg 012023 to 122023, w/o SUT

Sheet Lighting kWh Charges
A1: ='RT per Tariff'!A1:B1 -> Visual_Rate_Inventory June 1, 2025 | C1: Jersey Central Power & Light
A2: =NOW() -> 2025-05-30T16:18:48.150
A3: =NOW() -> 45807.67972 | C3: ='RT per Tariff'!C3 -> Rates Effective with Service Rendered June 1, 2025
A4: Lighting kWh Charges
C5: Lighting per kWh Charges
C10: Unbundled kWh Prices per Tariff (Including CBT and SUT if Applicable)
